Workbook

Sheet Instructions
B2: 1. | C2: Sheet "Input data" (Indtastet eksempel pr. 13. juni 2012)
C3: This is where all input data is entered (no input in the other sheets)
C5: 1.1. | D5: Input parameters
D6: UFR | E6: = | F6: Ultimate Forward Rate (long term equillibrium rate) - 4,2 %
D7: α | E7: = | F7: measure for the speed of convergence towards the UFR with the Smith-Wilson method (default should be 0,1)
D8: T2 | E8: = | F8: number of years until the UFR is reached with the linear extrapolation method - 10 years
D9: Maximum spread at T2 | E9: = | F9: when the Smith-Wilson is calibrated, this is the maximum allowed spread at T2 - 0,03 %
C11: 1.2. | D11: Liquid data points
D12: Maturity | E12: = | F12: number of years until the maturity for the swap (calculated from the maturity date and the calculation date)
D13: Discount rate | E13: = | F13: Spot rate for euroswap + MAX(moving average of government spread;0) + MAX(½OAS;0)
C15: 1.3. | D15: Command Buttons
D16: Calibrate alpha | E16: = | F16: calibrates the Smith-Wilson method so that the forward rate at T2 with the Smith-Wilson method is less than the maximum spread away from the UFR
B18: 2. | C18: Sheet "Calculated rates"
C19: Displays the calculated annual spot- and forward rates for the Smith-Wilson and linear method with and without the illiquidity premium
C22: 2.1. | D22: Smith-Wilson
D23: Forward rate at T2 | E23: = | F23: the forward rate at T2 with the Smith-Wilson method (only used for calibrating the two methods)
D24: Spot rate S-W | E24: = | F24: spot rate with no illiquidity premium for each maturity calculated with the Smith-Wilson method
D25: Forward rate S-W | E25: = | F25: forward rate for each maturity calculated with the Smith-Wilson method
B28: 3. | C28: Sheet "W(t,u)"
C29: Calculates the symmetric Wilson functions for all input data points
B31: 4. | C31: Sheet "P(t)"
C32: Calculates the prices for each annual maturity

Sheet Input data
B2: Input parameters
B3: UFR | C3: 0.042
B4: α | C4: 0.424
B5: UFR continuos (UFRC) | C5: 0.05069311432 | D5: =LN(1+UFR) -> 0.04114194333
B6: T2 (years) | C6: 30
B7: Maximum spread at T2 | C7: 0.0003
B10: Maturity (years) | C10: Discount rate | G10: Press this button to make the Smith-Wilson method reach UFR at T2
B11: 1 | C11: 0.004639609358
B12: 2 | C12: 0.006932750225
B13: 3 | C13: 0.009278118714
B14: 4 | C14: 0.0116234872
B15: 5 | C15: 0.01396885569
B16: 6 | C16: 0.01631422418
B17: 7 | C17: 0.01865959267
B18: 8 | C18: 0.01974959267
B19: 9 | C19: 0.02071959267
B20: 10 | C20: 0.02205959267
B21: 11 | C21: 0.02256559267
B22: 12 | C22: 0.02307159267
B23: 13 | C23: 0.02357759267
B24: 14 | C24: 0.02408359267
B25: 15 | C25: 0.02458959267
B26: 16 | C26: 0.02450959267
B27: 17 | C27: 0.02442959267
B28: 18 | C28: 0.02434959267
B29: 19 | C29: 0.02426959267
B30: 20 | C30: 0.02418959267

Sheet Calculated rates
I2: Smith-Wilson | Q2: Linear extrapolation
B3: Maturity (years) | C3: Spot rate | D3: Spot rate continuos | F3: Xi_i | G3: Forward rate linear extrapolation | I3: Forward rate at T2 | J3: Maturity (years) | K3: Spot rate S-W | L3: Forward rate S-W | M3: Adjusted spot rate S-W | Q3: Maturity (years) | R3: Previous liquid maturity | S3: Previous liquid spot rate | T3: Next liquid maturity | U3: Next liquid spot rate | V3: Spot rate linear | W3: Forward rate linear | X3: Adjusted spot rate linear
B4: =IF('Input data'!B11<>"",'Input data'!B11,"") -> 1 | C4: =IF('Input data'!C11<>"",'Input data'!C11,"") -> 0.004639609358 | D4: =IF(C4<>"",LN(1+C4),"") -> 0.004628879545 | E4: =IF(D4<>"",EXP(-B4*D4)-EXP(-B4*UFRC),"") -> 0.03568891893 | F4: =MMULT(MINVERSE('W(t,u)'!B3:OFFSET('W(t,u)'!B3,'W(t,u)'!$CX$103-1,'W(t,u)'!$CX$103-1)),E4:OFFSET(E4,'W(t,u)'!$CX$103-1,0)) -> 0.07171241773 | G4: =C4 -> 0.004639609358 | I4: =LOOKUP(T_2,'Calculated rates'!J4:J138,'Calculated rates'!L4:L138) -> 0.04170037733 | J4: 1 | K4: =EXP('P(t)'!B3)-1 -> 0.004639609358 | L4: =K4 -> 0.004639609358 | M4: =K4+#REF! ->  | O4: Max duration (T1) | P4: =MAX(B4:B103) -> 20 | Q4: 1 | R4: =LOOKUP(Q4,B$4:B$258,B$4:B$258) -> 1 | S4: =LOOKUP(R4,B$4:B$258,C$4:C$258) -> 0.004639609358 | T4: =IF(LOOKUP(Q4+1,B$4:B$258,B$4:B$258)>Q4,LOOKUP(Q4+1,B$4:B$258,B$4:B$258),T5) -> 2 | U4: =IF(T4<=MaxDur,LOOKUP(T4,B$4:B$258,C$4:C$258),"") -> 0.006932750225 | V4: =IF(Q4=R4,S4,IF(U4<>"",S4+(U4-S4)*(Q4-R4)/(T4-R4),((1+V3)^Q3*(1+W3))^(1/Q4)-1)) -> 0.004639609358 | W4: =V4 -> 0.004639609358 | X4: =#REF!+V4 -> 
B5: =IF('Input data'!B12<>"",'Input data'!B12,"") -> 2 | C5: =IF('Input data'!C12<>"",'Input data'!C12,"") -> 0.006932750225 | D5: =IF(C5<>"",LN(1+C5),"") -> 0.006908829207 | E5: 0.06526690825 | F5: 0.001040480752 | G5: =IF(B5<>"",((1+C5)^B5/(1+C4)^B4)^(1/(B5-B4))-1,"") -> 0.009231125303 | J5: =J4+1 -> 2 | K5: =EXP('P(t)'!B4)-1 -> 0.006932750225 | L5: =(((1+K5)^J5)/((1+K4)^J4))^(1/(J5-J4))-1 -> 0.009231125303 | M5: =K5+#REF! ->  | O5: Forward rate at T1 | P5: =LOOKUP(MaxDur,B4:B103,G4:G103) -> 0.0226707793 | Q5: 2 | R5: 2 | S5: 0.006932750225 | T5: 3 | U5: 0.009278118714 | V5: =IF(Q5=R5,S5,IF(U5<>"",S5+(U5-S5)*(Q5-R5)/(T5-R5),((1+V4)^Q4*(1+W4))^(1/Q5)-1)) -> 0.006932750225 | W5: =IF(Q5<=MaxDur,((1+V5)^Q5/(1+V4)^Q4)^(1/(Q5-Q4))-1,IF(Q5>=T_2,UFR,_FRT1+(UFR-_FRT1)*(Q5-MaxDur)/(T_2-MaxDur))) -> 0.009231125303 | X5: =#REF!+V5 -> 
B6: =IF('Input data'!B13<>"",'Input data'!B13,"") -> 3 | C6: =IF('Input data'!C13<>"",'Input data'!C13,"") -> 0.009278118714 | D6: 0.009235341363 | E6: 0.08878707085 | F6: 0.006727252536 | G6: 0.01398525706 | J6: =J5+1 -> 3 | K6: =EXP('P(t)'!B5)-1 -> 0.009278118714 | L6: 0.01398525706 | M6: =K6+#REF! ->  | Q6: 3 | R6: 3 | S6: 0.009278118714 | T6: 4 | U6: 0.0116234872 | V6: 0.009278118714 | W6: 0.01398525706 | X6: =#REF!+V6 -> 
B7: =IF('Input data'!B14<>"",'Input data'!B14,"") -> 4 | C7: =IF('Input data'!C14<>"",'Input data'!C14,"") -> 0.0116234872 | D7: 0.01155645342 | E7: 0.1065660594 | F7: 0.04453379392 | G7: 0.01869234448 | J7: 4 | K7: =EXP('P(t)'!B6)-1 -> 0.0116234872 | L7: 0.01869234448 | M7: =K7+#REF! ->  | Q7: 4 | R7: 4 | S7: 0.0116234872 | T7: 5 | U7: 0.01396885569 | V7: 0.0116234872 | W7: 0.01869234448 | X7: =#REF!+V7 -> 
B8: =IF('Input data'!B15<>"",'Input data'!B15,"") -> 5 | C8: =IF('Input data'!C15<>"",'Input data'!C15,"") -> 0.01396885569 | D8: 0.01387219039 | E8: 0.118920502 | F8: -0.106161962 | G8: 0.02340483136 | J8: 5 | K8: =EXP('P(t)'!B7)-1 -> 0.01396885569 | L8: 0.02340483136 | M8: =K8+#REF! ->  | Q8: 5 | R8: 5 | S8: 0.01396885569 | T8: 6 | U8: 0.01631422418 | V8: 0.01396885569 | W8: 0.02340483136 | X8: =#REF!+V8 -> 
B9: =IF('Input data'!B16<>"",'Input data'!B16,"") -> 6 | C9: =IF('Input data'!C16<>"",'Input data'!C16,"") -> 0.01631422418 | D9: 0.01618257711 | E9: 0.126212796 | F9: 0.4954745662 | G9: 0.02812269262 | J9: 6 | K9: =EXP('P(t)'!B8)-1 -> 0.01631422418 | L9: 0.02812269262 | M9: =K9+#REF! ->  | Q9: 6 | R9: 6 | S9: 0.01631422418 | T9: 7 | U9: 0.01865959267 | V9: 0.01631422418 | W9: 0.02812269262 | X9: =#REF!+V9 -> 
B10: =IF('Input data'!B17<>"",'Input data'!B17,"") -> 7 | C10: =IF('Input data'!C17<>"",'Input data'!C17,"") -> 0.01865959267 | D10: 0.01848763824 | E10: 0.1288442251 | F10: -0.6518125648 | G10: 0.0328459033 | J10: 7 | K10: =EXP('P(t)'!B9)-1 -> 0.01865959267 | L10: 0.0328459033 | M10: =K10+#REF! ->  | Q10: 7 | R10: 7 | S10: 0.01865959267 | T10: 8 | U10: 0.01974959267 | V10: 0.01865959267 | W10: 0.0328459033 | X10: =#REF!+V10 -> 
B11: =IF('Input data'!B18<>"",'Input data'!B18,"") -> 8 | C11: =IF('Input data'!C18<>"",'Input data'!C18,"") -> 0.01974959267 | D11: 0.01955709978 | E11: 0.1356229836 | F11: 0.02695978505 | G11: 0.02741232008 | J11: 8 | K11: =EXP('P(t)'!B10)-1 -> 0.01974959267 | L11: 0.02741232008 | M11: =K11+#REF! ->  | Q11: 8 | R11: 8 | S11: 0.01974959267 | T11: 9 | U11: 0.02071959267 | V11: 0.01974959267 | W11: 0.02741232008 | X11: =#REF!+V11 -> 
B12: =IF('Input data'!B19<>"",'Input data'!B19,"") -> 9 | C12: =IF('Input data'!C19<>"",'Input data'!C19,"") -> 0.02071959267 | D12: 0.02050786157 | E12: 0.1409184231 | F12: 0.8361383788 | G12: 0.02851288289 | J12: 9 | K12: =EXP('P(t)'!B11)-1 -> 0.02071959267 | L12: 0.02851288289 | M12: =K12+#REF! ->  | Q12: 9 | R12: 9 | S12: 0.02071959267 | T12: 10 | U12: 0.02205959267 | V12: 0.02071959267 | W12: 0.02851288289 | X12: =#REF!+V12 -> 
B13: =IF('Input data'!B20<>"",'Input data'!B20,"") -> 10 | C13: =IF('Input data'!C20<>"",'Input data'!C20,"") -> 0.02205959267 | D13: 0.02181979994 | E13: 0.14125733 | F13: -1.072568265 | G13: 0.03419903224 | J13: 10 | K13: =EXP('P(t)'!B12)-1 -> 0.02205959267 | L13: 0.03419903224 | M13: =K13+#REF! ->  | Q13: 10 | R13: 10 | S13: 0.02205959267 | T13: 11 | U13: 0.02256559267 | V13: 0.02205959267 | W13: 0.03419903224 | X13: =#REF!+V13 -> 
B14: =IF('Input data'!B21<>"",'Input data'!B21,"") -> 11 | C14: =IF('Input data'!C21<>"",'Input data'!C21,"") -> 0.02256559267 | D14: 0.02231475619 | E14: 0.1463457278 | F14: 0.5763414586 | G14: 0.0276393912 | J14: 11 | K14: =EXP('P(t)'!B13)-1 -> 0.02256559267 | L14: 0.0276393912 | M14: =K14+#REF! ->  | Q14: 11 | R14: 11 | S14: 0.02256559267 | T14: 12 | U14: 0.02307159267 | V14: 0.02256559267 | W14: 0.0276393912 | X14: =#REF!+V14 -> 
B15: =IF('Input data'!B22<>"",'Input data'!B22,"") -> 12 | C15: =IF('Input data'!C22<>"",'Input data'!C22,"") -> 0.02307159267 | D15: 0.02280946758 | E15: 0.1501880188 | F15: -0.1086896784 | G15: 0.02865414543 | J15: 12 | K15: =EXP('P(t)'!B14)-1 -> 0.02307159267 | L15: 0.02865414543 | M15: =K15+#REF! ->  | Q15: 12 | R15: 12 | S15: 0.02307159267 | T15: 13 | U15: 0.02357759267 | V15: 0.02307159267 | W15: 0.02865414543 | X15: =#REF!+V15 -> 
B16: =IF('Input data'!B23<>"",'Input data'!B23,"") -> 13 | C16: =IF('Input data'!C23<>"",'Input data'!C23,"") -> 0.02357759267 | D16: 0.02330393436 | E16: 0.1528752586 | F16: -0.1431321856 | G16: 0.02966914856 | J16: 13 | K16: =EXP('P(t)'!B15)-1 -> 0.02357759267 | L16: 0.02966914856 | M16: =K16+#REF! ->  | Q16: 13 | R16: 13 | S16: 0.02357759267 | T16: 14 | U16: 0.02408359267 | V16: 0.02357759267 | W16: 0.02966914856 | X16: =#REF!+V16 -> 
B17: =IF('Input data'!B24<>"",'Input data'!B24,"") -> 14 | C17: =IF('Input data'!C24<>"",'Input data'!C24,"") -> 0.02408359267 | D17: 0.02379815675 | E17: 0.1544957106 | F17: 0.7476359213 | G17: 0.03068440033 | J17: 14 | K17: =EXP('P(t)'!B16)-1 -> 0.02408359267 | L17: 0.03068440033 | M17: =K17+#REF! ->  | Q17: 14 | R17: 14 | S17: 0.02408359267 | T17: 15 | U17: 0.02458959267 | V17: 0.02408359267 | W17: 0.03068440033 | X17: =#REF!+V17 -> 
B18: =IF('Input data'!B25<>"",'Input data'!B25,"") -> 15 | C18: =IF('Input data'!C25<>"",'Input data'!C25,"") -> 0.02458959267 | D18: 0.02429213502 | E18: 0.1551347651 | F18: -1.232271595 | G18: 0.03169990051 | J18: 15 | K18: =EXP('P(t)'!B17)-1 -> 0.02458959267 | L18: 0.03169990051 | M18: =K18+#REF! ->  | Q18: 15 | R18: 15 | S18: 0.02458959267 | T18: 16 | U18: 0.02450959267 | V18: 0.02458959267 | W18: 0.03169990051 | X18: =#REF!+V18 -> 
B19: =IF('Input data'!B26<>"",'Input data'!B26,"") -> 16 | C19: =IF('Input data'!C26<>"",'Input data'!C26,"") -> 0.02450959267 | D19: 0.02421405192 | E19: 0.1610569623 | F19: 0.7507323877 | G19: 0.02331034197 | J19: 16 | K19: =EXP('P(t)'!B18)-1 -> 0.02450959267 | L19: 0.02331034197 | M19: =K19+#REF! ->  | Q19: 16 | R19: 16 | S19: 0.02450959267 | T19: 17 | U19: 0.02442959267 | V19: 0.02450959267 | W19: 0.02331034197 | X19: =#REF!+V19 -> 
B20: =IF('Input data'!B27<>"",'Input data'!B27,"") -> 17 | C20: =IF('Input data'!C27<>"",'Input data'!C27,"") -> 0.02442959267 | D20: 0.02413596273 | E20: 0.1665667771 | F20: -0.2408422936 | G20: 0.02315044192 | J20: 17 | K20: =EXP('P(t)'!B19)-1 -> 0.02442959267 | L20: 0.02315044192 | M20: =K20+#REF! ->  | Q20: 17 | R20: 17 | S20: 0.02442959267 | T20: 18 | U20: 0.02434959267 | V20: 0.02442959267 | W20: 0.02315044192 | X20: =#REF!+V20 -> 
B21: =IF('Input data'!B28<>"",'Input data'!B28,"") -> 18 | C21: =IF('Input data'!C28<>"",'Input data'!C28,"") -> 0.02434959267 | D21: 0.02405786745 | E21: 0.1716843028 | F21: 0.1782119414 | G21: 0.02299054812 | J21: 18 | K21: =EXP('P(t)'!B20)-1 -> 0.02434959267 | L21: 0.02299054812 | M21: =K21+#REF! ->  | Q21: 18 | R21: 18 | S21: 0.02434959267 | T21: 19 | U21: 0.02426959267 | V21: 0.02434959267 | W21: 0.02299054812 | X21: =#REF!+V21 -> 
B22: =IF('Input data'!B29<>"",'Input data'!B29,"") -> 19 | C22: =IF('Input data'!C29<>"",'Input data'!C29,"") -> 0.02426959267 | D22: 0.02397976606 | E22: 0.1764287593 | F22: -0.5089231827 | G22: 0.02283066058 | J22: 19 | K22: =EXP('P(t)'!B21)-1 -> 0.02426959267 | L22: 0.02283066058 | M22: =K22+#REF! ->  | Q22: 19 | R22: 19 | S22: 0.02426959267 | T22: 20 | U22: 0.02418959267 | V22: 0.02426959267 | W22: 0.02283066058 | X22: =#REF!+V22 -> 
B23: =IF('Input data'!B30<>"",'Input data'!B30,"") -> 20 | C23: =IF('Input data'!C30<>"",'Input data'!C30,"") -> 0.02418959267 | D23: 0.02390165857 | E23: 0.1808185294 | F23: 0.5466537501 | G23: 0.0226707793 | J23: 20 | K23: =EXP('P(t)'!B22)-1 -> 0.02418959267 | L23: 0.0226707793 | M23: =K23+#REF! ->  | Q23: 20 | R23: 20 | S23: 0.02418959267 | T23: 99999 | V23: 0.02418959267 | W23: 0.0226707793 | X23: =#REF!+V23 -> 
B24: =IF('Input data'!C31<>"",'Input data'!C31,"") ->  | C24: =IF('Input data'!D31<>"",'Input data'!D31,"") ->  | J24: 21 | K24: =EXP('P(t)'!B23)-1 -> 0.0243732409 | L24: 0.02805312858 | M24: =K24+#REF! ->  | Q24: 21 | R24: 20 | S24: 0.02418959267 | T24: 99999 | V24: 0.0241172171 | W24: 0.02460370137 | X24: =#REF!+V24 -> 
B25: =IF('Input data'!C32<>"",'Input data'!C32,"") ->  | C25: =IF('Input data'!D32<>"",'Input data'!D32,"") ->  | J25: 22 | K25: =EXP('P(t)'!B24)-1 -> 0.02476163829 | L25: 0.03295208743 | M25: =K25+#REF! ->  | Q25: 22 | R25: 20 | S25: 0.02418959267 | T25: 99999 | V25: 0.02413932501 | W25: 0.02653662344 | X25: =#REF!+V25 -> 
B26: =IF('Input data'!C33<>"",'Input data'!C33,"") ->  | C26: =IF('Input data'!D33<>"",'Input data'!D33,"") ->  | J26: 23 | K26: =EXP('P(t)'!B25)-1 -> 0.02525254918 | L26: 0.03611228689 | M26: =K26+#REF! ->  | Q26: 23 | R26: 20 | S26: 0.02418959267 | T26: 99999 | V26: 0.02424343887 | W26: 0.02846954551 | X26: =#REF!+V26 -> 
B27: =IF('Input data'!C34<>"",'Input data'!C34,"") ->  | C27: =IF('Input data'!D34<>"",'Input data'!D34,"") ->  | J27: 24 | K27: =EXP('P(t)'!B26)-1 -> 0.02578718844 | L27: 0.03816113511 | M27: =K27+#REF! ->  | Q27: 24 | R27: 20 | S27: 0.02418959267 | T27: 99999 | V27: 0.02441917944 | W27: 0.03040246758 | X27: =#REF!+V27 -> 
B28: =IF('Input data'!C35<>"",'Input data'!C35,"") ->  | C28: =IF('Input data'!D35<>"",'Input data'!D35,"") ->  | J28: 25 | K28: =EXP('P(t)'!B27)-1 -> 0.02633196676 | L28: 0.03949379755 | M28: =K28+#REF! ->  | Q28: 25 | R28: 20 | S28: 0.02418959267 | T28: 99999 | V28: 0.02465784255 | W28: 0.03233538965 | X28: =#REF!+V28 -> 
B29: =IF('Input data'!C36<>"",'Input data'!C36,"") ->  | C29: =IF('Input data'!D36<>"",'Input data'!D36,"") ->  | J29: 26 | K29: =EXP('P(t)'!B28)-1 -> 0.02686808578 | L29: 0.04036245877 | M29: =K29+#REF! ->  | Q29: 26 | R29: 20 | S29: 0.02418959267 | T29: 99999 | V29: 0.02495207428 | W29: 0.03426831172 | X29: =#REF!+V29 -> 
B30: =IF('Input data'!C37<>"",'Input data'!C37,"") ->  | C30: =IF('Input data'!D37<>"",'Input data'!D37,"") ->  | J30: 27 | K30: =EXP('P(t)'!B29)-1 -> 0.02738547403 | L30: 0.04092945491 | M30: =K30+#REF! ->  | Q30: 27 | R30: 20 | S30: 0.02418959267 | T30: 99999 | V30: 0.02529561897 | W30: 0.03620123379 | X30: =#REF!+V30 -> 
B31: =IF('Input data'!C38<>"",'Input data'!C38,"") ->  | C31: =IF('Input data'!D38<>"",'Input data'!D38,"") ->  | J31: 28 | K31: =EXP('P(t)'!B30)-1 -> 0.02787920062 | L31: 0.04129988046 | M31: =K31+#REF! ->  | Q31: 28 | R31: 20 | S31: 0.02418959267 | T31: 99999 | V31: 0.0256831216 | W31: 0.03813415586 | X31: =#REF!+V31 -> 
B32: =IF('Input data'!C39<>"",'Input data'!C39,"") ->  | C32: =IF('Input data'!D39<>"",'Input data'!D39,"") ->  | J32: 29 | K32: =EXP('P(t)'!B31)-1 -> 0.02834733538 | L32: 0.04154202642 | M32: =K32+#REF! ->  | Q32: 29 | R32: 20 | S32: 0.02418959267 | T32: 99999 | V32: 0.02610997133 | W32: 0.04006707793 | X32: =#REF!+V32 -> 
B33: =IF('Input data'!C40<>"",'Input data'!C40,"") ->  | C33: =IF('Input data'!D40<>"",'Input data'!D40,"") ->  | J33: 30 | K33: =EXP('P(t)'!B32)-1 -> 0.02878966685 | L33: 0.04170037733 | M33: =K33+#REF! ->  | Q33: 30 | R33: 20 | S33: 0.02418959267 | T33: 99999 | V33: 0.02657217662 | W33: 0.042 | X33: =#REF!+V33 -> 
B34: =IF('Input data'!C41<>"",'Input data'!C41,"") ->  | C34: =IF('Input data'!D41<>"",'Input data'!D41,"") ->  | J34: 31 | K34: =EXP('P(t)'!B33)-1 -> 0.02920693408 | L34: 0.04180395666 | M34: =K34+#REF! ->  | Q34: 31 | R34: 20 | S34: 0.02418959267 | T34: 99999 | V34: 0.02706626463 | W34: 0.042 | X34: =#REF!+V34 -> 
B35: =IF('Input data'!C42<>"",'Input data'!C42,"") ->  | C35: =IF('Input data'!D42<>"",'Input data'!D42,"") ->  | J35: 32 | K35: =EXP('P(t)'!B34)-1 -> 0.02960036854 | L35: 0.04187172035 | M35: =K35+#REF! ->  | Q35: 32 | R35: 20 | S35: 0.02418959267 | T35: 99999 | V35: 0.02752968811 | W35: 0.042 | X35: =#REF!+V35 -> 
B36: =IF('Input data'!C43<>"",'Input data'!C43,"") ->  | C36: =IF('Input data'!D43<>"",'Input data'!D43,"") ->  | E36: =IF(D36<>"",EXP(-B36*D36)-EXP(-B36*UFRC),"") ->  | J36: 33 | K36: =EXP('P(t)'!B35)-1 -> 0.02997142367 | L36: 0.0419160575 | M36: =K36+#REF! ->  | Q36: 33 | R36: =LOOKUP(Q36,B$4:B$258,B$4:B$258) -> 20 | S36: =LOOKUP(R36,B$4:B$258,C$4:C$258) -> 0.02418959267 | T36: =IF(LOOKUP(Q36+1,B$4:B$258,B$4:B$258)>Q36,LOOKUP(Q36+1,B$4:B$258,B$4:B$258),T37) -> 99999 | U36: =IF(T36<=MaxDur,LOOKUP(T36,B$4:B$258,C$4:C$258),"") ->  | V36: 0.0279652158 | W36: 0.042 | X36: =#REF!+V36 -> 
B37: =IF('Input data'!C44<>"",'Input data'!C44,"") ->  | C37: =IF('Input data'!D44<>"",'Input data'!D44,"") ->  | G37: =IF(B37<>"",((1+C37)^B37/(1+C36)^B36)^(1/(B37-B36))-1,"") ->  | J37: 34 | K37: =EXP('P(t)'!B36)-1 -> 0.03032161795 | L37: =(((1+K37)^J37)/((1+K36)^J36))^(1/(J37-J36))-1 -> 0.04194506892 | M37: =K37+#REF! ->  | Q37: 34 | R37: 20 | S37: 0.02418959267 | T37: 99999 | V37: 0.02837529284 | W37: =IF(Q37<=MaxDur,((1+V37)^Q37/(1+V36)^Q36)^(1/(Q37-Q36))-1,IF(Q37>=T_2,UFR,_FRT1+(UFR-_FRT1)*(Q37-MaxDur)/(T_2-MaxDur))) -> 0.042 | X37: =#REF!+V37 -> 
B38: =IF('Input data'!C45<>"",'Input data'!C45,"") ->  | C38: =IF('Input data'!D45<>"",'Input data'!D45,"") ->  | J38: 35 | K38: =EXP('P(t)'!B37)-1 -> 0.0306524467 | L38: 0.04196405303 | M38: =K38+#REF! ->  | Q38: 35 | R38: 20 | S38: 0.02418959267 | T38: 99999 | V38: 0.02876208674 | W38: 0.042 | X38: =#REF!+V38 -> 
B39: =IF('Input data'!C46<>"",'Input data'!C46,"") ->  | C39: =IF('Input data'!D46<>"",'Input data'!D46,"") ->  | J39: 36 | K39: =EXP('P(t)'!B38)-1 -> 0.03096533506 | L39: 0.04197647597 | M39: =K39+#REF! ->  | Q39: 36 | R39: 20 | S39: 0.02418959267 | T39: 99999 | V39: 0.02912752567 | W39: 0.042 | X39: =#REF!+V39 -> 
B40: =IF('Input data'!C47<>"",'Input data'!C47,"") ->  | C40: =IF('Input data'!D47<>"",'Input data'!D47,"") ->  | J40: 37 | K40: =EXP('P(t)'!B39)-1 -> 0.03126161541 | L40: 0.04198460554 | M40: =K40+#REF! ->  | Q40: 37 | R40: 20 | S40: 0.02418959267 | T40: 99999 | V40: 0.02947333062 | W40: 0.042 | X40: =#REF!+V40 -> 
B41: =IF('Input data'!C48<>"",'Input data'!C48,"") ->  | C41: =IF('Input data'!D48<>"",'Input data'!D48,"") ->  | J41: 38 | K41: =EXP('P(t)'!B40)-1 -> 0.0315425192 | L41: 0.0419899256 | M41: =K41+#REF! ->  | Q41: 38 | R41: 20 | S41: 0.02418959267 | T41: 99999 | V41: 0.02980104249 | W41: 0.042 | X41: =#REF!+V41 -> 
B42: =IF('Input data'!C49<>"",'Input data'!C49,"") ->  | C42: =IF('Input data'!D49<>"",'Input data'!D49,"") ->  | J42: 39 | K42: =EXP('P(t)'!B41)-1 -> 0.03180917679 | L42: 0.04199340711 | M42: =K42+#REF! ->  | Q42: 39 | R42: 20 | S42: 0.02418959267 | T42: 99999 | V42: 0.03011204506 | W42: 0.042 | X42: =#REF!+V42 -> 
B43: =IF('Input data'!C50<>"",'Input data'!C50,"") ->  | C43: =IF('Input data'!D50<>"",'Input data'!D50,"") ->  | J43: 40 | K43: =EXP('P(t)'!B42)-1 -> 0.03206262177 | L43: 0.04199568547 | M43: =K43+#REF! ->  | Q43: 40 | R43: 20 | S43: 0.02418959267 | T43: 99999 | V43: 0.0304075845 | W43: 0.042 | X43: =#REF!+V43 -> 
B44: =IF('Input data'!C51<>"",'Input data'!C51,"") ->  | C44: =IF('Input data'!D51<>"",'Input data'!D51,"") ->  | J44: 41 | K44: =EXP('P(t)'!B43)-1 -> 0.03230379737 | L44: 0.04199717648 | M44: =K44+#REF! ->  | Q44: 41 | R44: 20 | S44: 0.02418959267 | T44: 99999 | V44: 0.03068878607 | W44: 0.042 | X44: =#REF!+V44 -> 
B45: =IF('Input data'!C52<>"",'Input data'!C52,"") ->  | C45: =IF('Input data'!D52<>"",'Input data'!D52,"") ->  | J45: 42 | K45: =EXP('P(t)'!B44)-1 -> 0.03253356384 | L45: 0.04199815222 | M45: =K45+#REF! ->  | Q45: 42 | R45: 20 | S45: 0.02418959267 | T45: 99999 | V45: 0.03095666843 | W45: 0.042 | X45: =#REF!+V45 -> 
B46: =IF('Input data'!C53<>"",'Input data'!C53,"") ->  | C46: =IF('Input data'!D53<>"",'Input data'!D53,"") ->  | J46: 43 | K46: =EXP('P(t)'!B45)-1 -> 0.03275270585 | L46: 0.04199879077 | M46: =K46+#REF! ->  | Q46: 43 | R46: 20 | S46: 0.02418959267 | T46: 99999 | V46: 0.03121215599 | W46: 0.042 | X46: =#REF!+V46 -> 
B47: =IF('Input data'!C54<>"",'Input data'!C54,"") ->  | C47: =IF('Input data'!D54<>"",'Input data'!D54,"") ->  | J47: 44 | K47: =EXP('P(t)'!B46)-1 -> 0.03296193966 | L47: 0.04199920865 | M47: =K47+#REF! ->  | Q47: 44 | R47: 20 | S47: 0.02418959267 | T47: 99999 | V47: 0.03145608954 | W47: 0.042 | X47: =#REF!+V47 -> 
B48: =IF('Input data'!C55<>"",'Input data'!C55,"") ->  | C48: =IF('Input data'!D55<>"",'Input data'!D55,"") ->  | J48: 45 | K48: =EXP('P(t)'!B47)-1 -> 0.03316191982 | L48: 0.04199948212 | M48: =K48+#REF! ->  | Q48: 45 | R48: 20 | S48: 0.02418959267 | T48: 99999 | V48: 0.03168923551 | W48: 0.042 | X48: =#REF!+V48 -> 
B49: =IF('Input data'!C56<>"",'Input data'!C56,"") ->  | C49: =IF('Input data'!D56<>"",'Input data'!D56,"") ->  | J49: 46 | K49: =EXP('P(t)'!B48)-1 -> 0.03335324527 | L49: 0.04199966109 | M49: =K49+#REF! ->  | Q49: 46 | R49: 20 | S49: 0.02418959267 | T49: 99999 | V49: 0.03191229401 | W49: 0.042 | X49: =#REF!+V49 -> 
B50: =IF('Input data'!C57<>"",'Input data'!C57,"") ->  | C50: =IF('Input data'!D57<>"",'Input data'!D57,"") ->  | J50: 47 | K50: =EXP('P(t)'!B49)-1 -> 0.03353646489 | L50: 0.04199977821 | M50: =K50+#REF! ->  | Q50: 47 | R50: 20 | S50: 0.02418959267 | T50: 99999 | V50: 0.03212590585 | W50: 0.042 | X50: =#REF!+V50 -> 
B51: =IF('Input data'!C58<>"",'Input data'!C58,"") ->  | C51: =IF('Input data'!D58<>"",'Input data'!D58,"") ->  | J51: 48 | K51: =EXP('P(t)'!B50)-1 -> 0.03371208243 | L51: 0.04199985485 | M51: =K51+#REF! ->  | Q51: 48 | R51: 20 | S51: 0.02418959267 | T51: 99999 | V51: 0.03233065869 | W51: 0.042 | X51: =#REF!+V51 -> 
B52: =IF('Input data'!C59<>"",'Input data'!C59,"") ->  | C52: =IF('Input data'!D59<>"",'Input data'!D59,"") ->  | J52: 49 | K52: =EXP('P(t)'!B51)-1 -> 0.03388056095 | L52: 0.04199990501 | M52: =K52+#REF! ->  | Q52: 49 | R52: 20 | S52: 0.02418959267 | T52: 99999 | V52: 0.03252709244 | W52: 0.042 | X52: =#REF!+V52 -> 
B53: =IF('Input data'!C60<>"",'Input data'!C60,"") ->  | C53: =IF('Input data'!D60<>"",'Input data'!D60,"") ->  | J53: 50 | K53: =EXP('P(t)'!B52)-1 -> 0.03404232682 | L53: 0.04199993784 | M53: =K53+#REF! ->  | Q53: 50 | R53: 20 | S53: 0.02418959267 | T53: 99999 | V53: 0.03271570401 | W53: 0.042 | X53: =#REF!+V53 -> 
B54: =IF('Input data'!C61<>"",'Input data'!C61,"") ->  | C54: =IF('Input data'!D61<>"",'Input data'!D61,"") ->  | J54: 51 | K54: =EXP('P(t)'!B53)-1 -> 0.0341977732 | L54: 0.04199995932 | M54: =K54+#REF! ->  | Q54: 51 | R54: 20 | S54: 0.02418959267 | T54: 99999 | V54: 0.03289695149 | W54: 0.042 | X54: =#REF!+V54 -> 
B55: =IF('Input data'!C62<>"",'Input data'!C62,"") ->  | C55: =IF('Input data'!D62<>"",'Input data'!D62,"") ->  | J55: 52 | K55: =EXP('P(t)'!B54)-1 -> 0.03434726317 | L55: 0.04199997338 | M55: =K55+#REF! ->  | Q55: 52 | R55: 20 | S55: 0.02418959267 | T55: 99999 | V55: 0.03307125792 | W55: 0.042 | X55: =#REF!+V55 -> 
B56: =IF('Input data'!C63<>"",'Input data'!C63,"") ->  | C56: =IF('Input data'!D63<>"",'Input data'!D63,"") ->  | J56: 53 | K56: =EXP('P(t)'!B55)-1 -> 0.03449113258 | L56: 0.04199998258 | M56: =K56+#REF! ->  | Q56: 53 | R56: 20 | S56: 0.02418959267 | T56: 99999 | V56: 0.03323901452 | W56: 0.042 | X56: =#REF!+V56 -> 
B57: =IF('Input data'!C64<>"",'Input data'!C64,"") ->  | C57: =IF('Input data'!D64<>"",'Input data'!D64,"") ->  | J57: 54 | K57: =EXP('P(t)'!B56)-1 -> 0.03462969252 | L57: 0.0419999886 | M57: =K57+#REF! ->  | Q57: 54 | R57: 20 | S57: 0.02418959267 | T57: 99999 | V57: 0.03340058365 | W57: 0.042 | X57: =#REF!+V57 -> 
B58: =IF('Input data'!C65<>"",'Input data'!C65,"") ->  | C58: =IF('Input data'!D65<>"",'Input data'!D65,"") ->  | J58: 55 | K58: =EXP('P(t)'!B57)-1 -> 0.03476323154 | L58: 0.04199999254 | M58: =K58+#REF! ->  | Q58: 55 | R58: 20 | S58: 0.02418959267 | T58: 99999 | V58: 0.03355630145 | W58: 0.042 | X58: =#REF!+V58 -> 
B59: =IF('Input data'!C66<>"",'Input data'!C66,"") ->  | C59: =IF('Input data'!D66<>"",'Input data'!D66,"") ->  | J59: 56 | K59: =EXP('P(t)'!B58)-1 -> 0.03489201768 | L59: 0.04199999512 | M59: =K59+#REF! ->  | Q59: 56 | R59: 20 | S59: 0.02418959267 | T59: 99999 | V59: 0.03370648012 | W59: 0.042 | X59: =#REF!+V59 -> 
B60: =IF('Input data'!C67<>"",'Input data'!C67,"") ->  | C60: =IF('Input data'!D67<>"",'Input data'!D67,"") ->  | J60: 57 | K60: =EXP('P(t)'!B59)-1 -> 0.03501630024 | L60: 0.0419999968 | M60: =K60+#REF! ->  | Q60: 57 | R60: 20 | S60: 0.02418959267 | T60: 99999 | V60: 0.03385141005 | W60: 0.042 | X60: =#REF!+V60 -> 
B61: =IF('Input data'!C68<>"",'Input data'!C68,"") ->  | C61: =IF('Input data'!D68<>"",'Input data'!D68,"") ->  | J61: 58 | K61: =EXP('P(t)'!B60)-1 -> 0.03513631137 | L61: 0.04199999791 | M61: =K61+#REF! ->  | Q61: 58 | R61: 20 | S61: 0.02418959267 | T61: 99999 | V61: 0.03399136168 | W61: 0.042 | X61: =#REF!+V61 -> 
B62: =IF('Input data'!C69<>"",'Input data'!C69,"") ->  | C62: =IF('Input data'!D69<>"",'Input data'!D69,"") ->  | J62: 59 | K62: =EXP('P(t)'!B61)-1 -> 0.03525226756 | L62: 0.04199999863 | M62: =K62+#REF! ->  | Q62: 59 | R62: 20 | S62: 0.02418959267 | T62: 99999 | V62: 0.03412658718 | W62: 0.042 | X62: =#REF!+V62 -> 
B63: =IF('Input data'!C70<>"",'Input data'!C70,"") ->  | C63: =IF('Input data'!D70<>"",'Input data'!D70,"") ->  | J63: 60 | K63: =EXP('P(t)'!B62)-1 -> 0.03536437089 | L63: 0.0419999991 | M63: =K63+#REF! ->  | Q63: 60 | R63: 20 | S63: 0.02418959267 | T63: 99999 | V63: 0.03425732197 | W63: 0.042 | X63: =#REF!+V63 -> 
B64: =IF('Input data'!C71<>"",'Input data'!C71,"") ->  | C64: =IF('Input data'!D71<>"",'Input data'!D71,"") ->  | J64: 61 | K64: =EXP('P(t)'!B63)-1 -> 0.03547281026 | L64: 0.04199999941 | M64: =K64+#REF! ->  | Q64: 61 | R64: 20 | S64: 0.02418959267 | T64: 99999 | V64: 0.03438378609 | W64: 0.042 | X64: =#REF!+V64 -> 
B65: =IF('Input data'!C72<>"",'Input data'!C72,"") ->  | C65: =IF('Input data'!D72<>"",'Input data'!D72,"") ->  | J65: 62 | K65: =EXP('P(t)'!B64)-1 -> 0.0355777624 | L65: 0.04199999962 | M65: =K65+#REF! ->  | Q65: 62 | R65: 20 | S65: 0.02418959267 | T65: 99999 | V65: 0.03450618546 | W65: 0.042 | X65: =#REF!+V65 -> 
B66: =IF('Input data'!C73<>"",'Input data'!C73,"") ->  | C66: =IF('Input data'!D73<>"",'Input data'!D73,"") ->  | J66: 63 | K66: =EXP('P(t)'!B65)-1 -> 0.03567939287 | L66: 0.04199999975 | M66: =K66+#REF! ->  | Q66: 63 | R66: 20 | S66: 0.02418959267 | T66: 99999 | V66: 0.03462471293 | W66: 0.042 | X66: =#REF!+V66 -> 
B67: =IF('Input data'!C74<>"",'Input data'!C74,"") ->  | C67: =IF('Input data'!D74<>"",'Input data'!D74,"") ->  | J67: 64 | K67: =EXP('P(t)'!B66)-1 -> 0.0357778569 | L67: 0.04199999984 | M67: =K67+#REF! ->  | Q67: 64 | R67: 20 | S67: 0.02418959267 | T67: 99999 | V67: 0.03473954936 | W67: 0.042 | X67: =#REF!+V67 -> 
B68: =IF('Input data'!C75<>"",'Input data'!C75,"") ->  | C68: =IF('Input data'!D75<>"",'Input data'!D75,"") ->  | E68: =IF(D68<>"",EXP(-B68*D68)-EXP(-B68*UFRC),"") ->  | J68: 65 | K68: =EXP('P(t)'!B67)-1 -> 0.0358733002 | L68: 0.04199999989 | M68: =K68+#REF! ->  | Q68: 65 | R68: =LOOKUP(Q68,B$4:B$258,B$4:B$258) -> 20 | S68: =LOOKUP(R68,B$4:B$258,C$4:C$258) -> 0.02418959267 | T68: =IF(LOOKUP(Q68+1,B$4:B$258,B$4:B$258)>Q68,LOOKUP(Q68+1,B$4:B$258,B$4:B$258),T69) -> 99999 | U68: =IF(T68<=MaxDur,LOOKUP(T68,B$4:B$258,C$4:C$258),"") ->  | V68: 0.03485086453 | W68: 0.042 | X68: =#REF!+V68 -> 
B69: =IF('Input data'!C76<>"",'Input data'!C76,"") ->  | C69: =IF('Input data'!D76<>"",'Input data'!D76,"") ->  | D69: =IF(C69<>"",LN(1+C69),"") ->  | G69: =IF(B69<>"",((1+C69)^B69/(1+C68)^B68)^(1/(B69-B68))-1,"") ->  | J69: 66 | K69: =EXP('P(t)'!B68)-1 -> 0.03596585967 | L69: =(((1+K69)^J69)/((1+K68)^J68))^(1/(J69-J68))-1 -> 0.04199999993 | M69: =K69+#REF! ->  | Q69: 66 | R69: 20 | S69: 0.02418959267 | T69: 99999 | V69: =IF(Q69=R69,S69,IF(U69<>"",S69+(U69-S69)*(Q69-R69)/(T69-R69),((1+V68)^Q68*(1+W68))^(1/Q69)-1)) -> 0.03495881795 | W69: =IF(Q69<=MaxDur,((1+V69)^Q69/(1+V68)^Q68)^(1/(Q69-Q68))-1,IF(Q69>=T_2,UFR,_FRT1+(UFR-_FRT1)*(Q69-MaxDur)/(T_2-MaxDur))) -> 0.042 | X69: =#REF!+V69 -> 
B70: =IF('Input data'!C77<>"",'Input data'!C77,"") ->  | C70: =IF('Input data'!D77<>"",'Input data'!D77,"") ->  | J70: =J69+1 -> 67 | K70: =EXP('P(t)'!B69)-1 -> 0.03605566409 | L70: 0.04199999995 | M70: =K70+#REF! ->  | Q70: 67 | R70: 20 | S70: 0.02418959267 | T70: 99999 | V70: 0.03506355965 | W70: 0.042 | X70: =#REF!+V70 -> 
B71: =IF('Input data'!C78<>"",'Input data'!C78,"") ->  | C71: =IF('Input data'!D78<>"",'Input data'!D78,"") ->  | J71: 68 | K71: =EXP('P(t)'!B70)-1 -> 0.03614283464 | L71: 0.04199999997 | M71: =K71+#REF! ->  | Q71: 68 | R71: 20 | S71: 0.02418959267 | T71: 99999 | V71: 0.03516523084 | W71: 0.042 | X71: =#REF!+V71 -> 
B72: =IF('Input data'!C79<>"",'Input data'!C79,"") ->  | C72: =IF('Input data'!D79<>"",'Input data'!D79,"") ->  | J72: 69 | K72: =EXP('P(t)'!B71)-1 -> 0.03622748552 | L72: 0.04199999998 | M72: =K72+#REF! ->  | Q72: 69 | R72: 20 | S72: 0.02418959267 | T72: 99999 | V72: 0.0352639646 | W72: 0.042 | X72: =#REF!+V72 -> 
B73: =IF('Input data'!C80<>"",'Input data'!C80,"") ->  | C73: =IF('Input data'!D80<>"",'Input data'!D80,"") ->  | J73: 70 | K73: =EXP('P(t)'!B72)-1 -> 0.03630972444 | L73: 0.04199999999 | M73: =K73+#REF! ->  | Q73: 70 | R73: 20 | S73: 0.02418959267 | T73: 99999 | V73: 0.03535988641 | W73: 0.042 | X73: =#REF!+V73 -> 
B74: =IF('Input data'!C81<>"",'Input data'!C81,"") ->  | C74: =IF('Input data'!D81<>"",'Input data'!D81,"") ->  | J74: 71 | K74: =EXP('P(t)'!B73)-1 -> 0.03638965301 | L74: 0.04199999999 | M74: =K74+#REF! ->  | Q74: 71 | R74: 20 | S74: 0.02418959267 | T74: 99999 | V74: 0.03545311471 | W74: 0.042 | X74: =#REF!+V74 -> 
B75: =IF('Input data'!C82<>"",'Input data'!C82,"") ->  | C75: =IF('Input data'!D82<>"",'Input data'!D82,"") ->  | J75: 72 | K75: =EXP('P(t)'!B74)-1 -> 0.03646736726 | L75: 0.04199999999 | M75: =K75+#REF! ->  | Q75: 72 | R75: 20 | S75: 0.02418959267 | T75: 99999 | V75: 0.03554376139 | W75: 0.042 | X75: =#REF!+V75 -> 
B76: =IF('Input data'!C83<>"",'Input data'!C83,"") ->  | C76: =IF('Input data'!D83<>"",'Input data'!D83,"") ->  | J76: 73 | K76: =EXP('P(t)'!B75)-1 -> 0.03654295794 | L76: 0.042 | M76: =K76+#REF! ->  | Q76: 73 | R76: 20 | S76: 0.02418959267 | T76: 99999 | V76: 0.03563193221 | W76: 0.042 | X76: =#REF!+V76 -> 
B77: =IF('Input data'!C84<>"",'Input data'!C84,"") ->  | C77: =IF('Input data'!D84<>"",'Input data'!D84,"") ->  | J77: 74 | K77: =EXP('P(t)'!B76)-1 -> 0.03661651093 | L77: 0.042 | M77: =K77+#REF! ->  | Q77: 74 | R77: 20 | S77: 0.02418959267 | T77: 99999 | V77: 0.03571772723 | W77: 0.042 | X77: =#REF!+V77 -> 
B78: =IF('Input data'!C85<>"",'Input data'!C85,"") ->  | C78: =IF('Input data'!D85<>"",'Input data'!D85,"") ->  | J78: 75 | K78: =EXP('P(t)'!B77)-1 -> 0.03668810751 | L78: 0.042 | M78: =K78+#REF! ->  | Q78: 75 | R78: 20 | S78: 0.02418959267 | T78: 99999 | V78: 0.03580124122 | W78: 0.042 | X78: =#REF!+V78 -> 
B79: =IF('Input data'!C86<>"",'Input data'!C86,"") ->  | C79: =IF('Input data'!D86<>"",'Input data'!D86,"") ->  | J79: 76 | K79: =EXP('P(t)'!B78)-1 -> 0.03675782472 | L79: 0.042 | M79: =K79+#REF! ->  | Q79: 76 | R79: 20 | S79: 0.02418959267 | T79: 99999 | V79: 0.03588256394 | W79: 0.042 | X79: =#REF!+V79 -> 
B80: =IF('Input data'!C87<>"",'Input data'!C87,"") ->  | C80: =IF('Input data'!D87<>"",'Input data'!D87,"") ->  | J80: 77 | K80: =EXP('P(t)'!B79)-1 -> 0.0368257356 | L80: 0.042 | M80: =K80+#REF! ->  | Q80: 77 | R80: 20 | S80: 0.02418959267 | T80: 99999 | V80: 0.03596178052 | W80: 0.042 | X80: =#REF!+V80 -> 
B81: =IF('Input data'!C88<>"",'Input data'!C88,"") ->  | C81: =IF('Input data'!D88<>"",'Input data'!D88,"") ->  | J81: 78 | K81: =EXP('P(t)'!B80)-1 -> 0.03689190946 | L81: 0.042 | M81: =K81+#REF! ->  | Q81: 78 | R81: 20 | S81: 0.02418959267 | T81: 99999 | V81: 0.03603897174 | W81: 0.042 | X81: =#REF!+V81 -> 
B82: =IF('Input data'!C89<>"",'Input data'!C89,"") ->  | C82: =IF('Input data'!D89<>"",'Input data'!D89,"") ->  | J82: 79 | K82: =EXP('P(t)'!B81)-1 -> 0.03695641209 | L82: 0.042 | M82: =K82+#REF! ->  | Q82: 79 | R82: 20 | S82: 0.02418959267 | T82: 99999 | V82: 0.03611421428 | W82: 0.042 | X82: =#REF!+V82 -> 
B83: =IF('Input data'!C90<>"",'Input data'!C90,"") ->  | C83: =IF('Input data'!D90<>"",'Input data'!D90,"") ->  | J83: 80 | K83: =EXP('P(t)'!B82)-1 -> 0.03701930602 | L83: 0.042 | M83: =K83+#REF! ->  | Q83: 80 | R83: 20 | S83: 0.02418959267 | T83: 99999 | V83: 0.03618758101 | W83: 0.042 | X83: =#REF!+V83 -> 
B84: =IF('Input data'!C91<>"",'Input data'!C91,"") ->  | C84: =IF('Input data'!D91<>"",'Input data'!D91,"") ->  | J84: 81 | K84: =EXP('P(t)'!B83)-1 -> 0.03708065069 | L84: 0.042 | M84: =K84+#REF! ->  | Q84: 81 | R84: 20 | S84: 0.02418959267 | T84: 99999 | V84: 0.03625914123 | W84: 0.042 | X84: =#REF!+V84 -> 
B85: =IF('Input data'!C92<>"",'Input data'!C92,"") ->  | C85: =IF('Input data'!D92<>"",'Input data'!D92,"") ->  | J85: 82 | K85: =EXP('P(t)'!B84)-1 -> 0.03714050265 | L85: 0.042 | M85: =K85+#REF! ->  | Q85: 82 | R85: 20 | S85: 0.02418959267 | T85: 99999 | V85: 0.03632896084 | W85: 0.042 | X85: =#REF!+V85 -> 
B86: =IF('Input data'!C93<>"",'Input data'!C93,"") ->  | C86: =IF('Input data'!D93<>"",'Input data'!D93,"") ->  | J86: 83 | K86: =EXP('P(t)'!B85)-1 -> 0.03719891572 | L86: 0.042 | M86: =K86+#REF! ->  | Q86: 83 | R86: 20 | S86: 0.02418959267 | T86: 99999 | V86: 0.03639710259 | W86: 0.042 | X86: =#REF!+V86 -> 
B87: =IF('Input data'!C94<>"",'Input data'!C94,"") ->  | C87: =IF('Input data'!D94<>"",'Input data'!D94,"") ->  | J87: 84 | K87: =EXP('P(t)'!B86)-1 -> 0.03725594117 | L87: 0.042 | M87: =K87+#REF! ->  | Q87: 84 | R87: 20 | S87: 0.02418959267 | T87: 99999 | V87: 0.03646362623 | W87: 0.042 | X87: =#REF!+V87 -> 
B88: =IF('Input data'!C95<>"",'Input data'!C95,"") ->  | C88: =IF('Input data'!D95<>"",'Input data'!D95,"") ->  | J88: 85 | K88: =EXP('P(t)'!B87)-1 -> 0.03731162788 | L88: 0.042 | M88: =K88+#REF! ->  | Q88: 85 | R88: 20 | S88: 0.02418959267 | T88: 99999 | V88: 0.03652858873 | W88: 0.042 | X88: =#REF!+V88 -> 
B89: =IF('Input data'!C96<>"",'Input data'!C96,"") ->  | C89: =IF('Input data'!D96<>"",'Input data'!D96,"") ->  | J89: 86 | K89: =EXP('P(t)'!B88)-1 -> 0.03736602243 | L89: 0.042 | M89: =K89+#REF! ->  | Q89: 86 | R89: 20 | S89: 0.02418959267 | T89: 99999 | V89: 0.03659204441 | W89: 0.042 | X89: =#REF!+V89 -> 
B90: =IF('Input data'!C97<>"",'Input data'!C97,"") ->  | C90: =IF('Input data'!D97<>"",'Input data'!D97,"") ->  | J90: 87 | K90: =EXP('P(t)'!B89)-1 -> 0.03741916929 | L90: 0.042 | M90: =K90+#REF! ->  | Q90: 87 | R90: 20 | S90: 0.02418959267 | T90: 99999 | V90: 0.03665404509 | W90: 0.042 | X90: =#REF!+V90 -> 
B91: =IF('Input data'!C98<>"",'Input data'!C98,"") ->  | C91: =IF('Input data'!D98<>"",'Input data'!D98,"") ->  | J91: 88 | K91: =EXP('P(t)'!B90)-1 -> 0.0374711109 | L91: 0.042 | M91: =K91+#REF! ->  | Q91: 88 | R91: 20 | S91: 0.02418959267 | T91: 99999 | V91: 0.03671464024 | W91: 0.042 | X91: =#REF!+V91 -> 
B92: =IF('Input data'!C99<>"",'Input data'!C99,"") ->  | C92: =IF('Input data'!D99<>"",'Input data'!D99,"") ->  | J92: 89 | K92: =EXP('P(t)'!B91)-1 -> 0.03752188779 | L92: 0.042 | M92: =K92+#REF! ->  | Q92: 89 | R92: 20 | S92: 0.02418959267 | T92: 99999 | V92: 0.03677387713 | W92: 0.042 | X92: =#REF!+V92 -> 
B93: =IF('Input data'!C100<>"",'Input data'!C100,"") ->  | C93: =IF('Input data'!D100<>"",'Input data'!D100,"") ->  | J93: 90 | K93: =EXP('P(t)'!B92)-1 -> 0.03757153871 | L93: 0.042 | M93: =K93+#REF! ->  | Q93: 90 | R93: 20 | S93: 0.02418959267 | T93: 99999 | V93: 0.03683180092 | W93: 0.042 | X93: =#REF!+V93 -> 
B94: =IF('Input data'!C101<>"",'Input data'!C101,"") ->  | C94: =IF('Input data'!D101<>"",'Input data'!D101,"") ->  | J94: 91 | K94: =EXP('P(t)'!B93)-1 -> 0.03762010069 | L94: 0.042 | M94: =K94+#REF! ->  | Q94: 91 | R94: 20 | S94: 0.02418959267 | T94: 99999 | V94: 0.03688845479 | W94: 0.042 | X94: =#REF!+V94 -> 
B95: =IF('Input data'!C102<>"",'Input data'!C102,"") ->  | C95: =IF('Input data'!D102<>"",'Input data'!D102,"") ->  | J95: 92 | K95: =EXP('P(t)'!B94)-1 -> 0.03766760919 | L95: 0.042 | M95: =K95+#REF! ->  | Q95: 92 | R95: 20 | S95: 0.02418959267 | T95: 99999 | V95: 0.03694388004 | W95: 0.042 | X95: =#REF!+V95 -> 
B96: =IF('Input data'!C103<>"",'Input data'!C103,"") ->  | C96: =IF('Input data'!D103<>"",'Input data'!D103,"") ->  | J96: 93 | K96: =EXP('P(t)'!B95)-1 -> 0.0377140981 | L96: 0.042 | M96: =K96+#REF! ->  | Q96: 93 | R96: 20 | S96: 0.02418959267 | T96: 99999 | V96: 0.03699811622 | W96: 0.042 | X96: =#REF!+V96 -> 
B97: =IF('Input data'!C104<>"",'Input data'!C104,"") ->  | C97: =IF('Input data'!D104<>"",'Input data'!D104,"") ->  | J97: 94 | K97: =EXP('P(t)'!B96)-1 -> 0.0377595999 | L97: 0.042 | M97: =K97+#REF! ->  | Q97: 94 | R97: 20 | S97: 0.02418959267 | T97: 99999 | V97: 0.03705120119 | W97: 0.042 | X97: =#REF!+V97 -> 
B98: =IF('Input data'!C105<>"",'Input data'!C105,"") ->  | C98: =IF('Input data'!D105<>"",'Input data'!D105,"") ->  | J98: 95 | K98: =EXP('P(t)'!B97)-1 -> 0.0378041457 | L98: 0.042 | M98: =K98+#REF! ->  | Q98: 95 | R98: 20 | S98: 0.02418959267 | T98: 99999 | V98: 0.03710317122 | W98: 0.042 | X98: =#REF!+V98 -> 
B99: =IF('Input data'!C106<>"",'Input data'!C106,"") ->  | C99: =IF('Input data'!D106<>"",'Input data'!D106,"") ->  | J99: 96 | K99: =EXP('P(t)'!B98)-1 -> 0.03784776531 | L99: 0.042 | M99: =K99+#REF! ->  | Q99: 96 | R99: 20 | S99: 0.02418959267 | T99: 99999 | V99: 0.03715406105 | W99: 0.042 | X99: =#REF!+V99 -> 
B100: =IF('Input data'!C107<>"",'Input data'!C107,"") ->  | C100: =IF('Input data'!D107<>"",'Input data'!D107,"") ->  | E100: =IF(D100<>"",EXP(-B100*D100)-EXP(-B100*UFRC),"") ->  | J100: 97 | K100: =EXP('P(t)'!B99)-1 -> 0.03789048733 | L100: 0.042 | M100: =K100+#REF! ->  | Q100: 97 | R100: =LOOKUP(Q100,B$4:B$258,B$4:B$258) -> 20 | S100: =LOOKUP(R100,B$4:B$258,C$4:C$258) -> 0.02418959267 | T100: =IF(LOOKUP(Q100+1,B$4:B$258,B$4:B$258)>Q100,LOOKUP(Q100+1,B$4:B$258,B$4:B$258),T101) -> 99999 | U100: =IF(T100<=MaxDur,LOOKUP(T100,B$4:B$258,C$4:C$258),"") ->  | V100: 0.03720390404 | W100: 0.042 | X100: =#REF!+V100 -> 
B101: =IF('Input data'!C108<>"",'Input data'!C108,"") ->  | C101: =IF('Input data'!D108<>"",'Input data'!D108,"") ->  | E101: =IF(D101<>"",EXP(-B101*D101)-EXP(-B101*UFRC),"") ->  | J101: 98 | K101: =EXP('P(t)'!B100)-1 -> 0.03793233918 | L101: =(((1+K101)^J101)/((1+K100)^J100))^(1/(J101-J100))-1 -> 0.042 | M101: =K101+#REF! ->  | Q101: 98 | R101: 20 | S101: 0.02418959267 | T101: 99999 | V101: 0.03725273214 | W101: =IF(Q101<=MaxDur,((1+V101)^Q101/(1+V100)^Q100)^(1/(Q101-Q100))-1,IF(Q101>=T_2,UFR,_FRT1+(UFR-_FRT1)*(Q101-MaxDur)/(T_2-MaxDur))) -> 0.042 | X101: =#REF!+V101 -> 
B102: =IF('Input data'!C109<>"",'Input data'!C109,"") ->  | C102: =IF('Input data'!D109<>"",'Input data'!D109,"") ->  | E102: =IF(D102<>"",EXP(-B102*D102)-EXP(-B102*UFRC),"") ->  | J102: 99 | K102: =EXP('P(t)'!B101)-1 -> 0.03797334717 | L102: 0.042 | M102: =K102+#REF! ->  | Q102: 99 | R102: 20 | S102: 0.02418959267 | T102: 99999 | V102: 0.03730057604 | W102: 0.042 | X102: =#REF!+V102 -> 
B103: =IF('Input data'!C110<>"",'Input data'!C110,"") ->  | C103: =IF('Input data'!D110<>"",'Input data'!D110,"") ->  | E103: =IF(D103<>"",EXP(-B103*D103)-EXP(-B103*UFRC),"") ->  | J103: 100 | K103: =EXP('P(t)'!B102)-1 -> 0.03801353658 | L103: 0.042 | M103: =K103+#REF! ->  | Q103: 100 | R103: 20 | S103: 0.02418959267 | T103: 99999 | V103: 0.03734746521 | W103: 0.042 | X103: =#REF!+V103 -> 
J104: 101 | K104: =EXP('P(t)'!B103)-1 -> 0.03805293166 | L104: 0.042 | M104: =K104+#REF! ->  | Q104: 101 | R104: 20 | S104: 0.02418959267 | T104: 99999 | V104: 0.03739342794 | W104: 0.042 | X104: =#REF!+V104 -> 
J105: 102 | K105: =EXP('P(t)'!B104)-1 -> 0.03809155574 | L105: 0.042 | M105: =K105+#REF! ->  | Q105: 102 | R105: 20 | S105: 0.02418959267 | T105: 99999 | V105: 0.03743849141 | W105: 0.042 | X105: =#REF!+V105 -> 
J106: 103 | K106: =EXP('P(t)'!B105)-1 -> 0.03812943124 | L106: 0.042 | M106: =K106+#REF! ->  | Q106: 103 | R106: 20 | S106: 0.02418959267 | T106: 99999 | V106: 0.03748268176 | W106: 0.042 | X106: =#REF!+V106 -> 
J107: 104 | K107: =EXP('P(t)'!B106)-1 -> 0.0381665797 | L107: 0.042 | M107: =K107+#REF! ->  | Q107: 104 | R107: 20 | S107: 0.02418959267 | T107: 99999 | V107: 0.03752602413 | W107: 0.042 | X107: =#REF!+V107 -> 
J108: 105 | K108: =EXP('P(t)'!B107)-1 -> 0.03820302187 | L108: 0.042 | M108: =K108+#REF! ->  | Q108: 105 | R108: 20 | S108: 0.02418959267 | T108: 99999 | V108: 0.03756854269 | W108: 0.042 | X108: =#REF!+V108 -> 
J109: 106 | K109: =EXP('P(t)'!B108)-1 -> 0.03823877769 | L109: 0.042 | M109: =K109+#REF! ->  | Q109: 106 | R109: 20 | S109: 0.02418959267 | T109: 99999 | V109: 0.03761026071 | W109: 0.042 | X109: =#REF!+V109 -> 
J110: 107 | K110: =EXP('P(t)'!B109)-1 -> 0.03827386638 | L110: 0.042 | M110: =K110+#REF! ->  | Q110: 107 | R110: 20 | S110: 0.02418959267 | T110: 99999 | V110: 0.03765120058 | W110: 0.042 | X110: =#REF!+V110 -> 
J111: 108 | K111: =EXP('P(t)'!B110)-1 -> 0.03830830642 | L111: 0.042 | M111: =K111+#REF! ->  | Q111: 108 | R111: 20 | S111: 0.02418959267 | T111: 99999 | V111: 0.03769138387 | W111: 0.042 | X111: =#REF!+V111 -> 
J112: 109 | K112: =EXP('P(t)'!B111)-1 -> 0.03834211565 | L112: 0.042 | M112: =K112+#REF! ->  | Q112: 109 | R112: 20 | S112: 0.02418959267 | T112: 99999 | V112: 0.03773083138 | W112: 0.042 | X112: =#REF!+V112 -> 
J113: 110 | K113: =EXP('P(t)'!B112)-1 -> 0.03837531124 | L113: 0.042 | M113: =K113+#REF! ->  | Q113: 110 | R113: 20 | S113: 0.02418959267 | T113: 99999 | V113: 0.03776956311 | W113: 0.042 | X113: =#REF!+V113 -> 
J114: 111 | K114: =EXP('P(t)'!B113)-1 -> 0.03840790975 | L114: 0.042 | M114: =K114+#REF! ->  | Q114: 111 | R114: 20 | S114: 0.02418959267 | T114: 99999 | V114: 0.03780759838 | W114: 0.042 | X114: =#REF!+V114 -> 
J115: 112 | K115: =EXP('P(t)'!B114)-1 -> 0.03843992713 | L115: 0.042 | M115: =K115+#REF! ->  | Q115: 112 | R115: 20 | S115: 0.02418959267 | T115: 99999 | V115: 0.0378449558 | W115: 0.042 | X115: =#REF!+V115 -> 
J116: 113 | K116: =EXP('P(t)'!B115)-1 -> 0.03847137879 | L116: 0.042 | M116: =K116+#REF! ->  | Q116: 113 | R116: 20 | S116: 0.02418959267 | T116: 99999 | V116: 0.03788165335 | W116: 0.042 | X116: =#REF!+V116 -> 
J117: 114 | K117: =EXP('P(t)'!B116)-1 -> 0.0385022796 | L117: 0.042 | M117: =K117+#REF! ->  | Q117: 114 | R117: 20 | S117: 0.02418959267 | T117: 99999 | V117: 0.03791770833 | W117: 0.042 | X117: =#REF!+V117 -> 
J118: 115 | K118: =EXP('P(t)'!B117)-1 -> 0.0385326439 | L118: 0.042 | M118: =K118+#REF! ->  | Q118: 115 | R118: 20 | S118: 0.02418959267 | T118: 99999 | V118: 0.0379531375 | W118: 0.042 | X118: =#REF!+V118 -> 
J119: 116 | K119: =EXP('P(t)'!B118)-1 -> 0.03856248554 | L119: 0.042 | M119: =K119+#REF! ->  | Q119: 116 | R119: 20 | S119: 0.02418959267 | T119: 99999 | V119: 0.037987957 | W119: 0.042 | X119: =#REF!+V119 -> 
J120: 117 | K120: =EXP('P(t)'!B119)-1 -> 0.03859181791 | L120: 0.042 | M120: =K120+#REF! ->  | Q120: 117 | R120: 20 | S120: 0.02418959267 | T120: 99999 | V120: 0.03802218243 | W120: 0.042 | X120: =#REF!+V120 -> 
J121: 118 | K121: =EXP('P(t)'!B120)-1 -> 0.03862065392 | L121: 0.042 | M121: =K121+#REF! ->  | Q121: 118 | R121: 20 | S121: 0.02418959267 | T121: 99999 | V121: 0.03805582886 | W121: 0.042 | X121: =#REF!+V121 -> 
J122: 119 | K122: =EXP('P(t)'!B121)-1 -> 0.03864900607 | L122: 0.042 | M122: =K122+#REF! ->  | Q122: 119 | R122: 20 | S122: 0.02418959267 | T122: 99999 | V122: 0.03808891088 | W122: 0.042 | X122: =#REF!+V122 -> 
J123: 120 | K123: =EXP('P(t)'!B122)-1 -> 0.03867688645 | L123: 0.042 | M123: =K123+#REF! ->  | Q123: 120 | R123: 20 | S123: 0.02418959267 | T123: 99999 | V123: 0.03812144255 | W123: 0.042 | X123: =#REF!+V123 -> 
J124: 121 | K124: =EXP('P(t)'!B123)-1 -> 0.03870430672 | L124: =(((1+K124)^J124)/((1+K123)^J123))^(1/(J124-J123))-1 -> 0.042 | M124: =K124+#REF! ->  | Q124: 121 | R124: 20 | S124: 0.02418959267 | T124: 99999 | V124: 0.03815343751 | W124: 0.042 | X124: =#REF!+V124 -> 
J125: 122 | K125: =EXP('P(t)'!B124)-1 -> 0.03873127818 | L125: 0.042 | M125: =K125+#REF! ->  | Q125: 122 | R125: 20 | S125: 0.02418959267 | T125: 99999 | V125: 0.03818490892 | W125: 0.042 | X125: =#REF!+V125 -> 
J126: 123 | K126: =EXP('P(t)'!B125)-1 -> 0.03875781177 | L126: 0.042 | M126: =K126+#REF! ->  | Q126: 123 | R126: 20 | S126: 0.02418959267 | T126: 99999 | V126: 0.03821586953 | W126: 0.042 | X126: =#REF!+V126 -> 
J127: 124 | K127: =EXP('P(t)'!B126)-1 -> 0.03878391806 | L127: 0.042 | M127: =K127+#REF! ->  | Q127: 124 | R127: 20 | S127: 0.02418959267 | T127: 99999 | V127: 0.03824633168 | W127: 0.042 | X127: =#REF!+V127 -> 
J128: 125 | K128: =EXP('P(t)'!B127)-1 -> 0.03880960728 | L128: 0.042 | M128: =K128+#REF! ->  | Q128: 125 | R128: 20 | S128: 0.02418959267 | T128: 99999 | V128: 0.0382763073 | W128: 0.042 | X128: =#REF!+V128 -> 
J129: 126 | K129: =EXP('P(t)'!B128)-1 -> 0.03883488937 | L129: 0.042 | M129: =K129+#REF! ->  | Q129: 126 | R129: 20 | S129: 0.02418959267 | T129: 99999 | V129: 0.03830580797 | W129: 0.042 | X129: =#REF!+V129 -> 
J130: 127 | K130: =EXP('P(t)'!B129)-1 -> 0.03885977391 | L130: 0.042 | M130: =K130+#REF! ->  | Q130: 127 | R130: 20 | S130: 0.02418959267 | T130: 99999 | V130: 0.03833484488 | W130: 0.042 | X130: =#REF!+V130 -> 
J131: 128 | K131: =EXP('P(t)'!B130)-1 -> 0.03888427021 | L131: 0.042 | M131: =K131+#REF! ->  | Q131: 128 | R131: 20 | S131: 0.02418959267 | T131: 99999 | V131: 0.03836342888 | W131: 0.042 | X131: =#REF!+V131 -> 
J132: 129 | K132: =EXP('P(t)'!B131)-1 -> 0.03890838728 | L132: 0.042 | M132: =K132+#REF! ->  | Q132: 129 | R132: =LOOKUP(Q132,B$4:B$258,B$4:B$258) -> 20 | S132: =LOOKUP(R132,B$4:B$258,C$4:C$258) -> 0.02418959267 | T132: =IF(LOOKUP(Q132+1,B$4:B$258,B$4:B$258)>Q132,LOOKUP(Q132+1,B$4:B$258,B$4:B$258),T133) -> 99999 | U132: =IF(T132<=MaxDur,LOOKUP(T132,B$4:B$258,C$4:C$258),"") ->  | V132: 0.03839157049 | W132: 0.042 | X132: =#REF!+V132 -> 
J133: 130 | K133: =EXP('P(t)'!B132)-1 -> 0.03893213388 | L133: 0.042 | M133: =K133+#REF! ->  | Q133: 130 | R133: 20 | S133: 0.02418959267 | T133: 99999 | V133: =IF(Q133=R133,S133,IF(U133<>"",S133+(U133-S133)*(Q133-R133)/(T133-R133),((1+V132)^Q132*(1+W132))^(1/Q133)-1)) -> 0.03841927989 | W133: =IF(Q133<=MaxDur,((1+V133)^Q133/(1+V132)^Q132)^(1/(Q133-Q132))-1,IF(Q133>=T_2,UFR,_FRT1+(UFR-_FRT1)*(Q133-MaxDur)/(T_2-MaxDur))) -> 0.042 | X133: =#REF!+V133 -> 
J134: =J133+1 -> 131 | K134: =EXP('P(t)'!B133)-1 -> 0.03895551846 | L134: 0.042 | M134: =K134+#REF! ->  | Q134: 131 | R134: 20 | S134: 0.02418959267 | T134: 99999 | V134: 0.03844656697 | W134: 0.042 | X134: =#REF!+V134 -> 
J135: =J134+1 -> 132 | K135: =EXP('P(t)'!B134)-1 -> 0.03897854924 | L135: 0.042 | M135: =K135+#REF! ->  | Q135: 132 | R135: 20 | S135: 0.02418959267 | T135: 99999 | V135: 0.03847344131 | W135: 0.042 | X135: =#REF!+V135 -> 
J136: =J135+1 -> 133 | K136: =EXP('P(t)'!B135)-1 -> 0.03900123419 | L136: 0.042 | M136: =K136+#REF! ->  | Q136: 133 | R136: 20 | S136: 0.02418959267 | T136: 99999 | V136: 0.03849991221 | W136: 0.042 | X136: =#REF!+V136 -> 
J137: =J136+1 -> 134 | K137: =EXP('P(t)'!B136)-1 -> 0.03902358105 | L137: 0.042 | M137: =K137+#REF! ->  | Q137: 134 | R137: 20 | S137: 0.02418959267 | T137: 99999 | V137: 0.03852598867 | W137: 0.042 | X137: =#REF!+V137 -> 
J138: =J137+1 -> 135 | K138: =EXP('P(t)'!B137)-1 -> 0.03904559731 | L138: 0.042 | M138: =K138+#REF! ->  | Q138: 135 | R138: 20 | S138: 0.02418959267 | T138: 99999 | V138: 0.03855167946 | W138: 0.042 | X138: =#REF!+V138 -> 

Sheet W(t,u)
B1: u
A2: t | B2: =TRANSPOSE(A3:A102) -> 1 | C2: 2 | D2: 3 | E2: 4 | F2: 5 | G2: 6 | H2: 7 | I2: 8 | J2: 9 | K2: 10 | L2: 11 | M2: 12 | N2: 13 | O2: 14 | P2: 15 | Q2: 16 | R2: 17 | S2: 18 | T2: 19 | U2: 20
A3: ='Calculated rates'!B4 -> 1 | B3: =IF(AND(A3<>"",B2<>""),EXP(-UFRC*($A3+B$2))*(alpha*MIN($A3,B$2)-0.5*EXP(-alpha*MAX($A3,B$2))*(EXP(alpha*MIN($A3,B$2))-EXP(-alpha*MIN($A3,B$2)))),"") -> 0.127224064 | C3: =IF(AND(B3<>"",C2<>""),EXP(-UFRC*($A3+C$2))*(alpha*MIN($A3,C$2)-0.5*EXP(-alpha*MAX($A3,C$2))*(EXP(alpha*MIN($A3,C$2))-EXP(-alpha*MIN($A3,C$2)))),"") -> 0.2094134882 | D3: =IF(AND(C3<>"",D2<>""),EXP(-UFRC*($A3+D$2))*(alpha*MIN($A3,D$2)-0.5*EXP(-alpha*MAX($A3,D$2))*(EXP(alpha*MIN($A3,D$2))-EXP(-alpha*MIN($A3,D$2)))),"") -> 0.2558120132 | E3: =IF(AND(D3<>"",E2<>""),EXP(-UFRC*($A3+E$2))*(alpha*MIN($A3,E$2)-0.5*EXP(-alpha*MAX($A3,E$2))*(EXP(alpha*MIN($A3,E$2))-EXP(-alpha*MIN($A3,E$2)))),"") -> 0.2799426203 | F3: =IF(AND(E3<>"",F2<>""),EXP(-UFRC*($A3+F$2))*(alpha*MIN($A3,F$2)-0.5*EXP(-alpha*MAX($A3,F$2))*(EXP(alpha*MIN($A3,F$2))-EXP(-alpha*MIN($A3,F$2)))),"") -> 0.2902898822 | G3: =IF(AND(F3<>"",G2<>""),EXP(-UFRC*($A3+G$2))*(alpha*MIN($A3,G$2)-0.5*EXP(-alpha*MAX($A3,G$2))*(EXP(alpha*MIN($A3,G$2))-EXP(-alpha*MIN($A3,G$2)))),"") -> 0.2921743612 | H3: =IF(AND(G3<>"",H2<>""),EXP(-UFRC*($A3+H$2))*(alpha*MIN($A3,H$2)-0.5*EXP(-alpha*MAX($A3,H$2))*(EXP(alpha*MIN($A3,H$2))-EXP(-alpha*MIN($A3,H$2)))),"") -> 0.2889298036 | I3: =IF(AND(H3<>"",I2<>""),EXP(-UFRC*($A3+I$2))*(alpha*MIN($A3,I$2)-0.5*EXP(-alpha*MAX($A3,I$2))*(EXP(alpha*MIN($A3,I$2))-EXP(-alpha*MIN($A3,I$2)))),"") -> 0.2826424593 | J3: =IF(AND(I3<>"",J2<>""),EXP(-UFRC*($A3+J$2))*(alpha*MIN($A3,J$2)-0.5*EXP(-alpha*MAX($A3,J$2))*(EXP(alpha*MIN($A3,J$2))-EXP(-alpha*MIN($A3,J$2)))),"") -> 0.2746153945 | K3: =IF(AND(J3<>"",K2<>""),EXP(-UFRC*($A3+K$2))*(alpha*MIN($A3,K$2)-0.5*EXP(-alpha*MAX($A3,K$2))*(EXP(alpha*MIN($A3,K$2))-EXP(-alpha*MIN($A3,K$2)))),"") -> 0.2656600908 | L3: =IF(AND(K3<>"",L2<>""),EXP(-UFRC*($A3+L$2))*(alpha*MIN($A3,L$2)-0.5*EXP(-alpha*MAX($A3,L$2))*(EXP(alpha*MIN($A3,L$2))-EXP(-alpha*MIN($A3,L$2)))),"") -> 0.2562795699 | M3: =IF(AND(L3<>"",M2<>""),EXP(-UFRC*($A3+M$2))*(alpha*MIN($A3,M$2)-0.5*EXP(-alpha*MAX($A3,M$2))*(EXP(alpha*MIN($A3,M$2))-EXP(-alpha*MIN($A3,M$2)))),"") -> 0.2467833937 | N3: =IF(AND(M3<>"",N2<>""),EXP(-UFRC*($A3+N$2))*(alpha*MIN($A3,N$2)-0.5*EXP(-alpha*MAX($A3,N$2))*(EXP(alpha*MIN($A3,N$2))-EXP(-alpha*MIN($A3,N$2)))),"") -> 0.2373598789 | O3: =IF(AND(N3<>"",O2<>""),EXP(-UFRC*($A3+O$2))*(alpha*MIN($A3,O$2)-0.5*EXP(-alpha*MAX($A3,O$2))*(EXP(alpha*MIN($A3,O$2))-EXP(-alpha*MIN($A3,O$2)))),"") -> 0.2281214403 | P3: =IF(AND(O3<>"",P2<>""),EXP(-UFRC*($A3+P$2))*(alpha*MIN($A3,P$2)-0.5*EXP(-alpha*MAX($A3,P$2))*(EXP(alpha*MIN($A3,P$2))-EXP(-alpha*MIN($A3,P$2)))),"") -> 0.2191330593 | Q3: =IF(AND(P3<>"",Q2<>""),EXP(-UFRC*($A3+Q$2))*(alpha*MIN($A3,Q$2)-0.5*EXP(-alpha*MAX($A3,Q$2))*(EXP(alpha*MIN($A3,Q$2))-EXP(-alpha*MIN($A3,Q$2)))),"") -> 0.210430153 | R3: =IF(AND(Q3<>"",R2<>""),EXP(-UFRC*($A3+R$2))*(alpha*MIN($A3,R$2)-0.5*EXP(-alpha*MAX($A3,R$2))*(EXP(alpha*MIN($A3,R$2))-EXP(-alpha*MIN($A3,R$2)))),"") -> 0.2020297887 | S3: =IF(AND(R3<>"",S2<>""),EXP(-UFRC*($A3+S$2))*(alpha*MIN($A3,S$2)-0.5*EXP(-alpha*MAX($A3,S$2))*(EXP(alpha*MIN($A3,S$2))-EXP(-alpha*MIN($A3,S$2)))),"") -> 0.1939377174 | T3: =IF(AND(S3<>"",T2<>""),EXP(-UFRC*($A3+T$2))*(alpha*MIN($A3,T$2)-0.5*EXP(-alpha*MAX($A3,T$2))*(EXP(alpha*MIN($A3,T$2))-EXP(-alpha*MIN($A3,T$2)))),"") -> 0.1861527834 | U3: =IF(AND(T3<>"",U2<>""),EXP(-UFRC*($A3+U$2))*(alpha*MIN($A3,U$2)-0.5*EXP(-alpha*MAX($A3,U$2))*(EXP(alpha*MIN($A3,U$2))-EXP(-alpha*MIN($A3,U$2)))),"") -> 0.1786696854 | V3: =IF(AND(U3<>"",V2<>""),EXP(-UFRC*($A3+V$2))*(alpha*MIN($A3,V$2)-0.5*EXP(-alpha*MAX($A3,V$2))*(EXP(alpha*MIN($A3,V$2))-EXP(-alpha*MIN($A3,V$2)))),"") ->  | W3: =IF(AND(V3<>"",W2<>""),EXP(-UFRC*($A3+W$2))*(alpha*MIN($A3,W$2)-0.5*EXP(-alpha*MAX($A3,W$2))*(EXP(alpha*MIN($A3,W$2))-EXP(-alpha*MIN($A3,W$2)))),"") ->  | X3: =IF(AND(W3<>"",X2<>""),EXP(-UFRC*($A3+X$2))*(alpha*MIN($A3,X$2)-0.5*EXP(-alpha*MAX($A3,X$2))*(EXP(alpha*MIN($A3,X$2))-EXP(-alpha*MIN($A3,X$2)))),"") ->  | Y3: =IF(AND(X3<>"",Y2<>""),EXP(-UFRC*($A3+Y$2))*(alpha*MIN($A3,Y$2)-0.5*EXP(-alpha*MAX($A3,Y$2))*(EXP(alpha*MIN($A3,Y$2))-EXP(-alpha*MIN($A3,Y$2)))),"") ->  | Z3: =IF(AND(Y3<>"",Z2<>""),EXP(-UFRC*($A3+Z$2))*(alpha*MIN($A3,Z$2)-0.5*EXP(-alpha*MAX($A3,Z$2))*(EXP(alpha*MIN($A3,Z$2))-EXP(-alpha*MIN($A3,Z$2)))),"") ->  | AA3: =IF(AND(Z3<>"",AA2<>""),EXP(-UFRC*($A3+AA$2))*(alpha*MIN($A3,AA$2)-0.5*EXP(-alpha*MAX($A3,AA$2))*(EXP(alpha*MIN($A3,AA$2))-EXP(-alpha*MIN($A3,AA$2)))),"") ->  | AB3: =IF(AND(AA3<>"",AB2<>""),EXP(-UFRC*($A3+AB$2))*(alpha*MIN($A3,AB$2)-0.5*EXP(-alpha*MAX($A3,AB$2))*(EXP(alpha*MIN($A3,AB$2))-EXP(-alpha*MIN($A3,AB$2)))),"") ->  | AC3: =IF(AND(AB3<>"",AC2<>""),EXP(-UFRC*($A3+AC$2))*(alpha*MIN($A3,AC$2)-0.5*EXP(-alpha*MAX($A3,AC$2))*(EXP(alpha*MIN($A3,AC$2))-EXP(-alpha*MIN($A3,AC$2)))),"") ->  | AD3: =IF(AND(AC3<>"",AD2<>""),EXP(-UFRC*($A3+AD$2))*(alpha*MIN($A3,AD$2)-0.5*EXP(-alpha*MAX($A3,AD$2))*(EXP(alpha*MIN($A3,AD$2))-EXP(-alpha*MIN($A3,AD$2)))),"") ->  | AE3: =IF(AND(AD3<>"",AE2<>""),EXP(-UFRC*($A3+AE$2))*(alpha*MIN($A3,AE$2)-0.5*EXP(-alpha*MAX($A3,AE$2))*(EXP(alpha*MIN($A3,AE$2))-EXP(-alpha*MIN($A3,AE$2)))),"") ->  | AF3: =IF(AND(AE3<>"",AF2<>""),EXP(-UFRC*($A3+AF$2))*(alpha*MIN($A3,AF$2)-0.5*EXP(-alpha*MAX($A3,AF$2))*(EXP(alpha*MIN($A3,AF$2))-EXP(-alpha*MIN($A3,AF$2)))),"") ->  | AG3: =IF(AND(AF3<>"",AG2<>""),EXP(-UFRC*($A3+AG$2))*(alpha*MIN($A3,AG$2)-0.5*EXP(-alpha*MAX($A3,AG$2))*(EXP(alpha*MIN($A3,AG$2))-EXP(-alpha*MIN($A3,AG$2)))),"") ->  | AH3: =IF(AND(AG3<>"",AH2<>""),EXP(-UFRC*($A3+AH$2))*(alpha*MIN($A3,AH$2)-0.5*EXP(-alpha*MAX($A3,AH$2))*(EXP(alpha*MIN($A3,AH$2))-EXP(-alpha*MIN($A3,AH$2)))),"") ->  | AI3: =IF(AND(AH3<>"",AI2<>""),EXP(-UFRC*($A3+AI$2))*(alpha*MIN($A3,AI$2)-0.5*EXP(-alpha*MAX($A3,AI$2))*(EXP(alpha*MIN($A3,AI$2))-EXP(-alpha*MIN($A3,AI$2)))),"") ->  | AJ3: =IF(AND(AI3<>"",AJ2<>""),EXP(-UFRC*($A3+AJ$2))*(alpha*MIN($A3,AJ$2)-0.5*EXP(-alpha*MAX($A3,AJ$2))*(EXP(alpha*MIN($A3,AJ$2))-EXP(-alpha*MIN($A3,AJ$2)))),"") ->  | AK3: =IF(AND(AJ3<>"",AK2<>""),EXP(-UFRC*($A3+AK$2))*(alpha*MIN($A3,AK$2)-0.5*EXP(-alpha*MAX($A3,AK$2))*(EXP(alpha*MIN($A3,AK$2))-EXP(-alpha*MIN($A3,AK$2)))),"") ->  | AL3: =IF(AND(AK3<>"",AL2<>""),EXP(-UFRC*($A3+AL$2))*(alpha*MIN($A3,AL$2)-0.5*EXP(-alpha*MAX($A3,AL$2))*(EXP(alpha*MIN($A3,AL$2))-EXP(-alpha*MIN($A3,AL$2)))),"") ->  | AM3: =IF(AND(AL3<>"",AM2<>""),EXP(-UFRC*($A3+AM$2))*(alpha*MIN($A3,AM$2)-0.5*EXP(-alpha*MAX($A3,AM$2))*(EXP(alpha*MIN($A3,AM$2))-EXP(-alpha*MIN($A3,AM$2)))),"") ->  | AN3: =IF(AND(AM3<>"",AN2<>""),EXP(-UFRC*($A3+AN$2))*(alpha*MIN($A3,AN$2)-0.5*EXP(-alpha*MAX($A3,AN$2))*(EXP(alpha*MIN($A3,AN$2))-EXP(-alpha*MIN($A3,AN$2)))),"") ->  | AO3: =IF(AND(AN3<>"",AO2<>""),EXP(-UFRC*($A3+AO$2))*(alpha*MIN($A3,AO$2)-0.5*EXP(-alpha*MAX($A3,AO$2))*(EXP(alpha*MIN($A3,AO$2))-EXP(-alpha*MIN($A3,AO$2)))),"") ->  | AP3: =IF(AND(AO3<>"",AP2<>""),EXP(-UFRC*($A3+AP$2))*(alpha*MIN($A3,AP$2)-0.5*EXP(-alpha*MAX($A3,AP$2))*(EXP(alpha*MIN($A3,AP$2))-EXP(-alpha*MIN($A3,AP$2)))),"") ->  | AQ3: =IF(AND(AP3<>"",AQ2<>""),EXP(-UFRC*($A3+AQ$2))*(alpha*MIN($A3,AQ$2)-0.5*EXP(-alpha*MAX($A3,AQ$2))*(EXP(alpha*MIN($A3,AQ$2))-EXP(-alpha*MIN($A3,AQ$2)))),"") ->  | AR3: =IF(AND(AQ3<>"",AR2<>""),EXP(-UFRC*($A3+AR$2))*(alpha*MIN($A3,AR$2)-0.5*EXP(-alpha*MAX($A3,AR$2))*(EXP(alpha*MIN($A3,AR$2))-EXP(-alpha*MIN($A3,AR$2)))),"") ->  | AS3: =IF(AND(AR3<>"",AS2<>""),EXP(-UFRC*($A3+AS$2))*(alpha*MIN($A3,AS$2)-0.5*EXP(-alpha*MAX($A3,AS$2))*(EXP(alpha*MIN($A3,AS$2))-EXP(-alpha*MIN($A3,AS$2)))),"") ->  | AT3: =IF(AND(AS3<>"",AT2<>""),EXP(-UFRC*($A3+AT$2))*(alpha*MIN($A3,AT$2)-0.5*EXP(-alpha*MAX($A3,AT$2))*(EXP(alpha*MIN($A3,AT$2))-EXP(-alpha*MIN($A3,AT$2)))),"") ->  | AU3: =IF(AND(AT3<>"",AU2<>""),EXP(-UFRC*($A3+AU$2))*(alpha*MIN($A3,AU$2)-0.5*EXP(-alpha*MAX($A3,AU$2))*(EXP(alpha*MIN($A3,AU$2))-EXP(-alpha*MIN($A3,AU$2)))),"") ->  | AV3: =IF(AND(AU3<>"",AV2<>""),EXP(-UFRC*($A3+AV$2))*(alpha*MIN($A3,AV$2)-0.5*EXP(-alpha*MAX($A3,AV$2))*(EXP(alpha*MIN($A3,AV$2))-EXP(-alpha*MIN($A3,AV$2)))),"") ->  | AW3: =IF(AND(AV3<>"",AW2<>""),EXP(-UFRC*($A3+AW$2))*(alpha*MIN($A3,AW$2)-0.5*EXP(-alpha*MAX($A3,AW$2))*(EXP(alpha*MIN($A3,AW$2))-EXP(-alpha*MIN($A3,AW$2)))),"") ->  | AX3: =IF(AND(AW3<>"",AX2<>""),EXP(-UFRC*($A3+AX$2))*(alpha*MIN($A3,AX$2)-0.5*EXP(-alpha*MAX($A3,AX$2))*(EXP(alpha*MIN($A3,AX$2))-EXP(-alpha*MIN($A3,AX$2)))),"") ->  | AY3: =IF(AND(AX3<>"",AY2<>""),EXP(-UFRC*($A3+AY$2))*(alpha*MIN($A3,AY$2)-0.5*EXP(-alpha*MAX($A3,AY$2))*(EXP(alpha*MIN($A3,AY$2))-EXP(-alpha*MIN($A3,AY$2)))),"") ->  | AZ3: =IF(AND(AY3<>"",AZ2<>""),EXP(-UFRC*($A3+AZ$2))*(alpha*MIN($A3,AZ$2)-0.5*EXP(-alpha*MAX($A3,AZ$2))*(EXP(alpha*MIN($A3,AZ$2))-EXP(-alpha*MIN($A3,AZ$2)))),"") ->  | BA3: =IF(AND(AZ3<>"",BA2<>""),EXP(-UFRC*($A3+BA$2))*(alpha*MIN($A3,BA$2)-0.5*EXP(-alpha*MAX($A3,BA$2))*(EXP(alpha*MIN($A3,BA$2))-EXP(-alpha*MIN($A3,BA$2)))),"") ->  | BB3: =IF(AND(BA3<>"",BB2<>""),EXP(-UFRC*($A3+BB$2))*(alpha*MIN($A3,BB$2)-0.5*EXP(-alpha*MAX($A3,BB$2))*(EXP(alpha*MIN($A3,BB$2))-EXP(-alpha*MIN($A3,BB$2)))),"") ->  | BC3: =IF(AND(BB3<>"",BC2<>""),EXP(-UFRC*($A3+BC$2))*(alpha*MIN($A3,BC$2)-0.5*EXP(-alpha*MAX($A3,BC$2))*(EXP(alpha*MIN($A3,BC$2))-EXP(-alpha*MIN($A3,BC$2)))),"") ->  | BD3: =IF(AND(BC3<>"",BD2<>""),EXP(-UFRC*($A3+BD$2))*(alpha*MIN($A3,BD$2)-0.5*EXP(-alpha*MAX($A3,BD$2))*(EXP(alpha*MIN($A3,BD$2))-EXP(-alpha*MIN($A3,BD$2)))),"") ->  | BE3: =IF(AND(BD3<>"",BE2<>""),EXP(-UFRC*($A3+BE$2))*(alpha*MIN($A3,BE$2)-0.5*EXP(-alpha*MAX($A3,BE$2))*(EXP(alpha*MIN($A3,BE$2))-EXP(-alpha*MIN($A3,BE$2)))),"") ->  | BF3: =IF(AND(BE3<>"",BF2<>""),EXP(-UFRC*($A3+BF$2))*(alpha*MIN($A3,BF$2)-0.5*EXP(-alpha*MAX($A3,BF$2))*(EXP(alpha*MIN($A3,BF$2))-EXP(-alpha*MIN($A3,BF$2)))),"") ->  | BG3: =IF(AND(BF3<>"",BG2<>""),EXP(-UFRC*($A3+BG$2))*(alpha*MIN($A3,BG$2)-0.5*EXP(-alpha*MAX($A3,BG$2))*(EXP(alpha*MIN($A3,BG$2))-EXP(-alpha*MIN($A3,BG$2)))),"") ->  | BH3: =IF(AND(BG3<>"",BH2<>""),EXP(-UFRC*($A3+BH$2))*(alpha*MIN($A3,BH$2)-0.5*EXP(-alpha*MAX($A3,BH$2))*(EXP(alpha*MIN($A3,BH$2))-EXP(-alpha*MIN($A3,BH$2)))),"") ->  | BI3: =IF(AND(BH3<>"",BI2<>""),EXP(-UFRC*($A3+BI$2))*(alpha*MIN($A3,BI$2)-0.5*EXP(-alpha*MAX($A3,BI$2))*(EXP(alpha*MIN($A3,BI$2))-EXP(-alpha*MIN($A3,BI$2)))),"") ->  | BJ3: =IF(AND(BI3<>"",BJ2<>""),EXP(-UFRC*($A3+BJ$2))*(alpha*MIN($A3,BJ$2)-0.5*EXP(-alpha*MAX($A3,BJ$2))*(EXP(alpha*MIN($A3,BJ$2))-EXP(-alpha*MIN($A3,BJ$2)))),"") ->  | BK3: =IF(AND(BJ3<>"",BK2<>""),EXP(-UFRC*($A3+BK$2))*(alpha*MIN($A3,BK$2)-0.5*EXP(-alpha*MAX($A3,BK$2))*(EXP(alpha*MIN($A3,BK$2))-EXP(-alpha*MIN($A3,BK$2)))),"") ->  | BL3: =IF(AND(BK3<>"",BL2<>""),EXP(-UFRC*($A3+BL$2))*(alpha*MIN($A3,BL$2)-0.5*EXP(-alpha*MAX($A3,BL$2))*(EXP(alpha*MIN($A3,BL$2))-EXP(-alpha*MIN($A3,BL$2)))),"") ->  | BM3: =IF(AND(BL3<>"",BM2<>""),EXP(-UFRC*($A3+BM$2))*(alpha*MIN($A3,BM$2)-0.5*EXP(-alpha*MAX($A3,BM$2))*(EXP(alpha*MIN($A3,BM$2))-EXP(-alpha*MIN($A3,BM$2)))),"") ->  | BN3: =IF(AND(BM3<>"",BN2<>""),EXP(-UFRC*($A3+BN$2))*(alpha*MIN($A3,BN$2)-0.5*EXP(-alpha*MAX($A3,BN$2))*(EXP(alpha*MIN($A3,BN$2))-EXP(-alpha*MIN($A3,BN$2)))),"") ->  | BO3: =IF(AND(BN3<>"",BO2<>""),EXP(-UFRC*($A3+BO$2))*(alpha*MIN($A3,BO$2)-0.5*EXP(-alpha*MAX($A3,BO$2))*(EXP(alpha*MIN($A3,BO$2))-EXP(-alpha*MIN($A3,BO$2)))),"") ->  | BP3: =IF(AND(BO3<>"",BP2<>""),EXP(-UFRC*($A3+BP$2))*(alpha*MIN($A3,BP$2)-0.5*EXP(-alpha*MAX($A3,BP$2))*(EXP(alpha*MIN($A3,BP$2))-EXP(-alpha*MIN($A3,BP$2)))),"") ->  | BQ3: =IF(AND(BP3<>"",BQ2<>""),EXP(-UFRC*($A3+BQ$2))*(alpha*MIN($A3,BQ$2)-0.5*EXP(-alpha*MAX($A3,BQ$2))*(EXP(alpha*MIN($A3,BQ$2))-EXP(-alpha*MIN($A3,BQ$2)))),"") ->  | BR3: =IF(AND(BQ3<>"",BR2<>""),EXP(-UFRC*($A3+BR$2))*(alpha*MIN($A3,BR$2)-0.5*EXP(-alpha*MAX($A3,BR$2))*(EXP(alpha*MIN($A3,BR$2))-EXP(-alpha*MIN($A3,BR$2)))),"") ->  | BS3: =IF(AND(BR3<>"",BS2<>""),EXP(-UFRC*($A3+BS$2))*(alpha*MIN($A3,BS$2)-0.5*EXP(-alpha*MAX($A3,BS$2))*(EXP(alpha*MIN($A3,BS$2))-EXP(-alpha*MIN($A3,BS$2)))),"") ->  | BT3: =IF(AND(BS3<>"",BT2<>""),EXP(-UFRC*($A3+BT$2))*(alpha*MIN($A3,BT$2)-0.5*EXP(-alpha*MAX($A3,BT$2))*(EXP(alpha*MIN($A3,BT$2))-EXP(-alpha*MIN($A3,BT$2)))),"") ->  | BU3: =IF(AND(BT3<>"",BU2<>""),EXP(-UFRC*($A3+BU$2))*(alpha*MIN($A3,BU$2)-0.5*EXP(-alpha*MAX($A3,BU$2))*(EXP(alpha*MIN($A3,BU$2))-EXP(-alpha*MIN($A3,BU$2)))),"") ->  | BV3: =IF(AND(BU3<>"",BV2<>""),EXP(-UFRC*($A3+BV$2))*(alpha*MIN($A3,BV$2)-0.5*EXP(-alpha*MAX($A3,BV$2))*(EXP(alpha*MIN($A3,BV$2))-EXP(-alpha*MIN($A3,BV$2)))),"") ->  | BW3: =IF(AND(BV3<>"",BW2<>""),EXP(-UFRC*($A3+BW$2))*(alpha*MIN($A3,BW$2)-0.5*EXP(-alpha*MAX($A3,BW$2))*(EXP(alpha*MIN($A3,BW$2))-EXP(-alpha*MIN($A3,BW$2)))),"") ->  | BX3: =IF(AND(BW3<>"",BX2<>""),EXP(-UFRC*($A3+BX$2))*(alpha*MIN($A3,BX$2)-0.5*EXP(-alpha*MAX($A3,BX$2))*(EXP(alpha*MIN($A3,BX$2))-EXP(-alpha*MIN($A3,BX$2)))),"") ->  | BY3: =IF(AND(BX3<>"",BY2<>""),EXP(-UFRC*($A3+BY$2))*(alpha*MIN($A3,BY$2)-0.5*EXP(-alpha*MAX($A3,BY$2))*(EXP(alpha*MIN($A3,BY$2))-EXP(-alpha*MIN($A3,BY$2)))),"") ->  | BZ3: =IF(AND(BY3<>"",BZ2<>""),EXP(-UFRC*($A3+BZ$2))*(alpha*MIN($A3,BZ$2)-0.5*EXP(-alpha*MAX($A3,BZ$2))*(EXP(alpha*MIN($A3,BZ$2))-EXP(-alpha*MIN($A3,BZ$2)))),"") ->  | CA3: =IF(AND(BZ3<>"",CA2<>""),EXP(-UFRC*($A3+CA$2))*(alpha*MIN($A3,CA$2)-0.5*EXP(-alpha*MAX($A3,CA$2))*(EXP(alpha*MIN($A3,CA$2))-EXP(-alpha*MIN($A3,CA$2)))),"") ->  | CB3: =IF(AND(CA3<>"",CB2<>""),EXP(-UFRC*($A3+CB$2))*(alpha*MIN($A3,CB$2)-0.5*EXP(-alpha*MAX($A3,CB$2))*(EXP(alpha*MIN($A3,CB$2))-EXP(-alpha*MIN($A3,CB$2)))),"") ->  | CC3: =IF(AND(CB3<>"",CC2<>""),EXP(-UFRC*($A3+CC$2))*(alpha*MIN($A3,CC$2)-0.5*EXP(-alpha*MAX($A3,CC$2))*(EXP(alpha*MIN($A3,CC$2))-EXP(-alpha*MIN($A3,CC$2)))),"") ->  | CD3: =IF(AND(CC3<>"",CD2<>""),EXP(-UFRC*($A3+CD$2))*(alpha*MIN($A3,CD$2)-0.5*EXP(-alpha*MAX($A3,CD$2))*(EXP(alpha*MIN($A3,CD$2))-EXP(-alpha*MIN($A3,CD$2)))),"") ->  | CE3: =IF(AND(CD3<>"",CE2<>""),EXP(-UFRC*($A3+CE$2))*(alpha*MIN($A3,CE$2)-0.5*EXP(-alpha*MAX($A3,CE$2))*(EXP(alpha*MIN($A3,CE$2))-EXP(-alpha*MIN($A3,CE$2)))),"") ->  | CF3: =IF(AND(CE3<>"",CF2<>""),EXP(-UFRC*($A3+CF$2))*(alpha*MIN($A3,CF$2)-0.5*EXP(-alpha*MAX($A3,CF$2))*(EXP(alpha*MIN($A3,CF$2))-EXP(-alpha*MIN($A3,CF$2)))),"") ->  | CG3: =IF(AND(CF3<>"",CG2<>""),EXP(-UFRC*($A3+CG$2))*(alpha*MIN($A3,CG$2)-0.5*EXP(-alpha*MAX($A3,CG$2))*(EXP(alpha*MIN($A3,CG$2))-EXP(-alpha*MIN($A3,CG$2)))),"") ->  | CH3: =IF(AND(CG3<>"",CH2<>""),EXP(-UFRC*($A3+CH$2))*(alpha*MIN($A3,CH$2)-0.5*EXP(-alpha*MAX($A3,CH$2))*(EXP(alpha*MIN($A3,CH$2))-EXP(-alpha*MIN($A3,CH$2)))),"") ->  | CI3: =IF(AND(CH3<>"",CI2<>""),EXP(-UFRC*($A3+CI$2))*(alpha*MIN($A3,CI$2)-0.5*EXP(-alpha*MAX($A3,CI$2))*(EXP(alpha*MIN($A3,CI$2))-EXP(-alpha*MIN($A3,CI$2)))),"") ->  | CJ3: =IF(AND(CI3<>"",CJ2<>""),EXP(-UFRC*($A3+CJ$2))*(alpha*MIN($A3,CJ$2)-0.5*EXP(-alpha*MAX($A3,CJ$2))*(EXP(alpha*MIN($A3,CJ$2))-EXP(-alpha*MIN($A3,CJ$2)))),"") ->  | CK3: =IF(AND(CJ3<>"",CK2<>""),EXP(-UFRC*($A3+CK$2))*(alpha*MIN($A3,CK$2)-0.5*EXP(-alpha*MAX($A3,CK$2))*(EXP(alpha*MIN($A3,CK$2))-EXP(-alpha*MIN($A3,CK$2)))),"") ->  | CL3: =IF(AND(CK3<>"",CL2<>""),EXP(-UFRC*($A3+CL$2))*(alpha*MIN($A3,CL$2)-0.5*EXP(-alpha*MAX($A3,CL$2))*(EXP(alpha*MIN($A3,CL$2))-EXP(-alpha*MIN($A3,CL$2)))),"") ->  | CM3: =IF(AND(CL3<>"",CM2<>""),EXP(-UFRC*($A3+CM$2))*(alpha*MIN($A3,CM$2)-0.5*EXP(-alpha*MAX($A3,CM$2))*(EXP(alpha*MIN($A3,CM$2))-EXP(-alpha*MIN($A3,CM$2)))),"") ->  | CN3: =IF(AND(CM3<>"",CN2<>""),EXP(-UFRC*($A3+CN$2))*(alpha*MIN($A3,CN$2)-0.5*EXP(-alpha*MAX($A3,CN$2))*(EXP(alpha*MIN($A3,CN$2))-EXP(-alpha*MIN($A3,CN$2)))),"") ->  | CO3: =IF(AND(CN3<>"",CO2<>""),EXP(-UFRC*($A3+CO$2))*(alpha*MIN($A3,CO$2)-0.5*EXP(-alpha*MAX($A3,CO$2))*(EXP(alpha*MIN($A3,CO$2))-EXP(-alpha*MIN($A3,CO$2)))),"") ->  | CP3: =IF(AND(CO3<>"",CP2<>""),EXP(-UFRC*($A3+CP$2))*(alpha*MIN($A3,CP$2)-0.5*EXP(-alpha*MAX($A3,CP$2))*(EXP(alpha*MIN($A3,CP$2))-EXP(-alpha*MIN($A3,CP$2)))),"") ->  | CQ3: =IF(AND(CP3<>"",CQ2<>""),EXP(-UFRC*($A3+CQ$2))*(alpha*MIN($A3,CQ$2)-0.5*EXP(-alpha*MAX($A3,CQ$2))*(EXP(alpha*MIN($A3,CQ$2))-EXP(-alpha*MIN($A3,CQ$2)))),"") ->  | CR3: =IF(AND(CQ3<>"",CR2<>""),EXP(-UFRC*($A3+CR$2))*(alpha*MIN($A3,CR$2)-0.5*EXP(-alpha*MAX($A3,CR$2))*(EXP(alpha*MIN($A3,CR$2))-EXP(-alpha*MIN($A3,CR$2)))),"") ->  | CS3: =IF(AND(CR3<>"",CS2<>""),EXP(-UFRC*($A3+CS$2))*(alpha*MIN($A3,CS$2)-0.5*EXP(-alpha*MAX($A3,CS$2))*(EXP(alpha*MIN($A3,CS$2))-EXP(-alpha*MIN($A3,CS$2)))),"") ->  | CT3: =IF(AND(CS3<>"",CT2<>""),EXP(-UFRC*($A3+CT$2))*(alpha*MIN($A3,CT$2)-0.5*EXP(-alpha*MAX($A3,CT$2))*(EXP(alpha*MIN($A3,CT$2))-EXP(-alpha*MIN($A3,CT$2)))),"") ->  | CU3: =IF(AND(CT3<>"",CU2<>""),EXP(-UFRC*($A3+CU$2))*(alpha*MIN($A3,CU$2)-0.5*EXP(-alpha*MAX($A3,CU$2))*(EXP(alpha*MIN($A3,CU$2))-EXP(-alpha*MIN($A3,CU$2)))),"") ->  | CV3: =IF(AND(CU3<>"",CV2<>""),EXP(-UFRC*($A3+CV$2))*(alpha*MIN($A3,CV$2)-0.5*EXP(-alpha*MAX($A3,CV$2))*(EXP(alpha*MIN($A3,CV$2))-EXP(-alpha*MIN($A3,CV$2)))),"") ->  | CW3: =IF(AND(CV3<>"",CW2<>""),EXP(-UFRC*($A3+CW$2))*(alpha*MIN($A3,CW$2)-0.5*EXP(-alpha*MAX($A3,CW$2))*(EXP(alpha*MIN($A3,CW$2))-EXP(-alpha*MIN($A3,CW$2)))),"") ->  | CX3: =IF(A3="",0,1) -> 1
A4: ='Calculated rates'!B5 -> 2 | B4: 0.2094134882 | C4: 0.3729867068 | D4: 0.4728146332 | E4: 0.5258954219 | F4: 0.5500044424 | G4: 0.5562898213 | H4: 0.5517381017 | I4: 0.5407227656 | J4: 0.5259767519 | K4: 0.5092032204 | L4: 0.4914591159 | M4: 0.4733960432 | N4: 0.4554115271 | O4: 0.4377439903 | P4: 0.4205323855 | Q4: 0.4038536282 | R4: 0.3877460892 | S4: 0.3722243318 | T4: 0.3572883514 | U4: 0.3429293633 | CX4: =IF(A4="",0,1) -> 1
A5: ='Calculated rates'!B6 -> 3 | B5: 0.2558120132 | C5: 0.4728146332 | D5: 0.6338145402 | E5: 0.7276415835 | F5: 0.7732849875 | G5: 0.7892023032 | H5: 0.7869641381 | I5: 0.7738166531 | J5: 0.7542908924 | K5: 0.7312134835 | L5: 0.7063413707 | M5: 0.6807604263 | N5: 0.6551357664 | O5: 0.6298689326 | P5: 0.6051965821 | Q5: 0.5812524428 | R5: 0.5581061988 | S5: 0.5357878889 | T5: 0.5143032055 | U5: 0.4936430816 | CX5: 1
A6: ='Calculated rates'!B7 -> 4 | B6: 0.2799426203 | C6: 0.5258954219 | D6: 0.7276415835 | E6: 0.8726796242 | F6: 0.9528079681 | G6: 0.9868189558 | H6: 0.9925236663 | I6: 0.981081772 | J6: 0.9594766246 | K6: 0.9320696799 | L6: 0.9015767064 | M6: 0.8696808493 | N6: 0.8374176257 | O6: 0.8054166816 | P6: 0.7740535921 | Q6: 0.7435451652 | R6: 0.7140092645 | S6: 0.6855023492 | T6: 0.6580430226 | U6: 0.6316267912 | CX6: 1
A7: ='Calculated rates'!B8 -> 5 | B7: 0.2902898822 | C7: 0.5500044424 | D7: 0.7732849875 | E7: 0.9528079681 | F7: 1.078362456 | G7: 1.143206195 | H7: 1.165150149 | I7: 1.160908071 | J7: 1.140946452 | K7: 1.111809447 | L7: 1.077578983 | M7: 1.040791729 | N7: 1.003014947 | O7: 0.9652081092 | P7: 0.9279499709 | Q7: 0.8915811395 | R7: 0.8562935768 | S7: 0.8221867734 | T7: 0.7893029931 | U7: 0.7576493733 | CX7: 1
A8: ='Calculated rates'!B9 -> 6 | B8: 0.2921743612 | C8: 0.5562898213 | D8: 0.7892023032 | E8: 0.9868189558 | F8: 1.143206195 | G8: 1.24946267 | H8: 1.299688256 | I8: 1.310475353 | J8: 1.297329916 | K8: 1.269956675 | L8: 1.234418282 | M8: 1.194491302 | N8: 1.152517786 | O8: 1.10994004 | P8: 1.067636449 | Q8: 1.026132332 | R8: 0.9857323276 | S8: 0.9466035 | T8: 0.9088274847 | U8: 0.8724332044 | CX8: 1
A9: ='Calculated rates'!B10 -> 7 | B9: 0.2889298036 | C9: 0.5517381017 | D9: 0.7869641381 | E9: 0.9925236663 | F9: 1.165150149 | G9: 1.299688256 | H9: 1.388128066 | I9: 1.425147918 | J9: 1.426094565 | K9: 1.405284574 | L9: 1.371673169 | M9: 1.330849866 | N9: 1.286291766 | O9: 1.24015062 | P9: 1.193747089 | Q9: 1.147881109 | R9: 1.103026769 | S9: 1.059454651 | T9: 1.017308616 | U9: 0.9766539978 | CX9: 1
A10: ='Calculated rates'!B11 -> 8 | B10: 0.2826424593 | C10: 0.5407227656 | D10: 0.7738166531 | E10: 0.981081772 | F10: 1.160908071 | G10: 1.310475353 | H10: 1.425147918 | I10: 1.497613527 | J10: 1.523006291 | K10: 1.515477799 | L10: 1.488219508 | M10: 1.449478118 | N10: 1.404396331 | O10: 1.356168873 | P10: 1.306768465 | Q10: 1.257401714 | R10: 1.208795374 | S10: 1.161376084 | T10: 1.115383193 | U10: 1.070939582 | CX10: 1
A11: ='Calculated rates'!B12 -> 9 | B11: 0.2746153945 | C11: 0.5259767519 | D11: 0.7542908924 | E11: 0.9594766246 | F11: 1.140946452 | G11: 1.297329916 | H11: 1.426094565 | I11: 1.523006291 | J11: 1.58134751 | K11: 1.59664244 | L11: 1.581923687 | M11: 1.549335418 | N11: 1.50646521 | O11: 1.458040483 | P11: 1.406993876 | Q11: 1.355132291 | R11: 1.303557022 | S11: 1.252927561 | T11: 1.203627226 | U11: 1.155867125 | CX11: 1
A12: ='Calculated rates'!B13 -> 10 | B12: 0.2656600908 | C12: 0.5092032204 | D12: 0.7312134835 | E12: 0.9320696799 | F12: 1.111809447 | G12: 1.269956675 | H12: 1.405284574 | I12: 1.515477799 | J12: 1.59664244 | K12: 1.64259038 | L12: 1.649194072 | M12: 1.628448964 | N12: 1.591530897 | O12: 1.545418374 | P12: 1.494455401 | Q12: 1.441332968 | R12: 1.387705392 | S12: 1.334577357 | T12: 1.282546927 | U12: 1.231958118 | CX12: 1
A13: ='Calculated rates'!B14 -> 11 | B13: 0.2562795699 | C13: 0.4914591159 | D13: 0.7063413707 | E13: 0.9015767064 | F13: 1.077578983 | G13: 1.234418282 | H13: 1.371673169 | I13: 1.488219508 | J13: 1.581923687 | K13: 1.649194072 | L13: 1.684323622 | M13: 1.683501762 | N13: 1.657766687 | O13: 1.617401469 | P13: 1.568823378 | Q13: 1.516023434 | R13: 1.461470444 | S13: 1.406678718 | T13: 1.352564558 | U13: 1.299670088 | CX13: 1
A14: ='Calculated rates'!B15 -> 12 | B14: 0.2467833937 | C14: 0.4733960432 | D14: 0.6807604263 | E14: 0.8696808493 | F14: 1.040791729 | G14: 1.194491302 | H14: 1.330849866 | I14: 1.449478118 | J14: 1.549335418 | K14: 1.628448964 | L14: 1.683501762 | M14: 1.709227832 | N14: 1.702107598 | O14: 1.67229735 | P14: 1.629258049 | Q14: 1.578890446 | R14: 1.524860977 | S14: 1.469434419 | T14: 1.413996767 | U14: 1.359383572 | CX14: 1
A15: ='Calculated rates'!B16 -> 13 | B15: 0.2373598789 | C15: 0.4554115271 | D15: 0.6551357664 | E15: 0.8374176257 | F15: 1.003014947 | G15: 1.152517786 | H15: 1.286291766 | I15: 1.404396331 | J15: 1.50646521 | K15: 1.591530897 | L15: 1.657766687 | M15: 1.702107598 | N15: 1.719693603 | O15: 1.707273279 | P15: 1.674191056 | Q15: 1.629151241 | R15: 1.577579468 | S15: 1.522843863 | T15: 1.467021936 | U15: 1.411382151 | CX15: 1
A16: ='Calculated rates'!B17 -> 14 | B16: 0.2281214403 | C16: 0.4377439903 | D16: 0.6298689326 | E16: 0.8054166816 | F16: 0.9652081092 | G16: 1.10994004 | H16: 1.24015062 | I16: 1.356168873 | J16: 1.458040483 | K16: 1.545418374 | L16: 1.617401469 | M16: 1.67229735 | N16: 1.707273279 | O16: 1.7178435 | P16: 1.701004085 | Q16: 1.665352327 | R16: 1.618896287 | S16: 1.566624657 | T16: 1.511631466 | U16: 1.455822383 | CX16: 1
A17: ='Calculated rates'!B18 -> 15 | B17: 0.2191330593 | C17: 0.4205323855 | D17: 0.6051965821 | E17: 0.7740535921 | F17: 0.9279499709 | G17: 1.067636449 | H17: 1.193747089 | I17: 1.306768465 | J17: 1.406993876 | K17: 1.494455401 | L17: 1.568823378 | M17: 1.629258049 | N17: 1.674191056 | O17: 1.701004085 | P17: 1.705556685 | Q17: 1.685073508 | R17: 1.647464378 | S17: 1.600096753 | T17: 1.547557532 | U17: 1.492688916 | CX17: 1
A18: ='Calculated rates'!B19 -> 16 | B18: 0.210430153 | C18: 0.4038536282 | D18: 0.5812524428 | E18: 0.7435451652 | F18: 0.8915811395 | G18: 1.026132332 | H18: 1.147881109 | I18: 1.257401714 | J18: 1.355132291 | K18: 1.441332968 | L18: 1.516023434 | M18: 1.578890446 | N18: 1.629151241 | O18: 1.665352327 | P18: 1.685073508 | Q18: 1.684493012 | R18: 1.661046665 | S18: 1.62201176 | T18: 1.574166371 | U18: 1.521727945 | CX18: 1
A19: ='Calculated rates'!B20 -> 17 | B19: 0.2020297887 | C19: 0.3877460892 | D19: 0.5581061988 | E19: 0.7140092645 | F19: 0.8562935768 | G19: 0.9857323276 | H19: 1.103026769 | I19: 1.208795374 | J19: 1.303557022 | K19: 1.387705392 | L19: 1.461470444 | M19: 1.524860977 | N19: 1.577579468 | O19: 1.618896287 | P19: 1.647464378 | Q19: 1.661046665 | R19: 1.656115519 | S19: 1.630301877 | T19: 1.590301068 | U19: 1.542348917 | CX19: 1
A20: ='Calculated rates'!B21 -> 18 | B20: 0.1939377174 | C20: 0.3722243318 | D20: 0.5357878889 | E20: 0.6855023492 | F20: 0.8221867734 | G20: 0.9466035 | H20: 1.059454651 | I20: 1.161376084 | J20: 1.252927561 | K20: 1.334577357 | L20: 1.406678718 | M20: 1.469434419 | N20: 1.522843863 | O20: 1.566624657 | P20: 1.600096753 | Q20: 1.62201176 | R20: 1.630301877 | S20: 1.621710987 | T20: 1.594050305 | U20: 1.553479725 | CX20: 1
A21: ='Calculated rates'!B22 -> 19 | B21: 0.1861527834 | C21: 0.3572883514 | D21: 0.5143032055 | E21: 0.6580430226 | F21: 0.7893029931 | G21: 0.9088274847 | H21: 1.017308616 | I21: 1.115383193 | J21: 1.203627226 | K21: 1.282546927 | L21: 1.352564558 | M21: 1.413996767 | N21: 1.467021936 | O21: 1.511631466 | P21: 1.547557532 | Q21: 1.574166371 | R21: 1.590301068 | S21: 1.594050305 | T21: 1.582408589 | U21: 1.553353715 | CX21: 1
A22: ='Calculated rates'!B23 -> 20 | B22: 0.1786696854 | C22: 0.3429293633 | D22: 0.4936430816 | E22: 0.6316267912 | F22: 0.7576493733 | G22: 0.8724332044 | H22: 0.9766539978 | I22: 1.070939582 | J22: 1.155867125 | K22: 1.231958118 | L22: 1.299670088 | M22: 1.359383572 | N22: 1.411382151 | O22: 1.455822383 | P22: 1.492688916 | Q22: 1.521727945 | R22: 1.542348917 | S22: 1.553479725 | T22: 1.553353715 | U22: 1.539196737 | CX22: 1
A23: ='Calculated rates'!B24 ->  | CX23: 0
A24: ='Calculated rates'!B25 ->  | CX24: 0
A25: ='Calculated rates'!B26 ->  | CX25: 0
A26: ='Calculated rates'!B27 ->  | CX26: 0
A27: ='Calculated rates'!B28 ->  | CX27: 0
A28: ='Calculated rates'!B29 ->  | CX28: 0
A29: ='Calculated rates'!B30 ->  | CX29: 0
A30: ='Calculated rates'!B31 ->  | CX30: 0
A31: ='Calculated rates'!B32 ->  | CX31: 0
A32: ='Calculated rates'!B33 ->  | CX32: 0
A33: ='Calculated rates'!B34 ->  | CX33: 0
A34: ='Calculated rates'!B35 ->  | CX34: 0
A35: ='Calculated rates'!B36 ->  | CX35: 0
A36: ='Calculated rates'!B37 ->  | CX36: 0
A37: ='Calculated rates'!B38 ->  | CX37: 0
A38: ='Calculated rates'!B39 ->  | CX38: 0
A39: ='Calculated rates'!B40 ->  | CX39: 0
A40: ='Calculated rates'!B41 ->  | CX40: 0
A41: ='Calculated rates'!B42 ->  | CX41: 0
A42: ='Calculated rates'!B43 ->  | CX42: 0
A43: ='Calculated rates'!B44 ->  | CX43: 0
A44: ='Calculated rates'!B45 ->  | CX44: 0
A45: ='Calculated rates'!B46 ->  | CX45: 0
A46: ='Calculated rates'!B47 ->  | CX46: 0
A47: ='Calculated rates'!B48 ->  | CX47: 0
A48: ='Calculated rates'!B49 ->  | CX48: 0
A49: ='Calculated rates'!B50 ->  | CX49: 0
A50: ='Calculated rates'!B51 ->  | CX50: 0
A51: ='Calculated rates'!B52 ->  | CX51: 0
A52: ='Calculated rates'!B53 ->  | CX52: 0
A53: ='Calculated rates'!B54 ->  | CX53: 0
A54: ='Calculated rates'!B55 ->  | CX54: 0
A55: ='Calculated rates'!B56 ->  | CX55: 0
A56: ='Calculated rates'!B57 ->  | CX56: 0
A57: ='Calculated rates'!B58 ->  | CX57: 0
A58: ='Calculated rates'!B59 ->  | CX58: 0
A59: ='Calculated rates'!B60 ->  | CX59: 0
A60: ='Calculated rates'!B61 ->  | CX60: 0
A61: ='Calculated rates'!B62 ->  | CX61: 0
A62: ='Calculated rates'!B63 ->  | CX62: 0
A63: ='Calculated rates'!B64 ->  | CX63: 0
A64: ='Calculated rates'!B65 ->  | CX64: 0
A65: ='Calculated rates'!B66 ->  | CX65: 0
A66: ='Calculated rates'!B67 ->  | CX66: 0
A67: ='Calculated rates'!B68 ->  | B67: =IF(AND(A67<>"",B66<>""),EXP(-UFRC*($A67+B$2))*(alpha*MIN($A67,B$2)-0.5*EXP(-alpha*MAX($A67,B$2))*(EXP(alpha*MIN($A67,B$2))-EXP(-alpha*MIN($A67,B$2)))),"") ->  | C67: =IF(AND(B67<>"",C66<>""),EXP(-UFRC*($A67+C$2))*(alpha*MIN($A67,C$2)-0.5*EXP(-alpha*MAX($A67,C$2))*(EXP(alpha*MIN($A67,C$2))-EXP(-alpha*MIN($A67,C$2)))),"") ->  | D67: =IF(AND(C67<>"",D66<>""),EXP(-UFRC*($A67+D$2))*(alpha*MIN($A67,D$2)-0.5*EXP(-alpha*MAX($A67,D$2))*(EXP(alpha*MIN($A67,D$2))-EXP(-alpha*MIN($A67,D$2)))),"") ->  | E67: =IF(AND(D67<>"",E66<>""),EXP(-UFRC*($A67+E$2))*(alpha*MIN($A67,E$2)-0.5*EXP(-alpha*MAX($A67,E$2))*(EXP(alpha*MIN($A67,E$2))-EXP(-alpha*MIN($A67,E$2)))),"") ->  | F67: =IF(AND(E67<>"",F66<>""),EXP(-UFRC*($A67+F$2))*(alpha*MIN($A67,F$2)-0.5*EXP(-alpha*MAX($A67,F$2))*(EXP(alpha*MIN($A67,F$2))-EXP(-alpha*MIN($A67,F$2)))),"") ->  | G67: =IF(AND(F67<>"",G66<>""),EXP(-UFRC*($A67+G$2))*(alpha*MIN($A67,G$2)-0.5*EXP(-alpha*MAX($A67,G$2))*(EXP(alpha*MIN($A67,G$2))-EXP(-alpha*MIN($A67,G$2)))),"") ->  | H67: =IF(AND(G67<>"",H66<>""),EXP(-UFRC*($A67+H$2))*(alpha*MIN($A67,H$2)-0.5*EXP(-alpha*MAX($A67,H$2))*(EXP(alpha*MIN($A67,H$2))-EXP(-alpha*MIN($A67,H$2)))),"") ->  | I67: =IF(AND(H67<>"",I66<>""),EXP(-UFRC*($A67+I$2))*(alpha*MIN($A67,I$2)-0.5*EXP(-alpha*MAX($A67,I$2))*(EXP(alpha*MIN($A67,I$2))-EXP(-alpha*MIN($A67,I$2)))),"") ->  | J67: =IF(AND(I67<>"",J66<>""),EXP(-UFRC*($A67+J$2))*(alpha*MIN($A67,J$2)-0.5*EXP(-alpha*MAX($A67,J$2))*(EXP(alpha*MIN($A67,J$2))-EXP(-alpha*MIN($A67,J$2)))),"") ->  | K67: =IF(AND(J67<>"",K66<>""),EXP(-UFRC*($A67+K$2))*(alpha*MIN($A67,K$2)-0.5*EXP(-alpha*MAX($A67,K$2))*(EXP(alpha*MIN($A67,K$2))-EXP(-alpha*MIN($A67,K$2)))),"") ->  | L67: =IF(AND(K67<>"",L66<>""),EXP(-UFRC*($A67+L$2))*(alpha*MIN($A67,L$2)-0.5*EXP(-alpha*MAX($A67,L$2))*(EXP(alpha*MIN($A67,L$2))-EXP(-alpha*MIN($A67,L$2)))),"") ->  | M67: =IF(AND(L67<>"",M66<>""),EXP(-UFRC*($A67+M$2))*(alpha*MIN($A67,M$2)-0.5*EXP(-alpha*MAX($A67,M$2))*(EXP(alpha*MIN($A67,M$2))-EXP(-alpha*MIN($A67,M$2)))),"") ->  | N67: =IF(AND(M67<>"",N66<>""),EXP(-UFRC*($A67+N$2))*(alpha*MIN($A67,N$2)-0.5*EXP(-alpha*MAX($A67,N$2))*(EXP(alpha*MIN($A67,N$2))-EXP(-alpha*MIN($A67,N$2)))),"") ->  | O67: =IF(AND(N67<>"",O66<>""),EXP(-UFRC*($A67+O$2))*(alpha*MIN($A67,O$2)-0.5*EXP(-alpha*MAX($A67,O$2))*(EXP(alpha*MIN($A67,O$2))-EXP(-alpha*MIN($A67,O$2)))),"") ->  | P67: =IF(AND(O67<>"",P66<>""),EXP(-UFRC*($A67+P$2))*(alpha*MIN($A67,P$2)-0.5*EXP(-alpha*MAX($A67,P$2))*(EXP(alpha*MIN($A67,P$2))-EXP(-alpha*MIN($A67,P$2)))),"") ->  | Q67: =IF(AND(P67<>"",Q66<>""),EXP(-UFRC*($A67+Q$2))*(alpha*MIN($A67,Q$2)-0.5*EXP(-alpha*MAX($A67,Q$2))*(EXP(alpha*MIN($A67,Q$2))-EXP(-alpha*MIN($A67,Q$2)))),"") ->  | R67: =IF(AND(Q67<>"",R66<>""),EXP(-UFRC*($A67+R$2))*(alpha*MIN($A67,R$2)-0.5*EXP(-alpha*MAX($A67,R$2))*(EXP(alpha*MIN($A67,R$2))-EXP(-alpha*MIN($A67,R$2)))),"") ->  | S67: =IF(AND(R67<>"",S66<>""),EXP(-UFRC*($A67+S$2))*(alpha*MIN($A67,S$2)-0.5*EXP(-alpha*MAX($A67,S$2))*(EXP(alpha*MIN($A67,S$2))-EXP(-alpha*MIN($A67,S$2)))),"") ->  | T67: =IF(AND(S67<>"",T66<>""),EXP(-UFRC*($A67+T$2))*(alpha*MIN($A67,T$2)-0.5*EXP(-alpha*MAX($A67,T$2))*(EXP(alpha*MIN($A67,T$2))-EXP(-alpha*MIN($A67,T$2)))),"") ->  | U67: =IF(AND(T67<>"",U66<>""),EXP(-UFRC*($A67+U$2))*(alpha*MIN($A67,U$2)-0.5*EXP(-alpha*MAX($A67,U$2))*(EXP(alpha*MIN($A67,U$2))-EXP(-alpha*MIN($A67,U$2)))),"") ->  | V67: =IF(AND(U67<>"",V66<>""),EXP(-UFRC*($A67+V$2))*(alpha*MIN($A67,V$2)-0.5*EXP(-alpha*MAX($A67,V$2))*(EXP(alpha*MIN($A67,V$2))-EXP(-alpha*MIN($A67,V$2)))),"") ->  | W67: =IF(AND(V67<>"",W66<>""),EXP(-UFRC*($A67+W$2))*(alpha*MIN($A67,W$2)-0.5*EXP(-alpha*MAX($A67,W$2))*(EXP(alpha*MIN($A67,W$2))-EXP(-alpha*MIN($A67,W$2)))),"") ->  | X67: =IF(AND(W67<>"",X66<>""),EXP(-UFRC*($A67+X$2))*(alpha*MIN($A67,X$2)-0.5*EXP(-alpha*MAX($A67,X$2))*(EXP(alpha*MIN($A67,X$2))-EXP(-alpha*MIN($A67,X$2)))),"") ->  | Y67: =IF(AND(X67<>"",Y66<>""),EXP(-UFRC*($A67+Y$2))*(alpha*MIN($A67,Y$2)-0.5*EXP(-alpha*MAX($A67,Y$2))*(EXP(alpha*MIN($A67,Y$2))-EXP(-alpha*MIN($A67,Y$2)))),"") ->  | Z67: =IF(AND(Y67<>"",Z66<>""),EXP(-UFRC*($A67+Z$2))*(alpha*MIN($A67,Z$2)-0.5*EXP(-alpha*MAX($A67,Z$2))*(EXP(alpha*MIN($A67,Z$2))-EXP(-alpha*MIN($A67,Z$2)))),"") ->  | AA67: =IF(AND(Z67<>"",AA66<>""),EXP(-UFRC*($A67+AA$2))*(alpha*MIN($A67,AA$2)-0.5*EXP(-alpha*MAX($A67,AA$2))*(EXP(alpha*MIN($A67,AA$2))-EXP(-alpha*MIN($A67,AA$2)))),"") ->  | AB67: =IF(AND(AA67<>"",AB66<>""),EXP(-UFRC*($A67+AB$2))*(alpha*MIN($A67,AB$2)-0.5*EXP(-alpha*MAX($A67,AB$2))*(EXP(alpha*MIN($A67,AB$2))-EXP(-alpha*MIN($A67,AB$2)))),"") ->  | AC67: =IF(AND(AB67<>"",AC66<>""),EXP(-UFRC*($A67+AC$2))*(alpha*MIN($A67,AC$2)-0.5*EXP(-alpha*MAX($A67,AC$2))*(EXP(alpha*MIN($A67,AC$2))-EXP(-alpha*MIN($A67,AC$2)))),"") ->  | AD67: =IF(AND(AC67<>"",AD66<>""),EXP(-UFRC*($A67+AD$2))*(alpha*MIN($A67,AD$2)-0.5*EXP(-alpha*MAX($A67,AD$2))*(EXP(alpha*MIN($A67,AD$2))-EXP(-alpha*MIN($A67,AD$2)))),"") ->  | AE67: =IF(AND(AD67<>"",AE66<>""),EXP(-UFRC*($A67+AE$2))*(alpha*MIN($A67,AE$2)-0.5*EXP(-alpha*MAX($A67,AE$2))*(EXP(alpha*MIN($A67,AE$2))-EXP(-alpha*MIN($A67,AE$2)))),"") ->  | AF67: =IF(AND(AE67<>"",AF66<>""),EXP(-UFRC*($A67+AF$2))*(alpha*MIN($A67,AF$2)-0.5*EXP(-alpha*MAX($A67,AF$2))*(EXP(alpha*MIN($A67,AF$2))-EXP(-alpha*MIN($A67,AF$2)))),"") ->  | AG67: =IF(AND(AF67<>"",AG66<>""),EXP(-UFRC*($A67+AG$2))*(alpha*MIN($A67,AG$2)-0.5*EXP(-alpha*MAX($A67,AG$2))*(EXP(alpha*MIN($A67,AG$2))-EXP(-alpha*MIN($A67,AG$2)))),"") ->  | AH67: =IF(AND(AG67<>"",AH66<>""),EXP(-UFRC*($A67+AH$2))*(alpha*MIN($A67,AH$2)-0.5*EXP(-alpha*MAX($A67,AH$2))*(EXP(alpha*MIN($A67,AH$2))-EXP(-alpha*MIN($A67,AH$2)))),"") ->  | AI67: =IF(AND(AH67<>"",AI66<>""),EXP(-UFRC*($A67+AI$2))*(alpha*MIN($A67,AI$2)-0.5*EXP(-alpha*MAX($A67,AI$2))*(EXP(alpha*MIN($A67,AI$2))-EXP(-alpha*MIN($A67,AI$2)))),"") ->  | AJ67: =IF(AND(AI67<>"",AJ66<>""),EXP(-UFRC*($A67+AJ$2))*(alpha*MIN($A67,AJ$2)-0.5*EXP(-alpha*MAX($A67,AJ$2))*(EXP(alpha*MIN($A67,AJ$2))-EXP(-alpha*MIN($A67,AJ$2)))),"") ->  | AK67: =IF(AND(AJ67<>"",AK66<>""),EXP(-UFRC*($A67+AK$2))*(alpha*MIN($A67,AK$2)-0.5*EXP(-alpha*MAX($A67,AK$2))*(EXP(alpha*MIN($A67,AK$2))-EXP(-alpha*MIN($A67,AK$2)))),"") ->  | AL67: =IF(AND(AK67<>"",AL66<>""),EXP(-UFRC*($A67+AL$2))*(alpha*MIN($A67,AL$2)-0.5*EXP(-alpha*MAX($A67,AL$2))*(EXP(alpha*MIN($A67,AL$2))-EXP(-alpha*MIN($A67,AL$2)))),"") ->  | AM67: =IF(AND(AL67<>"",AM66<>""),EXP(-UFRC*($A67+AM$2))*(alpha*MIN($A67,AM$2)-0.5*EXP(-alpha*MAX($A67,AM$2))*(EXP(alpha*MIN($A67,AM$2))-EXP(-alpha*MIN($A67,AM$2)))),"") ->  | AN67: =IF(AND(AM67<>"",AN66<>""),EXP(-UFRC*($A67+AN$2))*(alpha*MIN($A67,AN$2)-0.5*EXP(-alpha*MAX($A67,AN$2))*(EXP(alpha*MIN($A67,AN$2))-EXP(-alpha*MIN($A67,AN$2)))),"") ->  | AO67: =IF(AND(AN67<>"",AO66<>""),EXP(-UFRC*($A67+AO$2))*(alpha*MIN($A67,AO$2)-0.5*EXP(-alpha*MAX($A67,AO$2))*(EXP(alpha*MIN($A67,AO$2))-EXP(-alpha*MIN($A67,AO$2)))),"") ->  | AP67: =IF(AND(AO67<>"",AP66<>""),EXP(-UFRC*($A67+AP$2))*(alpha*MIN($A67,AP$2)-0.5*EXP(-alpha*MAX($A67,AP$2))*(EXP(alpha*MIN($A67,AP$2))-EXP(-alpha*MIN($A67,AP$2)))),"") ->  | AQ67: =IF(AND(AP67<>"",AQ66<>""),EXP(-UFRC*($A67+AQ$2))*(alpha*MIN($A67,AQ$2)-0.5*EXP(-alpha*MAX($A67,AQ$2))*(EXP(alpha*MIN($A67,AQ$2))-EXP(-alpha*MIN($A67,AQ$2)))),"") ->  | AR67: =IF(AND(AQ67<>"",AR66<>""),EXP(-UFRC*($A67+AR$2))*(alpha*MIN($A67,AR$2)-0.5*EXP(-alpha*MAX($A67,AR$2))*(EXP(alpha*MIN($A67,AR$2))-EXP(-alpha*MIN($A67,AR$2)))),"") ->  | AS67: =IF(AND(AR67<>"",AS66<>""),EXP(-UFRC*($A67+AS$2))*(alpha*MIN($A67,AS$2)-0.5*EXP(-alpha*MAX($A67,AS$2))*(EXP(alpha*MIN($A67,AS$2))-EXP(-alpha*MIN($A67,AS$2)))),"") ->  | AT67: =IF(AND(AS67<>"",AT66<>""),EXP(-UFRC*($A67+AT$2))*(alpha*MIN($A67,AT$2)-0.5*EXP(-alpha*MAX($A67,AT$2))*(EXP(alpha*MIN($A67,AT$2))-EXP(-alpha*MIN($A67,AT$2)))),"") ->  | AU67: =IF(AND(AT67<>"",AU66<>""),EXP(-UFRC*($A67+AU$2))*(alpha*MIN($A67,AU$2)-0.5*EXP(-alpha*MAX($A67,AU$2))*(EXP(alpha*MIN($A67,AU$2))-EXP(-alpha*MIN($A67,AU$2)))),"") ->  | AV67: =IF(AND(AU67<>"",AV66<>""),EXP(-UFRC*($A67+AV$2))*(alpha*MIN($A67,AV$2)-0.5*EXP(-alpha*MAX($A67,AV$2))*(EXP(alpha*MIN($A67,AV$2))-EXP(-alpha*MIN($A67,AV$2)))),"") ->  | AW67: =IF(AND(AV67<>"",AW66<>""),EXP(-UFRC*($A67+AW$2))*(alpha*MIN($A67,AW$2)-0.5*EXP(-alpha*MAX($A67,AW$2))*(EXP(alpha*MIN($A67,AW$2))-EXP(-alpha*MIN($A67,AW$2)))),"") ->  | AX67: =IF(AND(AW67<>"",AX66<>""),EXP(-UFRC*($A67+AX$2))*(alpha*MIN($A67,AX$2)-0.5*EXP(-alpha*MAX($A67,AX$2))*(EXP(alpha*MIN($A67,AX$2))-EXP(-alpha*MIN($A67,AX$2)))),"") ->  | AY67: =IF(AND(AX67<>"",AY66<>""),EXP(-UFRC*($A67+AY$2))*(alpha*MIN($A67,AY$2)-0.5*EXP(-alpha*MAX($A67,AY$2))*(EXP(alpha*MIN($A67,AY$2))-EXP(-alpha*MIN($A67,AY$2)))),"") ->  | AZ67: =IF(AND(AY67<>"",AZ66<>""),EXP(-UFRC*($A67+AZ$2))*(alpha*MIN($A67,AZ$2)-0.5*EXP(-alpha*MAX($A67,AZ$2))*(EXP(alpha*MIN($A67,AZ$2))-EXP(-alpha*MIN($A67,AZ$2)))),"") ->  | BA67: =IF(AND(AZ67<>"",BA66<>""),EXP(-UFRC*($A67+BA$2))*(alpha*MIN($A67,BA$2)-0.5*EXP(-alpha*MAX($A67,BA$2))*(EXP(alpha*MIN($A67,BA$2))-EXP(-alpha*MIN($A67,BA$2)))),"") ->  | BB67: =IF(AND(BA67<>"",BB66<>""),EXP(-UFRC*($A67+BB$2))*(alpha*MIN($A67,BB$2)-0.5*EXP(-alpha*MAX($A67,BB$2))*(EXP(alpha*MIN($A67,BB$2))-EXP(-alpha*MIN($A67,BB$2)))),"") ->  | BC67: =IF(AND(BB67<>"",BC66<>""),EXP(-UFRC*($A67+BC$2))*(alpha*MIN($A67,BC$2)-0.5*EXP(-alpha*MAX($A67,BC$2))*(EXP(alpha*MIN($A67,BC$2))-EXP(-alpha*MIN($A67,BC$2)))),"") ->  | BD67: =IF(AND(BC67<>"",BD66<>""),EXP(-UFRC*($A67+BD$2))*(alpha*MIN($A67,BD$2)-0.5*EXP(-alpha*MAX($A67,BD$2))*(EXP(alpha*MIN($A67,BD$2))-EXP(-alpha*MIN($A67,BD$2)))),"") ->  | BE67: =IF(AND(BD67<>"",BE66<>""),EXP(-UFRC*($A67+BE$2))*(alpha*MIN($A67,BE$2)-0.5*EXP(-alpha*MAX($A67,BE$2))*(EXP(alpha*MIN($A67,BE$2))-EXP(-alpha*MIN($A67,BE$2)))),"") ->  | BF67: =IF(AND(BE67<>"",BF66<>""),EXP(-UFRC*($A67+BF$2))*(alpha*MIN($A67,BF$2)-0.5*EXP(-alpha*MAX($A67,BF$2))*(EXP(alpha*MIN($A67,BF$2))-EXP(-alpha*MIN($A67,BF$2)))),"") ->  | BG67: =IF(AND(BF67<>"",BG66<>""),EXP(-UFRC*($A67+BG$2))*(alpha*MIN($A67,BG$2)-0.5*EXP(-alpha*MAX($A67,BG$2))*(EXP(alpha*MIN($A67,BG$2))-EXP(-alpha*MIN($A67,BG$2)))),"") ->  | BH67: =IF(AND(BG67<>"",BH66<>""),EXP(-UFRC*($A67+BH$2))*(alpha*MIN($A67,BH$2)-0.5*EXP(-alpha*MAX($A67,BH$2))*(EXP(alpha*MIN($A67,BH$2))-EXP(-alpha*MIN($A67,BH$2)))),"") ->  | BI67: =IF(AND(BH67<>"",BI66<>""),EXP(-UFRC*($A67+BI$2))*(alpha*MIN($A67,BI$2)-0.5*EXP(-alpha*MAX($A67,BI$2))*(EXP(alpha*MIN($A67,BI$2))-EXP(-alpha*MIN($A67,BI$2)))),"") ->  | BJ67: =IF(AND(BI67<>"",BJ66<>""),EXP(-UFRC*($A67+BJ$2))*(alpha*MIN($A67,BJ$2)-0.5*EXP(-alpha*MAX($A67,BJ$2))*(EXP(alpha*MIN($A67,BJ$2))-EXP(-alpha*MIN($A67,BJ$2)))),"") ->  | BK67: =IF(AND(BJ67<>"",BK66<>""),EXP(-UFRC*($A67+BK$2))*(alpha*MIN($A67,BK$2)-0.5*EXP(-alpha*MAX($A67,BK$2))*(EXP(alpha*MIN($A67,BK$2))-EXP(-alpha*MIN($A67,BK$2)))),"") ->  | BL67: =IF(AND(BK67<>"",BL66<>""),EXP(-UFRC*($A67+BL$2))*(alpha*MIN($A67,BL$2)-0.5*EXP(-alpha*MAX($A67,BL$2))*(EXP(alpha*MIN($A67,BL$2))-EXP(-alpha*MIN($A67,BL$2)))),"") ->  | BM67: =IF(AND(BL67<>"",BM66<>""),EXP(-UFRC*($A67+BM$2))*(alpha*MIN($A67,BM$2)-0.5*EXP(-alpha*MAX($A67,BM$2))*(EXP(alpha*MIN($A67,BM$2))-EXP(-alpha*MIN($A67,BM$2)))),"") ->  | BN67: =IF(AND(BM67<>"",BN66<>""),EXP(-UFRC*($A67+BN$2))*(alpha*MIN($A67,BN$2)-0.5*EXP(-alpha*MAX($A67,BN$2))*(EXP(alpha*MIN($A67,BN$2))-EXP(-alpha*MIN($A67,BN$2)))),"") ->  | BO67: =IF(AND(BN67<>"",BO66<>""),EXP(-UFRC*($A67+BO$2))*(alpha*MIN($A67,BO$2)-0.5*EXP(-alpha*MAX($A67,BO$2))*(EXP(alpha*MIN($A67,BO$2))-EXP(-alpha*MIN($A67,BO$2)))),"") ->  | BP67: =IF(AND(BO67<>"",BP66<>""),EXP(-UFRC*($A67+BP$2))*(alpha*MIN($A67,BP$2)-0.5*EXP(-alpha*MAX($A67,BP$2))*(EXP(alpha*MIN($A67,BP$2))-EXP(-alpha*MIN($A67,BP$2)))),"") ->  | BQ67: =IF(AND(BP67<>"",BQ66<>""),EXP(-UFRC*($A67+BQ$2))*(alpha*MIN($A67,BQ$2)-0.5*EXP(-alpha*MAX($A67,BQ$2))*(EXP(alpha*MIN($A67,BQ$2))-EXP(-alpha*MIN($A67,BQ$2)))),"") ->  | BR67: =IF(AND(BQ67<>"",BR66<>""),EXP(-UFRC*($A67+BR$2))*(alpha*MIN($A67,BR$2)-0.5*EXP(-alpha*MAX($A67,BR$2))*(EXP(alpha*MIN($A67,BR$2))-EXP(-alpha*MIN($A67,BR$2)))),"") ->  | BS67: =IF(AND(BR67<>"",BS66<>""),EXP(-UFRC*($A67+BS$2))*(alpha*MIN($A67,BS$2)-0.5*EXP(-alpha*MAX($A67,BS$2))*(EXP(alpha*MIN($A67,BS$2))-EXP(-alpha*MIN($A67,BS$2)))),"") ->  | BT67: =IF(AND(BS67<>"",BT66<>""),EXP(-UFRC*($A67+BT$2))*(alpha*MIN($A67,BT$2)-0.5*EXP(-alpha*MAX($A67,BT$2))*(EXP(alpha*MIN($A67,BT$2))-EXP(-alpha*MIN($A67,BT$2)))),"") ->  | BU67: =IF(AND(BT67<>"",BU66<>""),EXP(-UFRC*($A67+BU$2))*(alpha*MIN($A67,BU$2)-0.5*EXP(-alpha*MAX($A67,BU$2))*(EXP(alpha*MIN($A67,BU$2))-EXP(-alpha*MIN($A67,BU$2)))),"") ->  | BV67: =IF(AND(BU67<>"",BV66<>""),EXP(-UFRC*($A67+BV$2))*(alpha*MIN($A67,BV$2)-0.5*EXP(-alpha*MAX($A67,BV$2))*(EXP(alpha*MIN($A67,BV$2))-EXP(-alpha*MIN($A67,BV$2)))),"") ->  | BW67: =IF(AND(BV67<>"",BW66<>""),EXP(-UFRC*($A67+BW$2))*(alpha*MIN($A67,BW$2)-0.5*EXP(-alpha*MAX($A67,BW$2))*(EXP(alpha*MIN($A67,BW$2))-EXP(-alpha*MIN($A67,BW$2)))),"") ->  | BX67: =IF(AND(BW67<>"",BX66<>""),EXP(-UFRC*($A67+BX$2))*(alpha*MIN($A67,BX$2)-0.5*EXP(-alpha*MAX($A67,BX$2))*(EXP(alpha*MIN($A67,BX$2))-EXP(-alpha*MIN($A67,BX$2)))),"") ->  | BY67: =IF(AND(BX67<>"",BY66<>""),EXP(-UFRC*($A67+BY$2))*(alpha*MIN($A67,BY$2)-0.5*EXP(-alpha*MAX($A67,BY$2))*(EXP(alpha*MIN($A67,BY$2))-EXP(-alpha*MIN($A67,BY$2)))),"") ->  | BZ67: =IF(AND(BY67<>"",BZ66<>""),EXP(-UFRC*($A67+BZ$2))*(alpha*MIN($A67,BZ$2)-0.5*EXP(-alpha*MAX($A67,BZ$2))*(EXP(alpha*MIN($A67,BZ$2))-EXP(-alpha*MIN($A67,BZ$2)))),"") ->  | CA67: =IF(AND(BZ67<>"",CA66<>""),EXP(-UFRC*($A67+CA$2))*(alpha*MIN($A67,CA$2)-0.5*EXP(-alpha*MAX($A67,CA$2))*(EXP(alpha*MIN($A67,CA$2))-EXP(-alpha*MIN($A67,CA$2)))),"") ->  | CB67: =IF(AND(CA67<>"",CB66<>""),EXP(-UFRC*($A67+CB$2))*(alpha*MIN($A67,CB$2)-0.5*EXP(-alpha*MAX($A67,CB$2))*(EXP(alpha*MIN($A67,CB$2))-EXP(-alpha*MIN($A67,CB$2)))),"") ->  | CC67: =IF(AND(CB67<>"",CC66<>""),EXP(-UFRC*($A67+CC$2))*(alpha*MIN($A67,CC$2)-0.5*EXP(-alpha*MAX($A67,CC$2))*(EXP(alpha*MIN($A67,CC$2))-EXP(-alpha*MIN($A67,CC$2)))),"") ->  | CD67: =IF(AND(CC67<>"",CD66<>""),EXP(-UFRC*($A67+CD$2))*(alpha*MIN($A67,CD$2)-0.5*EXP(-alpha*MAX($A67,CD$2))*(EXP(alpha*MIN($A67,CD$2))-EXP(-alpha*MIN($A67,CD$2)))),"") ->  | CE67: =IF(AND(CD67<>"",CE66<>""),EXP(-UFRC*($A67+CE$2))*(alpha*MIN($A67,CE$2)-0.5*EXP(-alpha*MAX($A67,CE$2))*(EXP(alpha*MIN($A67,CE$2))-EXP(-alpha*MIN($A67,CE$2)))),"") ->  | CF67: =IF(AND(CE67<>"",CF66<>""),EXP(-UFRC*($A67+CF$2))*(alpha*MIN($A67,CF$2)-0.5*EXP(-alpha*MAX($A67,CF$2))*(EXP(alpha*MIN($A67,CF$2))-EXP(-alpha*MIN($A67,CF$2)))),"") ->  | CG67: =IF(AND(CF67<>"",CG66<>""),EXP(-UFRC*($A67+CG$2))*(alpha*MIN($A67,CG$2)-0.5*EXP(-alpha*MAX($A67,CG$2))*(EXP(alpha*MIN($A67,CG$2))-EXP(-alpha*MIN($A67,CG$2)))),"") ->  | CH67: =IF(AND(CG67<>"",CH66<>""),EXP(-UFRC*($A67+CH$2))*(alpha*MIN($A67,CH$2)-0.5*EXP(-alpha*MAX($A67,CH$2))*(EXP(alpha*MIN($A67,CH$2))-EXP(-alpha*MIN($A67,CH$2)))),"") ->  | CI67: =IF(AND(CH67<>"",CI66<>""),EXP(-UFRC*($A67+CI$2))*(alpha*MIN($A67,CI$2)-0.5*EXP(-alpha*MAX($A67,CI$2))*(EXP(alpha*MIN($A67,CI$2))-EXP(-alpha*MIN($A67,CI$2)))),"") ->  | CJ67: =IF(AND(CI67<>"",CJ66<>""),EXP(-UFRC*($A67+CJ$2))*(alpha*MIN($A67,CJ$2)-0.5*EXP(-alpha*MAX($A67,CJ$2))*(EXP(alpha*MIN($A67,CJ$2))-EXP(-alpha*MIN($A67,CJ$2)))),"") ->  | CK67: =IF(AND(CJ67<>"",CK66<>""),EXP(-UFRC*($A67+CK$2))*(alpha*MIN($A67,CK$2)-0.5*EXP(-alpha*MAX($A67,CK$2))*(EXP(alpha*MIN($A67,CK$2))-EXP(-alpha*MIN($A67,CK$2)))),"") ->  | CL67: =IF(AND(CK67<>"",CL66<>""),EXP(-UFRC*($A67+CL$2))*(alpha*MIN($A67,CL$2)-0.5*EXP(-alpha*MAX($A67,CL$2))*(EXP(alpha*MIN($A67,CL$2))-EXP(-alpha*MIN($A67,CL$2)))),"") ->  | CM67: =IF(AND(CL67<>"",CM66<>""),EXP(-UFRC*($A67+CM$2))*(alpha*MIN($A67,CM$2)-0.5*EXP(-alpha*MAX($A67,CM$2))*(EXP(alpha*MIN($A67,CM$2))-EXP(-alpha*MIN($A67,CM$2)))),"") ->  | CN67: =IF(AND(CM67<>"",CN66<>""),EXP(-UFRC*($A67+CN$2))*(alpha*MIN($A67,CN$2)-0.5*EXP(-alpha*MAX($A67,CN$2))*(EXP(alpha*MIN($A67,CN$2))-EXP(-alpha*MIN($A67,CN$2)))),"") ->  | CO67: =IF(AND(CN67<>"",CO66<>""),EXP(-UFRC*($A67+CO$2))*(alpha*MIN($A67,CO$2)-0.5*EXP(-alpha*MAX($A67,CO$2))*(EXP(alpha*MIN($A67,CO$2))-EXP(-alpha*MIN($A67,CO$2)))),"") ->  | CP67: =IF(AND(CO67<>"",CP66<>""),EXP(-UFRC*($A67+CP$2))*(alpha*MIN($A67,CP$2)-0.5*EXP(-alpha*MAX($A67,CP$2))*(EXP(alpha*MIN($A67,CP$2))-EXP(-alpha*MIN($A67,CP$2)))),"") ->  | CQ67: =IF(AND(CP67<>"",CQ66<>""),EXP(-UFRC*($A67+CQ$2))*(alpha*MIN($A67,CQ$2)-0.5*EXP(-alpha*MAX($A67,CQ$2))*(EXP(alpha*MIN($A67,CQ$2))-EXP(-alpha*MIN($A67,CQ$2)))),"") ->  | CR67: =IF(AND(CQ67<>"",CR66<>""),EXP(-UFRC*($A67+CR$2))*(alpha*MIN($A67,CR$2)-0.5*EXP(-alpha*MAX($A67,CR$2))*(EXP(alpha*MIN($A67,CR$2))-EXP(-alpha*MIN($A67,CR$2)))),"") ->  | CS67: =IF(AND(CR67<>"",CS66<>""),EXP(-UFRC*($A67+CS$2))*(alpha*MIN($A67,CS$2)-0.5*EXP(-alpha*MAX($A67,CS$2))*(EXP(alpha*MIN($A67,CS$2))-EXP(-alpha*MIN($A67,CS$2)))),"") ->  | CT67: =IF(AND(CS67<>"",CT66<>""),EXP(-UFRC*($A67+CT$2))*(alpha*MIN($A67,CT$2)-0.5*EXP(-alpha*MAX($A67,CT$2))*(EXP(alpha*MIN($A67,CT$2))-EXP(-alpha*MIN($A67,CT$2)))),"") ->  | CU67: =IF(AND(CT67<>"",CU66<>""),EXP(-UFRC*($A67+CU$2))*(alpha*MIN($A67,CU$2)-0.5*EXP(-alpha*MAX($A67,CU$2))*(EXP(alpha*MIN($A67,CU$2))-EXP(-alpha*MIN($A67,CU$2)))),"") ->  | CV67: =IF(AND(CU67<>"",CV66<>""),EXP(-UFRC*($A67+CV$2))*(alpha*MIN($A67,CV$2)-0.5*EXP(-alpha*MAX($A67,CV$2))*(EXP(alpha*MIN($A67,CV$2))-EXP(-alpha*MIN($A67,CV$2)))),"") ->  | CW67: =IF(AND(CV67<>"",CW66<>""),EXP(-UFRC*($A67+CW$2))*(alpha*MIN($A67,CW$2)-0.5*EXP(-alpha*MAX($A67,CW$2))*(EXP(alpha*MIN($A67,CW$2))-EXP(-alpha*MIN($A67,CW$2)))),"") ->  | CX67: 0
A68: ='Calculated rates'!B69 ->  | CX68: =IF(A68="",0,1) -> 0
A69: ='Calculated rates'!B70 ->  | CX69: 0
A70: ='Calculated rates'!B71 ->  | CX70: 0
A71: ='Calculated rates'!B72 ->  | CX71: 0
A72: ='Calculated rates'!B73 ->  | CX72: 0
A73: ='Calculated rates'!B74 ->  | CX73: 0
A74: ='Calculated rates'!B75 ->  | CX74: 0
A75: ='Calculated rates'!B76 ->  | CX75: 0
A76: ='Calculated rates'!B77 ->  | CX76: 0
A77: ='Calculated rates'!B78 ->  | CX77: 0
A78: ='Calculated rates'!B79 ->  | CX78: 0
A79: ='Calculated rates'!B80 ->  | CX79: 0
A80: ='Calculated rates'!B81 ->  | CX80: 0
A81: ='Calculated rates'!B82 ->  | CX81: 0
A82: ='Calculated rates'!B83 ->  | CX82: 0
A83: ='Calculated rates'!B84 ->  | CX83: 0
A84: ='Calculated rates'!B85 ->  | CX84: 0
A85: ='Calculated rates'!B86 ->  | CX85: 0
A86: ='Calculated rates'!B87 ->  | CX86: 0
A87: ='Calculated rates'!B88 ->  | CX87: 0
A88: ='Calculated rates'!B89 ->  | CX88: 0
A89: ='Calculated rates'!B90 ->  | CX89: 0
A90: ='Calculated rates'!B91 ->  | CX90: 0
A91: ='Calculated rates'!B92 ->  | CX91: 0
A92: ='Calculated rates'!B93 ->  | CX92: 0
A93: ='Calculated rates'!B94 ->  | CX93: 0
A94: ='Calculated rates'!B95 ->  | CX94: 0
A95: ='Calculated rates'!B96 ->  | CX95: 0
A96: ='Calculated rates'!B97 ->  | CX96: 0
A97: ='Calculated rates'!B98 ->  | CX97: 0
A98: ='Calculated rates'!B99 ->  | CX98: 0
A99: ='Calculated rates'!B100 ->  | CX99: 0
A100: ='Calculated rates'!B101 ->  | CX100: 0
A101: ='Calculated rates'!B102 ->  | CX101: 0
A102: ='Calculated rates'!B103 ->  | CX102: 0
CX103: =SUM(CX3:IV102) -> 20

Sheet P(t)
C1: u | D1: =TRANSPOSE('Calculated rates'!B4:B103) -> 1 | E1: 2 | F1: 3 | G1: 4 | H1: 5 | I1: 6 | J1: 7 | K1: 8 | L1: 9 | M1: 10 | N1: 11 | O1: 12 | P1: 13 | Q1: 14 | R1: 15 | S1: 16 | T1: 17 | U1: 18 | V1: 19 | W1: 20
A2: t | B2: Spot rate continuos | C2: P(t)
A3: ='Calculated rates'!J4 -> 1 | B3: =IF(C3<>0,1/A3*LN(1/C3),1) -> 0.004628879545 | C3: =MAX(EXP(-UFRC*A3)+SUM(D3:CY3),0) -> 0.9953818172 | D3: =IF(AND($A3<>"",D$1<>""),EXP(-UFRC*($A3+D$1))*(alpha*MIN($A3,D$1)-0.5*EXP(-alpha*MAX($A3,D$1))*(EXP(alpha*MIN($A3,D$1))-EXP(-alpha*MIN($A3,D$1))))*LOOKUP(D$1,'Calculated rates'!$B$4:$B$103,'Calculated rates'!$F$4:$F$104),"") -> 0.009123545221 | E3: =IF(AND($A3<>"",E$1<>""),EXP(-UFRC*($A3+E$1))*(alpha*MIN($A3,E$1)-0.5*EXP(-alpha*MAX($A3,E$1))*(EXP(alpha*MIN($A3,E$1))-EXP(-alpha*MIN($A3,E$1))))*LOOKUP(E$1,'Calculated rates'!$B$4:$B$103,'Calculated rates'!$F$4:$F$104),"") -> 0.0002178907037 | F3: =IF(AND($A3<>"",F$1<>""),EXP(-UFRC*($A3+F$1))*(alpha*MIN($A3,F$1)-0.5*EXP(-alpha*MAX($A3,F$1))*(EXP(alpha*MIN($A3,F$1))-EXP(-alpha*MIN($A3,F$1))))*LOOKUP(F$1,'Calculated rates'!$B$4:$B$103,'Calculated rates'!$F$4:$F$104),"") -> 0.001720912015 | G3: =IF(AND($A3<>"",G$1<>""),EXP(-UFRC*($A3+G$1))*(alpha*MIN($A3,G$1)-0.5*EXP(-alpha*MAX($A3,G$1))*(EXP(alpha*MIN($A3,G$1))-EXP(-alpha*MIN($A3,G$1))))*LOOKUP(G$1,'Calculated rates'!$B$4:$B$103,'Calculated rates'!$F$4:$F$104),"") -> 0.01246690696 | H3: =IF(AND($A3<>"",H$1<>""),EXP(-UFRC*($A3+H$1))*(alpha*MIN($A3,H$1)-0.5*EXP(-alpha*MAX($A3,H$1))*(EXP(alpha*MIN($A3,H$1))-EXP(-alpha*MIN($A3,H$1))))*LOOKUP(H$1,'Calculated rates'!$B$4:$B$103,'Calculated rates'!$F$4:$F$104),"") -> -0.03081774345 | I3: =IF(AND($A3<>"",I$1<>""),EXP(-UFRC*($A3+I$1))*(alpha*MIN($A3,I$1)-0.5*EXP(-alpha*MAX($A3,I$1))*(EXP(alpha*MIN($A3,I$1))-EXP(-alpha*MIN($A3,I$1))))*LOOKUP(I$1,'Calculated rates'!$B$4:$B$103,'Calculated rates'!$F$4:$F$104),"") -> 0.1447649649 | J3: =IF(AND($A3<>"",J$1<>""),EXP(-UFRC*($A3+J$1))*(alpha*MIN($A3,J$1)-0.5*EXP(-alpha*MAX($A3,J$1))*(EXP(alpha*MIN($A3,J$1))-EXP(-alpha*MIN($A3,J$1))))*LOOKUP(J$1,'Calculated rates'!$B$4:$B$103,'Calculated rates'!$F$4:$F$104),"") -> -0.1883280764 | K3: =IF(AND($A3<>"",K$1<>""),EXP(-UFRC*($A3+K$1))*(alpha*MIN($A3,K$1)-0.5*EXP(-alpha*MAX($A3,K$1))*(EXP(alpha*MIN($A3,K$1))-EXP(-alpha*MIN($A3,K$1))))*LOOKUP(K$1,'Calculated rates'!$B$4:$B$103,'Calculated rates'!$F$4:$F$104),"") -> 0.007619979947 | L3: =IF(AND($A3<>"",L$1<>""),EXP(-UFRC*($A3+L$1))*(alpha*MIN($A3,L$1)-0.5*EXP(-alpha*MAX($A3,L$1))*(EXP(alpha*MIN($A3,L$1))-EXP(-alpha*MIN($A3,L$1))))*LOOKUP(L$1,'Calculated rates'!$B$4:$B$103,'Calculated rates'!$F$4:$F$104),"") -> 0.2296164707 | M3: =IF(AND($A3<>"",M$1<>""),EXP(-UFRC*($A3+M$1))*(alpha*MIN($A3,M$1)-0.5*EXP(-alpha*MAX($A3,M$1))*(EXP(alpha*MIN($A3,M$1))-EXP(-alpha*MIN($A3,M$1))))*LOOKUP(M$1,'Calculated rates'!$B$4:$B$103,'Calculated rates'!$F$4:$F$104),"") -> -0.2849385827 | N3: =IF(AND($A3<>"",N$1<>""),EXP(-UFRC*($A3+N$1))*(alpha*MIN($A3,N$1)-0.5*EXP(-alpha*MAX($A3,N$1))*(EXP(alpha*MIN($A3,N$1))-EXP(-alpha*MIN($A3,N$1))))*LOOKUP(N$1,'Calculated rates'!$B$4:$B$103,'Calculated rates'!$F$4:$F$104),"") -> 0.1477045411 | O3: =IF(AND($A3<>"",O$1<>""),EXP(-UFRC*($A3+O$1))*(alpha*MIN($A3,O$1)-0.5*EXP(-alpha*MAX($A3,O$1))*(EXP(alpha*MIN($A3,O$1))-EXP(-alpha*MIN($A3,O$1))))*LOOKUP(O$1,'Calculated rates'!$B$4:$B$103,'Calculated rates'!$F$4:$F$104),"") -> -0.02682280771 | P3: =IF(AND($A3<>"",P$1<>""),EXP(-UFRC*($A3+P$1))*(alpha*MIN($A3,P$1)-0.5*EXP(-alpha*MAX($A3,P$1))*(EXP(alpha*MIN($A3,P$1))-EXP(-alpha*MIN($A3,P$1))))*LOOKUP(P$1,'Calculated rates'!$B$4:$B$103,'Calculated rates'!$F$4:$F$104),"") -> -0.03397383825 | Q3: =IF(AND($A3<>"",Q$1<>""),EXP(-UFRC*($A3+Q$1))*(alpha*MIN($A3,Q$1)-0.5*EXP(-alpha*MAX($A3,Q$1))*(EXP(alpha*MIN($A3,Q$1))-EXP(-alpha*MIN($A3,Q$1))))*LOOKUP(Q$1,'Calculated rates'!$B$4:$B$103,'Calculated rates'!$F$4:$F$104),"") -> 0.1705517832 | R3: =IF(AND($A3<>"",R$1<>""),EXP(-UFRC*($A3+R$1))*(alpha*MIN($A3,R$1)-0.5*EXP(-alpha*MAX($A3,R$1))*(EXP(alpha*MIN($A3,R$1))-EXP(-alpha*MIN($A3,R$1))))*LOOKUP(R$1,'Calculated rates'!$B$4:$B$103,'Calculated rates'!$F$4:$F$104),"") -> -0.2700314446 | S3: =IF(AND($A3<>"",S$1<>""),EXP(-UFRC*($A3+S$1))*(alpha*MIN($A3,S$1)-0.5*EXP(-alpha*MAX($A3,S$1))*(EXP(alpha*MIN($A3,S$1))-EXP(-alpha*MIN($A3,S$1))))*LOOKUP(S$1,'Calculated rates'!$B$4:$B$103,'Calculated rates'!$F$4:$F$104),"") -> 0.1579767312 | T3: =IF(AND($A3<>"",T$1<>""),EXP(-UFRC*($A3+T$1))*(alpha*MIN($A3,T$1)-0.5*EXP(-alpha*MAX($A3,T$1))*(EXP(alpha*MIN($A3,T$1))-EXP(-alpha*MIN($A3,T$1))))*LOOKUP(T$1,'Calculated rates'!$B$4:$B$103,'Calculated rates'!$F$4:$F$104),"") -> -0.04865731768 | U3: =IF(AND($A3<>"",U$1<>""),EXP(-UFRC*($A3+U$1))*(alpha*MIN($A3,U$1)-0.5*EXP(-alpha*MAX($A3,U$1))*(EXP(alpha*MIN($A3,U$1))-EXP(-alpha*MIN($A3,U$1))))*LOOKUP(U$1,'Calculated rates'!$B$4:$B$103,'Calculated rates'!$F$4:$F$104),"") -> 0.03456201713 | V3: =IF(AND($A3<>"",V$1<>""),EXP(-UFRC*($A3+V$1))*(alpha*MIN($A3,V$1)-0.5*EXP(-alpha*MAX($A3,V$1))*(EXP(alpha*MIN($A3,V$1))-EXP(-alpha*MIN($A3,V$1))))*LOOKUP(V$1,'Calculated rates'!$B$4:$B$103,'Calculated rates'!$F$4:$F$104),"") -> -0.09473746696 | W3: =IF(AND($A3<>"",W$1<>""),EXP(-UFRC*($A3+W$1))*(alpha*MIN($A3,W$1)-0.5*EXP(-alpha*MAX($A3,W$1))*(EXP(alpha*MIN($A3,W$1))-EXP(-alpha*MIN($A3,W$1))))*LOOKUP(W$1,'Calculated rates'!$B$4:$B$103,'Calculated rates'!$F$4:$F$104),"") -> 0.09767045353 | X3: =IF(AND($A3<>"",X$1<>""),EXP(-UFRC*($A3+X$1))*(alpha*MIN($A3,X$1)-0.5*EXP(-alpha*MAX($A3,X$1))*(EXP(alpha*MIN($A3,X$1))-EXP(-alpha*MIN($A3,X$1))))*LOOKUP(X$1,'Calculated rates'!$B$4:$B$103,'Calculated rates'!$F$4:$F$104),"") ->  | Y3: =IF(AND($A3<>"",Y$1<>""),EXP(-UFRC*($A3+Y$1))*(alpha*MIN($A3,Y$1)-0.5*EXP(-alpha*MAX($A3,Y$1))*(EXP(alpha*MIN($A3,Y$1))-EXP(-alpha*MIN($A3,Y$1))))*LOOKUP(Y$1,'Calculated rates'!$B$4:$B$103,'Calculated rates'!$F$4:$F$104),"") ->  | Z3: =IF(AND($A3<>"",Z$1<>""),EXP(-UFRC*($A3+Z$1))*(alpha*MIN($A3,Z$1)-0.5*EXP(-alpha*MAX($A3,Z$1))*(EXP(alpha*MIN($A3,Z$1))-EXP(-alpha*MIN($A3,Z$1))))*LOOKUP(Z$1,'Calculated rates'!$B$4:$B$103,'Calculated rates'!$F$4:$F$104),"") ->  | AA3: =IF(AND($A3<>"",AA$1<>""),EXP(-UFRC*($A3+AA$1))*(alpha*MIN($A3,AA$1)-0.5*EXP(-alpha*MAX($A3,AA$1))*(EXP(alpha*MIN($A3,AA$1))-EXP(-alpha*MIN($A3,AA$1))))*LOOKUP(AA$1,'Calculated rates'!$B$4:$B$103,'Calculated rates'!$F$4:$F$104),"") ->  | AB3: =IF(AND($A3<>"",AB$1<>""),EXP(-UFRC*($A3+AB$1))*(alpha*MIN($A3,AB$1)-0.5*EXP(-alpha*MAX($A3,AB$1))*(EXP(alpha*MIN($A3,AB$1))-EXP(-alpha*MIN($A3,AB$1))))*LOOKUP(AB$1,'Calculated rates'!$B$4:$B$103,'Calculated rates'!$F$4:$F$104),"") ->  | AC3: =IF(AND($A3<>"",AC$1<>""),EXP(-UFRC*($A3+AC$1))*(alpha*MIN($A3,AC$1)-0.5*EXP(-alpha*MAX($A3,AC$1))*(EXP(alpha*MIN($A3,AC$1))-EXP(-alpha*MIN($A3,AC$1))))*LOOKUP(AC$1,'Calculated rates'!$B$4:$B$103,'Calculated rates'!$F$4:$F$104),"") ->  | AD3: =IF(AND($A3<>"",AD$1<>""),EXP(-UFRC*($A3+AD$1))*(alpha*MIN($A3,AD$1)-0.5*EXP(-alpha*MAX($A3,AD$1))*(EXP(alpha*MIN($A3,AD$1))-EXP(-alpha*MIN($A3,AD$1))))*LOOKUP(AD$1,'Calculated rates'!$B$4:$B$103,'Calculated rates'!$F$4:$F$104),"") ->  | AE3: =IF(AND($A3<>"",AE$1<>""),EXP(-UFRC*($A3+AE$1))*(alpha*MIN($A3,AE$1)-0.5*EXP(-alpha*MAX($A3,AE$1))*(EXP(alpha*MIN($A3,AE$1))-EXP(-alpha*MIN($A3,AE$1))))*LOOKUP(AE$1,'Calculated rates'!$B$4:$B$103,'Calculated rates'!$F$4:$F$104),"") ->  | AF3: =IF(AND($A3<>"",AF$1<>""),EXP(-UFRC*($A3+AF$1))*(alpha*MIN($A3,AF$1)-0.5*EXP(-alpha*MAX($A3,AF$1))*(EXP(alpha*MIN($A3,AF$1))-EXP(-alpha*MIN($A3,AF$1))))*LOOKUP(AF$1,'Calculated rates'!$B$4:$B$103,'Calculated rates'!$F$4:$F$104),"") ->  | AG3: =IF(AND($A3<>"",AG$1<>""),EXP(-UFRC*($A3+AG$1))*(alpha*MIN($A3,AG$1)-0.5*EXP(-alpha*MAX($A3,AG$1))*(EXP(alpha*MIN($A3,AG$1))-EXP(-alpha*MIN($A3,AG$1))))*LOOKUP(AG$1,'Calculated rates'!$B$4:$B$103,'Calculated rates'!$F$4:$F$104),"") ->  | AH3: =IF(AND($A3<>"",AH$1<>""),EXP(-UFRC*($A3+AH$1))*(alpha*MIN($A3,AH$1)-0.5*EXP(-alpha*MAX($A3,AH$1))*(EXP(alpha*MIN($A3,AH$1))-EXP(-alpha*MIN($A3,AH$1))))*LOOKUP(AH$1,'Calculated rates'!$B$4:$B$103,'Calculated rates'!$F$4:$F$104),"") ->  | AI3: =IF(AND($A3<>"",AI$1<>""),EXP(-UFRC*($A3+AI$1))*(alpha*MIN($A3,AI$1)-0.5*EXP(-alpha*MAX($A3,AI$1))*(EXP(alpha*MIN($A3,AI$1))-EXP(-alpha*MIN($A3,AI$1))))*LOOKUP(AI$1,'Calculated rates'!$B$4:$B$103,'Calculated rates'!$F$4:$F$104),"") ->  | AJ3: =IF(AND($A3<>"",AJ$1<>""),EXP(-UFRC*($A3+AJ$1))*(alpha*MIN($A3,AJ$1)-0.5*EXP(-alpha*MAX($A3,AJ$1))*(EXP(alpha*MIN($A3,AJ$1))-EXP(-alpha*MIN($A3,AJ$1))))*LOOKUP(AJ$1,'Calculated rates'!$B$4:$B$103,'Calculated rates'!$F$4:$F$104),"") ->  | AK3: =IF(AND($A3<>"",AK$1<>""),EXP(-UFRC*($A3+AK$1))*(alpha*MIN($A3,AK$1)-0.5*EXP(-alpha*MAX($A3,AK$1))*(EXP(alpha*MIN($A3,AK$1))-EXP(-alpha*MIN($A3,AK$1))))*LOOKUP(AK$1,'Calculated rates'!$B$4:$B$103,'Calculated rates'!$F$4:$F$104),"") ->  | AL3: =IF(AND($A3<>"",AL$1<>""),EXP(-UFRC*($A3+AL$1))*(alpha*MIN($A3,AL$1)-0.5*EXP(-alpha*MAX($A3,AL$1))*(EXP(alpha*MIN($A3,AL$1))-EXP(-alpha*MIN($A3,AL$1))))*LOOKUP(AL$1,'Calculated rates'!$B$4:$B$103,'Calculated rates'!$F$4:$F$104),"") ->  | AM3: =IF(AND($A3<>"",AM$1<>""),EXP(-UFRC*($A3+AM$1))*(alpha*MIN($A3,AM$1)-0.5*EXP(-alpha*MAX($A3,AM$1))*(EXP(alpha*MIN($A3,AM$1))-EXP(-alpha*MIN($A3,AM$1))))*LOOKUP(AM$1,'Calculated rates'!$B$4:$B$103,'Calculated rates'!$F$4:$F$104),"") ->  | AN3: =IF(AND($A3<>"",AN$1<>""),EXP(-UFRC*($A3+AN$1))*(alpha*MIN($A3,AN$1)-0.5*EXP(-alpha*MAX($A3,AN$1))*(EXP(alpha*MIN($A3,AN$1))-EXP(-alpha*MIN($A3,AN$1))))*LOOKUP(AN$1,'Calculated rates'!$B$4:$B$103,'Calculated rates'!$F$4:$F$104),"") ->  | AO3: =IF(AND($A3<>"",AO$1<>""),EXP(-UFRC*($A3+AO$1))*(alpha*MIN($A3,AO$1)-0.5*EXP(-alpha*MAX($A3,AO$1))*(EXP(alpha*MIN($A3,AO$1))-EXP(-alpha*MIN($A3,AO$1))))*LOOKUP(AO$1,'Calculated rates'!$B$4:$B$103,'Calculated rates'!$F$4:$F$104),"") ->  | AP3: =IF(AND($A3<>"",AP$1<>""),EXP(-UFRC*($A3+AP$1))*(alpha*MIN($A3,AP$1)-0.5*EXP(-alpha*MAX($A3,AP$1))*(EXP(alpha*MIN($A3,AP$1))-EXP(-alpha*MIN($A3,AP$1))))*LOOKUP(AP$1,'Calculated rates'!$B$4:$B$103,'Calculated rates'!$F$4:$F$104),"") ->  | AQ3: =IF(AND($A3<>"",AQ$1<>""),EXP(-UFRC*($A3+AQ$1))*(alpha*MIN($A3,AQ$1)-0.5*EXP(-alpha*MAX($A3,AQ$1))*(EXP(alpha*MIN($A3,AQ$1))-EXP(-alpha*MIN($A3,AQ$1))))*LOOKUP(AQ$1,'Calculated rates'!$B$4:$B$103,'Calculated rates'!$F$4:$F$104),"") ->  | AR3: =IF(AND($A3<>"",AR$1<>""),EXP(-UFRC*($A3+AR$1))*(alpha*MIN($A3,AR$1)-0.5*EXP(-alpha*MAX($A3,AR$1))*(EXP(alpha*MIN($A3,AR$1))-EXP(-alpha*MIN($A3,AR$1))))*LOOKUP(AR$1,'Calculated rates'!$B$4:$B$103,'Calculated rates'!$F$4:$F$104),"") ->  | AS3: =IF(AND($A3<>"",AS$1<>""),EXP(-UFRC*($A3+AS$1))*(alpha*MIN($A3,AS$1)-0.5*EXP(-alpha*MAX($A3,AS$1))*(EXP(alpha*MIN($A3,AS$1))-EXP(-alpha*MIN($A3,AS$1))))*LOOKUP(AS$1,'Calculated rates'!$B$4:$B$103,'Calculated rates'!$F$4:$F$104),"") ->  | AT3: =IF(AND($A3<>"",AT$1<>""),EXP(-UFRC*($A3+AT$1))*(alpha*MIN($A3,AT$1)-0.5*EXP(-alpha*MAX($A3,AT$1))*(EXP(alpha*MIN($A3,AT$1))-EXP(-alpha*MIN($A3,AT$1))))*LOOKUP(AT$1,'Calculated rates'!$B$4:$B$103,'Calculated rates'!$F$4:$F$104),"") ->  | AU3: =IF(AND($A3<>"",AU$1<>""),EXP(-UFRC*($A3+AU$1))*(alpha*MIN($A3,AU$1)-0.5*EXP(-alpha*MAX($A3,AU$1))*(EXP(alpha*MIN($A3,AU$1))-EXP(-alpha*MIN($A3,AU$1))))*LOOKUP(AU$1,'Calculated rates'!$B$4:$B$103,'Calculated rates'!$F$4:$F$104),"") ->  | AV3: =IF(AND($A3<>"",AV$1<>""),EXP(-UFRC*($A3+AV$1))*(alpha*MIN($A3,AV$1)-0.5*EXP(-alpha*MAX($A3,AV$1))*(EXP(alpha*MIN($A3,AV$1))-EXP(-alpha*MIN($A3,AV$1))))*LOOKUP(AV$1,'Calculated rates'!$B$4:$B$103,'Calculated rates'!$F$4:$F$104),"") ->  | AW3: =IF(AND($A3<>"",AW$1<>""),EXP(-UFRC*($A3+AW$1))*(alpha*MIN($A3,AW$1)-0.5*EXP(-alpha*MAX($A3,AW$1))*(EXP(alpha*MIN($A3,AW$1))-EXP(-alpha*MIN($A3,AW$1))))*LOOKUP(AW$1,'Calculated rates'!$B$4:$B$103,'Calculated rates'!$F$4:$F$104),"") ->  | AX3: =IF(AND($A3<>"",AX$1<>""),EXP(-UFRC*($A3+AX$1))*(alpha*MIN($A3,AX$1)-0.5*EXP(-alpha*MAX($A3,AX$1))*(EXP(alpha*MIN($A3,AX$1))-EXP(-alpha*MIN($A3,AX$1))))*LOOKUP(AX$1,'Calculated rates'!$B$4:$B$103,'Calculated rates'!$F$4:$F$104),"") ->  | AY3: =IF(AND($A3<>"",AY$1<>""),EXP(-UFRC*($A3+AY$1))*(alpha*MIN($A3,AY$1)-0.5*EXP(-alpha*MAX($A3,AY$1))*(EXP(alpha*MIN($A3,AY$1))-EXP(-alpha*MIN($A3,AY$1))))*LOOKUP(AY$1,'Calculated rates'!$B$4:$B$103,'Calculated rates'!$F$4:$F$104),"") ->  | AZ3: =IF(AND($A3<>"",AZ$1<>""),EXP(-UFRC*($A3+AZ$1))*(alpha*MIN($A3,AZ$1)-0.5*EXP(-alpha*MAX($A3,AZ$1))*(EXP(alpha*MIN($A3,AZ$1))-EXP(-alpha*MIN($A3,AZ$1))))*LOOKUP(AZ$1,'Calculated rates'!$B$4:$B$103,'Calculated rates'!$F$4:$F$104),"") ->  | BA3: =IF(AND($A3<>"",BA$1<>""),EXP(-UFRC*($A3+BA$1))*(alpha*MIN($A3,BA$1)-0.5*EXP(-alpha*MAX($A3,BA$1))*(EXP(alpha*MIN($A3,BA$1))-EXP(-alpha*MIN($A3,BA$1))))*LOOKUP(BA$1,'Calculated rates'!$B$4:$B$103,'Calculated rates'!$F$4:$F$104),"") ->  | BB3: =IF(AND($A3<>"",BB$1<>""),EXP(-UFRC*($A3+BB$1))*(alpha*MIN($A3,BB$1)-0.5*EXP(-alpha*MAX($A3,BB$1))*(EXP(alpha*MIN($A3,BB$1))-EXP(-alpha*MIN($A3,BB$1))))*LOOKUP(BB$1,'Calculated rates'!$B$4:$B$103,'Calculated rates'!$F$4:$F$104),"") ->  | BC3: =IF(AND($A3<>"",BC$1<>""),EXP(-UFRC*($A3+BC$1))*(alpha*MIN($A3,BC$1)-0.5*EXP(-alpha*MAX($A3,BC$1))*(EXP(alpha*MIN($A3,BC$1))-EXP(-alpha*MIN($A3,BC$1))))*LOOKUP(BC$1,'Calculated rates'!$B$4:$B$103,'Calculated rates'!$F$4:$F$104),"") ->  | BD3: =IF(AND($A3<>"",BD$1<>""),EXP(-UFRC*($A3+BD$1))*(alpha*MIN($A3,BD$1)-0.5*EXP(-alpha*MAX($A3,BD$1))*(EXP(alpha*MIN($A3,BD$1))-EXP(-alpha*MIN($A3,BD$1))))*LOOKUP(BD$1,'Calculated rates'!$B$4:$B$103,'Calculated rates'!$F$4:$F$104),"") ->  | BE3: =IF(AND($A3<>"",BE$1<>""),EXP(-UFRC*($A3+BE$1))*(alpha*MIN($A3,BE$1)-0.5*EXP(-alpha*MAX($A3,BE$1))*(EXP(alpha*MIN($A3,BE$1))-EXP(-alpha*MIN($A3,BE$1))))*LOOKUP(BE$1,'Calculated rates'!$B$4:$B$103,'Calculated rates'!$F$4:$F$104),"") ->  | BF3: =IF(AND($A3<>"",BF$1<>""),EXP(-UFRC*($A3+BF$1))*(alpha*MIN($A3,BF$1)-0.5*EXP(-alpha*MAX($A3,BF$1))*(EXP(alpha*MIN($A3,BF$1))-EXP(-alpha*MIN($A3,BF$1))))*LOOKUP(BF$1,'Calculated rates'!$B$4:$B$103,'Calculated rates'!$F$4:$F$104),"") ->  | BG3: =IF(AND($A3<>"",BG$1<>""),EXP(-UFRC*($A3+BG$1))*(alpha*MIN($A3,BG$1)-0.5*EXP(-alpha*MAX($A3,BG$1))*(EXP(alpha*MIN($A3,BG$1))-EXP(-alpha*MIN($A3,BG$1))))*LOOKUP(BG$1,'Calculated rates'!$B$4:$B$103,'Calculated rates'!$F$4:$F$104),"") ->  | BH3: =IF(AND($A3<>"",BH$1<>""),EXP(-UFRC*($A3+BH$1))*(alpha*MIN($A3,BH$1)-0.5*EXP(-alpha*MAX($A3,BH$1))*(EXP(alpha*MIN($A3,BH$1))-EXP(-alpha*MIN($A3,BH$1))))*LOOKUP(BH$1,'Calculated rates'!$B$4:$B$103,'Calculated rates'!$F$4:$F$104),"") ->  | BI3: =IF(AND($A3<>"",BI$1<>""),EXP(-UFRC*($A3+BI$1))*(alpha*MIN($A3,BI$1)-0.5*EXP(-alpha*MAX($A3,BI$1))*(EXP(alpha*MIN($A3,BI$1))-EXP(-alpha*MIN($A3,BI$1))))*LOOKUP(BI$1,'Calculated rates'!$B$4:$B$103,'Calculated rates'!$F$4:$F$104),"") ->  | BJ3: =IF(AND($A3<>"",BJ$1<>""),EXP(-UFRC*($A3+BJ$1))*(alpha*MIN($A3,BJ$1)-0.5*EXP(-alpha*MAX($A3,BJ$1))*(EXP(alpha*MIN($A3,BJ$1))-EXP(-alpha*MIN($A3,BJ$1))))*LOOKUP(BJ$1,'Calculated rates'!$B$4:$B$103,'Calculated rates'!$F$4:$F$104),"") ->  | BK3: =IF(AND($A3<>"",BK$1<>""),EXP(-UFRC*($A3+BK$1))*(alpha*MIN($A3,BK$1)-0.5*EXP(-alpha*MAX($A3,BK$1))*(EXP(alpha*MIN($A3,BK$1))-EXP(-alpha*MIN($A3,BK$1))))*LOOKUP(BK$1,'Calculated rates'!$B$4:$B$103,'Calculated rates'!$F$4:$F$104),"") ->  | BL3: =IF(AND($A3<>"",BL$1<>""),EXP(-UFRC*($A3+BL$1))*(alpha*MIN($A3,BL$1)-0.5*EXP(-alpha*MAX($A3,BL$1))*(EXP(alpha*MIN($A3,BL$1))-EXP(-alpha*MIN($A3,BL$1))))*LOOKUP(BL$1,'Calculated rates'!$B$4:$B$103,'Calculated rates'!$F$4:$F$104),"") ->  | BM3: =IF(AND($A3<>"",BM$1<>""),EXP(-UFRC*($A3+BM$1))*(alpha*MIN($A3,BM$1)-0.5*EXP(-alpha*MAX($A3,BM$1))*(EXP(alpha*MIN($A3,BM$1))-EXP(-alpha*MIN($A3,BM$1))))*LOOKUP(BM$1,'Calculated rates'!$B$4:$B$103,'Calculated rates'!$F$4:$F$104),"") ->  | BN3: =IF(AND($A3<>"",BN$1<>""),EXP(-UFRC*($A3+BN$1))*(alpha*MIN($A3,BN$1)-0.5*EXP(-alpha*MAX($A3,BN$1))*(EXP(alpha*MIN($A3,BN$1))-EXP(-alpha*MIN($A3,BN$1))))*LOOKUP(BN$1,'Calculated rates'!$B$4:$B$103,'Calculated rates'!$F$4:$F$104),"") ->  | BO3: =IF(AND($A3<>"",BO$1<>""),EXP(-UFRC*($A3+BO$1))*(alpha*MIN($A3,BO$1)-0.5*EXP(-alpha*MAX($A3,BO$1))*(EXP(alpha*MIN($A3,BO$1))-EXP(-alpha*MIN($A3,BO$1))))*LOOKUP(BO$1,'Calculated rates'!$B$4:$B$103,'Calculated rates'!$F$4:$F$104),"") ->  | BP3: =IF(AND($A3<>"",BP$1<>""),EXP(-UFRC*($A3+BP$1))*(alpha*MIN($A3,BP$1)-0.5*EXP(-alpha*MAX($A3,BP$1))*(EXP(alpha*MIN($A3,BP$1))-EXP(-alpha*MIN($A3,BP$1))))*LOOKUP(BP$1,'Calculated rates'!$B$4:$B$103,'Calculated rates'!$F$4:$F$104),"") ->  | BQ3: =IF(AND($A3<>"",BQ$1<>""),EXP(-UFRC*($A3+BQ$1))*(alpha*MIN($A3,BQ$1)-0.5*EXP(-alpha*MAX($A3,BQ$1))*(EXP(alpha*MIN($A3,BQ$1))-EXP(-alpha*MIN($A3,BQ$1))))*LOOKUP(BQ$1,'Calculated rates'!$B$4:$B$103,'Calculated rates'!$F$4:$F$104),"") ->  | BR3: =IF(AND($A3<>"",BR$1<>""),EXP(-UFRC*($A3+BR$1))*(alpha*MIN($A3,BR$1)-0.5*EXP(-alpha*MAX($A3,BR$1))*(EXP(alpha*MIN($A3,BR$1))-EXP(-alpha*MIN($A3,BR$1))))*LOOKUP(BR$1,'Calculated rates'!$B$4:$B$103,'Calculated rates'!$F$4:$F$104),"") ->  | BS3: =IF(AND($A3<>"",BS$1<>""),EXP(-UFRC*($A3+BS$1))*(alpha*MIN($A3,BS$1)-0.5*EXP(-alpha*MAX($A3,BS$1))*(EXP(alpha*MIN($A3,BS$1))-EXP(-alpha*MIN($A3,BS$1))))*LOOKUP(BS$1,'Calculated rates'!$B$4:$B$103,'Calculated rates'!$F$4:$F$104),"") ->  | BT3: =IF(AND($A3<>"",BT$1<>""),EXP(-UFRC*($A3+BT$1))*(alpha*MIN($A3,BT$1)-0.5*EXP(-alpha*MAX($A3,BT$1))*(EXP(alpha*MIN($A3,BT$1))-EXP(-alpha*MIN($A3,BT$1))))*LOOKUP(BT$1,'Calculated rates'!$B$4:$B$103,'Calculated rates'!$F$4:$F$104),"") ->  | BU3: =IF(AND($A3<>"",BU$1<>""),EXP(-UFRC*($A3+BU$1))*(alpha*MIN($A3,BU$1)-0.5*EXP(-alpha*MAX($A3,BU$1))*(EXP(alpha*MIN($A3,BU$1))-EXP(-alpha*MIN($A3,BU$1))))*LOOKUP(BU$1,'Calculated rates'!$B$4:$B$103,'Calculated rates'!$F$4:$F$104),"") ->  | BV3: =IF(AND($A3<>"",BV$1<>""),EXP(-UFRC*($A3+BV$1))*(alpha*MIN($A3,BV$1)-0.5*EXP(-alpha*MAX($A3,BV$1))*(EXP(alpha*MIN($A3,BV$1))-EXP(-alpha*MIN($A3,BV$1))))*LOOKUP(BV$1,'Calculated rates'!$B$4:$B$103,'Calculated rates'!$F$4:$F$104),"") ->  | BW3: =IF(AND($A3<>"",BW$1<>""),EXP(-UFRC*($A3+BW$1))*(alpha*MIN($A3,BW$1)-0.5*EXP(-alpha*MAX($A3,BW$1))*(EXP(alpha*MIN($A3,BW$1))-EXP(-alpha*MIN($A3,BW$1))))*LOOKUP(BW$1,'Calculated rates'!$B$4:$B$103,'Calculated rates'!$F$4:$F$104),"") ->  | BX3: =IF(AND($A3<>"",BX$1<>""),EXP(-UFRC*($A3+BX$1))*(alpha*MIN($A3,BX$1)-0.5*EXP(-alpha*MAX($A3,BX$1))*(EXP(alpha*MIN($A3,BX$1))-EXP(-alpha*MIN($A3,BX$1))))*LOOKUP(BX$1,'Calculated rates'!$B$4:$B$103,'Calculated rates'!$F$4:$F$104),"") ->  | BY3: =IF(AND($A3<>"",BY$1<>""),EXP(-UFRC*($A3+BY$1))*(alpha*MIN($A3,BY$1)-0.5*EXP(-alpha*MAX($A3,BY$1))*(EXP(alpha*MIN($A3,BY$1))-EXP(-alpha*MIN($A3,BY$1))))*LOOKUP(BY$1,'Calculated rates'!$B$4:$B$103,'Calculated rates'!$F$4:$F$104),"") ->  | BZ3: =IF(AND($A3<>"",BZ$1<>""),EXP(-UFRC*($A3+BZ$1))*(alpha*MIN($A3,BZ$1)-0.5*EXP(-alpha*MAX($A3,BZ$1))*(EXP(alpha*MIN($A3,BZ$1))-EXP(-alpha*MIN($A3,BZ$1))))*LOOKUP(BZ$1,'Calculated rates'!$B$4:$B$103,'Calculated rates'!$F$4:$F$104),"") ->  | CA3: =IF(AND($A3<>"",CA$1<>""),EXP(-UFRC*($A3+CA$1))*(alpha*MIN($A3,CA$1)-0.5*EXP(-alpha*MAX($A3,CA$1))*(EXP(alpha*MIN($A3,CA$1))-EXP(-alpha*MIN($A3,CA$1))))*LOOKUP(CA$1,'Calculated rates'!$B$4:$B$103,'Calculated rates'!$F$4:$F$104),"") ->  | CB3: =IF(AND($A3<>"",CB$1<>""),EXP(-UFRC*($A3+CB$1))*(alpha*MIN($A3,CB$1)-0.5*EXP(-alpha*MAX($A3,CB$1))*(EXP(alpha*MIN($A3,CB$1))-EXP(-alpha*MIN($A3,CB$1))))*LOOKUP(CB$1,'Calculated rates'!$B$4:$B$103,'Calculated rates'!$F$4:$F$104),"") ->  | CC3: =IF(AND($A3<>"",CC$1<>""),EXP(-UFRC*($A3+CC$1))*(alpha*MIN($A3,CC$1)-0.5*EXP(-alpha*MAX($A3,CC$1))*(EXP(alpha*MIN($A3,CC$1))-EXP(-alpha*MIN($A3,CC$1))))*LOOKUP(CC$1,'Calculated rates'!$B$4:$B$103,'Calculated rates'!$F$4:$F$104),"") ->  | CD3: =IF(AND($A3<>"",CD$1<>""),EXP(-UFRC*($A3+CD$1))*(alpha*MIN($A3,CD$1)-0.5*EXP(-alpha*MAX($A3,CD$1))*(EXP(alpha*MIN($A3,CD$1))-EXP(-alpha*MIN($A3,CD$1))))*LOOKUP(CD$1,'Calculated rates'!$B$4:$B$103,'Calculated rates'!$F$4:$F$104),"") ->  | CE3: =IF(AND($A3<>"",CE$1<>""),EXP(-UFRC*($A3+CE$1))*(alpha*MIN($A3,CE$1)-0.5*EXP(-alpha*MAX($A3,CE$1))*(EXP(alpha*MIN($A3,CE$1))-EXP(-alpha*MIN($A3,CE$1))))*LOOKUP(CE$1,'Calculated rates'!$B$4:$B$103,'Calculated rates'!$F$4:$F$104),"") ->  | CF3: =IF(AND($A3<>"",CF$1<>""),EXP(-UFRC*($A3+CF$1))*(alpha*MIN($A3,CF$1)-0.5*EXP(-alpha*MAX($A3,CF$1))*(EXP(alpha*MIN($A3,CF$1))-EXP(-alpha*MIN($A3,CF$1))))*LOOKUP(CF$1,'Calculated rates'!$B$4:$B$103,'Calculated rates'!$F$4:$F$104),"") ->  | CG3: =IF(AND($A3<>"",CG$1<>""),EXP(-UFRC*($A3+CG$1))*(alpha*MIN($A3,CG$1)-0.5*EXP(-alpha*MAX($A3,CG$1))*(EXP(alpha*MIN($A3,CG$1))-EXP(-alpha*MIN($A3,CG$1))))*LOOKUP(CG$1,'Calculated rates'!$B$4:$B$103,'Calculated rates'!$F$4:$F$104),"") ->  | CH3: =IF(AND($A3<>"",CH$1<>""),EXP(-UFRC*($A3+CH$1))*(alpha*MIN($A3,CH$1)-0.5*EXP(-alpha*MAX($A3,CH$1))*(EXP(alpha*MIN($A3,CH$1))-EXP(-alpha*MIN($A3,CH$1))))*LOOKUP(CH$1,'Calculated rates'!$B$4:$B$103,'Calculated rates'!$F$4:$F$104),"") ->  | CI3: =IF(AND($A3<>"",CI$1<>""),EXP(-UFRC*($A3+CI$1))*(alpha*MIN($A3,CI$1)-0.5*EXP(-alpha*MAX($A3,CI$1))*(EXP(alpha*MIN($A3,CI$1))-EXP(-alpha*MIN($A3,CI$1))))*LOOKUP(CI$1,'Calculated rates'!$B$4:$B$103,'Calculated rates'!$F$4:$F$104),"") ->  | CJ3: =IF(AND($A3<>"",CJ$1<>""),EXP(-UFRC*($A3+CJ$1))*(alpha*MIN($A3,CJ$1)-0.5*EXP(-alpha*MAX($A3,CJ$1))*(EXP(alpha*MIN($A3,CJ$1))-EXP(-alpha*MIN($A3,CJ$1))))*LOOKUP(CJ$1,'Calculated rates'!$B$4:$B$103,'Calculated rates'!$F$4:$F$104),"") ->  | CK3: =IF(AND($A3<>"",CK$1<>""),EXP(-UFRC*($A3+CK$1))*(alpha*MIN($A3,CK$1)-0.5*EXP(-alpha*MAX($A3,CK$1))*(EXP(alpha*MIN($A3,CK$1))-EXP(-alpha*MIN($A3,CK$1))))*LOOKUP(CK$1,'Calculated rates'!$B$4:$B$103,'Calculated rates'!$F$4:$F$104),"") ->  | CL3: =IF(AND($A3<>"",CL$1<>""),EXP(-UFRC*($A3+CL$1))*(alpha*MIN($A3,CL$1)-0.5*EXP(-alpha*MAX($A3,CL$1))*(EXP(alpha*MIN($A3,CL$1))-EXP(-alpha*MIN($A3,CL$1))))*LOOKUP(CL$1,'Calculated rates'!$B$4:$B$103,'Calculated rates'!$F$4:$F$104),"") ->  | CM3: =IF(AND($A3<>"",CM$1<>""),EXP(-UFRC*($A3+CM$1))*(alpha*MIN($A3,CM$1)-0.5*EXP(-alpha*MAX($A3,CM$1))*(EXP(alpha*MIN($A3,CM$1))-EXP(-alpha*MIN($A3,CM$1))))*LOOKUP(CM$1,'Calculated rates'!$B$4:$B$103,'Calculated rates'!$F$4:$F$104),"") ->  | CN3: =IF(AND($A3<>"",CN$1<>""),EXP(-UFRC*($A3+CN$1))*(alpha*MIN($A3,CN$1)-0.5*EXP(-alpha*MAX($A3,CN$1))*(EXP(alpha*MIN($A3,CN$1))-EXP(-alpha*MIN($A3,CN$1))))*LOOKUP(CN$1,'Calculated rates'!$B$4:$B$103,'Calculated rates'!$F$4:$F$104),"") ->  | CO3: =IF(AND($A3<>"",CO$1<>""),EXP(-UFRC*($A3+CO$1))*(alpha*MIN($A3,CO$1)-0.5*EXP(-alpha*MAX($A3,CO$1))*(EXP(alpha*MIN($A3,CO$1))-EXP(-alpha*MIN($A3,CO$1))))*LOOKUP(CO$1,'Calculated rates'!$B$4:$B$103,'Calculated rates'!$F$4:$F$104),"") ->  | CP3: =IF(AND($A3<>"",CP$1<>""),EXP(-UFRC*($A3+CP$1))*(alpha*MIN($A3,CP$1)-0.5*EXP(-alpha*MAX($A3,CP$1))*(EXP(alpha*MIN($A3,CP$1))-EXP(-alpha*MIN($A3,CP$1))))*LOOKUP(CP$1,'Calculated rates'!$B$4:$B$103,'Calculated rates'!$F$4:$F$104),"") ->  | CQ3: =IF(AND($A3<>"",CQ$1<>""),EXP(-UFRC*($A3+CQ$1))*(alpha*MIN($A3,CQ$1)-0.5*EXP(-alpha*MAX($A3,CQ$1))*(EXP(alpha*MIN($A3,CQ$1))-EXP(-alpha*MIN($A3,CQ$1))))*LOOKUP(CQ$1,'Calculated rates'!$B$4:$B$103,'Calculated rates'!$F$4:$F$104),"") ->  | CR3: =IF(AND($A3<>"",CR$1<>""),EXP(-UFRC*($A3+CR$1))*(alpha*MIN($A3,CR$1)-0.5*EXP(-alpha*MAX($A3,CR$1))*(EXP(alpha*MIN($A3,CR$1))-EXP(-alpha*MIN($A3,CR$1))))*LOOKUP(CR$1,'Calculated rates'!$B$4:$B$103,'Calculated rates'!$F$4:$F$104),"") ->  | CS3: =IF(AND($A3<>"",CS$1<>""),EXP(-UFRC*($A3+CS$1))*(alpha*MIN($A3,CS$1)-0.5*EXP(-alpha*MAX($A3,CS$1))*(EXP(alpha*MIN($A3,CS$1))-EXP(-alpha*MIN($A3,CS$1))))*LOOKUP(CS$1,'Calculated rates'!$B$4:$B$103,'Calculated rates'!$F$4:$F$104),"") ->  | CT3: =IF(AND($A3<>"",CT$1<>""),EXP(-UFRC*($A3+CT$1))*(alpha*MIN($A3,CT$1)-0.5*EXP(-alpha*MAX($A3,CT$1))*(EXP(alpha*MIN($A3,CT$1))-EXP(-alpha*MIN($A3,CT$1))))*LOOKUP(CT$1,'Calculated rates'!$B$4:$B$103,'Calculated rates'!$F$4:$F$104),"") ->  | CU3: =IF(AND($A3<>"",CU$1<>""),EXP(-UFRC*($A3+CU$1))*(alpha*MIN($A3,CU$1)-0.5*EXP(-alpha*MAX($A3,CU$1))*(EXP(alpha*MIN($A3,CU$1))-EXP(-alpha*MIN($A3,CU$1))))*LOOKUP(CU$1,'Calculated rates'!$B$4:$B$103,'Calculated rates'!$F$4:$F$104),"") ->  | CV3: =IF(AND($A3<>"",CV$1<>""),EXP(-UFRC*($A3+CV$1))*(alpha*MIN($A3,CV$1)-0.5*EXP(-alpha*MAX($A3,CV$1))*(EXP(alpha*MIN($A3,CV$1))-EXP(-alpha*MIN($A3,CV$1))))*LOOKUP(CV$1,'Calculated rates'!$B$4:$B$103,'Calculated rates'!$F$4:$F$104),"") ->  | CW3: =IF(AND($A3<>"",CW$1<>""),EXP(-UFRC*($A3+CW$1))*(alpha*MIN($A3,CW$1)-0.5*EXP(-alpha*MAX($A3,CW$1))*(EXP(alpha*MIN($A3,CW$1))-EXP(-alpha*MIN($A3,CW$1))))*LOOKUP(CW$1,'Calculated rates'!$B$4:$B$103,'Calculated rates'!$F$4:$F$104),"") ->  | CX3: =IF(AND($A3<>"",CX$1<>""),EXP(-UFRC*($A3+CX$1))*(alpha*MIN($A3,CX$1)-0.5*EXP(-alpha*MAX($A3,CX$1))*(EXP(alpha*MIN($A3,CX$1))-EXP(-alpha*MIN($A3,CX$1))))*LOOKUP(CX$1,'Calculated rates'!$B$4:$B$103,'Calculated rates'!$F$4:$F$104),"") ->  | CY3: =IF(AND($A3<>"",CY$1<>""),EXP(-UFRC*($A3+CY$1))*(alpha*MIN($A3,CY$1)-0.5*EXP(-alpha*MAX($A3,CY$1))*(EXP(alpha*MIN($A3,CY$1))-EXP(-alpha*MIN($A3,CY$1))))*LOOKUP(CY$1,'Calculated rates'!$B$4:$B$103,'Calculated rates'!$F$4:$F$104),"") -> 
A4: ='Calculated rates'!J5 -> 2 | B4: =IF(C4<>0,1/A4*LN(1/C4),1) -> 0.006908829207 | C4: 0.9862773672 | D4: =IF(AND($A4<>"",D$1<>""),EXP(-UFRC*($A4+D$1))*(alpha*MIN($A4,D$1)-0.5*EXP(-alpha*MAX($A4,D$1))*(EXP(alpha*MIN($A4,D$1))-EXP(-alpha*MIN($A4,D$1))))*LOOKUP(D$1,'Calculated rates'!$B$4:$B$103,'Calculated rates'!$F$4:$F$104),"") -> 0.01501754755 | E4: =IF(AND($A4<>"",E$1<>""),EXP(-UFRC*($A4+E$1))*(alpha*MIN($A4,E$1)-0.5*EXP(-alpha*MAX($A4,E$1))*(EXP(alpha*MIN($A4,E$1))-EXP(-alpha*MIN($A4,E$1))))*LOOKUP(E$1,'Calculated rates'!$B$4:$B$103,'Calculated rates'!$F$4:$F$104),"") -> 0.0003880854891 | F4: =IF(AND($A4<>"",F$1<>""),EXP(-UFRC*($A4+F$1))*(alpha*MIN($A4,F$1)-0.5*EXP(-alpha*MAX($A4,F$1))*(EXP(alpha*MIN($A4,F$1))-EXP(-alpha*MIN($A4,F$1))))*LOOKUP(F$1,'Calculated rates'!$B$4:$B$103,'Calculated rates'!$F$4:$F$104),"") -> 0.00318074344 | G4: =IF(AND($A4<>"",G$1<>""),EXP(-UFRC*($A4+G$1))*(alpha*MIN($A4,G$1)-0.5*EXP(-alpha*MAX($A4,G$1))*(EXP(alpha*MIN($A4,G$1))-EXP(-alpha*MIN($A4,G$1))))*LOOKUP(G$1,'Calculated rates'!$B$4:$B$103,'Calculated rates'!$F$4:$F$104),"") -> 0.02342011834 | H4: =IF(AND($A4<>"",H$1<>""),EXP(-UFRC*($A4+H$1))*(alpha*MIN($A4,H$1)-0.5*EXP(-alpha*MAX($A4,H$1))*(EXP(alpha*MIN($A4,H$1))-EXP(-alpha*MIN($A4,H$1))))*LOOKUP(H$1,'Calculated rates'!$B$4:$B$103,'Calculated rates'!$F$4:$F$104),"") -> -0.05838955073 | I4: =IF(AND($A4<>"",I$1<>""),EXP(-UFRC*($A4+I$1))*(alpha*MIN($A4,I$1)-0.5*EXP(-alpha*MAX($A4,I$1))*(EXP(alpha*MIN($A4,I$1))-EXP(-alpha*MIN($A4,I$1))))*LOOKUP(I$1,'Calculated rates'!$B$4:$B$103,'Calculated rates'!$F$4:$F$104),"") -> 0.2756274579 | J4: =IF(AND($A4<>"",J$1<>""),EXP(-UFRC*($A4+J$1))*(alpha*MIN($A4,J$1)-0.5*EXP(-alpha*MAX($A4,J$1))*(EXP(alpha*MIN($A4,J$1))-EXP(-alpha*MIN($A4,J$1))))*LOOKUP(J$1,'Calculated rates'!$B$4:$B$103,'Calculated rates'!$F$4:$F$104),"") -> -0.3596298272 | K4: =IF(AND($A4<>"",K$1<>""),EXP(-UFRC*($A4+K$1))*(alpha*MIN($A4,K$1)-0.5*EXP(-alpha*MAX($A4,K$1))*(EXP(alpha*MIN($A4,K$1))-EXP(-alpha*MIN($A4,K$1))))*LOOKUP(K$1,'Calculated rates'!$B$4:$B$103,'Calculated rates'!$F$4:$F$104),"") -> 0.01457776953 | L4: =IF(AND($A4<>"",L$1<>""),EXP(-UFRC*($A4+L$1))*(alpha*MIN($A4,L$1)-0.5*EXP(-alpha*MAX($A4,L$1))*(EXP(alpha*MIN($A4,L$1))-EXP(-alpha*MIN($A4,L$1))))*LOOKUP(L$1,'Calculated rates'!$B$4:$B$103,'Calculated rates'!$F$4:$F$104),"") -> 0.4397893486 | M4: =IF(AND($A4<>"",M$1<>""),EXP(-UFRC*($A4+M$1))*(alpha*MIN($A4,M$1)-0.5*EXP(-alpha*MAX($A4,M$1))*(EXP(alpha*MIN($A4,M$1))-EXP(-alpha*MIN($A4,M$1))))*LOOKUP(M$1,'Calculated rates'!$B$4:$B$103,'Calculated rates'!$F$4:$F$104),"") -> -0.5461552148 | N4: =IF(AND($A4<>"",N$1<>""),EXP(-UFRC*($A4+N$1))*(alpha*MIN($A4,N$1)-0.5*EXP(-alpha*MAX($A4,N$1))*(EXP(alpha*MIN($A4,N$1))-EXP(-alpha*MIN($A4,N$1))))*LOOKUP(N$1,'Calculated rates'!$B$4:$B$103,'Calculated rates'!$F$4:$F$104),"") -> 0.2832482637 | O4: =IF(AND($A4<>"",O$1<>""),EXP(-UFRC*($A4+O$1))*(alpha*MIN($A4,O$1)-0.5*EXP(-alpha*MAX($A4,O$1))*(EXP(alpha*MIN($A4,O$1))-EXP(-alpha*MIN($A4,O$1))))*LOOKUP(O$1,'Calculated rates'!$B$4:$B$103,'Calculated rates'!$F$4:$F$104),"") -> -0.05145326371 | P4: =IF(AND($A4<>"",P$1<>""),EXP(-UFRC*($A4+P$1))*(alpha*MIN($A4,P$1)-0.5*EXP(-alpha*MAX($A4,P$1))*(EXP(alpha*MIN($A4,P$1))-EXP(-alpha*MIN($A4,P$1))))*LOOKUP(P$1,'Calculated rates'!$B$4:$B$103,'Calculated rates'!$F$4:$F$104),"") -> -0.06518404724 | Q4: =IF(AND($A4<>"",Q$1<>""),EXP(-UFRC*($A4+Q$1))*(alpha*MIN($A4,Q$1)-0.5*EXP(-alpha*MAX($A4,Q$1))*(EXP(alpha*MIN($A4,Q$1))-EXP(-alpha*MIN($A4,Q$1))))*LOOKUP(Q$1,'Calculated rates'!$B$4:$B$103,'Calculated rates'!$F$4:$F$104),"") -> 0.3272731315 | R4: =IF(AND($A4<>"",R$1<>""),EXP(-UFRC*($A4+R$1))*(alpha*MIN($A4,R$1)-0.5*EXP(-alpha*MAX($A4,R$1))*(EXP(alpha*MIN($A4,R$1))-EXP(-alpha*MIN($A4,R$1))))*LOOKUP(R$1,'Calculated rates'!$B$4:$B$103,'Calculated rates'!$F$4:$F$104),"") -> -0.5182101136 | S4: =IF(AND($A4<>"",S$1<>""),EXP(-UFRC*($A4+S$1))*(alpha*MIN($A4,S$1)-0.5*EXP(-alpha*MAX($A4,S$1))*(EXP(alpha*MIN($A4,S$1))-EXP(-alpha*MIN($A4,S$1))))*LOOKUP(S$1,'Calculated rates'!$B$4:$B$103,'Calculated rates'!$F$4:$F$104),"") -> 0.3031859986 | T4: =IF(AND($A4<>"",T$1<>""),EXP(-UFRC*($A4+T$1))*(alpha*MIN($A4,T$1)-0.5*EXP(-alpha*MAX($A4,T$1))*(EXP(alpha*MIN($A4,T$1))-EXP(-alpha*MIN($A4,T$1))))*LOOKUP(T$1,'Calculated rates'!$B$4:$B$103,'Calculated rates'!$F$4:$F$104),"") -> -0.09338565744 | U4: =IF(AND($A4<>"",U$1<>""),EXP(-UFRC*($A4+U$1))*(alpha*MIN($A4,U$1)-0.5*EXP(-alpha*MAX($A4,U$1))*(EXP(alpha*MIN($A4,U$1))-EXP(-alpha*MIN($A4,U$1))))*LOOKUP(U$1,'Calculated rates'!$B$4:$B$103,'Calculated rates'!$F$4:$F$104),"") -> 0.06633482081 | V4: =IF(AND($A4<>"",V$1<>""),EXP(-UFRC*($A4+V$1))*(alpha*MIN($A4,V$1)-0.5*EXP(-alpha*MAX($A4,V$1))*(EXP(alpha*MIN($A4,V$1))-EXP(-alpha*MIN($A4,V$1))))*LOOKUP(V$1,'Calculated rates'!$B$4:$B$103,'Calculated rates'!$F$4:$F$104),"") -> -0.1818323249 | W4: =IF(AND($A4<>"",W$1<>""),EXP(-UFRC*($A4+W$1))*(alpha*MIN($A4,W$1)-0.5*EXP(-alpha*MAX($A4,W$1))*(EXP(alpha*MIN($A4,W$1))-EXP(-alpha*MIN($A4,W$1))))*LOOKUP(W$1,'Calculated rates'!$B$4:$B$103,'Calculated rates'!$F$4:$F$104),"") -> 0.1874636225 | X4: =IF(AND($A4<>"",X$1<>""),EXP(-UFRC*($A4+X$1))*(alpha*MIN($A4,X$1)-0.5*EXP(-alpha*MAX($A4,X$1))*(EXP(alpha*MIN($A4,X$1))-EXP(-alpha*MIN($A4,X$1))))*LOOKUP(X$1,'Calculated rates'!$B$4:$B$103,'Calculated rates'!$F$4:$F$104),"") ->  | Y4: =IF(AND($A4<>"",Y$1<>""),EXP(-UFRC*($A4+Y$1))*(alpha*MIN($A4,Y$1)-0.5*EXP(-alpha*MAX($A4,Y$1))*(EXP(alpha*MIN($A4,Y$1))-EXP(-alpha*MIN($A4,Y$1))))*LOOKUP(Y$1,'Calculated rates'!$B$4:$B$103,'Calculated rates'!$F$4:$F$104),"") ->  | Z4: =IF(AND($A4<>"",Z$1<>""),EXP(-UFRC*($A4+Z$1))*(alpha*MIN($A4,Z$1)-0.5*EXP(-alpha*MAX($A4,Z$1))*(EXP(alpha*MIN($A4,Z$1))-EXP(-alpha*MIN($A4,Z$1))))*LOOKUP(Z$1,'Calculated rates'!$B$4:$B$103,'Calculated rates'!$F$4:$F$104),"") ->  | AA4: =IF(AND($A4<>"",AA$1<>""),EXP(-UFRC*($A4+AA$1))*(alpha*MIN($A4,AA$1)-0.5*EXP(-alpha*MAX($A4,AA$1))*(EXP(alpha*MIN($A4,AA$1))-EXP(-alpha*MIN($A4,AA$1))))*LOOKUP(AA$1,'Calculated rates'!$B$4:$B$103,'Calculated rates'!$F$4:$F$104),"") ->  | AB4: =IF(AND($A4<>"",AB$1<>""),EXP(-UFRC*($A4+AB$1))*(alpha*MIN($A4,AB$1)-0.5*EXP(-alpha*MAX($A4,AB$1))*(EXP(alpha*MIN($A4,AB$1))-EXP(-alpha*MIN($A4,AB$1))))*LOOKUP(AB$1,'Calculated rates'!$B$4:$B$103,'Calculated rates'!$F$4:$F$104),"") ->  | AC4: =IF(AND($A4<>"",AC$1<>""),EXP(-UFRC*($A4+AC$1))*(alpha*MIN($A4,AC$1)-0.5*EXP(-alpha*MAX($A4,AC$1))*(EXP(alpha*MIN($A4,AC$1))-EXP(-alpha*MIN($A4,AC$1))))*LOOKUP(AC$1,'Calculated rates'!$B$4:$B$103,'Calculated rates'!$F$4:$F$104),"") ->  | AD4: =IF(AND($A4<>"",AD$1<>""),EXP(-UFRC*($A4+AD$1))*(alpha*MIN($A4,AD$1)-0.5*EXP(-alpha*MAX($A4,AD$1))*(EXP(alpha*MIN($A4,AD$1))-EXP(-alpha*MIN($A4,AD$1))))*LOOKUP(AD$1,'Calculated rates'!$B$4:$B$103,'Calculated rates'!$F$4:$F$104),"") ->  | AE4: =IF(AND($A4<>"",AE$1<>""),EXP(-UFRC*($A4+AE$1))*(alpha*MIN($A4,AE$1)-0.5*EXP(-alpha*MAX($A4,AE$1))*(EXP(alpha*MIN($A4,AE$1))-EXP(-alpha*MIN($A4,AE$1))))*LOOKUP(AE$1,'Calculated rates'!$B$4:$B$103,'Calculated rates'!$F$4:$F$104),"") ->  | AF4: =IF(AND($A4<>"",AF$1<>""),EXP(-UFRC*($A4+AF$1))*(alpha*MIN($A4,AF$1)-0.5*EXP(-alpha*MAX($A4,AF$1))*(EXP(alpha*MIN($A4,AF$1))-EXP(-alpha*MIN($A4,AF$1))))*LOOKUP(AF$1,'Calculated rates'!$B$4:$B$103,'Calculated rates'!$F$4:$F$104),"") ->  | AG4: =IF(AND($A4<>"",AG$1<>""),EXP(-UFRC*($A4+AG$1))*(alpha*MIN($A4,AG$1)-0.5*EXP(-alpha*MAX($A4,AG$1))*(EXP(alpha*MIN($A4,AG$1))-EXP(-alpha*MIN($A4,AG$1))))*LOOKUP(AG$1,'Calculated rates'!$B$4:$B$103,'Calculated rates'!$F$4:$F$104),"") ->  | AH4: =IF(AND($A4<>"",AH$1<>""),EXP(-UFRC*($A4+AH$1))*(alpha*MIN($A4,AH$1)-0.5*EXP(-alpha*MAX($A4,AH$1))*(EXP(alpha*MIN($A4,AH$1))-EXP(-alpha*MIN($A4,AH$1))))*LOOKUP(AH$1,'Calculated rates'!$B$4:$B$103,'Calculated rates'!$F$4:$F$104),"") ->  | AI4: =IF(AND($A4<>"",AI$1<>""),EXP(-UFRC*($A4+AI$1))*(alpha*MIN($A4,AI$1)-0.5*EXP(-alpha*MAX($A4,AI$1))*(EXP(alpha*MIN($A4,AI$1))-EXP(-alpha*MIN($A4,AI$1))))*LOOKUP(AI$1,'Calculated rates'!$B$4:$B$103,'Calculated rates'!$F$4:$F$104),"") ->  | AJ4: =IF(AND($A4<>"",AJ$1<>""),EXP(-UFRC*($A4+AJ$1))*(alpha*MIN($A4,AJ$1)-0.5*EXP(-alpha*MAX($A4,AJ$1))*(EXP(alpha*MIN($A4,AJ$1))-EXP(-alpha*MIN($A4,AJ$1))))*LOOKUP(AJ$1,'Calculated rates'!$B$4:$B$103,'Calculated rates'!$F$4:$F$104),"") ->  | AK4: =IF(AND($A4<>"",AK$1<>""),EXP(-UFRC*($A4+AK$1))*(alpha*MIN($A4,AK$1)-0.5*EXP(-alpha*MAX($A4,AK$1))*(EXP(alpha*MIN($A4,AK$1))-EXP(-alpha*MIN($A4,AK$1))))*LOOKUP(AK$1,'Calculated rates'!$B$4:$B$103,'Calculated rates'!$F$4:$F$104),"") ->  | AL4: =IF(AND($A4<>"",AL$1<>""),EXP(-UFRC*($A4+AL$1))*(alpha*MIN($A4,AL$1)-0.5*EXP(-alpha*MAX($A4,AL$1))*(EXP(alpha*MIN($A4,AL$1))-EXP(-alpha*MIN($A4,AL$1))))*LOOKUP(AL$1,'Calculated rates'!$B$4:$B$103,'Calculated rates'!$F$4:$F$104),"") ->  | AM4: =IF(AND($A4<>"",AM$1<>""),EXP(-UFRC*($A4+AM$1))*(alpha*MIN($A4,AM$1)-0.5*EXP(-alpha*MAX($A4,AM$1))*(EXP(alpha*MIN($A4,AM$1))-EXP(-alpha*MIN($A4,AM$1))))*LOOKUP(AM$1,'Calculated rates'!$B$4:$B$103,'Calculated rates'!$F$4:$F$104),"") ->  | AN4: =IF(AND($A4<>"",AN$1<>""),EXP(-UFRC*($A4+AN$1))*(alpha*MIN($A4,AN$1)-0.5*EXP(-alpha*MAX($A4,AN$1))*(EXP(alpha*MIN($A4,AN$1))-EXP(-alpha*MIN($A4,AN$1))))*LOOKUP(AN$1,'Calculated rates'!$B$4:$B$103,'Calculated rates'!$F$4:$F$104),"") ->  | AO4: =IF(AND($A4<>"",AO$1<>""),EXP(-UFRC*($A4+AO$1))*(alpha*MIN($A4,AO$1)-0.5*EXP(-alpha*MAX($A4,AO$1))*(EXP(alpha*MIN($A4,AO$1))-EXP(-alpha*MIN($A4,AO$1))))*LOOKUP(AO$1,'Calculated rates'!$B$4:$B$103,'Calculated rates'!$F$4:$F$104),"") ->  | AP4: =IF(AND($A4<>"",AP$1<>""),EXP(-UFRC*($A4+AP$1))*(alpha*MIN($A4,AP$1)-0.5*EXP(-alpha*MAX($A4,AP$1))*(EXP(alpha*MIN($A4,AP$1))-EXP(-alpha*MIN($A4,AP$1))))*LOOKUP(AP$1,'Calculated rates'!$B$4:$B$103,'Calculated rates'!$F$4:$F$104),"") ->  | AQ4: =IF(AND($A4<>"",AQ$1<>""),EXP(-UFRC*($A4+AQ$1))*(alpha*MIN($A4,AQ$1)-0.5*EXP(-alpha*MAX($A4,AQ$1))*(EXP(alpha*MIN($A4,AQ$1))-EXP(-alpha*MIN($A4,AQ$1))))*LOOKUP(AQ$1,'Calculated rates'!$B$4:$B$103,'Calculated rates'!$F$4:$F$104),"") ->  | AR4: =IF(AND($A4<>"",AR$1<>""),EXP(-UFRC*($A4+AR$1))*(alpha*MIN($A4,AR$1)-0.5*EXP(-alpha*MAX($A4,AR$1))*(EXP(alpha*MIN($A4,AR$1))-EXP(-alpha*MIN($A4,AR$1))))*LOOKUP(AR$1,'Calculated rates'!$B$4:$B$103,'Calculated rates'!$F$4:$F$104),"") ->  | AS4: =IF(AND($A4<>"",AS$1<>""),EXP(-UFRC*($A4+AS$1))*(alpha*MIN($A4,AS$1)-0.5*EXP(-alpha*MAX($A4,AS$1))*(EXP(alpha*MIN($A4,AS$1))-EXP(-alpha*MIN($A4,AS$1))))*LOOKUP(AS$1,'Calculated rates'!$B$4:$B$103,'Calculated rates'!$F$4:$F$104),"") ->  | AT4: =IF(AND($A4<>"",AT$1<>""),EXP(-UFRC*($A4+AT$1))*(alpha*MIN($A4,AT$1)-0.5*EXP(-alpha*MAX($A4,AT$1))*(EXP(alpha*MIN($A4,AT$1))-EXP(-alpha*MIN($A4,AT$1))))*LOOKUP(AT$1,'Calculated rates'!$B$4:$B$103,'Calculated rates'!$F$4:$F$104),"") ->  | AU4: =IF(AND($A4<>"",AU$1<>""),EXP(-UFRC*($A4+AU$1))*(alpha*MIN($A4,AU$1)-0.5*EXP(-alpha*MAX($A4,AU$1))*(EXP(alpha*MIN($A4,AU$1))-EXP(-alpha*MIN($A4,AU$1))))*LOOKUP(AU$1,'Calculated rates'!$B$4:$B$103,'Calculated rates'!$F$4:$F$104),"") ->  | AV4: =IF(AND($A4<>"",AV$1<>""),EXP(-UFRC*($A4+AV$1))*(alpha*MIN($A4,AV$1)-0.5*EXP(-alpha*MAX($A4,AV$1))*(EXP(alpha*MIN($A4,AV$1))-EXP(-alpha*MIN($A4,AV$1))))*LOOKUP(AV$1,'Calculated rates'!$B$4:$B$103,'Calculated rates'!$F$4:$F$104),"") ->  | AW4: =IF(AND($A4<>"",AW$1<>""),EXP(-UFRC*($A4+AW$1))*(alpha*MIN($A4,AW$1)-0.5*EXP(-alpha*MAX($A4,AW$1))*(EXP(alpha*MIN($A4,AW$1))-EXP(-alpha*MIN($A4,AW$1))))*LOOKUP(AW$1,'Calculated rates'!$B$4:$B$103,'Calculated rates'!$F$4:$F$104),"") ->  | AX4: =IF(AND($A4<>"",AX$1<>""),EXP(-UFRC*($A4+AX$1))*(alpha*MIN($A4,AX$1)-0.5*EXP(-alpha*MAX($A4,AX$1))*(EXP(alpha*MIN($A4,AX$1))-EXP(-alpha*MIN($A4,AX$1))))*LOOKUP(AX$1,'Calculated rates'!$B$4:$B$103,'Calculated rates'!$F$4:$F$104),"") ->  | AY4: =IF(AND($A4<>"",AY$1<>""),EXP(-UFRC*($A4+AY$1))*(alpha*MIN($A4,AY$1)-0.5*EXP(-alpha*MAX($A4,AY$1))*(EXP(alpha*MIN($A4,AY$1))-EXP(-alpha*MIN($A4,AY$1))))*LOOKUP(AY$1,'Calculated rates'!$B$4:$B$103,'Calculated rates'!$F$4:$F$104),"") ->  | AZ4: =IF(AND($A4<>"",AZ$1<>""),EXP(-UFRC*($A4+AZ$1))*(alpha*MIN($A4,AZ$1)-0.5*EXP(-alpha*MAX($A4,AZ$1))*(EXP(alpha*MIN($A4,AZ$1))-EXP(-alpha*MIN($A4,AZ$1))))*LOOKUP(AZ$1,'Calculated rates'!$B$4:$B$103,'Calculated rates'!$F$4:$F$104),"") ->  | BA4: =IF(AND($A4<>"",BA$1<>""),EXP(-UFRC*($A4+BA$1))*(alpha*MIN($A4,BA$1)-0.5*EXP(-alpha*MAX($A4,BA$1))*(EXP(alpha*MIN($A4,BA$1))-EXP(-alpha*MIN($A4,BA$1))))*LOOKUP(BA$1,'Calculated rates'!$B$4:$B$103,'Calculated rates'!$F$4:$F$104),"") ->  | BB4: =IF(AND($A4<>"",BB$1<>""),EXP(-UFRC*($A4+BB$1))*(alpha*MIN($A4,BB$1)-0.5*EXP(-alpha*MAX($A4,BB$1))*(EXP(alpha*MIN($A4,BB$1))-EXP(-alpha*MIN($A4,BB$1))))*LOOKUP(BB$1,'Calculated rates'!$B$4:$B$103,'Calculated rates'!$F$4:$F$104),"") ->  | BC4: =IF(AND($A4<>"",BC$1<>""),EXP(-UFRC*($A4+BC$1))*(alpha*MIN($A4,BC$1)-0.5*EXP(-alpha*MAX($A4,BC$1))*(EXP(alpha*MIN($A4,BC$1))-EXP(-alpha*MIN($A4,BC$1))))*LOOKUP(BC$1,'Calculated rates'!$B$4:$B$103,'Calculated rates'!$F$4:$F$104),"") ->  | BD4: =IF(AND($A4<>"",BD$1<>""),EXP(-UFRC*($A4+BD$1))*(alpha*MIN($A4,BD$1)-0.5*EXP(-alpha*MAX($A4,BD$1))*(EXP(alpha*MIN($A4,BD$1))-EXP(-alpha*MIN($A4,BD$1))))*LOOKUP(BD$1,'Calculated rates'!$B$4:$B$103,'Calculated rates'!$F$4:$F$104),"") ->  | BE4: =IF(AND($A4<>"",BE$1<>""),EXP(-UFRC*($A4+BE$1))*(alpha*MIN($A4,BE$1)-0.5*EXP(-alpha*MAX($A4,BE$1))*(EXP(alpha*MIN($A4,BE$1))-EXP(-alpha*MIN($A4,BE$1))))*LOOKUP(BE$1,'Calculated rates'!$B$4:$B$103,'Calculated rates'!$F$4:$F$104),"") ->  | BF4: =IF(AND($A4<>"",BF$1<>""),EXP(-UFRC*($A4+BF$1))*(alpha*MIN($A4,BF$1)-0.5*EXP(-alpha*MAX($A4,BF$1))*(EXP(alpha*MIN($A4,BF$1))-EXP(-alpha*MIN($A4,BF$1))))*LOOKUP(BF$1,'Calculated rates'!$B$4:$B$103,'Calculated rates'!$F$4:$F$104),"") ->  | BG4: =IF(AND($A4<>"",BG$1<>""),EXP(-UFRC*($A4+BG$1))*(alpha*MIN($A4,BG$1)-0.5*EXP(-alpha*MAX($A4,BG$1))*(EXP(alpha*MIN($A4,BG$1))-EXP(-alpha*MIN($A4,BG$1))))*LOOKUP(BG$1,'Calculated rates'!$B$4:$B$103,'Calculated rates'!$F$4:$F$104),"") ->  | BH4: =IF(AND($A4<>"",BH$1<>""),EXP(-UFRC*($A4+BH$1))*(alpha*MIN($A4,BH$1)-0.5*EXP(-alpha*MAX($A4,BH$1))*(EXP(alpha*MIN($A4,BH$1))-EXP(-alpha*MIN($A4,BH$1))))*LOOKUP(BH$1,'Calculated rates'!$B$4:$B$103,'Calculated rates'!$F$4:$F$104),"") ->  | BI4: =IF(AND($A4<>"",BI$1<>""),EXP(-UFRC*($A4+BI$1))*(alpha*MIN($A4,BI$1)-0.5*EXP(-alpha*MAX($A4,BI$1))*(EXP(alpha*MIN($A4,BI$1))-EXP(-alpha*MIN($A4,BI$1))))*LOOKUP(BI$1,'Calculated rates'!$B$4:$B$103,'Calculated rates'!$F$4:$F$104),"") ->  | BJ4: =IF(AND($A4<>"",BJ$1<>""),EXP(-UFRC*($A4+BJ$1))*(alpha*MIN($A4,BJ$1)-0.5*EXP(-alpha*MAX($A4,BJ$1))*(EXP(alpha*MIN($A4,BJ$1))-EXP(-alpha*MIN($A4,BJ$1))))*LOOKUP(BJ$1,'Calculated rates'!$B$4:$B$103,'Calculated rates'!$F$4:$F$104),"") ->  | BK4: =IF(AND($A4<>"",BK$1<>""),EXP(-UFRC*($A4+BK$1))*(alpha*MIN($A4,BK$1)-0.5*EXP(-alpha*MAX($A4,BK$1))*(EXP(alpha*MIN($A4,BK$1))-EXP(-alpha*MIN($A4,BK$1))))*LOOKUP(BK$1,'Calculated rates'!$B$4:$B$103,'Calculated rates'!$F$4:$F$104),"") ->  | BL4: =IF(AND($A4<>"",BL$1<>""),EXP(-UFRC*($A4+BL$1))*(alpha*MIN($A4,BL$1)-0.5*EXP(-alpha*MAX($A4,BL$1))*(EXP(alpha*MIN($A4,BL$1))-EXP(-alpha*MIN($A4,BL$1))))*LOOKUP(BL$1,'Calculated rates'!$B$4:$B$103,'Calculated rates'!$F$4:$F$104),"") ->  | BM4: =IF(AND($A4<>"",BM$1<>""),EXP(-UFRC*($A4+BM$1))*(alpha*MIN($A4,BM$1)-0.5*EXP(-alpha*MAX($A4,BM$1))*(EXP(alpha*MIN($A4,BM$1))-EXP(-alpha*MIN($A4,BM$1))))*LOOKUP(BM$1,'Calculated rates'!$B$4:$B$103,'Calculated rates'!$F$4:$F$104),"") ->  | BN4: =IF(AND($A4<>"",BN$1<>""),EXP(-UFRC*($A4+BN$1))*(alpha*MIN($A4,BN$1)-0.5*EXP(-alpha*MAX($A4,BN$1))*(EXP(alpha*MIN($A4,BN$1))-EXP(-alpha*MIN($A4,BN$1))))*LOOKUP(BN$1,'Calculated rates'!$B$4:$B$103,'Calculated rates'!$F$4:$F$104),"") ->  | BO4: =IF(AND($A4<>"",BO$1<>""),EXP(-UFRC*($A4+BO$1))*(alpha*MIN($A4,BO$1)-0.5*EXP(-alpha*MAX($A4,BO$1))*(EXP(alpha*MIN($A4,BO$1))-EXP(-alpha*MIN($A4,BO$1))))*LOOKUP(BO$1,'Calculated rates'!$B$4:$B$103,'Calculated rates'!$F$4:$F$104),"") ->  | BP4: =IF(AND($A4<>"",BP$1<>""),EXP(-UFRC*($A4+BP$1))*(alpha*MIN($A4,BP$1)-0.5*EXP(-alpha*MAX($A4,BP$1))*(EXP(alpha*MIN($A4,BP$1))-EXP(-alpha*MIN($A4,BP$1))))*LOOKUP(BP$1,'Calculated rates'!$B$4:$B$103,'Calculated rates'!$F$4:$F$104),"") ->  | BQ4: =IF(AND($A4<>"",BQ$1<>""),EXP(-UFRC*($A4+BQ$1))*(alpha*MIN($A4,BQ$1)-0.5*EXP(-alpha*MAX($A4,BQ$1))*(EXP(alpha*MIN($A4,BQ$1))-EXP(-alpha*MIN($A4,BQ$1))))*LOOKUP(BQ$1,'Calculated rates'!$B$4:$B$103,'Calculated rates'!$F$4:$F$104),"") ->  | BR4: =IF(AND($A4<>"",BR$1<>""),EXP(-UFRC*($A4+BR$1))*(alpha*MIN($A4,BR$1)-0.5*EXP(-alpha*MAX($A4,BR$1))*(EXP(alpha*MIN($A4,BR$1))-EXP(-alpha*MIN($A4,BR$1))))*LOOKUP(BR$1,'Calculated rates'!$B$4:$B$103,'Calculated rates'!$F$4:$F$104),"") ->  | BS4: =IF(AND($A4<>"",BS$1<>""),EXP(-UFRC*($A4+BS$1))*(alpha*MIN($A4,BS$1)-0.5*EXP(-alpha*MAX($A4,BS$1))*(EXP(alpha*MIN($A4,BS$1))-EXP(-alpha*MIN($A4,BS$1))))*LOOKUP(BS$1,'Calculated rates'!$B$4:$B$103,'Calculated rates'!$F$4:$F$104),"") ->  | BT4: =IF(AND($A4<>"",BT$1<>""),EXP(-UFRC*($A4+BT$1))*(alpha*MIN($A4,BT$1)-0.5*EXP(-alpha*MAX($A4,BT$1))*(EXP(alpha*MIN($A4,BT$1))-EXP(-alpha*MIN($A4,BT$1))))*LOOKUP(BT$1,'Calculated rates'!$B$4:$B$103,'Calculated rates'!$F$4:$F$104),"") ->  | BU4: =IF(AND($A4<>"",BU$1<>""),EXP(-UFRC*($A4+BU$1))*(alpha*MIN($A4,BU$1)-0.5*EXP(-alpha*MAX($A4,BU$1))*(EXP(alpha*MIN($A4,BU$1))-EXP(-alpha*MIN($A4,BU$1))))*LOOKUP(BU$1,'Calculated rates'!$B$4:$B$103,'Calculated rates'!$F$4:$F$104),"") ->  | BV4: =IF(AND($A4<>"",BV$1<>""),EXP(-UFRC*($A4+BV$1))*(alpha*MIN($A4,BV$1)-0.5*EXP(-alpha*MAX($A4,BV$1))*(EXP(alpha*MIN($A4,BV$1))-EXP(-alpha*MIN($A4,BV$1))))*LOOKUP(BV$1,'Calculated rates'!$B$4:$B$103,'Calculated rates'!$F$4:$F$104),"") ->  | BW4: =IF(AND($A4<>"",BW$1<>""),EXP(-UFRC*($A4+BW$1))*(alpha*MIN($A4,BW$1)-0.5*EXP(-alpha*MAX($A4,BW$1))*(EXP(alpha*MIN($A4,BW$1))-EXP(-alpha*MIN($A4,BW$1))))*LOOKUP(BW$1,'Calculated rates'!$B$4:$B$103,'Calculated rates'!$F$4:$F$104),"") ->  | BX4: =IF(AND($A4<>"",BX$1<>""),EXP(-UFRC*($A4+BX$1))*(alpha*MIN($A4,BX$1)-0.5*EXP(-alpha*MAX($A4,BX$1))*(EXP(alpha*MIN($A4,BX$1))-EXP(-alpha*MIN($A4,BX$1))))*LOOKUP(BX$1,'Calculated rates'!$B$4:$B$103,'Calculated rates'!$F$4:$F$104),"") ->  | BY4: =IF(AND($A4<>"",BY$1<>""),EXP(-UFRC*($A4+BY$1))*(alpha*MIN($A4,BY$1)-0.5*EXP(-alpha*MAX($A4,BY$1))*(EXP(alpha*MIN($A4,BY$1))-EXP(-alpha*MIN($A4,BY$1))))*LOOKUP(BY$1,'Calculated rates'!$B$4:$B$103,'Calculated rates'!$F$4:$F$104),"") ->  | BZ4: =IF(AND($A4<>"",BZ$1<>""),EXP(-UFRC*($A4+BZ$1))*(alpha*MIN($A4,BZ$1)-0.5*EXP(-alpha*MAX($A4,BZ$1))*(EXP(alpha*MIN($A4,BZ$1))-EXP(-alpha*MIN($A4,BZ$1))))*LOOKUP(BZ$1,'Calculated rates'!$B$4:$B$103,'Calculated rates'!$F$4:$F$104),"") ->  | CA4: =IF(AND($A4<>"",CA$1<>""),EXP(-UFRC*($A4+CA$1))*(alpha*MIN($A4,CA$1)-0.5*EXP(-alpha*MAX($A4,CA$1))*(EXP(alpha*MIN($A4,CA$1))-EXP(-alpha*MIN($A4,CA$1))))*LOOKUP(CA$1,'Calculated rates'!$B$4:$B$103,'Calculated rates'!$F$4:$F$104),"") ->  | CB4: =IF(AND($A4<>"",CB$1<>""),EXP(-UFRC*($A4+CB$1))*(alpha*MIN($A4,CB$1)-0.5*EXP(-alpha*MAX($A4,CB$1))*(EXP(alpha*MIN($A4,CB$1))-EXP(-alpha*MIN($A4,CB$1))))*LOOKUP(CB$1,'Calculated rates'!$B$4:$B$103,'Calculated rates'!$F$4:$F$104),"") ->  | CC4: =IF(AND($A4<>"",CC$1<>""),EXP(-UFRC*($A4+CC$1))*(alpha*MIN($A4,CC$1)-0.5*EXP(-alpha*MAX($A4,CC$1))*(EXP(alpha*MIN($A4,CC$1))-EXP(-alpha*MIN($A4,CC$1))))*LOOKUP(CC$1,'Calculated rates'!$B$4:$B$103,'Calculated rates'!$F$4:$F$104),"") ->  | CD4: =IF(AND($A4<>"",CD$1<>""),EXP(-UFRC*($A4+CD$1))*(alpha*MIN($A4,CD$1)-0.5*EXP(-alpha*MAX($A4,CD$1))*(EXP(alpha*MIN($A4,CD$1))-EXP(-alpha*MIN($A4,CD$1))))*LOOKUP(CD$1,'Calculated rates'!$B$4:$B$103,'Calculated rates'!$F$4:$F$104),"") ->  | CE4: =IF(AND($A4<>"",CE$1<>""),EXP(-UFRC*($A4+CE$1))*(alpha*MIN($A4,CE$1)-0.5*EXP(-alpha*MAX($A4,CE$1))*(EXP(alpha*MIN($A4,CE$1))-EXP(-alpha*MIN($A4,CE$1))))*LOOKUP(CE$1,'Calculated rates'!$B$4:$B$103,'Calculated rates'!$F$4:$F$104),"") ->  | CF4: =IF(AND($A4<>"",CF$1<>""),EXP(-UFRC*($A4+CF$1))*(alpha*MIN($A4,CF$1)-0.5*EXP(-alpha*MAX($A4,CF$1))*(EXP(alpha*MIN($A4,CF$1))-EXP(-alpha*MIN($A4,CF$1))))*LOOKUP(CF$1,'Calculated rates'!$B$4:$B$103,'Calculated rates'!$F$4:$F$104),"") ->  | CG4: =IF(AND($A4<>"",CG$1<>""),EXP(-UFRC*($A4+CG$1))*(alpha*MIN($A4,CG$1)-0.5*EXP(-alpha*MAX($A4,CG$1))*(EXP(alpha*MIN($A4,CG$1))-EXP(-alpha*MIN($A4,CG$1))))*LOOKUP(CG$1,'Calculated rates'!$B$4:$B$103,'Calculated rates'!$F$4:$F$104),"") ->  | CH4: =IF(AND($A4<>"",CH$1<>""),EXP(-UFRC*($A4+CH$1))*(alpha*MIN($A4,CH$1)-0.5*EXP(-alpha*MAX($A4,CH$1))*(EXP(alpha*MIN($A4,CH$1))-EXP(-alpha*MIN($A4,CH$1))))*LOOKUP(CH$1,'Calculated rates'!$B$4:$B$103,'Calculated rates'!$F$4:$F$104),"") ->  | CI4: =IF(AND($A4<>"",CI$1<>""),EXP(-UFRC*($A4+CI$1))*(alpha*MIN($A4,CI$1)-0.5*EXP(-alpha*MAX($A4,CI$1))*(EXP(alpha*MIN($A4,CI$1))-EXP(-alpha*MIN($A4,CI$1))))*LOOKUP(CI$1,'Calculated rates'!$B$4:$B$103,'Calculated rates'!$F$4:$F$104),"") ->  | CJ4: =IF(AND($A4<>"",CJ$1<>""),EXP(-UFRC*($A4+CJ$1))*(alpha*MIN($A4,CJ$1)-0.5*EXP(-alpha*MAX($A4,CJ$1))*(EXP(alpha*MIN($A4,CJ$1))-EXP(-alpha*MIN($A4,CJ$1))))*LOOKUP(CJ$1,'Calculated rates'!$B$4:$B$103,'Calculated rates'!$F$4:$F$104),"") ->  | CK4: =IF(AND($A4<>"",CK$1<>""),EXP(-UFRC*($A4+CK$1))*(alpha*MIN($A4,CK$1)-0.5*EXP(-alpha*MAX($A4,CK$1))*(EXP(alpha*MIN($A4,CK$1))-EXP(-alpha*MIN($A4,CK$1))))*LOOKUP(CK$1,'Calculated rates'!$B$4:$B$103,'Calculated rates'!$F$4:$F$104),"") ->  | CL4: =IF(AND($A4<>"",CL$1<>""),EXP(-UFRC*($A4+CL$1))*(alpha*MIN($A4,CL$1)-0.5*EXP(-alpha*MAX($A4,CL$1))*(EXP(alpha*MIN($A4,CL$1))-EXP(-alpha*MIN($A4,CL$1))))*LOOKUP(CL$1,'Calculated rates'!$B$4:$B$103,'Calculated rates'!$F$4:$F$104),"") ->  | CM4: =IF(AND($A4<>"",CM$1<>""),EXP(-UFRC*($A4+CM$1))*(alpha*MIN($A4,CM$1)-0.5*EXP(-alpha*MAX($A4,CM$1))*(EXP(alpha*MIN($A4,CM$1))-EXP(-alpha*MIN($A4,CM$1))))*LOOKUP(CM$1,'Calculated rates'!$B$4:$B$103,'Calculated rates'!$F$4:$F$104),"") ->  | CN4: =IF(AND($A4<>"",CN$1<>""),EXP(-UFRC*($A4+CN$1))*(alpha*MIN($A4,CN$1)-0.5*EXP(-alpha*MAX($A4,CN$1))*(EXP(alpha*MIN($A4,CN$1))-EXP(-alpha*MIN($A4,CN$1))))*LOOKUP(CN$1,'Calculated rates'!$B$4:$B$103,'Calculated rates'!$F$4:$F$104),"") ->  | CO4: =IF(AND($A4<>"",CO$1<>""),EXP(-UFRC*($A4+CO$1))*(alpha*MIN($A4,CO$1)-0.5*EXP(-alpha*MAX($A4,CO$1))*(EXP(alpha*MIN($A4,CO$1))-EXP(-alpha*MIN($A4,CO$1))))*LOOKUP(CO$1,'Calculated rates'!$B$4:$B$103,'Calculated rates'!$F$4:$F$104),"") ->  | CP4: =IF(AND($A4<>"",CP$1<>""),EXP(-UFRC*($A4+CP$1))*(alpha*MIN($A4,CP$1)-0.5*EXP(-alpha*MAX($A4,CP$1))*(EXP(alpha*MIN($A4,CP$1))-EXP(-alpha*MIN($A4,CP$1))))*LOOKUP(CP$1,'Calculated rates'!$B$4:$B$103,'Calculated rates'!$F$4:$F$104),"") ->  | CQ4: =IF(AND($A4<>"",CQ$1<>""),EXP(-UFRC*($A4+CQ$1))*(alpha*MIN($A4,CQ$1)-0.5*EXP(-alpha*MAX($A4,CQ$1))*(EXP(alpha*MIN($A4,CQ$1))-EXP(-alpha*MIN($A4,CQ$1))))*LOOKUP(CQ$1,'Calculated rates'!$B$4:$B$103,'Calculated rates'!$F$4:$F$104),"") ->  | CR4: =IF(AND($A4<>"",CR$1<>""),EXP(-UFRC*($A4+CR$1))*(alpha*MIN($A4,CR$1)-0.5*EXP(-alpha*MAX($A4,CR$1))*(EXP(alpha*MIN($A4,CR$1))-EXP(-alpha*MIN($A4,CR$1))))*LOOKUP(CR$1,'Calculated rates'!$B$4:$B$103,'Calculated rates'!$F$4:$F$104),"") ->  | CS4: =IF(AND($A4<>"",CS$1<>""),EXP(-UFRC*($A4+CS$1))*(alpha*MIN($A4,CS$1)-0.5*EXP(-alpha*MAX($A4,CS$1))*(EXP(alpha*MIN($A4,CS$1))-EXP(-alpha*MIN($A4,CS$1))))*LOOKUP(CS$1,'Calculated rates'!$B$4:$B$103,'Calculated rates'!$F$4:$F$104),"") ->  | CT4: =IF(AND($A4<>"",CT$1<>""),EXP(-UFRC*($A4+CT$1))*(alpha*MIN($A4,CT$1)-0.5*EXP(-alpha*MAX($A4,CT$1))*(EXP(alpha*MIN($A4,CT$1))-EXP(-alpha*MIN($A4,CT$1))))*LOOKUP(CT$1,'Calculated rates'!$B$4:$B$103,'Calculated rates'!$F$4:$F$104),"") ->  | CU4: =IF(AND($A4<>"",CU$1<>""),EXP(-UFRC*($A4+CU$1))*(alpha*MIN($A4,CU$1)-0.5*EXP(-alpha*MAX($A4,CU$1))*(EXP(alpha*MIN($A4,CU$1))-EXP(-alpha*MIN($A4,CU$1))))*LOOKUP(CU$1,'Calculated rates'!$B$4:$B$103,'Calculated rates'!$F$4:$F$104),"") ->  | CV4: =IF(AND($A4<>"",CV$1<>""),EXP(-UFRC*($A4+CV$1))*(alpha*MIN($A4,CV$1)-0.5*EXP(-alpha*MAX($A4,CV$1))*(EXP(alpha*MIN($A4,CV$1))-EXP(-alpha*MIN($A4,CV$1))))*LOOKUP(CV$1,'Calculated rates'!$B$4:$B$103,'Calculated rates'!$F$4:$F$104),"") ->  | CW4: =IF(AND($A4<>"",CW$1<>""),EXP(-UFRC*($A4+CW$1))*(alpha*MIN($A4,CW$1)-0.5*EXP(-alpha*MAX($A4,CW$1))*(EXP(alpha*MIN($A4,CW$1))-EXP(-alpha*MIN($A4,CW$1))))*LOOKUP(CW$1,'Calculated rates'!$B$4:$B$103,'Calculated rates'!$F$4:$F$104),"") ->  | CX4: =IF(AND($A4<>"",CX$1<>""),EXP(-UFRC*($A4+CX$1))*(alpha*MIN($A4,CX$1)-0.5*EXP(-alpha*MAX($A4,CX$1))*(EXP(alpha*MIN($A4,CX$1))-EXP(-alpha*MIN($A4,CX$1))))*LOOKUP(CX$1,'Calculated rates'!$B$4:$B$103,'Calculated rates'!$F$4:$F$104),"") ->  | CY4: =IF(AND($A4<>"",CY$1<>""),EXP(-UFRC*($A4+CY$1))*(alpha*MIN($A4,CY$1)-0.5*EXP(-alpha*MAX($A4,CY$1))*(EXP(alpha*MIN($A4,CY$1))-EXP(-alpha*MIN($A4,CY$1))))*LOOKUP(CY$1,'Calculated rates'!$B$4:$B$103,'Calculated rates'!$F$4:$F$104),"") -> 
A5: ='Calculated rates'!J6 -> 3 | B5: 0.009235341363 | C5: 0.9726742676 | D5: =IF(AND($A5<>"",D$1<>""),EXP(-UFRC*($A5+D$1))*(alpha*MIN($A5,D$1)-0.5*EXP(-alpha*MAX($A5,D$1))*(EXP(alpha*MIN($A5,D$1))-EXP(-alpha*MIN($A5,D$1))))*LOOKUP(D$1,'Calculated rates'!$B$4:$B$103,'Calculated rates'!$F$4:$F$104),"") -> 0.01834489795 | E5: =IF(AND($A5<>"",E$1<>""),EXP(-UFRC*($A5+E$1))*(alpha*MIN($A5,E$1)-0.5*EXP(-alpha*MAX($A5,E$1))*(EXP(alpha*MIN($A5,E$1))-EXP(-alpha*MIN($A5,E$1))))*LOOKUP(E$1,'Calculated rates'!$B$4:$B$103,'Calculated rates'!$F$4:$F$104),"") -> 0.0004919545251 | F5: =IF(AND($A5<>"",F$1<>""),EXP(-UFRC*($A5+F$1))*(alpha*MIN($A5,F$1)-0.5*EXP(-alpha*MAX($A5,F$1))*(EXP(alpha*MIN($A5,F$1))-EXP(-alpha*MIN($A5,F$1))))*LOOKUP(F$1,'Calculated rates'!$B$4:$B$103,'Calculated rates'!$F$4:$F$104),"") -> 0.004263830473 | G5: =IF(AND($A5<>"",G$1<>""),EXP(-UFRC*($A5+G$1))*(alpha*MIN($A5,G$1)-0.5*EXP(-alpha*MAX($A5,G$1))*(EXP(alpha*MIN($A5,G$1))-EXP(-alpha*MIN($A5,G$1))))*LOOKUP(G$1,'Calculated rates'!$B$4:$B$103,'Calculated rates'!$F$4:$F$104),"") -> 0.03240464033 | H5: =IF(AND($A5<>"",H$1<>""),EXP(-UFRC*($A5+H$1))*(alpha*MIN($A5,H$1)-0.5*EXP(-alpha*MAX($A5,H$1))*(EXP(alpha*MIN($A5,H$1))-EXP(-alpha*MIN($A5,H$1))))*LOOKUP(H$1,'Calculated rates'!$B$4:$B$103,'Calculated rates'!$F$4:$F$104),"") -> -0.08209345149 | I5: =IF(AND($A5<>"",I$1<>""),EXP(-UFRC*($A5+I$1))*(alpha*MIN($A5,I$1)-0.5*EXP(-alpha*MAX($A5,I$1))*(EXP(alpha*MIN($A5,I$1))-EXP(-alpha*MIN($A5,I$1))))*LOOKUP(I$1,'Calculated rates'!$B$4:$B$103,'Calculated rates'!$F$4:$F$104),"") -> 0.3910296688 | J5: =IF(AND($A5<>"",J$1<>""),EXP(-UFRC*($A5+J$1))*(alpha*MIN($A5,J$1)-0.5*EXP(-alpha*MAX($A5,J$1))*(EXP(alpha*MIN($A5,J$1))-EXP(-alpha*MIN($A5,J$1))))*LOOKUP(J$1,'Calculated rates'!$B$4:$B$103,'Calculated rates'!$F$4:$F$104),"") -> -0.5129531133 | K5: =IF(AND($A5<>"",K$1<>""),EXP(-UFRC*($A5+K$1))*(alpha*MIN($A5,K$1)-0.5*EXP(-alpha*MAX($A5,K$1))*(EXP(alpha*MIN($A5,K$1))-EXP(-alpha*MIN($A5,K$1))))*LOOKUP(K$1,'Calculated rates'!$B$4:$B$103,'Calculated rates'!$F$4:$F$104),"") -> 0.02086193064 | L5: =IF(AND($A5<>"",L$1<>""),EXP(-UFRC*($A5+L$1))*(alpha*MIN($A5,L$1)-0.5*EXP(-alpha*MAX($A5,L$1))*(EXP(alpha*MIN($A5,L$1))-EXP(-alpha*MIN($A5,L$1))))*LOOKUP(L$1,'Calculated rates'!$B$4:$B$103,'Calculated rates'!$F$4:$F$104),"") -> 0.6306915639 | M5: =IF(AND($A5<>"",M$1<>""),EXP(-UFRC*($A5+M$1))*(alpha*MIN($A5,M$1)-0.5*EXP(-alpha*MAX($A5,M$1))*(EXP(alpha*MIN($A5,M$1))-EXP(-alpha*MIN($A5,M$1))))*LOOKUP(M$1,'Calculated rates'!$B$4:$B$103,'Calculated rates'!$F$4:$F$104),"") -> -0.7842763775 | N5: =IF(AND($A5<>"",N$1<>""),EXP(-UFRC*($A5+N$1))*(alpha*MIN($A5,N$1)-0.5*EXP(-alpha*MAX($A5,N$1))*(EXP(alpha*MIN($A5,N$1))-EXP(-alpha*MIN($A5,N$1))))*LOOKUP(N$1,'Calculated rates'!$B$4:$B$103,'Calculated rates'!$F$4:$F$104),"") -> 0.4070938158 | O5: =IF(AND($A5<>"",O$1<>""),EXP(-UFRC*($A5+O$1))*(alpha*MIN($A5,O$1)-0.5*EXP(-alpha*MAX($A5,O$1))*(EXP(alpha*MIN($A5,O$1))-EXP(-alpha*MIN($A5,O$1))))*LOOKUP(O$1,'Calculated rates'!$B$4:$B$103,'Calculated rates'!$F$4:$F$104),"") -> -0.07399163182 | P5: =IF(AND($A5<>"",P$1<>""),EXP(-UFRC*($A5+P$1))*(alpha*MIN($A5,P$1)-0.5*EXP(-alpha*MAX($A5,P$1))*(EXP(alpha*MIN($A5,P$1))-EXP(-alpha*MIN($A5,P$1))))*LOOKUP(P$1,'Calculated rates'!$B$4:$B$103,'Calculated rates'!$F$4:$F$104),"") -> -0.09377101413 | Q5: =IF(AND($A5<>"",Q$1<>""),EXP(-UFRC*($A5+Q$1))*(alpha*MIN($A5,Q$1)-0.5*EXP(-alpha*MAX($A5,Q$1))*(EXP(alpha*MIN($A5,Q$1))-EXP(-alpha*MIN($A5,Q$1))))*LOOKUP(Q$1,'Calculated rates'!$B$4:$B$103,'Calculated rates'!$F$4:$F$104),"") -> 0.4709126398 | R5: =IF(AND($A5<>"",R$1<>""),EXP(-UFRC*($A5+R$1))*(alpha*MIN($A5,R$1)-0.5*EXP(-alpha*MAX($A5,R$1))*(EXP(alpha*MIN($A5,R$1))-EXP(-alpha*MIN($A5,R$1))))*LOOKUP(R$1,'Calculated rates'!$B$4:$B$103,'Calculated rates'!$F$4:$F$104),"") -> -0.7457665578 | S5: =IF(AND($A5<>"",S$1<>""),EXP(-UFRC*($A5+S$1))*(alpha*MIN($A5,S$1)-0.5*EXP(-alpha*MAX($A5,S$1))*(EXP(alpha*MIN($A5,S$1))-EXP(-alpha*MIN($A5,S$1))))*LOOKUP(S$1,'Calculated rates'!$B$4:$B$103,'Calculated rates'!$F$4:$F$104),"") -> 0.4363650342 | T5: =IF(AND($A5<>"",T$1<>""),EXP(-UFRC*($A5+T$1))*(alpha*MIN($A5,T$1)-0.5*EXP(-alpha*MAX($A5,T$1))*(EXP(alpha*MIN($A5,T$1))-EXP(-alpha*MIN($A5,T$1))))*LOOKUP(T$1,'Calculated rates'!$B$4:$B$103,'Calculated rates'!$F$4:$F$104),"") -> -0.134415577 | U5: =IF(AND($A5<>"",U$1<>""),EXP(-UFRC*($A5+U$1))*(alpha*MIN($A5,U$1)-0.5*EXP(-alpha*MAX($A5,U$1))*(EXP(alpha*MIN($A5,U$1))-EXP(-alpha*MIN($A5,U$1))))*LOOKUP(U$1,'Calculated rates'!$B$4:$B$103,'Calculated rates'!$F$4:$F$104),"") -> 0.09548379988 | V5: =IF(AND($A5<>"",V$1<>""),EXP(-UFRC*($A5+V$1))*(alpha*MIN($A5,V$1)-0.5*EXP(-alpha*MAX($A5,V$1))*(EXP(alpha*MIN($A5,V$1))-EXP(-alpha*MIN($A5,V$1))))*LOOKUP(V$1,'Calculated rates'!$B$4:$B$103,'Calculated rates'!$F$4:$F$104),"") -> -0.2617408242 | W5: =IF(AND($A5<>"",W$1<>""),EXP(-UFRC*($A5+W$1))*(alpha*MIN($A5,W$1)-0.5*EXP(-alpha*MAX($A5,W$1))*(EXP(alpha*MIN($A5,W$1))-EXP(-alpha*MIN($A5,W$1))))*LOOKUP(W$1,'Calculated rates'!$B$4:$B$103,'Calculated rates'!$F$4:$F$104),"") -> 0.2698518418 | X5: =IF(AND($A5<>"",X$1<>""),EXP(-UFRC*($A5+X$1))*(alpha*MIN($A5,X$1)-0.5*EXP(-alpha*MAX($A5,X$1))*(EXP(alpha*MIN($A5,X$1))-EXP(-alpha*MIN($A5,X$1))))*LOOKUP(X$1,'Calculated rates'!$B$4:$B$103,'Calculated rates'!$F$4:$F$104),"") ->  | Y5: =IF(AND($A5<>"",Y$1<>""),EXP(-UFRC*($A5+Y$1))*(alpha*MIN($A5,Y$1)-0.5*EXP(-alpha*MAX($A5,Y$1))*(EXP(alpha*MIN($A5,Y$1))-EXP(-alpha*MIN($A5,Y$1))))*LOOKUP(Y$1,'Calculated rates'!$B$4:$B$103,'Calculated rates'!$F$4:$F$104),"") ->  | Z5: =IF(AND($A5<>"",Z$1<>""),EXP(-UFRC*($A5+Z$1))*(alpha*MIN($A5,Z$1)-0.5*EXP(-alpha*MAX($A5,Z$1))*(EXP(alpha*MIN($A5,Z$1))-EXP(-alpha*MIN($A5,Z$1))))*LOOKUP(Z$1,'Calculated rates'!$B$4:$B$103,'Calculated rates'!$F$4:$F$104),"") ->  | AA5: =IF(AND($A5<>"",AA$1<>""),EXP(-UFRC*($A5+AA$1))*(alpha*MIN($A5,AA$1)-0.5*EXP(-alpha*MAX($A5,AA$1))*(EXP(alpha*MIN($A5,AA$1))-EXP(-alpha*MIN($A5,AA$1))))*LOOKUP(AA$1,'Calculated rates'!$B$4:$B$103,'Calculated rates'!$F$4:$F$104),"") ->  | AB5: =IF(AND($A5<>"",AB$1<>""),EXP(-UFRC*($A5+AB$1))*(alpha*MIN($A5,AB$1)-0.5*EXP(-alpha*MAX($A5,AB$1))*(EXP(alpha*MIN($A5,AB$1))-EXP(-alpha*MIN($A5,AB$1))))*LOOKUP(AB$1,'Calculated rates'!$B$4:$B$103,'Calculated rates'!$F$4:$F$104),"") ->  | AC5: =IF(AND($A5<>"",AC$1<>""),EXP(-UFRC*($A5+AC$1))*(alpha*MIN($A5,AC$1)-0.5*EXP(-alpha*MAX($A5,AC$1))*(EXP(alpha*MIN($A5,AC$1))-EXP(-alpha*MIN($A5,AC$1))))*LOOKUP(AC$1,'Calculated rates'!$B$4:$B$103,'Calculated rates'!$F$4:$F$104),"") ->  | AD5: =IF(AND($A5<>"",AD$1<>""),EXP(-UFRC*($A5+AD$1))*(alpha*MIN($A5,AD$1)-0.5*EXP(-alpha*MAX($A5,AD$1))*(EXP(alpha*MIN($A5,AD$1))-EXP(-alpha*MIN($A5,AD$1))))*LOOKUP(AD$1,'Calculated rates'!$B$4:$B$103,'Calculated rates'!$F$4:$F$104),"") ->  | AE5: =IF(AND($A5<>"",AE$1<>""),EXP(-UFRC*($A5+AE$1))*(alpha*MIN($A5,AE$1)-0.5*EXP(-alpha*MAX($A5,AE$1))*(EXP(alpha*MIN($A5,AE$1))-EXP(-alpha*MIN($A5,AE$1))))*LOOKUP(AE$1,'Calculated rates'!$B$4:$B$103,'Calculated rates'!$F$4:$F$104),"") ->  | AF5: =IF(AND($A5<>"",AF$1<>""),EXP(-UFRC*($A5+AF$1))*(alpha*MIN($A5,AF$1)-0.5*EXP(-alpha*MAX($A5,AF$1))*(EXP(alpha*MIN($A5,AF$1))-EXP(-alpha*MIN($A5,AF$1))))*LOOKUP(AF$1,'Calculated rates'!$B$4:$B$103,'Calculated rates'!$F$4:$F$104),"") ->  | AG5: =IF(AND($A5<>"",AG$1<>""),EXP(-UFRC*($A5+AG$1))*(alpha*MIN($A5,AG$1)-0.5*EXP(-alpha*MAX($A5,AG$1))*(EXP(alpha*MIN($A5,AG$1))-EXP(-alpha*MIN($A5,AG$1))))*LOOKUP(AG$1,'Calculated rates'!$B$4:$B$103,'Calculated rates'!$F$4:$F$104),"") ->  | AH5: =IF(AND($A5<>"",AH$1<>""),EXP(-UFRC*($A5+AH$1))*(alpha*MIN($A5,AH$1)-0.5*EXP(-alpha*MAX($A5,AH$1))*(EXP(alpha*MIN($A5,AH$1))-EXP(-alpha*MIN($A5,AH$1))))*LOOKUP(AH$1,'Calculated rates'!$B$4:$B$103,'Calculated rates'!$F$4:$F$104),"") ->  | AI5: =IF(AND($A5<>"",AI$1<>""),EXP(-UFRC*($A5+AI$1))*(alpha*MIN($A5,AI$1)-0.5*EXP(-alpha*MAX($A5,AI$1))*(EXP(alpha*MIN($A5,AI$1))-EXP(-alpha*MIN($A5,AI$1))))*LOOKUP(AI$1,'Calculated rates'!$B$4:$B$103,'Calculated rates'!$F$4:$F$104),"") ->  | AJ5: =IF(AND($A5<>"",AJ$1<>""),EXP(-UFRC*($A5+AJ$1))*(alpha*MIN($A5,AJ$1)-0.5*EXP(-alpha*MAX($A5,AJ$1))*(EXP(alpha*MIN($A5,AJ$1))-EXP(-alpha*MIN($A5,AJ$1))))*LOOKUP(AJ$1,'Calculated rates'!$B$4:$B$103,'Calculated rates'!$F$4:$F$104),"") ->  | AK5: =IF(AND($A5<>"",AK$1<>""),EXP(-UFRC*($A5+AK$1))*(alpha*MIN($A5,AK$1)-0.5*EXP(-alpha*MAX($A5,AK$1))*(EXP(alpha*MIN($A5,AK$1))-EXP(-alpha*MIN($A5,AK$1))))*LOOKUP(AK$1,'Calculated rates'!$B$4:$B$103,'Calculated rates'!$F$4:$F$104),"") ->  | AL5: =IF(AND($A5<>"",AL$1<>""),EXP(-UFRC*($A5+AL$1))*(alpha*MIN($A5,AL$1)-0.5*EXP(-alpha*MAX($A5,AL$1))*(EXP(alpha*MIN($A5,AL$1))-EXP(-alpha*MIN($A5,AL$1))))*LOOKUP(AL$1,'Calculated rates'!$B$4:$B$103,'Calculated rates'!$F$4:$F$104),"") ->  | AM5: =IF(AND($A5<>"",AM$1<>""),EXP(-UFRC*($A5+AM$1))*(alpha*MIN($A5,AM$1)-0.5*EXP(-alpha*MAX($A5,AM$1))*(EXP(alpha*MIN($A5,AM$1))-EXP(-alpha*MIN($A5,AM$1))))*LOOKUP(AM$1,'Calculated rates'!$B$4:$B$103,'Calculated rates'!$F$4:$F$104),"") ->  | AN5: =IF(AND($A5<>"",AN$1<>""),EXP(-UFRC*($A5+AN$1))*(alpha*MIN($A5,AN$1)-0.5*EXP(-alpha*MAX($A5,AN$1))*(EXP(alpha*MIN($A5,AN$1))-EXP(-alpha*MIN($A5,AN$1))))*LOOKUP(AN$1,'Calculated rates'!$B$4:$B$103,'Calculated rates'!$F$4:$F$104),"") ->  | AO5: =IF(AND($A5<>"",AO$1<>""),EXP(-UFRC*($A5+AO$1))*(alpha*MIN($A5,AO$1)-0.5*EXP(-alpha*MAX($A5,AO$1))*(EXP(alpha*MIN($A5,AO$1))-EXP(-alpha*MIN($A5,AO$1))))*LOOKUP(AO$1,'Calculated rates'!$B$4:$B$103,'Calculated rates'!$F$4:$F$104),"") ->  | AP5: =IF(AND($A5<>"",AP$1<>""),EXP(-UFRC*($A5+AP$1))*(alpha*MIN($A5,AP$1)-0.5*EXP(-alpha*MAX($A5,AP$1))*(EXP(alpha*MIN($A5,AP$1))-EXP(-alpha*MIN($A5,AP$1))))*LOOKUP(AP$1,'Calculated rates'!$B$4:$B$103,'Calculated rates'!$F$4:$F$104),"") ->  | AQ5: =IF(AND($A5<>"",AQ$1<>""),EXP(-UFRC*($A5+AQ$1))*(alpha*MIN($A5,AQ$1)-0.5*EXP(-alpha*MAX($A5,AQ$1))*(EXP(alpha*MIN($A5,AQ$1))-EXP(-alpha*MIN($A5,AQ$1))))*LOOKUP(AQ$1,'Calculated rates'!$B$4:$B$103,'Calculated rates'!$F$4:$F$104),"") ->  | AR5: =IF(AND($A5<>"",AR$1<>""),EXP(-UFRC*($A5+AR$1))*(alpha*MIN($A5,AR$1)-0.5*EXP(-alpha*MAX($A5,AR$1))*(EXP(alpha*MIN($A5,AR$1))-EXP(-alpha*MIN($A5,AR$1))))*LOOKUP(AR$1,'Calculated rates'!$B$4:$B$103,'Calculated rates'!$F$4:$F$104),"") ->  | AS5: =IF(AND($A5<>"",AS$1<>""),EXP(-UFRC*($A5+AS$1))*(alpha*MIN($A5,AS$1)-0.5*EXP(-alpha*MAX($A5,AS$1))*(EXP(alpha*MIN($A5,AS$1))-EXP(-alpha*MIN($A5,AS$1))))*LOOKUP(AS$1,'Calculated rates'!$B$4:$B$103,'Calculated rates'!$F$4:$F$104),"") ->  | AT5: =IF(AND($A5<>"",AT$1<>""),EXP(-UFRC*($A5+AT$1))*(alpha*MIN($A5,AT$1)-0.5*EXP(-alpha*MAX($A5,AT$1))*(EXP(alpha*MIN($A5,AT$1))-EXP(-alpha*MIN($A5,AT$1))))*LOOKUP(AT$1,'Calculated rates'!$B$4:$B$103,'Calculated rates'!$F$4:$F$104),"") ->  | AU5: =IF(AND($A5<>"",AU$1<>""),EXP(-UFRC*($A5+AU$1))*(alpha*MIN($A5,AU$1)-0.5*EXP(-alpha*MAX($A5,AU$1))*(EXP(alpha*MIN($A5,AU$1))-EXP(-alpha*MIN($A5,AU$1))))*LOOKUP(AU$1,'Calculated rates'!$B$4:$B$103,'Calculated rates'!$F$4:$F$104),"") ->  | AV5: =IF(AND($A5<>"",AV$1<>""),EXP(-UFRC*($A5+AV$1))*(alpha*MIN($A5,AV$1)-0.5*EXP(-alpha*MAX($A5,AV$1))*(EXP(alpha*MIN($A5,AV$1))-EXP(-alpha*MIN($A5,AV$1))))*LOOKUP(AV$1,'Calculated rates'!$B$4:$B$103,'Calculated rates'!$F$4:$F$104),"") ->  | AW5: =IF(AND($A5<>"",AW$1<>""),EXP(-UFRC*($A5+AW$1))*(alpha*MIN($A5,AW$1)-0.5*EXP(-alpha*MAX($A5,AW$1))*(EXP(alpha*MIN($A5,AW$1))-EXP(-alpha*MIN($A5,AW$1))))*LOOKUP(AW$1,'Calculated rates'!$B$4:$B$103,'Calculated rates'!$F$4:$F$104),"") ->  | AX5: =IF(AND($A5<>"",AX$1<>""),EXP(-UFRC*($A5+AX$1))*(alpha*MIN($A5,AX$1)-0.5*EXP(-alpha*MAX($A5,AX$1))*(EXP(alpha*MIN($A5,AX$1))-EXP(-alpha*MIN($A5,AX$1))))*LOOKUP(AX$1,'Calculated rates'!$B$4:$B$103,'Calculated rates'!$F$4:$F$104),"") ->  | AY5: =IF(AND($A5<>"",AY$1<>""),EXP(-UFRC*($A5+AY$1))*(alpha*MIN($A5,AY$1)-0.5*EXP(-alpha*MAX($A5,AY$1))*(EXP(alpha*MIN($A5,AY$1))-EXP(-alpha*MIN($A5,AY$1))))*LOOKUP(AY$1,'Calculated rates'!$B$4:$B$103,'Calculated rates'!$F$4:$F$104),"") ->  | AZ5: =IF(AND($A5<>"",AZ$1<>""),EXP(-UFRC*($A5+AZ$1))*(alpha*MIN($A5,AZ$1)-0.5*EXP(-alpha*MAX($A5,AZ$1))*(EXP(alpha*MIN($A5,AZ$1))-EXP(-alpha*MIN($A5,AZ$1))))*LOOKUP(AZ$1,'Calculated rates'!$B$4:$B$103,'Calculated rates'!$F$4:$F$104),"") ->  | BA5: =IF(AND($A5<>"",BA$1<>""),EXP(-UFRC*($A5+BA$1))*(alpha*MIN($A5,BA$1)-0.5*EXP(-alpha*MAX($A5,BA$1))*(EXP(alpha*MIN($A5,BA$1))-EXP(-alpha*MIN($A5,BA$1))))*LOOKUP(BA$1,'Calculated rates'!$B$4:$B$103,'Calculated rates'!$F$4:$F$104),"") ->  | BB5: =IF(AND($A5<>"",BB$1<>""),EXP(-UFRC*($A5+BB$1))*(alpha*MIN($A5,BB$1)-0.5*EXP(-alpha*MAX($A5,BB$1))*(EXP(alpha*MIN($A5,BB$1))-EXP(-alpha*MIN($A5,BB$1))))*LOOKUP(BB$1,'Calculated rates'!$B$4:$B$103,'Calculated rates'!$F$4:$F$104),"") ->  | BC5: =IF(AND($A5<>"",BC$1<>""),EXP(-UFRC*($A5+BC$1))*(alpha*MIN($A5,BC$1)-0.5*EXP(-alpha*MAX($A5,BC$1))*(EXP(alpha*MIN($A5,BC$1))-EXP(-alpha*MIN($A5,BC$1))))*LOOKUP(BC$1,'Calculated rates'!$B$4:$B$103,'Calculated rates'!$F$4:$F$104),"") ->  | BD5: =IF(AND($A5<>"",BD$1<>""),EXP(-UFRC*($A5+BD$1))*(alpha*MIN($A5,BD$1)-0.5*EXP(-alpha*MAX($A5,BD$1))*(EXP(alpha*MIN($A5,BD$1))-EXP(-alpha*MIN($A5,BD$1))))*LOOKUP(BD$1,'Calculated rates'!$B$4:$B$103,'Calculated rates'!$F$4:$F$104),"") ->  | BE5: =IF(AND($A5<>"",BE$1<>""),EXP(-UFRC*($A5+BE$1))*(alpha*MIN($A5,BE$1)-0.5*EXP(-alpha*MAX($A5,BE$1))*(EXP(alpha*MIN($A5,BE$1))-EXP(-alpha*MIN($A5,BE$1))))*LOOKUP(BE$1,'Calculated rates'!$B$4:$B$103,'Calculated rates'!$F$4:$F$104),"") ->  | BF5: =IF(AND($A5<>"",BF$1<>""),EXP(-UFRC*($A5+BF$1))*(alpha*MIN($A5,BF$1)-0.5*EXP(-alpha*MAX($A5,BF$1))*(EXP(alpha*MIN($A5,BF$1))-EXP(-alpha*MIN($A5,BF$1))))*LOOKUP(BF$1,'Calculated rates'!$B$4:$B$103,'Calculated rates'!$F$4:$F$104),"") ->  | BG5: =IF(AND($A5<>"",BG$1<>""),EXP(-UFRC*($A5+BG$1))*(alpha*MIN($A5,BG$1)-0.5*EXP(-alpha*MAX($A5,BG$1))*(EXP(alpha*MIN($A5,BG$1))-EXP(-alpha*MIN($A5,BG$1))))*LOOKUP(BG$1,'Calculated rates'!$B$4:$B$103,'Calculated rates'!$F$4:$F$104),"") ->  | BH5: =IF(AND($A5<>"",BH$1<>""),EXP(-UFRC*($A5+BH$1))*(alpha*MIN($A5,BH$1)-0.5*EXP(-alpha*MAX($A5,BH$1))*(EXP(alpha*MIN($A5,BH$1))-EXP(-alpha*MIN($A5,BH$1))))*LOOKUP(BH$1,'Calculated rates'!$B$4:$B$103,'Calculated rates'!$F$4:$F$104),"") ->  | BI5: =IF(AND($A5<>"",BI$1<>""),EXP(-UFRC*($A5+BI$1))*(alpha*MIN($A5,BI$1)-0.5*EXP(-alpha*MAX($A5,BI$1))*(EXP(alpha*MIN($A5,BI$1))-EXP(-alpha*MIN($A5,BI$1))))*LOOKUP(BI$1,'Calculated rates'!$B$4:$B$103,'Calculated rates'!$F$4:$F$104),"") ->  | BJ5: =IF(AND($A5<>"",BJ$1<>""),EXP(-UFRC*($A5+BJ$1))*(alpha*MIN($A5,BJ$1)-0.5*EXP(-alpha*MAX($A5,BJ$1))*(EXP(alpha*MIN($A5,BJ$1))-EXP(-alpha*MIN($A5,BJ$1))))*LOOKUP(BJ$1,'Calculated rates'!$B$4:$B$103,'Calculated rates'!$F$4:$F$104),"") ->  | BK5: =IF(AND($A5<>"",BK$1<>""),EXP(-UFRC*($A5+BK$1))*(alpha*MIN($A5,BK$1)-0.5*EXP(-alpha*MAX($A5,BK$1))*(EXP(alpha*MIN($A5,BK$1))-EXP(-alpha*MIN($A5,BK$1))))*LOOKUP(BK$1,'Calculated rates'!$B$4:$B$103,'Calculated rates'!$F$4:$F$104),"") ->  | BL5: =IF(AND($A5<>"",BL$1<>""),EXP(-UFRC*($A5+BL$1))*(alpha*MIN($A5,BL$1)-0.5*EXP(-alpha*MAX($A5,BL$1))*(EXP(alpha*MIN($A5,BL$1))-EXP(-alpha*MIN($A5,BL$1))))*LOOKUP(BL$1,'Calculated rates'!$B$4:$B$103,'Calculated rates'!$F$4:$F$104),"") ->  | BM5: =IF(AND($A5<>"",BM$1<>""),EXP(-UFRC*($A5+BM$1))*(alpha*MIN($A5,BM$1)-0.5*EXP(-alpha*MAX($A5,BM$1))*(EXP(alpha*MIN($A5,BM$1))-EXP(-alpha*MIN($A5,BM$1))))*LOOKUP(BM$1,'Calculated rates'!$B$4:$B$103,'Calculated rates'!$F$4:$F$104),"") ->  | BN5: =IF(AND($A5<>"",BN$1<>""),EXP(-UFRC*($A5+BN$1))*(alpha*MIN($A5,BN$1)-0.5*EXP(-alpha*MAX($A5,BN$1))*(EXP(alpha*MIN($A5,BN$1))-EXP(-alpha*MIN($A5,BN$1))))*LOOKUP(BN$1,'Calculated rates'!$B$4:$B$103,'Calculated rates'!$F$4:$F$104),"") ->  | BO5: =IF(AND($A5<>"",BO$1<>""),EXP(-UFRC*($A5+BO$1))*(alpha*MIN($A5,BO$1)-0.5*EXP(-alpha*MAX($A5,BO$1))*(EXP(alpha*MIN($A5,BO$1))-EXP(-alpha*MIN($A5,BO$1))))*LOOKUP(BO$1,'Calculated rates'!$B$4:$B$103,'Calculated rates'!$F$4:$F$104),"") ->  | BP5: =IF(AND($A5<>"",BP$1<>""),EXP(-UFRC*($A5+BP$1))*(alpha*MIN($A5,BP$1)-0.5*EXP(-alpha*MAX($A5,BP$1))*(EXP(alpha*MIN($A5,BP$1))-EXP(-alpha*MIN($A5,BP$1))))*LOOKUP(BP$1,'Calculated rates'!$B$4:$B$103,'Calculated rates'!$F$4:$F$104),"") ->  | BQ5: =IF(AND($A5<>"",BQ$1<>""),EXP(-UFRC*($A5+BQ$1))*(alpha*MIN($A5,BQ$1)-0.5*EXP(-alpha*MAX($A5,BQ$1))*(EXP(alpha*MIN($A5,BQ$1))-EXP(-alpha*MIN($A5,BQ$1))))*LOOKUP(BQ$1,'Calculated rates'!$B$4:$B$103,'Calculated rates'!$F$4:$F$104),"") ->  | BR5: =IF(AND($A5<>"",BR$1<>""),EXP(-UFRC*($A5+BR$1))*(alpha*MIN($A5,BR$1)-0.5*EXP(-alpha*MAX($A5,BR$1))*(EXP(alpha*MIN($A5,BR$1))-EXP(-alpha*MIN($A5,BR$1))))*LOOKUP(BR$1,'Calculated rates'!$B$4:$B$103,'Calculated rates'!$F$4:$F$104),"") ->  | BS5: =IF(AND($A5<>"",BS$1<>""),EXP(-UFRC*($A5+BS$1))*(alpha*MIN($A5,BS$1)-0.5*EXP(-alpha*MAX($A5,BS$1))*(EXP(alpha*MIN($A5,BS$1))-EXP(-alpha*MIN($A5,BS$1))))*LOOKUP(BS$1,'Calculated rates'!$B$4:$B$103,'Calculated rates'!$F$4:$F$104),"") ->  | BT5: =IF(AND($A5<>"",BT$1<>""),EXP(-UFRC*($A5+BT$1))*(alpha*MIN($A5,BT$1)-0.5*EXP(-alpha*MAX($A5,BT$1))*(EXP(alpha*MIN($A5,BT$1))-EXP(-alpha*MIN($A5,BT$1))))*LOOKUP(BT$1,'Calculated rates'!$B$4:$B$103,'Calculated rates'!$F$4:$F$104),"") ->  | BU5: =IF(AND($A5<>"",BU$1<>""),EXP(-UFRC*($A5+BU$1))*(alpha*MIN($A5,BU$1)-0.5*EXP(-alpha*MAX($A5,BU$1))*(EXP(alpha*MIN($A5,BU$1))-EXP(-alpha*MIN($A5,BU$1))))*LOOKUP(BU$1,'Calculated rates'!$B$4:$B$103,'Calculated rates'!$F$4:$F$104),"") ->  | BV5: =IF(AND($A5<>"",BV$1<>""),EXP(-UFRC*($A5+BV$1))*(alpha*MIN($A5,BV$1)-0.5*EXP(-alpha*MAX($A5,BV$1))*(EXP(alpha*MIN($A5,BV$1))-EXP(-alpha*MIN($A5,BV$1))))*LOOKUP(BV$1,'Calculated rates'!$B$4:$B$103,'Calculated rates'!$F$4:$F$104),"") ->  | BW5: =IF(AND($A5<>"",BW$1<>""),EXP(-UFRC*($A5+BW$1))*(alpha*MIN($A5,BW$1)-0.5*EXP(-alpha*MAX($A5,BW$1))*(EXP(alpha*MIN($A5,BW$1))-EXP(-alpha*MIN($A5,BW$1))))*LOOKUP(BW$1,'Calculated rates'!$B$4:$B$103,'Calculated rates'!$F$4:$F$104),"") ->  | BX5: =IF(AND($A5<>"",BX$1<>""),EXP(-UFRC*($A5+BX$1))*(alpha*MIN($A5,BX$1)-0.5*EXP(-alpha*MAX($A5,BX$1))*(EXP(alpha*MIN($A5,BX$1))-EXP(-alpha*MIN($A5,BX$1))))*LOOKUP(BX$1,'Calculated rates'!$B$4:$B$103,'Calculated rates'!$F$4:$F$104),"") ->  | BY5: =IF(AND($A5<>"",BY$1<>""),EXP(-UFRC*($A5+BY$1))*(alpha*MIN($A5,BY$1)-0.5*EXP(-alpha*MAX($A5,BY$1))*(EXP(alpha*MIN($A5,BY$1))-EXP(-alpha*MIN($A5,BY$1))))*LOOKUP(BY$1,'Calculated rates'!$B$4:$B$103,'Calculated rates'!$F$4:$F$104),"") ->  | BZ5: =IF(AND($A5<>"",BZ$1<>""),EXP(-UFRC*($A5+BZ$1))*(alpha*MIN($A5,BZ$1)-0.5*EXP(-alpha*MAX($A5,BZ$1))*(EXP(alpha*MIN($A5,BZ$1))-EXP(-alpha*MIN($A5,BZ$1))))*LOOKUP(BZ$1,'Calculated rates'!$B$4:$B$103,'Calculated rates'!$F$4:$F$104),"") ->  | CA5: =IF(AND($A5<>"",CA$1<>""),EXP(-UFRC*($A5+CA$1))*(alpha*MIN($A5,CA$1)-0.5*EXP(-alpha*MAX($A5,CA$1))*(EXP(alpha*MIN($A5,CA$1))-EXP(-alpha*MIN($A5,CA$1))))*LOOKUP(CA$1,'Calculated rates'!$B$4:$B$103,'Calculated rates'!$F$4:$F$104),"") ->  | CB5: =IF(AND($A5<>"",CB$1<>""),EXP(-UFRC*($A5+CB$1))*(alpha*MIN($A5,CB$1)-0.5*EXP(-alpha*MAX($A5,CB$1))*(EXP(alpha*MIN($A5,CB$1))-EXP(-alpha*MIN($A5,CB$1))))*LOOKUP(CB$1,'Calculated rates'!$B$4:$B$103,'Calculated rates'!$F$4:$F$104),"") ->  | CC5: =IF(AND($A5<>"",CC$1<>""),EXP(-UFRC*($A5+CC$1))*(alpha*MIN($A5,CC$1)-0.5*EXP(-alpha*MAX($A5,CC$1))*(EXP(alpha*MIN($A5,CC$1))-EXP(-alpha*MIN($A5,CC$1))))*LOOKUP(CC$1,'Calculated rates'!$B$4:$B$103,'Calculated rates'!$F$4:$F$104),"") ->  | CD5: =IF(AND($A5<>"",CD$1<>""),EXP(-UFRC*($A5+CD$1))*(alpha*MIN($A5,CD$1)-0.5*EXP(-alpha*MAX($A5,CD$1))*(EXP(alpha*MIN($A5,CD$1))-EXP(-alpha*MIN($A5,CD$1))))*LOOKUP(CD$1,'Calculated rates'!$B$4:$B$103,'Calculated rates'!$F$4:$F$104),"") ->  | CE5: =IF(AND($A5<>"",CE$1<>""),EXP(-UFRC*($A5+CE$1))*(alpha*MIN($A5,CE$1)-0.5*EXP(-alpha*MAX($A5,CE$1))*(EXP(alpha*MIN($A5,CE$1))-EXP(-alpha*MIN($A5,CE$1))))*LOOKUP(CE$1,'Calculated rates'!$B$4:$B$103,'Calculated rates'!$F$4:$F$104),"") ->  | CF5: =IF(AND($A5<>"",CF$1<>""),EXP(-UFRC*($A5+CF$1))*(alpha*MIN($A5,CF$1)-0.5*EXP(-alpha*MAX($A5,CF$1))*(EXP(alpha*MIN($A5,CF$1))-EXP(-alpha*MIN($A5,CF$1))))*LOOKUP(CF$1,'Calculated rates'!$B$4:$B$103,'Calculated rates'!$F$4:$F$104),"") ->  | CG5: =IF(AND($A5<>"",CG$1<>""),EXP(-UFRC*($A5+CG$1))*(alpha*MIN($A5,CG$1)-0.5*EXP(-alpha*MAX($A5,CG$1))*(EXP(alpha*MIN($A5,CG$1))-EXP(-alpha*MIN($A5,CG$1))))*LOOKUP(CG$1,'Calculated rates'!$B$4:$B$103,'Calculated rates'!$F$4:$F$104),"") ->  | CH5: =IF(AND($A5<>"",CH$1<>""),EXP(-UFRC*($A5+CH$1))*(alpha*MIN($A5,CH$1)-0.5*EXP(-alpha*MAX($A5,CH$1))*(EXP(alpha*MIN($A5,CH$1))-EXP(-alpha*MIN($A5,CH$1))))*LOOKUP(CH$1,'Calculated rates'!$B$4:$B$103,'Calculated rates'!$F$4:$F$104),"") ->  | CI5: =IF(AND($A5<>"",CI$1<>""),EXP(-UFRC*($A5+CI$1))*(alpha*MIN($A5,CI$1)-0.5*EXP(-alpha*MAX($A5,CI$1))*(EXP(alpha*MIN($A5,CI$1))-EXP(-alpha*MIN($A5,CI$1))))*LOOKUP(CI$1,'Calculated rates'!$B$4:$B$103,'Calculated rates'!$F$4:$F$104),"") ->  | CJ5: =IF(AND($A5<>"",CJ$1<>""),EXP(-UFRC*($A5+CJ$1))*(alpha*MIN($A5,CJ$1)-0.5*EXP(-alpha*MAX($A5,CJ$1))*(EXP(alpha*MIN($A5,CJ$1))-EXP(-alpha*MIN($A5,CJ$1))))*LOOKUP(CJ$1,'Calculated rates'!$B$4:$B$103,'Calculated rates'!$F$4:$F$104),"") ->  | CK5: =IF(AND($A5<>"",CK$1<>""),EXP(-UFRC*($A5+CK$1))*(alpha*MIN($A5,CK$1)-0.5*EXP(-alpha*MAX($A5,CK$1))*(EXP(alpha*MIN($A5,CK$1))-EXP(-alpha*MIN($A5,CK$1))))*LOOKUP(CK$1,'Calculated rates'!$B$4:$B$103,'Calculated rates'!$F$4:$F$104),"") ->  | CL5: =IF(AND($A5<>"",CL$1<>""),EXP(-UFRC*($A5+CL$1))*(alpha*MIN($A5,CL$1)-0.5*EXP(-alpha*MAX($A5,CL$1))*(EXP(alpha*MIN($A5,CL$1))-EXP(-alpha*MIN($A5,CL$1))))*LOOKUP(CL$1,'Calculated rates'!$B$4:$B$103,'Calculated rates'!$F$4:$F$104),"") ->  | CM5: =IF(AND($A5<>"",CM$1<>""),EXP(-UFRC*($A5+CM$1))*(alpha*MIN($A5,CM$1)-0.5*EXP(-alpha*MAX($A5,CM$1))*(EXP(alpha*MIN($A5,CM$1))-EXP(-alpha*MIN($A5,CM$1))))*LOOKUP(CM$1,'Calculated rates'!$B$4:$B$103,'Calculated rates'!$F$4:$F$104),"") ->  | CN5: =IF(AND($A5<>"",CN$1<>""),EXP(-UFRC*($A5+CN$1))*(alpha*MIN($A5,CN$1)-0.5*EXP(-alpha*MAX($A5,CN$1))*(EXP(alpha*MIN($A5,CN$1))-EXP(-alpha*MIN($A5,CN$1))))*LOOKUP(CN$1,'Calculated rates'!$B$4:$B$103,'Calculated rates'!$F$4:$F$104),"") ->  | CO5: =IF(AND($A5<>"",CO$1<>""),EXP(-UFRC*($A5+CO$1))*(alpha*MIN($A5,CO$1)-0.5*EXP(-alpha*MAX($A5,CO$1))*(EXP(alpha*MIN($A5,CO$1))-EXP(-alpha*MIN($A5,CO$1))))*LOOKUP(CO$1,'Calculated rates'!$B$4:$B$103,'Calculated rates'!$F$4:$F$104),"") ->  | CP5: =IF(AND($A5<>"",CP$1<>""),EXP(-UFRC*($A5+CP$1))*(alpha*MIN($A5,CP$1)-0.5*EXP(-alpha*MAX($A5,CP$1))*(EXP(alpha*MIN($A5,CP$1))-EXP(-alpha*MIN($A5,CP$1))))*LOOKUP(CP$1,'Calculated rates'!$B$4:$B$103,'Calculated rates'!$F$4:$F$104),"") ->  | CQ5: =IF(AND($A5<>"",CQ$1<>""),EXP(-UFRC*($A5+CQ$1))*(alpha*MIN($A5,CQ$1)-0.5*EXP(-alpha*MAX($A5,CQ$1))*(EXP(alpha*MIN($A5,CQ$1))-EXP(-alpha*MIN($A5,CQ$1))))*LOOKUP(CQ$1,'Calculated rates'!$B$4:$B$103,'Calculated rates'!$F$4:$F$104),"") ->  | CR5: =IF(AND($A5<>"",CR$1<>""),EXP(-UFRC*($A5+CR$1))*(alpha*MIN($A5,CR$1)-0.5*EXP(-alpha*MAX($A5,CR$1))*(EXP(alpha*MIN($A5,CR$1))-EXP(-alpha*MIN($A5,CR$1))))*LOOKUP(CR$1,'Calculated rates'!$B$4:$B$103,'Calculated rates'!$F$4:$F$104),"") ->  | CS5: =IF(AND($A5<>"",CS$1<>""),EXP(-UFRC*($A5+CS$1))*(alpha*MIN($A5,CS$1)-0.5*EXP(-alpha*MAX($A5,CS$1))*(EXP(alpha*MIN($A5,CS$1))-EXP(-alpha*MIN($A5,CS$1))))*LOOKUP(CS$1,'Calculated rates'!$B$4:$B$103,'Calculated rates'!$F$4:$F$104),"") ->  | CT5: =IF(AND($A5<>"",CT$1<>""),EXP(-UFRC*($A5+CT$1))*(alpha*MIN($A5,CT$1)-0.5*EXP(-alpha*MAX($A5,CT$1))*(EXP(alpha*MIN($A5,CT$1))-EXP(-alpha*MIN($A5,CT$1))))*LOOKUP(CT$1,'Calculated rates'!$B$4:$B$103,'Calculated rates'!$F$4:$F$104),"") ->  | CU5: =IF(AND($A5<>"",CU$1<>""),EXP(-UFRC*($A5+CU$1))*(alpha*MIN($A5,CU$1)-0.5*EXP(-alpha*MAX($A5,CU$1))*(EXP(alpha*MIN($A5,CU$1))-EXP(-alpha*MIN($A5,CU$1))))*LOOKUP(CU$1,'Calculated rates'!$B$4:$B$103,'Calculated rates'!$F$4:$F$104),"") ->  | CV5: =IF(AND($A5<>"",CV$1<>""),EXP(-UFRC*($A5+CV$1))*(alpha*MIN($A5,CV$1)-0.5*EXP(-alpha*MAX($A5,CV$1))*(EXP(alpha*MIN($A5,CV$1))-EXP(-alpha*MIN($A5,CV$1))))*LOOKUP(CV$1,'Calculated rates'!$B$4:$B$103,'Calculated rates'!$F$4:$F$104),"") ->  | CW5: =IF(AND($A5<>"",CW$1<>""),EXP(-UFRC*($A5+CW$1))*(alpha*MIN($A5,CW$1)-0.5*EXP(-alpha*MAX($A5,CW$1))*(EXP(alpha*MIN($A5,CW$1))-EXP(-alpha*MIN($A5,CW$1))))*LOOKUP(CW$1,'Calculated rates'!$B$4:$B$103,'Calculated rates'!$F$4:$F$104),"") ->  | CX5: =IF(AND($A5<>"",CX$1<>""),EXP(-UFRC*($A5+CX$1))*(alpha*MIN($A5,CX$1)-0.5*EXP(-alpha*MAX($A5,CX$1))*(EXP(alpha*MIN($A5,CX$1))-EXP(-alpha*MIN($A5,CX$1))))*LOOKUP(CX$1,'Calculated rates'!$B$4:$B$103,'Calculated rates'!$F$4:$F$104),"") ->  | CY5: =IF(AND($A5<>"",CY$1<>""),EXP(-UFRC*($A5+CY$1))*(alpha*MIN($A5,CY$1)-0.5*EXP(-alpha*MAX($A5,CY$1))*(EXP(alpha*MIN($A5,CY$1))-EXP(-alpha*MIN($A5,CY$1))))*LOOKUP(CY$1,'Calculated rates'!$B$4:$B$103,'Calculated rates'!$F$4:$F$104),"") -> 
A6: ='Calculated rates'!J7 -> 4 | B6: 0.01155645342 | C6: 0.954826325 | D6: =IF(AND($A6<>"",D$1<>""),EXP(-UFRC*($A6+D$1))*(alpha*MIN($A6,D$1)-0.5*EXP(-alpha*MAX($A6,D$1))*(EXP(alpha*MIN($A6,D$1))-EXP(-alpha*MIN($A6,D$1))))*LOOKUP(D$1,'Calculated rates'!$B$4:$B$103,'Calculated rates'!$F$4:$F$104),"") -> 0.02007536213 | E6: =IF(AND($A6<>"",E$1<>""),EXP(-UFRC*($A6+E$1))*(alpha*MIN($A6,E$1)-0.5*EXP(-alpha*MAX($A6,E$1))*(EXP(alpha*MIN($A6,E$1))-EXP(-alpha*MIN($A6,E$1))))*LOOKUP(E$1,'Calculated rates'!$B$4:$B$103,'Calculated rates'!$F$4:$F$104),"") -> 0.000547184064 | F6: =IF(AND($A6<>"",F$1<>""),EXP(-UFRC*($A6+F$1))*(alpha*MIN($A6,F$1)-0.5*EXP(-alpha*MAX($A6,F$1))*(EXP(alpha*MIN($A6,F$1))-EXP(-alpha*MIN($A6,F$1))))*LOOKUP(F$1,'Calculated rates'!$B$4:$B$103,'Calculated rates'!$F$4:$F$104),"") -> 0.004895028688 | G6: =IF(AND($A6<>"",G$1<>""),EXP(-UFRC*($A6+G$1))*(alpha*MIN($A6,G$1)-0.5*EXP(-alpha*MAX($A6,G$1))*(EXP(alpha*MIN($A6,G$1))-EXP(-alpha*MIN($A6,G$1))))*LOOKUP(G$1,'Calculated rates'!$B$4:$B$103,'Calculated rates'!$F$4:$F$104),"") -> 0.03886373454 | H6: =IF(AND($A6<>"",H$1<>""),EXP(-UFRC*($A6+H$1))*(alpha*MIN($A6,H$1)-0.5*EXP(-alpha*MAX($A6,H$1))*(EXP(alpha*MIN($A6,H$1))-EXP(-alpha*MIN($A6,H$1))))*LOOKUP(H$1,'Calculated rates'!$B$4:$B$103,'Calculated rates'!$F$4:$F$104),"") -> -0.1011519633 | I6: =IF(AND($A6<>"",I$1<>""),EXP(-UFRC*($A6+I$1))*(alpha*MIN($A6,I$1)-0.5*EXP(-alpha*MAX($A6,I$1))*(EXP(alpha*MIN($A6,I$1))-EXP(-alpha*MIN($A6,I$1))))*LOOKUP(I$1,'Calculated rates'!$B$4:$B$103,'Calculated rates'!$F$4:$F$104),"") -> 0.4889436941 | J6: =IF(AND($A6<>"",J$1<>""),EXP(-UFRC*($A6+J$1))*(alpha*MIN($A6,J$1)-0.5*EXP(-alpha*MAX($A6,J$1))*(EXP(alpha*MIN($A6,J$1))-EXP(-alpha*MIN($A6,J$1))))*LOOKUP(J$1,'Calculated rates'!$B$4:$B$103,'Calculated rates'!$F$4:$F$104),"") -> -0.6469393966 | K6: =IF(AND($A6<>"",K$1<>""),EXP(-UFRC*($A6+K$1))*(alpha*MIN($A6,K$1)-0.5*EXP(-alpha*MAX($A6,K$1))*(EXP(alpha*MIN($A6,K$1))-EXP(-alpha*MIN($A6,K$1))))*LOOKUP(K$1,'Calculated rates'!$B$4:$B$103,'Calculated rates'!$F$4:$F$104),"") -> 0.02644975369 | L6: =IF(AND($A6<>"",L$1<>""),EXP(-UFRC*($A6+L$1))*(alpha*MIN($A6,L$1)-0.5*EXP(-alpha*MAX($A6,L$1))*(EXP(alpha*MIN($A6,L$1))-EXP(-alpha*MIN($A6,L$1))))*LOOKUP(L$1,'Calculated rates'!$B$4:$B$103,'Calculated rates'!$F$4:$F$104),"") -> 0.8022552294 | M6: =IF(AND($A6<>"",M$1<>""),EXP(-UFRC*($A6+M$1))*(alpha*MIN($A6,M$1)-0.5*EXP(-alpha*MAX($A6,M$1))*(EXP(alpha*MIN($A6,M$1))-EXP(-alpha*MIN($A6,M$1))))*LOOKUP(M$1,'Calculated rates'!$B$4:$B$103,'Calculated rates'!$F$4:$F$104),"") -> -0.9997083597 | N6: =IF(AND($A6<>"",N$1<>""),EXP(-UFRC*($A6+N$1))*(alpha*MIN($A6,N$1)-0.5*EXP(-alpha*MAX($A6,N$1))*(EXP(alpha*MIN($A6,N$1))-EXP(-alpha*MIN($A6,N$1))))*LOOKUP(N$1,'Calculated rates'!$B$4:$B$103,'Calculated rates'!$F$4:$F$104),"") -> 0.519616034 | O6: =IF(AND($A6<>"",O$1<>""),EXP(-UFRC*($A6+O$1))*(alpha*MIN($A6,O$1)-0.5*EXP(-alpha*MAX($A6,O$1))*(EXP(alpha*MIN($A6,O$1))-EXP(-alpha*MIN($A6,O$1))))*LOOKUP(O$1,'Calculated rates'!$B$4:$B$103,'Calculated rates'!$F$4:$F$104),"") -> -0.09452533184 | P6: =IF(AND($A6<>"",P$1<>""),EXP(-UFRC*($A6+P$1))*(alpha*MIN($A6,P$1)-0.5*EXP(-alpha*MAX($A6,P$1))*(EXP(alpha*MIN($A6,P$1))-EXP(-alpha*MIN($A6,P$1))))*LOOKUP(P$1,'Calculated rates'!$B$4:$B$103,'Calculated rates'!$F$4:$F$104),"") -> -0.1198614151 | Q6: =IF(AND($A6<>"",Q$1<>""),EXP(-UFRC*($A6+Q$1))*(alpha*MIN($A6,Q$1)-0.5*EXP(-alpha*MAX($A6,Q$1))*(EXP(alpha*MIN($A6,Q$1))-EXP(-alpha*MIN($A6,Q$1))))*LOOKUP(Q$1,'Calculated rates'!$B$4:$B$103,'Calculated rates'!$F$4:$F$104),"") -> 0.6021584428 | R6: =IF(AND($A6<>"",R$1<>""),EXP(-UFRC*($A6+R$1))*(alpha*MIN($A6,R$1)-0.5*EXP(-alpha*MAX($A6,R$1))*(EXP(alpha*MIN($A6,R$1))-EXP(-alpha*MIN($A6,R$1))))*LOOKUP(R$1,'Calculated rates'!$B$4:$B$103,'Calculated rates'!$F$4:$F$104),"") -> -0.9538442549 | S6: =IF(AND($A6<>"",S$1<>""),EXP(-UFRC*($A6+S$1))*(alpha*MIN($A6,S$1)-0.5*EXP(-alpha*MAX($A6,S$1))*(EXP(alpha*MIN($A6,S$1))-EXP(-alpha*MIN($A6,S$1))))*LOOKUP(S$1,'Calculated rates'!$B$4:$B$103,'Calculated rates'!$F$4:$F$104),"") -> 0.5582034373 | T6: =IF(AND($A6<>"",T$1<>""),EXP(-UFRC*($A6+T$1))*(alpha*MIN($A6,T$1)-0.5*EXP(-alpha*MAX($A6,T$1))*(EXP(alpha*MIN($A6,T$1))-EXP(-alpha*MIN($A6,T$1))))*LOOKUP(T$1,'Calculated rates'!$B$4:$B$103,'Calculated rates'!$F$4:$F$104),"") -> -0.1719636289 | U6: =IF(AND($A6<>"",U$1<>""),EXP(-UFRC*($A6+U$1))*(alpha*MIN($A6,U$1)-0.5*EXP(-alpha*MAX($A6,U$1))*(EXP(alpha*MIN($A6,U$1))-EXP(-alpha*MIN($A6,U$1))))*LOOKUP(U$1,'Calculated rates'!$B$4:$B$103,'Calculated rates'!$F$4:$F$104),"") -> 0.1221647045 | V6: =IF(AND($A6<>"",V$1<>""),EXP(-UFRC*($A6+V$1))*(alpha*MIN($A6,V$1)-0.5*EXP(-alpha*MAX($A6,V$1))*(EXP(alpha*MIN($A6,V$1))-EXP(-alpha*MIN($A6,V$1))))*LOOKUP(V$1,'Calculated rates'!$B$4:$B$103,'Calculated rates'!$F$4:$F$104),"") -> -0.3348933494 | W6: =IF(AND($A6<>"",W$1<>""),EXP(-UFRC*($A6+W$1))*(alpha*MIN($A6,W$1)-0.5*EXP(-alpha*MAX($A6,W$1))*(EXP(alpha*MIN($A6,W$1))-EXP(-alpha*MIN($A6,W$1))))*LOOKUP(W$1,'Calculated rates'!$B$4:$B$103,'Calculated rates'!$F$4:$F$104),"") -> 0.345281154 | X6: =IF(AND($A6<>"",X$1<>""),EXP(-UFRC*($A6+X$1))*(alpha*MIN($A6,X$1)-0.5*EXP(-alpha*MAX($A6,X$1))*(EXP(alpha*MIN($A6,X$1))-EXP(-alpha*MIN($A6,X$1))))*LOOKUP(X$1,'Calculated rates'!$B$4:$B$103,'Calculated rates'!$F$4:$F$104),"") ->  | Y6: =IF(AND($A6<>"",Y$1<>""),EXP(-UFRC*($A6+Y$1))*(alpha*MIN($A6,Y$1)-0.5*EXP(-alpha*MAX($A6,Y$1))*(EXP(alpha*MIN($A6,Y$1))-EXP(-alpha*MIN($A6,Y$1))))*LOOKUP(Y$1,'Calculated rates'!$B$4:$B$103,'Calculated rates'!$F$4:$F$104),"") ->  | Z6: =IF(AND($A6<>"",Z$1<>""),EXP(-UFRC*($A6+Z$1))*(alpha*MIN($A6,Z$1)-0.5*EXP(-alpha*MAX($A6,Z$1))*(EXP(alpha*MIN($A6,Z$1))-EXP(-alpha*MIN($A6,Z$1))))*LOOKUP(Z$1,'Calculated rates'!$B$4:$B$103,'Calculated rates'!$F$4:$F$104),"") ->  | AA6: =IF(AND($A6<>"",AA$1<>""),EXP(-UFRC*($A6+AA$1))*(alpha*MIN($A6,AA$1)-0.5*EXP(-alpha*MAX($A6,AA$1))*(EXP(alpha*MIN($A6,AA$1))-EXP(-alpha*MIN($A6,AA$1))))*LOOKUP(AA$1,'Calculated rates'!$B$4:$B$103,'Calculated rates'!$F$4:$F$104),"") ->  | AB6: =IF(AND($A6<>"",AB$1<>""),EXP(-UFRC*($A6+AB$1))*(alpha*MIN($A6,AB$1)-0.5*EXP(-alpha*MAX($A6,AB$1))*(EXP(alpha*MIN($A6,AB$1))-EXP(-alpha*MIN($A6,AB$1))))*LOOKUP(AB$1,'Calculated rates'!$B$4:$B$103,'Calculated rates'!$F$4:$F$104),"") ->  | AC6: =IF(AND($A6<>"",AC$1<>""),EXP(-UFRC*($A6+AC$1))*(alpha*MIN($A6,AC$1)-0.5*EXP(-alpha*MAX($A6,AC$1))*(EXP(alpha*MIN($A6,AC$1))-EXP(-alpha*MIN($A6,AC$1))))*LOOKUP(AC$1,'Calculated rates'!$B$4:$B$103,'Calculated rates'!$F$4:$F$104),"") ->  | AD6: =IF(AND($A6<>"",AD$1<>""),EXP(-UFRC*($A6+AD$1))*(alpha*MIN($A6,AD$1)-0.5*EXP(-alpha*MAX($A6,AD$1))*(EXP(alpha*MIN($A6,AD$1))-EXP(-alpha*MIN($A6,AD$1))))*LOOKUP(AD$1,'Calculated rates'!$B$4:$B$103,'Calculated rates'!$F$4:$F$104),"") ->  | AE6: =IF(AND($A6<>"",AE$1<>""),EXP(-UFRC*($A6+AE$1))*(alpha*MIN($A6,AE$1)-0.5*EXP(-alpha*MAX($A6,AE$1))*(EXP(alpha*MIN($A6,AE$1))-EXP(-alpha*MIN($A6,AE$1))))*LOOKUP(AE$1,'Calculated rates'!$B$4:$B$103,'Calculated rates'!$F$4:$F$104),"") ->  | AF6: =IF(AND($A6<>"",AF$1<>""),EXP(-UFRC*($A6+AF$1))*(alpha*MIN($A6,AF$1)-0.5*EXP(-alpha*MAX($A6,AF$1))*(EXP(alpha*MIN($A6,AF$1))-EXP(-alpha*MIN($A6,AF$1))))*LOOKUP(AF$1,'Calculated rates'!$B$4:$B$103,'Calculated rates'!$F$4:$F$104),"") ->  | AG6: =IF(AND($A6<>"",AG$1<>""),EXP(-UFRC*($A6+AG$1))*(alpha*MIN($A6,AG$1)-0.5*EXP(-alpha*MAX($A6,AG$1))*(EXP(alpha*MIN($A6,AG$1))-EXP(-alpha*MIN($A6,AG$1))))*LOOKUP(AG$1,'Calculated rates'!$B$4:$B$103,'Calculated rates'!$F$4:$F$104),"") ->  | AH6: =IF(AND($A6<>"",AH$1<>""),EXP(-UFRC*($A6+AH$1))*(alpha*MIN($A6,AH$1)-0.5*EXP(-alpha*MAX($A6,AH$1))*(EXP(alpha*MIN($A6,AH$1))-EXP(-alpha*MIN($A6,AH$1))))*LOOKUP(AH$1,'Calculated rates'!$B$4:$B$103,'Calculated rates'!$F$4:$F$104),"") ->  | AI6: =IF(AND($A6<>"",AI$1<>""),EXP(-UFRC*($A6+AI$1))*(alpha*MIN($A6,AI$1)-0.5*EXP(-alpha*MAX($A6,AI$1))*(EXP(alpha*MIN($A6,AI$1))-EXP(-alpha*MIN($A6,AI$1))))*LOOKUP(AI$1,'Calculated rates'!$B$4:$B$103,'Calculated rates'!$F$4:$F$104),"") ->  | AJ6: =IF(AND($A6<>"",AJ$1<>""),EXP(-UFRC*($A6+AJ$1))*(alpha*MIN($A6,AJ$1)-0.5*EXP(-alpha*MAX($A6,AJ$1))*(EXP(alpha*MIN($A6,AJ$1))-EXP(-alpha*MIN($A6,AJ$1))))*LOOKUP(AJ$1,'Calculated rates'!$B$4:$B$103,'Calculated rates'!$F$4:$F$104),"") ->  | AK6: =IF(AND($A6<>"",AK$1<>""),EXP(-UFRC*($A6+AK$1))*(alpha*MIN($A6,AK$1)-0.5*EXP(-alpha*MAX($A6,AK$1))*(EXP(alpha*MIN($A6,AK$1))-EXP(-alpha*MIN($A6,AK$1))))*LOOKUP(AK$1,'Calculated rates'!$B$4:$B$103,'Calculated rates'!$F$4:$F$104),"") ->  | AL6: =IF(AND($A6<>"",AL$1<>""),EXP(-UFRC*($A6+AL$1))*(alpha*MIN($A6,AL$1)-0.5*EXP(-alpha*MAX($A6,AL$1))*(EXP(alpha*MIN($A6,AL$1))-EXP(-alpha*MIN($A6,AL$1))))*LOOKUP(AL$1,'Calculated rates'!$B$4:$B$103,'Calculated rates'!$F$4:$F$104),"") ->  | AM6: =IF(AND($A6<>"",AM$1<>""),EXP(-UFRC*($A6+AM$1))*(alpha*MIN($A6,AM$1)-0.5*EXP(-alpha*MAX($A6,AM$1))*(EXP(alpha*MIN($A6,AM$1))-EXP(-alpha*MIN($A6,AM$1))))*LOOKUP(AM$1,'Calculated rates'!$B$4:$B$103,'Calculated rates'!$F$4:$F$104),"") ->  | AN6: =IF(AND($A6<>"",AN$1<>""),EXP(-UFRC*($A6+AN$1))*(alpha*MIN($A6,AN$1)-0.5*EXP(-alpha*MAX($A6,AN$1))*(EXP(alpha*MIN($A6,AN$1))-EXP(-alpha*MIN($A6,AN$1))))*LOOKUP(AN$1,'Calculated rates'!$B$4:$B$103,'Calculated rates'!$F$4:$F$104),"") ->  | AO6: =IF(AND($A6<>"",AO$1<>""),EXP(-UFRC*($A6+AO$1))*(alpha*MIN($A6,AO$1)-0.5*EXP(-alpha*MAX($A6,AO$1))*(EXP(alpha*MIN($A6,AO$1))-EXP(-alpha*MIN($A6,AO$1))))*LOOKUP(AO$1,'Calculated rates'!$B$4:$B$103,'Calculated rates'!$F$4:$F$104),"") ->  | AP6: =IF(AND($A6<>"",AP$1<>""),EXP(-UFRC*($A6+AP$1))*(alpha*MIN($A6,AP$1)-0.5*EXP(-alpha*MAX($A6,AP$1))*(EXP(alpha*MIN($A6,AP$1))-EXP(-alpha*MIN($A6,AP$1))))*LOOKUP(AP$1,'Calculated rates'!$B$4:$B$103,'Calculated rates'!$F$4:$F$104),"") ->  | AQ6: =IF(AND($A6<>"",AQ$1<>""),EXP(-UFRC*($A6+AQ$1))*(alpha*MIN($A6,AQ$1)-0.5*EXP(-alpha*MAX($A6,AQ$1))*(EXP(alpha*MIN($A6,AQ$1))-EXP(-alpha*MIN($A6,AQ$1))))*LOOKUP(AQ$1,'Calculated rates'!$B$4:$B$103,'Calculated rates'!$F$4:$F$104),"") ->  | AR6: =IF(AND($A6<>"",AR$1<>""),EXP(-UFRC*($A6+AR$1))*(alpha*MIN($A6,AR$1)-0.5*EXP(-alpha*MAX($A6,AR$1))*(EXP(alpha*MIN($A6,AR$1))-EXP(-alpha*MIN($A6,AR$1))))*LOOKUP(AR$1,'Calculated rates'!$B$4:$B$103,'Calculated rates'!$F$4:$F$104),"") ->  | AS6: =IF(AND($A6<>"",AS$1<>""),EXP(-UFRC*($A6+AS$1))*(alpha*MIN($A6,AS$1)-0.5*EXP(-alpha*MAX($A6,AS$1))*(EXP(alpha*MIN($A6,AS$1))-EXP(-alpha*MIN($A6,AS$1))))*LOOKUP(AS$1,'Calculated rates'!$B$4:$B$103,'Calculated rates'!$F$4:$F$104),"") ->  | AT6: =IF(AND($A6<>"",AT$1<>""),EXP(-UFRC*($A6+AT$1))*(alpha*MIN($A6,AT$1)-0.5*EXP(-alpha*MAX($A6,AT$1))*(EXP(alpha*MIN($A6,AT$1))-EXP(-alpha*MIN($A6,AT$1))))*LOOKUP(AT$1,'Calculated rates'!$B$4:$B$103,'Calculated rates'!$F$4:$F$104),"") ->  | AU6: =IF(AND($A6<>"",AU$1<>""),EXP(-UFRC*($A6+AU$1))*(alpha*MIN($A6,AU$1)-0.5*EXP(-alpha*MAX($A6,AU$1))*(EXP(alpha*MIN($A6,AU$1))-EXP(-alpha*MIN($A6,AU$1))))*LOOKUP(AU$1,'Calculated rates'!$B$4:$B$103,'Calculated rates'!$F$4:$F$104),"") ->  | AV6: =IF(AND($A6<>"",AV$1<>""),EXP(-UFRC*($A6+AV$1))*(alpha*MIN($A6,AV$1)-0.5*EXP(-alpha*MAX($A6,AV$1))*(EXP(alpha*MIN($A6,AV$1))-EXP(-alpha*MIN($A6,AV$1))))*LOOKUP(AV$1,'Calculated rates'!$B$4:$B$103,'Calculated rates'!$F$4:$F$104),"") ->  | AW6: =IF(AND($A6<>"",AW$1<>""),EXP(-UFRC*($A6+AW$1))*(alpha*MIN($A6,AW$1)-0.5*EXP(-alpha*MAX($A6,AW$1))*(EXP(alpha*MIN($A6,AW$1))-EXP(-alpha*MIN($A6,AW$1))))*LOOKUP(AW$1,'Calculated rates'!$B$4:$B$103,'Calculated rates'!$F$4:$F$104),"") ->  | AX6: =IF(AND($A6<>"",AX$1<>""),EXP(-UFRC*($A6+AX$1))*(alpha*MIN($A6,AX$1)-0.5*EXP(-alpha*MAX($A6,AX$1))*(EXP(alpha*MIN($A6,AX$1))-EXP(-alpha*MIN($A6,AX$1))))*LOOKUP(AX$1,'Calculated rates'!$B$4:$B$103,'Calculated rates'!$F$4:$F$104),"") ->  | AY6: =IF(AND($A6<>"",AY$1<>""),EXP(-UFRC*($A6+AY$1))*(alpha*MIN($A6,AY$1)-0.5*EXP(-alpha*MAX($A6,AY$1))*(EXP(alpha*MIN($A6,AY$1))-EXP(-alpha*MIN($A6,AY$1))))*LOOKUP(AY$1,'Calculated rates'!$B$4:$B$103,'Calculated rates'!$F$4:$F$104),"") ->  | AZ6: =IF(AND($A6<>"",AZ$1<>""),EXP(-UFRC*($A6+AZ$1))*(alpha*MIN($A6,AZ$1)-0.5*EXP(-alpha*MAX($A6,AZ$1))*(EXP(alpha*MIN($A6,AZ$1))-EXP(-alpha*MIN($A6,AZ$1))))*LOOKUP(AZ$1,'Calculated rates'!$B$4:$B$103,'Calculated rates'!$F$4:$F$104),"") ->  | BA6: =IF(AND($A6<>"",BA$1<>""),EXP(-UFRC*($A6+BA$1))*(alpha*MIN($A6,BA$1)-0.5*EXP(-alpha*MAX($A6,BA$1))*(EXP(alpha*MIN($A6,BA$1))-EXP(-alpha*MIN($A6,BA$1))))*LOOKUP(BA$1,'Calculated rates'!$B$4:$B$103,'Calculated rates'!$F$4:$F$104),"") ->  | BB6: =IF(AND($A6<>"",BB$1<>""),EXP(-UFRC*($A6+BB$1))*(alpha*MIN($A6,BB$1)-0.5*EXP(-alpha*MAX($A6,BB$1))*(EXP(alpha*MIN($A6,BB$1))-EXP(-alpha*MIN($A6,BB$1))))*LOOKUP(BB$1,'Calculated rates'!$B$4:$B$103,'Calculated rates'!$F$4:$F$104),"") ->  | BC6: =IF(AND($A6<>"",BC$1<>""),EXP(-UFRC*($A6+BC$1))*(alpha*MIN($A6,BC$1)-0.5*EXP(-alpha*MAX($A6,BC$1))*(EXP(alpha*MIN($A6,BC$1))-EXP(-alpha*MIN($A6,BC$1))))*LOOKUP(BC$1,'Calculated rates'!$B$4:$B$103,'Calculated rates'!$F$4:$F$104),"") ->  | BD6: =IF(AND($A6<>"",BD$1<>""),EXP(-UFRC*($A6+BD$1))*(alpha*MIN($A6,BD$1)-0.5*EXP(-alpha*MAX($A6,BD$1))*(EXP(alpha*MIN($A6,BD$1))-EXP(-alpha*MIN($A6,BD$1))))*LOOKUP(BD$1,'Calculated rates'!$B$4:$B$103,'Calculated rates'!$F$4:$F$104),"") ->  | BE6: =IF(AND($A6<>"",BE$1<>""),EXP(-UFRC*($A6+BE$1))*(alpha*MIN($A6,BE$1)-0.5*EXP(-alpha*MAX($A6,BE$1))*(EXP(alpha*MIN($A6,BE$1))-EXP(-alpha*MIN($A6,BE$1))))*LOOKUP(BE$1,'Calculated rates'!$B$4:$B$103,'Calculated rates'!$F$4:$F$104),"") ->  | BF6: =IF(AND($A6<>"",BF$1<>""),EXP(-UFRC*($A6+BF$1))*(alpha*MIN($A6,BF$1)-0.5*EXP(-alpha*MAX($A6,BF$1))*(EXP(alpha*MIN($A6,BF$1))-EXP(-alpha*MIN($A6,BF$1))))*LOOKUP(BF$1,'Calculated rates'!$B$4:$B$103,'Calculated rates'!$F$4:$F$104),"") ->  | BG6: =IF(AND($A6<>"",BG$1<>""),EXP(-UFRC*($A6+BG$1))*(alpha*MIN($A6,BG$1)-0.5*EXP(-alpha*MAX($A6,BG$1))*(EXP(alpha*MIN($A6,BG$1))-EXP(-alpha*MIN($A6,BG$1))))*LOOKUP(BG$1,'Calculated rates'!$B$4:$B$103,'Calculated rates'!$F$4:$F$104),"") ->  | BH6: =IF(AND($A6<>"",BH$1<>""),EXP(-UFRC*($A6+BH$1))*(alpha*MIN($A6,BH$1)-0.5*EXP(-alpha*MAX($A6,BH$1))*(EXP(alpha*MIN($A6,BH$1))-EXP(-alpha*MIN($A6,BH$1))))*LOOKUP(BH$1,'Calculated rates'!$B$4:$B$103,'Calculated rates'!$F$4:$F$104),"") ->  | BI6: =IF(AND($A6<>"",BI$1<>""),EXP(-UFRC*($A6+BI$1))*(alpha*MIN($A6,BI$1)-0.5*EXP(-alpha*MAX($A6,BI$1))*(EXP(alpha*MIN($A6,BI$1))-EXP(-alpha*MIN($A6,BI$1))))*LOOKUP(BI$1,'Calculated rates'!$B$4:$B$103,'Calculated rates'!$F$4:$F$104),"") ->  | BJ6: =IF(AND($A6<>"",BJ$1<>""),EXP(-UFRC*($A6+BJ$1))*(alpha*MIN($A6,BJ$1)-0.5*EXP(-alpha*MAX($A6,BJ$1))*(EXP(alpha*MIN($A6,BJ$1))-EXP(-alpha*MIN($A6,BJ$1))))*LOOKUP(BJ$1,'Calculated rates'!$B$4:$B$103,'Calculated rates'!$F$4:$F$104),"") ->  | BK6: =IF(AND($A6<>"",BK$1<>""),EXP(-UFRC*($A6+BK$1))*(alpha*MIN($A6,BK$1)-0.5*EXP(-alpha*MAX($A6,BK$1))*(EXP(alpha*MIN($A6,BK$1))-EXP(-alpha*MIN($A6,BK$1))))*LOOKUP(BK$1,'Calculated rates'!$B$4:$B$103,'Calculated rates'!$F$4:$F$104),"") ->  | BL6: =IF(AND($A6<>"",BL$1<>""),EXP(-UFRC*($A6+BL$1))*(alpha*MIN($A6,BL$1)-0.5*EXP(-alpha*MAX($A6,BL$1))*(EXP(alpha*MIN($A6,BL$1))-EXP(-alpha*MIN($A6,BL$1))))*LOOKUP(BL$1,'Calculated rates'!$B$4:$B$103,'Calculated rates'!$F$4:$F$104),"") ->  | BM6: =IF(AND($A6<>"",BM$1<>""),EXP(-UFRC*($A6+BM$1))*(alpha*MIN($A6,BM$1)-0.5*EXP(-alpha*MAX($A6,BM$1))*(EXP(alpha*MIN($A6,BM$1))-EXP(-alpha*MIN($A6,BM$1))))*LOOKUP(BM$1,'Calculated rates'!$B$4:$B$103,'Calculated rates'!$F$4:$F$104),"") ->  | BN6: =IF(AND($A6<>"",BN$1<>""),EXP(-UFRC*($A6+BN$1))*(alpha*MIN($A6,BN$1)-0.5*EXP(-alpha*MAX($A6,BN$1))*(EXP(alpha*MIN($A6,BN$1))-EXP(-alpha*MIN($A6,BN$1))))*LOOKUP(BN$1,'Calculated rates'!$B$4:$B$103,'Calculated rates'!$F$4:$F$104),"") ->  | BO6: =IF(AND($A6<>"",BO$1<>""),EXP(-UFRC*($A6+BO$1))*(alpha*MIN($A6,BO$1)-0.5*EXP(-alpha*MAX($A6,BO$1))*(EXP(alpha*MIN($A6,BO$1))-EXP(-alpha*MIN($A6,BO$1))))*LOOKUP(BO$1,'Calculated rates'!$B$4:$B$103,'Calculated rates'!$F$4:$F$104),"") ->  | BP6: =IF(AND($A6<>"",BP$1<>""),EXP(-UFRC*($A6+BP$1))*(alpha*MIN($A6,BP$1)-0.5*EXP(-alpha*MAX($A6,BP$1))*(EXP(alpha*MIN($A6,BP$1))-EXP(-alpha*MIN($A6,BP$1))))*LOOKUP(BP$1,'Calculated rates'!$B$4:$B$103,'Calculated rates'!$F$4:$F$104),"") ->  | BQ6: =IF(AND($A6<>"",BQ$1<>""),EXP(-UFRC*($A6+BQ$1))*(alpha*MIN($A6,BQ$1)-0.5*EXP(-alpha*MAX($A6,BQ$1))*(EXP(alpha*MIN($A6,BQ$1))-EXP(-alpha*MIN($A6,BQ$1))))*LOOKUP(BQ$1,'Calculated rates'!$B$4:$B$103,'Calculated rates'!$F$4:$F$104),"") ->  | BR6: =IF(AND($A6<>"",BR$1<>""),EXP(-UFRC*($A6+BR$1))*(alpha*MIN($A6,BR$1)-0.5*EXP(-alpha*MAX($A6,BR$1))*(EXP(alpha*MIN($A6,BR$1))-EXP(-alpha*MIN($A6,BR$1))))*LOOKUP(BR$1,'Calculated rates'!$B$4:$B$103,'Calculated rates'!$F$4:$F$104),"") ->  | BS6: =IF(AND($A6<>"",BS$1<>""),EXP(-UFRC*($A6+BS$1))*(alpha*MIN($A6,BS$1)-0.5*EXP(-alpha*MAX($A6,BS$1))*(EXP(alpha*MIN($A6,BS$1))-EXP(-alpha*MIN($A6,BS$1))))*LOOKUP(BS$1,'Calculated rates'!$B$4:$B$103,'Calculated rates'!$F$4:$F$104),"") ->  | BT6: =IF(AND($A6<>"",BT$1<>""),EXP(-UFRC*($A6+BT$1))*(alpha*MIN($A6,BT$1)-0.5*EXP(-alpha*MAX($A6,BT$1))*(EXP(alpha*MIN($A6,BT$1))-EXP(-alpha*MIN($A6,BT$1))))*LOOKUP(BT$1,'Calculated rates'!$B$4:$B$103,'Calculated rates'!$F$4:$F$104),"") ->  | BU6: =IF(AND($A6<>"",BU$1<>""),EXP(-UFRC*($A6+BU$1))*(alpha*MIN($A6,BU$1)-0.5*EXP(-alpha*MAX($A6,BU$1))*(EXP(alpha*MIN($A6,BU$1))-EXP(-alpha*MIN($A6,BU$1))))*LOOKUP(BU$1,'Calculated rates'!$B$4:$B$103,'Calculated rates'!$F$4:$F$104),"") ->  | BV6: =IF(AND($A6<>"",BV$1<>""),EXP(-UFRC*($A6+BV$1))*(alpha*MIN($A6,BV$1)-0.5*EXP(-alpha*MAX($A6,BV$1))*(EXP(alpha*MIN($A6,BV$1))-EXP(-alpha*MIN($A6,BV$1))))*LOOKUP(BV$1,'Calculated rates'!$B$4:$B$103,'Calculated rates'!$F$4:$F$104),"") ->  | BW6: =IF(AND($A6<>"",BW$1<>""),EXP(-UFRC*($A6+BW$1))*(alpha*MIN($A6,BW$1)-0.5*EXP(-alpha*MAX($A6,BW$1))*(EXP(alpha*MIN($A6,BW$1))-EXP(-alpha*MIN($A6,BW$1))))*LOOKUP(BW$1,'Calculated rates'!$B$4:$B$103,'Calculated rates'!$F$4:$F$104),"") ->  | BX6: =IF(AND($A6<>"",BX$1<>""),EXP(-UFRC*($A6+BX$1))*(alpha*MIN($A6,BX$1)-0.5*EXP(-alpha*MAX($A6,BX$1))*(EXP(alpha*MIN($A6,BX$1))-EXP(-alpha*MIN($A6,BX$1))))*LOOKUP(BX$1,'Calculated rates'!$B$4:$B$103,'Calculated rates'!$F$4:$F$104),"") ->  | BY6: =IF(AND($A6<>"",BY$1<>""),EXP(-UFRC*($A6+BY$1))*(alpha*MIN($A6,BY$1)-0.5*EXP(-alpha*MAX($A6,BY$1))*(EXP(alpha*MIN($A6,BY$1))-EXP(-alpha*MIN($A6,BY$1))))*LOOKUP(BY$1,'Calculated rates'!$B$4:$B$103,'Calculated rates'!$F$4:$F$104),"") ->  | BZ6: =IF(AND($A6<>"",BZ$1<>""),EXP(-UFRC*($A6+BZ$1))*(alpha*MIN($A6,BZ$1)-0.5*EXP(-alpha*MAX($A6,BZ$1))*(EXP(alpha*MIN($A6,BZ$1))-EXP(-alpha*MIN($A6,BZ$1))))*LOOKUP(BZ$1,'Calculated rates'!$B$4:$B$103,'Calculated rates'!$F$4:$F$104),"") ->  | CA6: =IF(AND($A6<>"",CA$1<>""),EXP(-UFRC*($A6+CA$1))*(alpha*MIN($A6,CA$1)-0.5*EXP(-alpha*MAX($A6,CA$1))*(EXP(alpha*MIN($A6,CA$1))-EXP(-alpha*MIN($A6,CA$1))))*LOOKUP(CA$1,'Calculated rates'!$B$4:$B$103,'Calculated rates'!$F$4:$F$104),"") ->  | CB6: =IF(AND($A6<>"",CB$1<>""),EXP(-UFRC*($A6+CB$1))*(alpha*MIN($A6,CB$1)-0.5*EXP(-alpha*MAX($A6,CB$1))*(EXP(alpha*MIN($A6,CB$1))-EXP(-alpha*MIN($A6,CB$1))))*LOOKUP(CB$1,'Calculated rates'!$B$4:$B$103,'Calculated rates'!$F$4:$F$104),"") ->  | CC6: =IF(AND($A6<>"",CC$1<>""),EXP(-UFRC*($A6+CC$1))*(alpha*MIN($A6,CC$1)-0.5*EXP(-alpha*MAX($A6,CC$1))*(EXP(alpha*MIN($A6,CC$1))-EXP(-alpha*MIN($A6,CC$1))))*LOOKUP(CC$1,'Calculated rates'!$B$4:$B$103,'Calculated rates'!$F$4:$F$104),"") ->  | CD6: =IF(AND($A6<>"",CD$1<>""),EXP(-UFRC*($A6+CD$1))*(alpha*MIN($A6,CD$1)-0.5*EXP(-alpha*MAX($A6,CD$1))*(EXP(alpha*MIN($A6,CD$1))-EXP(-alpha*MIN($A6,CD$1))))*LOOKUP(CD$1,'Calculated rates'!$B$4:$B$103,'Calculated rates'!$F$4:$F$104),"") ->  | CE6: =IF(AND($A6<>"",CE$1<>""),EXP(-UFRC*($A6+CE$1))*(alpha*MIN($A6,CE$1)-0.5*EXP(-alpha*MAX($A6,CE$1))*(EXP(alpha*MIN($A6,CE$1))-EXP(-alpha*MIN($A6,CE$1))))*LOOKUP(CE$1,'Calculated rates'!$B$4:$B$103,'Calculated rates'!$F$4:$F$104),"") ->  | CF6: =IF(AND($A6<>"",CF$1<>""),EXP(-UFRC*($A6+CF$1))*(alpha*MIN($A6,CF$1)-0.5*EXP(-alpha*MAX($A6,CF$1))*(EXP(alpha*MIN($A6,CF$1))-EXP(-alpha*MIN($A6,CF$1))))*LOOKUP(CF$1,'Calculated rates'!$B$4:$B$103,'Calculated rates'!$F$4:$F$104),"") ->  | CG6: =IF(AND($A6<>"",CG$1<>""),EXP(-UFRC*($A6+CG$1))*(alpha*MIN($A6,CG$1)-0.5*EXP(-alpha*MAX($A6,CG$1))*(EXP(alpha*MIN($A6,CG$1))-EXP(-alpha*MIN($A6,CG$1))))*LOOKUP(CG$1,'Calculated rates'!$B$4:$B$103,'Calculated rates'!$F$4:$F$104),"") ->  | CH6: =IF(AND($A6<>"",CH$1<>""),EXP(-UFRC*($A6+CH$1))*(alpha*MIN($A6,CH$1)-0.5*EXP(-alpha*MAX($A6,CH$1))*(EXP(alpha*MIN($A6,CH$1))-EXP(-alpha*MIN($A6,CH$1))))*LOOKUP(CH$1,'Calculated rates'!$B$4:$B$103,'Calculated rates'!$F$4:$F$104),"") ->  | CI6: =IF(AND($A6<>"",CI$1<>""),EXP(-UFRC*($A6+CI$1))*(alpha*MIN($A6,CI$1)-0.5*EXP(-alpha*MAX($A6,CI$1))*(EXP(alpha*MIN($A6,CI$1))-EXP(-alpha*MIN($A6,CI$1))))*LOOKUP(CI$1,'Calculated rates'!$B$4:$B$103,'Calculated rates'!$F$4:$F$104),"") ->  | CJ6: =IF(AND($A6<>"",CJ$1<>""),EXP(-UFRC*($A6+CJ$1))*(alpha*MIN($A6,CJ$1)-0.5*EXP(-alpha*MAX($A6,CJ$1))*(EXP(alpha*MIN($A6,CJ$1))-EXP(-alpha*MIN($A6,CJ$1))))*LOOKUP(CJ$1,'Calculated rates'!$B$4:$B$103,'Calculated rates'!$F$4:$F$104),"") ->  | CK6: =IF(AND($A6<>"",CK$1<>""),EXP(-UFRC*($A6+CK$1))*(alpha*MIN($A6,CK$1)-0.5*EXP(-alpha*MAX($A6,CK$1))*(EXP(alpha*MIN($A6,CK$1))-EXP(-alpha*MIN($A6,CK$1))))*LOOKUP(CK$1,'Calculated rates'!$B$4:$B$103,'Calculated rates'!$F$4:$F$104),"") ->  | CL6: =IF(AND($A6<>"",CL$1<>""),EXP(-UFRC*($A6+CL$1))*(alpha*MIN($A6,CL$1)-0.5*EXP(-alpha*MAX($A6,CL$1))*(EXP(alpha*MIN($A6,CL$1))-EXP(-alpha*MIN($A6,CL$1))))*LOOKUP(CL$1,'Calculated rates'!$B$4:$B$103,'Calculated rates'!$F$4:$F$104),"") ->  | CM6: =IF(AND($A6<>"",CM$1<>""),EXP(-UFRC*($A6+CM$1))*(alpha*MIN($A6,CM$1)-0.5*EXP(-alpha*MAX($A6,CM$1))*(EXP(alpha*MIN($A6,CM$1))-EXP(-alpha*MIN($A6,CM$1))))*LOOKUP(CM$1,'Calculated rates'!$B$4:$B$103,'Calculated rates'!$F$4:$F$104),"") ->  | CN6: =IF(AND($A6<>"",CN$1<>""),EXP(-UFRC*($A6+CN$1))*(alpha*MIN($A6,CN$1)-0.5*EXP(-alpha*MAX($A6,CN$1))*(EXP(alpha*MIN($A6,CN$1))-EXP(-alpha*MIN($A6,CN$1))))*LOOKUP(CN$1,'Calculated rates'!$B$4:$B$103,'Calculated rates'!$F$4:$F$104),"") ->  | CO6: =IF(AND($A6<>"",CO$1<>""),EXP(-UFRC*($A6+CO$1))*(alpha*MIN($A6,CO$1)-0.5*EXP(-alpha*MAX($A6,CO$1))*(EXP(alpha*MIN($A6,CO$1))-EXP(-alpha*MIN($A6,CO$1))))*LOOKUP(CO$1,'Calculated rates'!$B$4:$B$103,'Calculated rates'!$F$4:$F$104),"") ->  | CP6: =IF(AND($A6<>"",CP$1<>""),EXP(-UFRC*($A6+CP$1))*(alpha*MIN($A6,CP$1)-0.5*EXP(-alpha*MAX($A6,CP$1))*(EXP(alpha*MIN($A6,CP$1))-EXP(-alpha*MIN($A6,CP$1))))*LOOKUP(CP$1,'Calculated rates'!$B$4:$B$103,'Calculated rates'!$F$4:$F$104),"") ->  | CQ6: =IF(AND($A6<>"",CQ$1<>""),EXP(-UFRC*($A6+CQ$1))*(alpha*MIN($A6,CQ$1)-0.5*EXP(-alpha*MAX($A6,CQ$1))*(EXP(alpha*MIN($A6,CQ$1))-EXP(-alpha*MIN($A6,CQ$1))))*LOOKUP(CQ$1,'Calculated rates'!$B$4:$B$103,'Calculated rates'!$F$4:$F$104),"") ->  | CR6: =IF(AND($A6<>"",CR$1<>""),EXP(-UFRC*($A6+CR$1))*(alpha*MIN($A6,CR$1)-0.5*EXP(-alpha*MAX($A6,CR$1))*(EXP(alpha*MIN($A6,CR$1))-EXP(-alpha*MIN($A6,CR$1))))*LOOKUP(CR$1,'Calculated rates'!$B$4:$B$103,'Calculated rates'!$F$4:$F$104),"") ->  | CS6: =IF(AND($A6<>"",CS$1<>""),EXP(-UFRC*($A6+CS$1))*(alpha*MIN($A6,CS$1)-0.5*EXP(-alpha*MAX($A6,CS$1))*(EXP(alpha*MIN($A6,CS$1))-EXP(-alpha*MIN($A6,CS$1))))*LOOKUP(CS$1,'Calculated rates'!$B$4:$B$103,'Calculated rates'!$F$4:$F$104),"") ->  | CT6: =IF(AND($A6<>"",CT$1<>""),EXP(-UFRC*($A6+CT$1))*(alpha*MIN($A6,CT$1)-0.5*EXP(-alpha*MAX($A6,CT$1))*(EXP(alpha*MIN($A6,CT$1))-EXP(-alpha*MIN($A6,CT$1))))*LOOKUP(CT$1,'Calculated rates'!$B$4:$B$103,'Calculated rates'!$F$4:$F$104),"") ->  | CU6: =IF(AND($A6<>"",CU$1<>""),EXP(-UFRC*($A6+CU$1))*(alpha*MIN($A6,CU$1)-0.5*EXP(-alpha*MAX($A6,CU$1))*(EXP(alpha*MIN($A6,CU$1))-EXP(-alpha*MIN($A6,CU$1))))*LOOKUP(CU$1,'Calculated rates'!$B$4:$B$103,'Calculated rates'!$F$4:$F$104),"") ->  | CV6: =IF(AND($A6<>"",CV$1<>""),EXP(-UFRC*($A6+CV$1))*(alpha*MIN($A6,CV$1)-0.5*EXP(-alpha*MAX($A6,CV$1))*(EXP(alpha*MIN($A6,CV$1))-EXP(-alpha*MIN($A6,CV$1))))*LOOKUP(CV$1,'Calculated rates'!$B$4:$B$103,'Calculated rates'!$F$4:$F$104),"") ->  | CW6: =IF(AND($A6<>"",CW$1<>""),EXP(-UFRC*($A6+CW$1))*(alpha*MIN($A6,CW$1)-0.5*EXP(-alpha*MAX($A6,CW$1))*(EXP(alpha*MIN($A6,CW$1))-EXP(-alpha*MIN($A6,CW$1))))*LOOKUP(CW$1,'Calculated rates'!$B$4:$B$103,'Calculated rates'!$F$4:$F$104),"") ->  | CX6: =IF(AND($A6<>"",CX$1<>""),EXP(-UFRC*($A6+CX$1))*(alpha*MIN($A6,CX$1)-0.5*EXP(-alpha*MAX($A6,CX$1))*(EXP(alpha*MIN($A6,CX$1))-EXP(-alpha*MIN($A6,CX$1))))*LOOKUP(CX$1,'Calculated rates'!$B$4:$B$103,'Calculated rates'!$F$4:$F$104),"") ->  | CY6: =IF(AND($A6<>"",CY$1<>""),EXP(-UFRC*($A6+CY$1))*(alpha*MIN($A6,CY$1)-0.5*EXP(-alpha*MAX($A6,CY$1))*(EXP(alpha*MIN($A6,CY$1))-EXP(-alpha*MIN($A6,CY$1))))*LOOKUP(CY$1,'Calculated rates'!$B$4:$B$103,'Calculated rates'!$F$4:$F$104),"") -> 
A7: ='Calculated rates'!J8 -> 5 | B7: 0.01387219039 | C7: 0.9329898548 | D7: =IF(AND($A7<>"",D$1<>""),EXP(-UFRC*($A7+D$1))*(alpha*MIN($A7,D$1)-0.5*EXP(-alpha*MAX($A7,D$1))*(EXP(alpha*MIN($A7,D$1))-EXP(-alpha*MIN($A7,D$1))))*LOOKUP(D$1,'Calculated rates'!$B$4:$B$103,'Calculated rates'!$F$4:$F$104),"") -> 0.02081738929 | E7: =IF(AND($A7<>"",E$1<>""),EXP(-UFRC*($A7+E$1))*(alpha*MIN($A7,E$1)-0.5*EXP(-alpha*MAX($A7,E$1))*(EXP(alpha*MIN($A7,E$1))-EXP(-alpha*MIN($A7,E$1))))*LOOKUP(E$1,'Calculated rates'!$B$4:$B$103,'Calculated rates'!$F$4:$F$104),"") -> 0.0005722690358 | F7: =IF(AND($A7<>"",F$1<>""),EXP(-UFRC*($A7+F$1))*(alpha*MIN($A7,F$1)-0.5*EXP(-alpha*MAX($A7,F$1))*(EXP(alpha*MIN($A7,F$1))-EXP(-alpha*MIN($A7,F$1))))*LOOKUP(F$1,'Calculated rates'!$B$4:$B$103,'Calculated rates'!$F$4:$F$104),"") -> 0.005202083393 | G7: =IF(AND($A7<>"",G$1<>""),EXP(-UFRC*($A7+G$1))*(alpha*MIN($A7,G$1)-0.5*EXP(-alpha*MAX($A7,G$1))*(EXP(alpha*MIN($A7,G$1))-EXP(-alpha*MIN($A7,G$1))))*LOOKUP(G$1,'Calculated rates'!$B$4:$B$103,'Calculated rates'!$F$4:$F$104),"") -> 0.0424321537 | H7: =IF(AND($A7<>"",H$1<>""),EXP(-UFRC*($A7+H$1))*(alpha*MIN($A7,H$1)-0.5*EXP(-alpha*MAX($A7,H$1))*(EXP(alpha*MIN($A7,H$1))-EXP(-alpha*MIN($A7,H$1))))*LOOKUP(H$1,'Calculated rates'!$B$4:$B$103,'Calculated rates'!$F$4:$F$104),"") -> -0.1144810741 | I7: =IF(AND($A7<>"",I$1<>""),EXP(-UFRC*($A7+I$1))*(alpha*MIN($A7,I$1)-0.5*EXP(-alpha*MAX($A7,I$1))*(EXP(alpha*MIN($A7,I$1))-EXP(-alpha*MIN($A7,I$1))))*LOOKUP(I$1,'Calculated rates'!$B$4:$B$103,'Calculated rates'!$F$4:$F$104),"") -> 0.5664295935 | J7: =IF(AND($A7<>"",J$1<>""),EXP(-UFRC*($A7+J$1))*(alpha*MIN($A7,J$1)-0.5*EXP(-alpha*MAX($A7,J$1))*(EXP(alpha*MIN($A7,J$1))-EXP(-alpha*MIN($A7,J$1))))*LOOKUP(J$1,'Calculated rates'!$B$4:$B$103,'Calculated rates'!$F$4:$F$104),"") -> -0.7594595072 | K7: =IF(AND($A7<>"",K$1<>""),EXP(-UFRC*($A7+K$1))*(alpha*MIN($A7,K$1)-0.5*EXP(-alpha*MAX($A7,K$1))*(EXP(alpha*MIN($A7,K$1))-EXP(-alpha*MIN($A7,K$1))))*LOOKUP(K$1,'Calculated rates'!$B$4:$B$103,'Calculated rates'!$F$4:$F$104),"") -> 0.03129783206 | L7: =IF(AND($A7<>"",L$1<>""),EXP(-UFRC*($A7+L$1))*(alpha*MIN($A7,L$1)-0.5*EXP(-alpha*MAX($A7,L$1))*(EXP(alpha*MIN($A7,L$1))-EXP(-alpha*MIN($A7,L$1))))*LOOKUP(L$1,'Calculated rates'!$B$4:$B$103,'Calculated rates'!$F$4:$F$104),"") -> 0.9539891167 | M7: =IF(AND($A7<>"",M$1<>""),EXP(-UFRC*($A7+M$1))*(alpha*MIN($A7,M$1)-0.5*EXP(-alpha*MAX($A7,M$1))*(EXP(alpha*MIN($A7,M$1))-EXP(-alpha*MIN($A7,M$1))))*LOOKUP(M$1,'Calculated rates'!$B$4:$B$103,'Calculated rates'!$F$4:$F$104),"") -> -1.19249153 | N7: =IF(AND($A7<>"",N$1<>""),EXP(-UFRC*($A7+N$1))*(alpha*MIN($A7,N$1)-0.5*EXP(-alpha*MAX($A7,N$1))*(EXP(alpha*MIN($A7,N$1))-EXP(-alpha*MIN($A7,N$1))))*LOOKUP(N$1,'Calculated rates'!$B$4:$B$103,'Calculated rates'!$F$4:$F$104),"") -> 0.6210534428 | O7: =IF(AND($A7<>"",O$1<>""),EXP(-UFRC*($A7+O$1))*(alpha*MIN($A7,O$1)-0.5*EXP(-alpha*MAX($A7,O$1))*(EXP(alpha*MIN($A7,O$1))-EXP(-alpha*MIN($A7,O$1))))*LOOKUP(O$1,'Calculated rates'!$B$4:$B$103,'Calculated rates'!$F$4:$F$104),"") -> -0.1131233184 | P7: =IF(AND($A7<>"",P$1<>""),EXP(-UFRC*($A7+P$1))*(alpha*MIN($A7,P$1)-0.5*EXP(-alpha*MAX($A7,P$1))*(EXP(alpha*MIN($A7,P$1))-EXP(-alpha*MIN($A7,P$1))))*LOOKUP(P$1,'Calculated rates'!$B$4:$B$103,'Calculated rates'!$F$4:$F$104),"") -> -0.1435637216 | Q7: =IF(AND($A7<>"",Q$1<>""),EXP(-UFRC*($A7+Q$1))*(alpha*MIN($A7,Q$1)-0.5*EXP(-alpha*MAX($A7,Q$1))*(EXP(alpha*MIN($A7,Q$1))-EXP(-alpha*MIN($A7,Q$1))))*LOOKUP(Q$1,'Calculated rates'!$B$4:$B$103,'Calculated rates'!$F$4:$F$104),"") -> 0.721624254 | R7: =IF(AND($A7<>"",R$1<>""),EXP(-UFRC*($A7+R$1))*(alpha*MIN($A7,R$1)-0.5*EXP(-alpha*MAX($A7,R$1))*(EXP(alpha*MIN($A7,R$1))-EXP(-alpha*MIN($A7,R$1))))*LOOKUP(R$1,'Calculated rates'!$B$4:$B$103,'Calculated rates'!$F$4:$F$104),"") -> -1.143486391 | S7: =IF(AND($A7<>"",S$1<>""),EXP(-UFRC*($A7+S$1))*(alpha*MIN($A7,S$1)-0.5*EXP(-alpha*MAX($A7,S$1))*(EXP(alpha*MIN($A7,S$1))-EXP(-alpha*MIN($A7,S$1))))*LOOKUP(S$1,'Calculated rates'!$B$4:$B$103,'Calculated rates'!$F$4:$F$104),"") -> 0.6693388377 | T7: =IF(AND($A7<>"",T$1<>""),EXP(-UFRC*($A7+T$1))*(alpha*MIN($A7,T$1)-0.5*EXP(-alpha*MAX($A7,T$1))*(EXP(alpha*MIN($A7,T$1))-EXP(-alpha*MIN($A7,T$1))))*LOOKUP(T$1,'Calculated rates'!$B$4:$B$103,'Calculated rates'!$F$4:$F$104),"") -> -0.206231709 | U7: =IF(AND($A7<>"",U$1<>""),EXP(-UFRC*($A7+U$1))*(alpha*MIN($A7,U$1)-0.5*EXP(-alpha*MAX($A7,U$1))*(EXP(alpha*MIN($A7,U$1))-EXP(-alpha*MIN($A7,U$1))))*LOOKUP(U$1,'Calculated rates'!$B$4:$B$103,'Calculated rates'!$F$4:$F$104),"") -> 0.1465235011 | V7: =IF(AND($A7<>"",V$1<>""),EXP(-UFRC*($A7+V$1))*(alpha*MIN($A7,V$1)-0.5*EXP(-alpha*MAX($A7,V$1))*(EXP(alpha*MIN($A7,V$1))-EXP(-alpha*MIN($A7,V$1))))*LOOKUP(V$1,'Calculated rates'!$B$4:$B$103,'Calculated rates'!$F$4:$F$104),"") -> -0.4016945913 | W7: =IF(AND($A7<>"",W$1<>""),EXP(-UFRC*($A7+W$1))*(alpha*MIN($A7,W$1)-0.5*EXP(-alpha*MAX($A7,W$1))*(EXP(alpha*MIN($A7,W$1))-EXP(-alpha*MIN($A7,W$1))))*LOOKUP(W$1,'Calculated rates'!$B$4:$B$103,'Calculated rates'!$F$4:$F$104),"") -> 0.4141718712 | X7: =IF(AND($A7<>"",X$1<>""),EXP(-UFRC*($A7+X$1))*(alpha*MIN($A7,X$1)-0.5*EXP(-alpha*MAX($A7,X$1))*(EXP(alpha*MIN($A7,X$1))-EXP(-alpha*MIN($A7,X$1))))*LOOKUP(X$1,'Calculated rates'!$B$4:$B$103,'Calculated rates'!$F$4:$F$104),"") ->  | Y7: =IF(AND($A7<>"",Y$1<>""),EXP(-UFRC*($A7+Y$1))*(alpha*MIN($A7,Y$1)-0.5*EXP(-alpha*MAX($A7,Y$1))*(EXP(alpha*MIN($A7,Y$1))-EXP(-alpha*MIN($A7,Y$1))))*LOOKUP(Y$1,'Calculated rates'!$B$4:$B$103,'Calculated rates'!$F$4:$F$104),"") ->  | Z7: =IF(AND($A7<>"",Z$1<>""),EXP(-UFRC*($A7+Z$1))*(alpha*MIN($A7,Z$1)-0.5*EXP(-alpha*MAX($A7,Z$1))*(EXP(alpha*MIN($A7,Z$1))-EXP(-alpha*MIN($A7,Z$1))))*LOOKUP(Z$1,'Calculated rates'!$B$4:$B$103,'Calculated rates'!$F$4:$F$104),"") ->  | AA7: =IF(AND($A7<>"",AA$1<>""),EXP(-UFRC*($A7+AA$1))*(alpha*MIN($A7,AA$1)-0.5*EXP(-alpha*MAX($A7,AA$1))*(EXP(alpha*MIN($A7,AA$1))-EXP(-alpha*MIN($A7,AA$1))))*LOOKUP(AA$1,'Calculated rates'!$B$4:$B$103,'Calculated rates'!$F$4:$F$104),"") ->  | AB7: =IF(AND($A7<>"",AB$1<>""),EXP(-UFRC*($A7+AB$1))*(alpha*MIN($A7,AB$1)-0.5*EXP(-alpha*MAX($A7,AB$1))*(EXP(alpha*MIN($A7,AB$1))-EXP(-alpha*MIN($A7,AB$1))))*LOOKUP(AB$1,'Calculated rates'!$B$4:$B$103,'Calculated rates'!$F$4:$F$104),"") ->  | AC7: =IF(AND($A7<>"",AC$1<>""),EXP(-UFRC*($A7+AC$1))*(alpha*MIN($A7,AC$1)-0.5*EXP(-alpha*MAX($A7,AC$1))*(EXP(alpha*MIN($A7,AC$1))-EXP(-alpha*MIN($A7,AC$1))))*LOOKUP(AC$1,'Calculated rates'!$B$4:$B$103,'Calculated rates'!$F$4:$F$104),"") ->  | AD7: =IF(AND($A7<>"",AD$1<>""),EXP(-UFRC*($A7+AD$1))*(alpha*MIN($A7,AD$1)-0.5*EXP(-alpha*MAX($A7,AD$1))*(EXP(alpha*MIN($A7,AD$1))-EXP(-alpha*MIN($A7,AD$1))))*LOOKUP(AD$1,'Calculated rates'!$B$4:$B$103,'Calculated rates'!$F$4:$F$104),"") ->  | AE7: =IF(AND($A7<>"",AE$1<>""),EXP(-UFRC*($A7+AE$1))*(alpha*MIN($A7,AE$1)-0.5*EXP(-alpha*MAX($A7,AE$1))*(EXP(alpha*MIN($A7,AE$1))-EXP(-alpha*MIN($A7,AE$1))))*LOOKUP(AE$1,'Calculated rates'!$B$4:$B$103,'Calculated rates'!$F$4:$F$104),"") ->  | AF7: =IF(AND($A7<>"",AF$1<>""),EXP(-UFRC*($A7+AF$1))*(alpha*MIN($A7,AF$1)-0.5*EXP(-alpha*MAX($A7,AF$1))*(EXP(alpha*MIN($A7,AF$1))-EXP(-alpha*MIN($A7,AF$1))))*LOOKUP(AF$1,'Calculated rates'!$B$4:$B$103,'Calculated rates'!$F$4:$F$104),"") ->  | AG7: =IF(AND($A7<>"",AG$1<>""),EXP(-UFRC*($A7+AG$1))*(alpha*MIN($A7,AG$1)-0.5*EXP(-alpha*MAX($A7,AG$1))*(EXP(alpha*MIN($A7,AG$1))-EXP(-alpha*MIN($A7,AG$1))))*LOOKUP(AG$1,'Calculated rates'!$B$4:$B$103,'Calculated rates'!$F$4:$F$104),"") ->  | AH7: =IF(AND($A7<>"",AH$1<>""),EXP(-UFRC*($A7+AH$1))*(alpha*MIN($A7,AH$1)-0.5*EXP(-alpha*MAX($A7,AH$1))*(EXP(alpha*MIN($A7,AH$1))-EXP(-alpha*MIN($A7,AH$1))))*LOOKUP(AH$1,'Calculated rates'!$B$4:$B$103,'Calculated rates'!$F$4:$F$104),"") ->  | AI7: =IF(AND($A7<>"",AI$1<>""),EXP(-UFRC*($A7+AI$1))*(alpha*MIN($A7,AI$1)-0.5*EXP(-alpha*MAX($A7,AI$1))*(EXP(alpha*MIN($A7,AI$1))-EXP(-alpha*MIN($A7,AI$1))))*LOOKUP(AI$1,'Calculated rates'!$B$4:$B$103,'Calculated rates'!$F$4:$F$104),"") ->  | AJ7: =IF(AND($A7<>"",AJ$1<>""),EXP(-UFRC*($A7+AJ$1))*(alpha*MIN($A7,AJ$1)-0.5*EXP(-alpha*MAX($A7,AJ$1))*(EXP(alpha*MIN($A7,AJ$1))-EXP(-alpha*MIN($A7,AJ$1))))*LOOKUP(AJ$1,'Calculated rates'!$B$4:$B$103,'Calculated rates'!$F$4:$F$104),"") ->  | AK7: =IF(AND($A7<>"",AK$1<>""),EXP(-UFRC*($A7+AK$1))*(alpha*MIN($A7,AK$1)-0.5*EXP(-alpha*MAX($A7,AK$1))*(EXP(alpha*MIN($A7,AK$1))-EXP(-alpha*MIN($A7,AK$1))))*LOOKUP(AK$1,'Calculated rates'!$B$4:$B$103,'Calculated rates'!$F$4:$F$104),"") ->  | AL7: =IF(AND($A7<>"",AL$1<>""),EXP(-UFRC*($A7+AL$1))*(alpha*MIN($A7,AL$1)-0.5*EXP(-alpha*MAX($A7,AL$1))*(EXP(alpha*MIN($A7,AL$1))-EXP(-alpha*MIN($A7,AL$1))))*LOOKUP(AL$1,'Calculated rates'!$B$4:$B$103,'Calculated rates'!$F$4:$F$104),"") ->  | AM7: =IF(AND($A7<>"",AM$1<>""),EXP(-UFRC*($A7+AM$1))*(alpha*MIN($A7,AM$1)-0.5*EXP(-alpha*MAX($A7,AM$1))*(EXP(alpha*MIN($A7,AM$1))-EXP(-alpha*MIN($A7,AM$1))))*LOOKUP(AM$1,'Calculated rates'!$B$4:$B$103,'Calculated rates'!$F$4:$F$104),"") ->  | AN7: =IF(AND($A7<>"",AN$1<>""),EXP(-UFRC*($A7+AN$1))*(alpha*MIN($A7,AN$1)-0.5*EXP(-alpha*MAX($A7,AN$1))*(EXP(alpha*MIN($A7,AN$1))-EXP(-alpha*MIN($A7,AN$1))))*LOOKUP(AN$1,'Calculated rates'!$B$4:$B$103,'Calculated rates'!$F$4:$F$104),"") ->  | AO7: =IF(AND($A7<>"",AO$1<>""),EXP(-UFRC*($A7+AO$1))*(alpha*MIN($A7,AO$1)-0.5*EXP(-alpha*MAX($A7,AO$1))*(EXP(alpha*MIN($A7,AO$1))-EXP(-alpha*MIN($A7,AO$1))))*LOOKUP(AO$1,'Calculated rates'!$B$4:$B$103,'Calculated rates'!$F$4:$F$104),"") ->  | AP7: =IF(AND($A7<>"",AP$1<>""),EXP(-UFRC*($A7+AP$1))*(alpha*MIN($A7,AP$1)-0.5*EXP(-alpha*MAX($A7,AP$1))*(EXP(alpha*MIN($A7,AP$1))-EXP(-alpha*MIN($A7,AP$1))))*LOOKUP(AP$1,'Calculated rates'!$B$4:$B$103,'Calculated rates'!$F$4:$F$104),"") ->  | AQ7: =IF(AND($A7<>"",AQ$1<>""),EXP(-UFRC*($A7+AQ$1))*(alpha*MIN($A7,AQ$1)-0.5*EXP(-alpha*MAX($A7,AQ$1))*(EXP(alpha*MIN($A7,AQ$1))-EXP(-alpha*MIN($A7,AQ$1))))*LOOKUP(AQ$1,'Calculated rates'!$B$4:$B$103,'Calculated rates'!$F$4:$F$104),"") ->  | AR7: =IF(AND($A7<>"",AR$1<>""),EXP(-UFRC*($A7+AR$1))*(alpha*MIN($A7,AR$1)-0.5*EXP(-alpha*MAX($A7,AR$1))*(EXP(alpha*MIN($A7,AR$1))-EXP(-alpha*MIN($A7,AR$1))))*LOOKUP(AR$1,'Calculated rates'!$B$4:$B$103,'Calculated rates'!$F$4:$F$104),"") ->  | AS7: =IF(AND($A7<>"",AS$1<>""),EXP(-UFRC*($A7+AS$1))*(alpha*MIN($A7,AS$1)-0.5*EXP(-alpha*MAX($A7,AS$1))*(EXP(alpha*MIN($A7,AS$1))-EXP(-alpha*MIN($A7,AS$1))))*LOOKUP(AS$1,'Calculated rates'!$B$4:$B$103,'Calculated rates'!$F$4:$F$104),"") ->  | AT7: =IF(AND($A7<>"",AT$1<>""),EXP(-UFRC*($A7+AT$1))*(alpha*MIN($A7,AT$1)-0.5*EXP(-alpha*MAX($A7,AT$1))*(EXP(alpha*MIN($A7,AT$1))-EXP(-alpha*MIN($A7,AT$1))))*LOOKUP(AT$1,'Calculated rates'!$B$4:$B$103,'Calculated rates'!$F$4:$F$104),"") ->  | AU7: =IF(AND($A7<>"",AU$1<>""),EXP(-UFRC*($A7+AU$1))*(alpha*MIN($A7,AU$1)-0.5*EXP(-alpha*MAX($A7,AU$1))*(EXP(alpha*MIN($A7,AU$1))-EXP(-alpha*MIN($A7,AU$1))))*LOOKUP(AU$1,'Calculated rates'!$B$4:$B$103,'Calculated rates'!$F$4:$F$104),"") ->  | AV7: =IF(AND($A7<>"",AV$1<>""),EXP(-UFRC*($A7+AV$1))*(alpha*MIN($A7,AV$1)-0.5*EXP(-alpha*MAX($A7,AV$1))*(EXP(alpha*MIN($A7,AV$1))-EXP(-alpha*MIN($A7,AV$1))))*LOOKUP(AV$1,'Calculated rates'!$B$4:$B$103,'Calculated rates'!$F$4:$F$104),"") ->  | AW7: =IF(AND($A7<>"",AW$1<>""),EXP(-UFRC*($A7+AW$1))*(alpha*MIN($A7,AW$1)-0.5*EXP(-alpha*MAX($A7,AW$1))*(EXP(alpha*MIN($A7,AW$1))-EXP(-alpha*MIN($A7,AW$1))))*LOOKUP(AW$1,'Calculated rates'!$B$4:$B$103,'Calculated rates'!$F$4:$F$104),"") ->  | AX7: =IF(AND($A7<>"",AX$1<>""),EXP(-UFRC*($A7+AX$1))*(alpha*MIN($A7,AX$1)-0.5*EXP(-alpha*MAX($A7,AX$1))*(EXP(alpha*MIN($A7,AX$1))-EXP(-alpha*MIN($A7,AX$1))))*LOOKUP(AX$1,'Calculated rates'!$B$4:$B$103,'Calculated rates'!$F$4:$F$104),"") ->  | AY7: =IF(AND($A7<>"",AY$1<>""),EXP(-UFRC*($A7+AY$1))*(alpha*MIN($A7,AY$1)-0.5*EXP(-alpha*MAX($A7,AY$1))*(EXP(alpha*MIN($A7,AY$1))-EXP(-alpha*MIN($A7,AY$1))))*LOOKUP(AY$1,'Calculated rates'!$B$4:$B$103,'Calculated rates'!$F$4:$F$104),"") ->  | AZ7: =IF(AND($A7<>"",AZ$1<>""),EXP(-UFRC*($A7+AZ$1))*(alpha*MIN($A7,AZ$1)-0.5*EXP(-alpha*MAX($A7,AZ$1))*(EXP(alpha*MIN($A7,AZ$1))-EXP(-alpha*MIN($A7,AZ$1))))*LOOKUP(AZ$1,'Calculated rates'!$B$4:$B$103,'Calculated rates'!$F$4:$F$104),"") ->  | BA7: =IF(AND($A7<>"",BA$1<>""),EXP(-UFRC*($A7+BA$1))*(alpha*MIN($A7,BA$1)-0.5*EXP(-alpha*MAX($A7,BA$1))*(EXP(alpha*MIN($A7,BA$1))-EXP(-alpha*MIN($A7,BA$1))))*LOOKUP(BA$1,'Calculated rates'!$B$4:$B$103,'Calculated rates'!$F$4:$F$104),"") ->  | BB7: =IF(AND($A7<>"",BB$1<>""),EXP(-UFRC*($A7+BB$1))*(alpha*MIN($A7,BB$1)-0.5*EXP(-alpha*MAX($A7,BB$1))*(EXP(alpha*MIN($A7,BB$1))-EXP(-alpha*MIN($A7,BB$1))))*LOOKUP(BB$1,'Calculated rates'!$B$4:$B$103,'Calculated rates'!$F$4:$F$104),"") ->  | BC7: =IF(AND($A7<>"",BC$1<>""),EXP(-UFRC*($A7+BC$1))*(alpha*MIN($A7,BC$1)-0.5*EXP(-alpha*MAX($A7,BC$1))*(EXP(alpha*MIN($A7,BC$1))-EXP(-alpha*MIN($A7,BC$1))))*LOOKUP(BC$1,'Calculated rates'!$B$4:$B$103,'Calculated rates'!$F$4:$F$104),"") ->  | BD7: =IF(AND($A7<>"",BD$1<>""),EXP(-UFRC*($A7+BD$1))*(alpha*MIN($A7,BD$1)-0.5*EXP(-alpha*MAX($A7,BD$1))*(EXP(alpha*MIN($A7,BD$1))-EXP(-alpha*MIN($A7,BD$1))))*LOOKUP(BD$1,'Calculated rates'!$B$4:$B$103,'Calculated rates'!$F$4:$F$104),"") ->  | BE7: =IF(AND($A7<>"",BE$1<>""),EXP(-UFRC*($A7+BE$1))*(alpha*MIN($A7,BE$1)-0.5*EXP(-alpha*MAX($A7,BE$1))*(EXP(alpha*MIN($A7,BE$1))-EXP(-alpha*MIN($A7,BE$1))))*LOOKUP(BE$1,'Calculated rates'!$B$4:$B$103,'Calculated rates'!$F$4:$F$104),"") ->  | BF7: =IF(AND($A7<>"",BF$1<>""),EXP(-UFRC*($A7+BF$1))*(alpha*MIN($A7,BF$1)-0.5*EXP(-alpha*MAX($A7,BF$1))*(EXP(alpha*MIN($A7,BF$1))-EXP(-alpha*MIN($A7,BF$1))))*LOOKUP(BF$1,'Calculated rates'!$B$4:$B$103,'Calculated rates'!$F$4:$F$104),"") ->  | BG7: =IF(AND($A7<>"",BG$1<>""),EXP(-UFRC*($A7+BG$1))*(alpha*MIN($A7,BG$1)-0.5*EXP(-alpha*MAX($A7,BG$1))*(EXP(alpha*MIN($A7,BG$1))-EXP(-alpha*MIN($A7,BG$1))))*LOOKUP(BG$1,'Calculated rates'!$B$4:$B$103,'Calculated rates'!$F$4:$F$104),"") ->  | BH7: =IF(AND($A7<>"",BH$1<>""),EXP(-UFRC*($A7+BH$1))*(alpha*MIN($A7,BH$1)-0.5*EXP(-alpha*MAX($A7,BH$1))*(EXP(alpha*MIN($A7,BH$1))-EXP(-alpha*MIN($A7,BH$1))))*LOOKUP(BH$1,'Calculated rates'!$B$4:$B$103,'Calculated rates'!$F$4:$F$104),"") ->  | BI7: =IF(AND($A7<>"",BI$1<>""),EXP(-UFRC*($A7+BI$1))*(alpha*MIN($A7,BI$1)-0.5*EXP(-alpha*MAX($A7,BI$1))*(EXP(alpha*MIN($A7,BI$1))-EXP(-alpha*MIN($A7,BI$1))))*LOOKUP(BI$1,'Calculated rates'!$B$4:$B$103,'Calculated rates'!$F$4:$F$104),"") ->  | BJ7: =IF(AND($A7<>"",BJ$1<>""),EXP(-UFRC*($A7+BJ$1))*(alpha*MIN($A7,BJ$1)-0.5*EXP(-alpha*MAX($A7,BJ$1))*(EXP(alpha*MIN($A7,BJ$1))-EXP(-alpha*MIN($A7,BJ$1))))*LOOKUP(BJ$1,'Calculated rates'!$B$4:$B$103,'Calculated rates'!$F$4:$F$104),"") ->  | BK7: =IF(AND($A7<>"",BK$1<>""),EXP(-UFRC*($A7+BK$1))*(alpha*MIN($A7,BK$1)-0.5*EXP(-alpha*MAX($A7,BK$1))*(EXP(alpha*MIN($A7,BK$1))-EXP(-alpha*MIN($A7,BK$1))))*LOOKUP(BK$1,'Calculated rates'!$B$4:$B$103,'Calculated rates'!$F$4:$F$104),"") ->  | BL7: =IF(AND($A7<>"",BL$1<>""),EXP(-UFRC*($A7+BL$1))*(alpha*MIN($A7,BL$1)-0.5*EXP(-alpha*MAX($A7,BL$1))*(EXP(alpha*MIN($A7,BL$1))-EXP(-alpha*MIN($A7,BL$1))))*LOOKUP(BL$1,'Calculated rates'!$B$4:$B$103,'Calculated rates'!$F$4:$F$104),"") ->  | BM7: =IF(AND($A7<>"",BM$1<>""),EXP(-UFRC*($A7+BM$1))*(alpha*MIN($A7,BM$1)-0.5*EXP(-alpha*MAX($A7,BM$1))*(EXP(alpha*MIN($A7,BM$1))-EXP(-alpha*MIN($A7,BM$1))))*LOOKUP(BM$1,'Calculated rates'!$B$4:$B$103,'Calculated rates'!$F$4:$F$104),"") ->  | BN7: =IF(AND($A7<>"",BN$1<>""),EXP(-UFRC*($A7+BN$1))*(alpha*MIN($A7,BN$1)-0.5*EXP(-alpha*MAX($A7,BN$1))*(EXP(alpha*MIN($A7,BN$1))-EXP(-alpha*MIN($A7,BN$1))))*LOOKUP(BN$1,'Calculated rates'!$B$4:$B$103,'Calculated rates'!$F$4:$F$104),"") ->  | BO7: =IF(AND($A7<>"",BO$1<>""),EXP(-UFRC*($A7+BO$1))*(alpha*MIN($A7,BO$1)-0.5*EXP(-alpha*MAX($A7,BO$1))*(EXP(alpha*MIN($A7,BO$1))-EXP(-alpha*MIN($A7,BO$1))))*LOOKUP(BO$1,'Calculated rates'!$B$4:$B$103,'Calculated rates'!$F$4:$F$104),"") ->  | BP7: =IF(AND($A7<>"",BP$1<>""),EXP(-UFRC*($A7+BP$1))*(alpha*MIN($A7,BP$1)-0.5*EXP(-alpha*MAX($A7,BP$1))*(EXP(alpha*MIN($A7,BP$1))-EXP(-alpha*MIN($A7,BP$1))))*LOOKUP(BP$1,'Calculated rates'!$B$4:$B$103,'Calculated rates'!$F$4:$F$104),"") ->  | BQ7: =IF(AND($A7<>"",BQ$1<>""),EXP(-UFRC*($A7+BQ$1))*(alpha*MIN($A7,BQ$1)-0.5*EXP(-alpha*MAX($A7,BQ$1))*(EXP(alpha*MIN($A7,BQ$1))-EXP(-alpha*MIN($A7,BQ$1))))*LOOKUP(BQ$1,'Calculated rates'!$B$4:$B$103,'Calculated rates'!$F$4:$F$104),"") ->  | BR7: =IF(AND($A7<>"",BR$1<>""),EXP(-UFRC*($A7+BR$1))*(alpha*MIN($A7,BR$1)-0.5*EXP(-alpha*MAX($A7,BR$1))*(EXP(alpha*MIN($A7,BR$1))-EXP(-alpha*MIN($A7,BR$1))))*LOOKUP(BR$1,'Calculated rates'!$B$4:$B$103,'Calculated rates'!$F$4:$F$104),"") ->  | BS7: =IF(AND($A7<>"",BS$1<>""),EXP(-UFRC*($A7+BS$1))*(alpha*MIN($A7,BS$1)-0.5*EXP(-alpha*MAX($A7,BS$1))*(EXP(alpha*MIN($A7,BS$1))-EXP(-alpha*MIN($A7,BS$1))))*LOOKUP(BS$1,'Calculated rates'!$B$4:$B$103,'Calculated rates'!$F$4:$F$104),"") ->  | BT7: =IF(AND($A7<>"",BT$1<>""),EXP(-UFRC*($A7+BT$1))*(alpha*MIN($A7,BT$1)-0.5*EXP(-alpha*MAX($A7,BT$1))*(EXP(alpha*MIN($A7,BT$1))-EXP(-alpha*MIN($A7,BT$1))))*LOOKUP(BT$1,'Calculated rates'!$B$4:$B$103,'Calculated rates'!$F$4:$F$104),"") ->  | BU7: =IF(AND($A7<>"",BU$1<>""),EXP(-UFRC*($A7+BU$1))*(alpha*MIN($A7,BU$1)-0.5*EXP(-alpha*MAX($A7,BU$1))*(EXP(alpha*MIN($A7,BU$1))-EXP(-alpha*MIN($A7,BU$1))))*LOOKUP(BU$1,'Calculated rates'!$B$4:$B$103,'Calculated rates'!$F$4:$F$104),"") ->  | BV7: =IF(AND($A7<>"",BV$1<>""),EXP(-UFRC*($A7+BV$1))*(alpha*MIN($A7,BV$1)-0.5*EXP(-alpha*MAX($A7,BV$1))*(EXP(alpha*MIN($A7,BV$1))-EXP(-alpha*MIN($A7,BV$1))))*LOOKUP(BV$1,'Calculated rates'!$B$4:$B$103,'Calculated rates'!$F$4:$F$104),"") ->  | BW7: =IF(AND($A7<>"",BW$1<>""),EXP(-UFRC*($A7+BW$1))*(alpha*MIN($A7,BW$1)-0.5*EXP(-alpha*MAX($A7,BW$1))*(EXP(alpha*MIN($A7,BW$1))-EXP(-alpha*MIN($A7,BW$1))))*LOOKUP(BW$1,'Calculated rates'!$B$4:$B$103,'Calculated rates'!$F$4:$F$104),"") ->  | BX7: =IF(AND($A7<>"",BX$1<>""),EXP(-UFRC*($A7+BX$1))*(alpha*MIN($A7,BX$1)-0.5*EXP(-alpha*MAX($A7,BX$1))*(EXP(alpha*MIN($A7,BX$1))-EXP(-alpha*MIN($A7,BX$1))))*LOOKUP(BX$1,'Calculated rates'!$B$4:$B$103,'Calculated rates'!$F$4:$F$104),"") ->  | BY7: =IF(AND($A7<>"",BY$1<>""),EXP(-UFRC*($A7+BY$1))*(alpha*MIN($A7,BY$1)-0.5*EXP(-alpha*MAX($A7,BY$1))*(EXP(alpha*MIN($A7,BY$1))-EXP(-alpha*MIN($A7,BY$1))))*LOOKUP(BY$1,'Calculated rates'!$B$4:$B$103,'Calculated rates'!$F$4:$F$104),"") ->  | BZ7: =IF(AND($A7<>"",BZ$1<>""),EXP(-UFRC*($A7+BZ$1))*(alpha*MIN($A7,BZ$1)-0.5*EXP(-alpha*MAX($A7,BZ$1))*(EXP(alpha*MIN($A7,BZ$1))-EXP(-alpha*MIN($A7,BZ$1))))*LOOKUP(BZ$1,'Calculated rates'!$B$4:$B$103,'Calculated rates'!$F$4:$F$104),"") ->  | CA7: =IF(AND($A7<>"",CA$1<>""),EXP(-UFRC*($A7+CA$1))*(alpha*MIN($A7,CA$1)-0.5*EXP(-alpha*MAX($A7,CA$1))*(EXP(alpha*MIN($A7,CA$1))-EXP(-alpha*MIN($A7,CA$1))))*LOOKUP(CA$1,'Calculated rates'!$B$4:$B$103,'Calculated rates'!$F$4:$F$104),"") ->  | CB7: =IF(AND($A7<>"",CB$1<>""),EXP(-UFRC*($A7+CB$1))*(alpha*MIN($A7,CB$1)-0.5*EXP(-alpha*MAX($A7,CB$1))*(EXP(alpha*MIN($A7,CB$1))-EXP(-alpha*MIN($A7,CB$1))))*LOOKUP(CB$1,'Calculated rates'!$B$4:$B$103,'Calculated rates'!$F$4:$F$104),"") ->  | CC7: =IF(AND($A7<>"",CC$1<>""),EXP(-UFRC*($A7+CC$1))*(alpha*MIN($A7,CC$1)-0.5*EXP(-alpha*MAX($A7,CC$1))*(EXP(alpha*MIN($A7,CC$1))-EXP(-alpha*MIN($A7,CC$1))))*LOOKUP(CC$1,'Calculated rates'!$B$4:$B$103,'Calculated rates'!$F$4:$F$104),"") ->  | CD7: =IF(AND($A7<>"",CD$1<>""),EXP(-UFRC*($A7+CD$1))*(alpha*MIN($A7,CD$1)-0.5*EXP(-alpha*MAX($A7,CD$1))*(EXP(alpha*MIN($A7,CD$1))-EXP(-alpha*MIN($A7,CD$1))))*LOOKUP(CD$1,'Calculated rates'!$B$4:$B$103,'Calculated rates'!$F$4:$F$104),"") ->  | CE7: =IF(AND($A7<>"",CE$1<>""),EXP(-UFRC*($A7+CE$1))*(alpha*MIN($A7,CE$1)-0.5*EXP(-alpha*MAX($A7,CE$1))*(EXP(alpha*MIN($A7,CE$1))-EXP(-alpha*MIN($A7,CE$1))))*LOOKUP(CE$1,'Calculated rates'!$B$4:$B$103,'Calculated rates'!$F$4:$F$104),"") ->  | CF7: =IF(AND($A7<>"",CF$1<>""),EXP(-UFRC*($A7+CF$1))*(alpha*MIN($A7,CF$1)-0.5*EXP(-alpha*MAX($A7,CF$1))*(EXP(alpha*MIN($A7,CF$1))-EXP(-alpha*MIN($A7,CF$1))))*LOOKUP(CF$1,'Calculated rates'!$B$4:$B$103,'Calculated rates'!$F$4:$F$104),"") ->  | CG7: =IF(AND($A7<>"",CG$1<>""),EXP(-UFRC*($A7+CG$1))*(alpha*MIN($A7,CG$1)-0.5*EXP(-alpha*MAX($A7,CG$1))*(EXP(alpha*MIN($A7,CG$1))-EXP(-alpha*MIN($A7,CG$1))))*LOOKUP(CG$1,'Calculated rates'!$B$4:$B$103,'Calculated rates'!$F$4:$F$104),"") ->  | CH7: =IF(AND($A7<>"",CH$1<>""),EXP(-UFRC*($A7+CH$1))*(alpha*MIN($A7,CH$1)-0.5*EXP(-alpha*MAX($A7,CH$1))*(EXP(alpha*MIN($A7,CH$1))-EXP(-alpha*MIN($A7,CH$1))))*LOOKUP(CH$1,'Calculated rates'!$B$4:$B$103,'Calculated rates'!$F$4:$F$104),"") ->  | CI7: =IF(AND($A7<>"",CI$1<>""),EXP(-UFRC*($A7+CI$1))*(alpha*MIN($A7,CI$1)-0.5*EXP(-alpha*MAX($A7,CI$1))*(EXP(alpha*MIN($A7,CI$1))-EXP(-alpha*MIN($A7,CI$1))))*LOOKUP(CI$1,'Calculated rates'!$B$4:$B$103,'Calculated rates'!$F$4:$F$104),"") ->  | CJ7: =IF(AND($A7<>"",CJ$1<>""),EXP(-UFRC*($A7+CJ$1))*(alpha*MIN($A7,CJ$1)-0.5*EXP(-alpha*MAX($A7,CJ$1))*(EXP(alpha*MIN($A7,CJ$1))-EXP(-alpha*MIN($A7,CJ$1))))*LOOKUP(CJ$1,'Calculated rates'!$B$4:$B$103,'Calculated rates'!$F$4:$F$104),"") ->  | CK7: =IF(AND($A7<>"",CK$1<>""),EXP(-UFRC*($A7+CK$1))*(alpha*MIN($A7,CK$1)-0.5*EXP(-alpha*MAX($A7,CK$1))*(EXP(alpha*MIN($A7,CK$1))-EXP(-alpha*MIN($A7,CK$1))))*LOOKUP(CK$1,'Calculated rates'!$B$4:$B$103,'Calculated rates'!$F$4:$F$104),"") ->  | CL7: =IF(AND($A7<>"",CL$1<>""),EXP(-UFRC*($A7+CL$1))*(alpha*MIN($A7,CL$1)-0.5*EXP(-alpha*MAX($A7,CL$1))*(EXP(alpha*MIN($A7,CL$1))-EXP(-alpha*MIN($A7,CL$1))))*LOOKUP(CL$1,'Calculated rates'!$B$4:$B$103,'Calculated rates'!$F$4:$F$104),"") ->  | CM7: =IF(AND($A7<>"",CM$1<>""),EXP(-UFRC*($A7+CM$1))*(alpha*MIN($A7,CM$1)-0.5*EXP(-alpha*MAX($A7,CM$1))*(EXP(alpha*MIN($A7,CM$1))-EXP(-alpha*MIN($A7,CM$1))))*LOOKUP(CM$1,'Calculated rates'!$B$4:$B$103,'Calculated rates'!$F$4:$F$104),"") ->  | CN7: =IF(AND($A7<>"",CN$1<>""),EXP(-UFRC*($A7+CN$1))*(alpha*MIN($A7,CN$1)-0.5*EXP(-alpha*MAX($A7,CN$1))*(EXP(alpha*MIN($A7,CN$1))-EXP(-alpha*MIN($A7,CN$1))))*LOOKUP(CN$1,'Calculated rates'!$B$4:$B$103,'Calculated rates'!$F$4:$F$104),"") ->  | CO7: =IF(AND($A7<>"",CO$1<>""),EXP(-UFRC*($A7+CO$1))*(alpha*MIN($A7,CO$1)-0.5*EXP(-alpha*MAX($A7,CO$1))*(EXP(alpha*MIN($A7,CO$1))-EXP(-alpha*MIN($A7,CO$1))))*LOOKUP(CO$1,'Calculated rates'!$B$4:$B$103,'Calculated rates'!$F$4:$F$104),"") ->  | CP7: =IF(AND($A7<>"",CP$1<>""),EXP(-UFRC*($A7+CP$1))*(alpha*MIN($A7,CP$1)-0.5*EXP(-alpha*MAX($A7,CP$1))*(EXP(alpha*MIN($A7,CP$1))-EXP(-alpha*MIN($A7,CP$1))))*LOOKUP(CP$1,'Calculated rates'!$B$4:$B$103,'Calculated rates'!$F$4:$F$104),"") ->  | CQ7: =IF(AND($A7<>"",CQ$1<>""),EXP(-UFRC*($A7+CQ$1))*(alpha*MIN($A7,CQ$1)-0.5*EXP(-alpha*MAX($A7,CQ$1))*(EXP(alpha*MIN($A7,CQ$1))-EXP(-alpha*MIN($A7,CQ$1))))*LOOKUP(CQ$1,'Calculated rates'!$B$4:$B$103,'Calculated rates'!$F$4:$F$104),"") ->  | CR7: =IF(AND($A7<>"",CR$1<>""),EXP(-UFRC*($A7+CR$1))*(alpha*MIN($A7,CR$1)-0.5*EXP(-alpha*MAX($A7,CR$1))*(EXP(alpha*MIN($A7,CR$1))-EXP(-alpha*MIN($A7,CR$1))))*LOOKUP(CR$1,'Calculated rates'!$B$4:$B$103,'Calculated rates'!$F$4:$F$104),"") ->  | CS7: =IF(AND($A7<>"",CS$1<>""),EXP(-UFRC*($A7+CS$1))*(alpha*MIN($A7,CS$1)-0.5*EXP(-alpha*MAX($A7,CS$1))*(EXP(alpha*MIN($A7,CS$1))-EXP(-alpha*MIN($A7,CS$1))))*LOOKUP(CS$1,'Calculated rates'!$B$4:$B$103,'Calculated rates'!$F$4:$F$104),"") ->  | CT7: =IF(AND($A7<>"",CT$1<>""),EXP(-UFRC*($A7+CT$1))*(alpha*MIN($A7,CT$1)-0.5*EXP(-alpha*MAX($A7,CT$1))*(EXP(alpha*MIN($A7,CT$1))-EXP(-alpha*MIN($A7,CT$1))))*LOOKUP(CT$1,'Calculated rates'!$B$4:$B$103,'Calculated rates'!$F$4:$F$104),"") ->  | CU7: =IF(AND($A7<>"",CU$1<>""),EXP(-UFRC*($A7+CU$1))*(alpha*MIN($A7,CU$1)-0.5*EXP(-alpha*MAX($A7,CU$1))*(EXP(alpha*MIN($A7,CU$1))-EXP(-alpha*MIN($A7,CU$1))))*LOOKUP(CU$1,'Calculated rates'!$B$4:$B$103,'Calculated rates'!$F$4:$F$104),"") ->  | CV7: =IF(AND($A7<>"",CV$1<>""),EXP(-UFRC*($A7+CV$1))*(alpha*MIN($A7,CV$1)-0.5*EXP(-alpha*MAX($A7,CV$1))*(EXP(alpha*MIN($A7,CV$1))-EXP(-alpha*MIN($A7,CV$1))))*LOOKUP(CV$1,'Calculated rates'!$B$4:$B$103,'Calculated rates'!$F$4:$F$104),"") ->  | CW7: =IF(AND($A7<>"",CW$1<>""),EXP(-UFRC*($A7+CW$1))*(alpha*MIN($A7,CW$1)-0.5*EXP(-alpha*MAX($A7,CW$1))*(EXP(alpha*MIN($A7,CW$1))-EXP(-alpha*MIN($A7,CW$1))))*LOOKUP(CW$1,'Calculated rates'!$B$4:$B$103,'Calculated rates'!$F$4:$F$104),"") ->  | CX7: =IF(AND($A7<>"",CX$1<>""),EXP(-UFRC*($A7+CX$1))*(alpha*MIN($A7,CX$1)-0.5*EXP(-alpha*MAX($A7,CX$1))*(EXP(alpha*MIN($A7,CX$1))-EXP(-alpha*MIN($A7,CX$1))))*LOOKUP(CX$1,'Calculated rates'!$B$4:$B$103,'Calculated rates'!$F$4:$F$104),"") ->  | CY7: =IF(AND($A7<>"",CY$1<>""),EXP(-UFRC*($A7+CY$1))*(alpha*MIN($A7,CY$1)-0.5*EXP(-alpha*MAX($A7,CY$1))*(EXP(alpha*MIN($A7,CY$1))-EXP(-alpha*MIN($A7,CY$1))))*LOOKUP(CY$1,'Calculated rates'!$B$4:$B$103,'Calculated rates'!$F$4:$F$104),"") -> 
A8: ='Calculated rates'!J9 -> 6 | B8: 0.01618257711 | C8: 0.9074693726 | D8: =IF(AND($A8<>"",D$1<>""),EXP(-UFRC*($A8+D$1))*(alpha*MIN($A8,D$1)-0.5*EXP(-alpha*MAX($A8,D$1))*(EXP(alpha*MIN($A8,D$1))-EXP(-alpha*MIN($A8,D$1))))*LOOKUP(D$1,'Calculated rates'!$B$4:$B$103,'Calculated rates'!$F$4:$F$104),"") -> 0.02095252984 | E8: =IF(AND($A8<>"",E$1<>""),EXP(-UFRC*($A8+E$1))*(alpha*MIN($A8,E$1)-0.5*EXP(-alpha*MAX($A8,E$1))*(EXP(alpha*MIN($A8,E$1))-EXP(-alpha*MIN($A8,E$1))))*LOOKUP(E$1,'Calculated rates'!$B$4:$B$103,'Calculated rates'!$F$4:$F$104),"") -> 0.0005788088515 | F8: =IF(AND($A8<>"",F$1<>""),EXP(-UFRC*($A8+F$1))*(alpha*MIN($A8,F$1)-0.5*EXP(-alpha*MAX($A8,F$1))*(EXP(alpha*MIN($A8,F$1))-EXP(-alpha*MIN($A8,F$1))))*LOOKUP(F$1,'Calculated rates'!$B$4:$B$103,'Calculated rates'!$F$4:$F$104),"") -> 0.005309163195 | G8: =IF(AND($A8<>"",G$1<>""),EXP(-UFRC*($A8+G$1))*(alpha*MIN($A8,G$1)-0.5*EXP(-alpha*MAX($A8,G$1))*(EXP(alpha*MIN($A8,G$1))-EXP(-alpha*MIN($A8,G$1))))*LOOKUP(G$1,'Calculated rates'!$B$4:$B$103,'Calculated rates'!$F$4:$F$104),"") -> 0.04394679201 | H8: =IF(AND($A8<>"",H$1<>""),EXP(-UFRC*($A8+H$1))*(alpha*MIN($A8,H$1)-0.5*EXP(-alpha*MAX($A8,H$1))*(EXP(alpha*MIN($A8,H$1))-EXP(-alpha*MIN($A8,H$1))))*LOOKUP(H$1,'Calculated rates'!$B$4:$B$103,'Calculated rates'!$F$4:$F$104),"") -> -0.1213650127 | I8: =IF(AND($A8<>"",I$1<>""),EXP(-UFRC*($A8+I$1))*(alpha*MIN($A8,I$1)-0.5*EXP(-alpha*MAX($A8,I$1))*(EXP(alpha*MIN($A8,I$1))-EXP(-alpha*MIN($A8,I$1))))*LOOKUP(I$1,'Calculated rates'!$B$4:$B$103,'Calculated rates'!$F$4:$F$104),"") -> 0.6190769745 | J8: =IF(AND($A8<>"",J$1<>""),EXP(-UFRC*($A8+J$1))*(alpha*MIN($A8,J$1)-0.5*EXP(-alpha*MAX($A8,J$1))*(EXP(alpha*MIN($A8,J$1))-EXP(-alpha*MIN($A8,J$1))))*LOOKUP(J$1,'Calculated rates'!$B$4:$B$103,'Calculated rates'!$F$4:$F$104),"") -> -0.8471531356 | K8: =IF(AND($A8<>"",K$1<>""),EXP(-UFRC*($A8+K$1))*(alpha*MIN($A8,K$1)-0.5*EXP(-alpha*MAX($A8,K$1))*(EXP(alpha*MIN($A8,K$1))-EXP(-alpha*MIN($A8,K$1))))*LOOKUP(K$1,'Calculated rates'!$B$4:$B$103,'Calculated rates'!$F$4:$F$104),"") -> 0.03533013382 | L8: =IF(AND($A8<>"",L$1<>""),EXP(-UFRC*($A8+L$1))*(alpha*MIN($A8,L$1)-0.5*EXP(-alpha*MAX($A8,L$1))*(EXP(alpha*MIN($A8,L$1))-EXP(-alpha*MIN($A8,L$1))))*LOOKUP(L$1,'Calculated rates'!$B$4:$B$103,'Calculated rates'!$F$4:$F$104),"") -> 1.084747333 | M8: =IF(AND($A8<>"",M$1<>""),EXP(-UFRC*($A8+M$1))*(alpha*MIN($A8,M$1)-0.5*EXP(-alpha*MAX($A8,M$1))*(EXP(alpha*MIN($A8,M$1))-EXP(-alpha*MIN($A8,M$1))))*LOOKUP(M$1,'Calculated rates'!$B$4:$B$103,'Calculated rates'!$F$4:$F$104),"") -> -1.362115228 | N8: =IF(AND($A8<>"",N$1<>""),EXP(-UFRC*($A8+N$1))*(alpha*MIN($A8,N$1)-0.5*EXP(-alpha*MAX($A8,N$1))*(EXP(alpha*MIN($A8,N$1))-EXP(-alpha*MIN($A8,N$1))))*LOOKUP(N$1,'Calculated rates'!$B$4:$B$103,'Calculated rates'!$F$4:$F$104),"") -> 0.7114464331 | O8: =IF(AND($A8<>"",O$1<>""),EXP(-UFRC*($A8+O$1))*(alpha*MIN($A8,O$1)-0.5*EXP(-alpha*MAX($A8,O$1))*(EXP(alpha*MIN($A8,O$1))-EXP(-alpha*MIN($A8,O$1))))*LOOKUP(O$1,'Calculated rates'!$B$4:$B$103,'Calculated rates'!$F$4:$F$104),"") -> -0.1298288755 | P8: =IF(AND($A8<>"",P$1<>""),EXP(-UFRC*($A8+P$1))*(alpha*MIN($A8,P$1)-0.5*EXP(-alpha*MAX($A8,P$1))*(EXP(alpha*MIN($A8,P$1))-EXP(-alpha*MIN($A8,P$1))))*LOOKUP(P$1,'Calculated rates'!$B$4:$B$103,'Calculated rates'!$F$4:$F$104),"") -> -0.1649623896 | Q8: =IF(AND($A8<>"",Q$1<>""),EXP(-UFRC*($A8+Q$1))*(alpha*MIN($A8,Q$1)-0.5*EXP(-alpha*MAX($A8,Q$1))*(EXP(alpha*MIN($A8,Q$1))-EXP(-alpha*MIN($A8,Q$1))))*LOOKUP(Q$1,'Calculated rates'!$B$4:$B$103,'Calculated rates'!$F$4:$F$104),"") -> 0.8298310444 | R8: =IF(AND($A8<>"",R$1<>""),EXP(-UFRC*($A8+R$1))*(alpha*MIN($A8,R$1)-0.5*EXP(-alpha*MAX($A8,R$1))*(EXP(alpha*MIN($A8,R$1))-EXP(-alpha*MIN($A8,R$1))))*LOOKUP(R$1,'Calculated rates'!$B$4:$B$103,'Calculated rates'!$F$4:$F$104),"") -> -1.31561807 | S8: =IF(AND($A8<>"",S$1<>""),EXP(-UFRC*($A8+S$1))*(alpha*MIN($A8,S$1)-0.5*EXP(-alpha*MAX($A8,S$1))*(EXP(alpha*MIN($A8,S$1))-EXP(-alpha*MIN($A8,S$1))))*LOOKUP(S$1,'Calculated rates'!$B$4:$B$103,'Calculated rates'!$F$4:$F$104),"") -> 0.7703507754 | T8: =IF(AND($A8<>"",T$1<>""),EXP(-UFRC*($A8+T$1))*(alpha*MIN($A8,T$1)-0.5*EXP(-alpha*MAX($A8,T$1))*(EXP(alpha*MIN($A8,T$1))-EXP(-alpha*MIN($A8,T$1))))*LOOKUP(T$1,'Calculated rates'!$B$4:$B$103,'Calculated rates'!$F$4:$F$104),"") -> -0.2374060346 | U8: =IF(AND($A8<>"",U$1<>""),EXP(-UFRC*($A8+U$1))*(alpha*MIN($A8,U$1)-0.5*EXP(-alpha*MAX($A8,U$1))*(EXP(alpha*MIN($A8,U$1))-EXP(-alpha*MIN($A8,U$1))))*LOOKUP(U$1,'Calculated rates'!$B$4:$B$103,'Calculated rates'!$F$4:$F$104),"") -> 0.1686960475 | V8: =IF(AND($A8<>"",V$1<>""),EXP(-UFRC*($A8+V$1))*(alpha*MIN($A8,V$1)-0.5*EXP(-alpha*MAX($A8,V$1))*(EXP(alpha*MIN($A8,V$1))-EXP(-alpha*MIN($A8,V$1))))*LOOKUP(V$1,'Calculated rates'!$B$4:$B$103,'Calculated rates'!$F$4:$F$104),"") -> -0.462523376 | W8: =IF(AND($A8<>"",W$1<>""),EXP(-UFRC*($A8+W$1))*(alpha*MIN($A8,W$1)-0.5*EXP(-alpha*MAX($A8,W$1))*(EXP(alpha*MIN($A8,W$1))-EXP(-alpha*MIN($A8,W$1))))*LOOKUP(W$1,'Calculated rates'!$B$4:$B$103,'Calculated rates'!$F$4:$F$104),"") -> 0.4769188828 | X8: =IF(AND($A8<>"",X$1<>""),EXP(-UFRC*($A8+X$1))*(alpha*MIN($A8,X$1)-0.5*EXP(-alpha*MAX($A8,X$1))*(EXP(alpha*MIN($A8,X$1))-EXP(-alpha*MIN($A8,X$1))))*LOOKUP(X$1,'Calculated rates'!$B$4:$B$103,'Calculated rates'!$F$4:$F$104),"") ->  | Y8: =IF(AND($A8<>"",Y$1<>""),EXP(-UFRC*($A8+Y$1))*(alpha*MIN($A8,Y$1)-0.5*EXP(-alpha*MAX($A8,Y$1))*(EXP(alpha*MIN($A8,Y$1))-EXP(-alpha*MIN($A8,Y$1))))*LOOKUP(Y$1,'Calculated rates'!$B$4:$B$103,'Calculated rates'!$F$4:$F$104),"") ->  | Z8: =IF(AND($A8<>"",Z$1<>""),EXP(-UFRC*($A8+Z$1))*(alpha*MIN($A8,Z$1)-0.5*EXP(-alpha*MAX($A8,Z$1))*(EXP(alpha*MIN($A8,Z$1))-EXP(-alpha*MIN($A8,Z$1))))*LOOKUP(Z$1,'Calculated rates'!$B$4:$B$103,'Calculated rates'!$F$4:$F$104),"") ->  | AA8: =IF(AND($A8<>"",AA$1<>""),EXP(-UFRC*($A8+AA$1))*(alpha*MIN($A8,AA$1)-0.5*EXP(-alpha*MAX($A8,AA$1))*(EXP(alpha*MIN($A8,AA$1))-EXP(-alpha*MIN($A8,AA$1))))*LOOKUP(AA$1,'Calculated rates'!$B$4:$B$103,'Calculated rates'!$F$4:$F$104),"") ->  | AB8: =IF(AND($A8<>"",AB$1<>""),EXP(-UFRC*($A8+AB$1))*(alpha*MIN($A8,AB$1)-0.5*EXP(-alpha*MAX($A8,AB$1))*(EXP(alpha*MIN($A8,AB$1))-EXP(-alpha*MIN($A8,AB$1))))*LOOKUP(AB$1,'Calculated rates'!$B$4:$B$103,'Calculated rates'!$F$4:$F$104),"") ->  | AC8: =IF(AND($A8<>"",AC$1<>""),EXP(-UFRC*($A8+AC$1))*(alpha*MIN($A8,AC$1)-0.5*EXP(-alpha*MAX($A8,AC$1))*(EXP(alpha*MIN($A8,AC$1))-EXP(-alpha*MIN($A8,AC$1))))*LOOKUP(AC$1,'Calculated rates'!$B$4:$B$103,'Calculated rates'!$F$4:$F$104),"") ->  | AD8: =IF(AND($A8<>"",AD$1<>""),EXP(-UFRC*($A8+AD$1))*(alpha*MIN($A8,AD$1)-0.5*EXP(-alpha*MAX($A8,AD$1))*(EXP(alpha*MIN($A8,AD$1))-EXP(-alpha*MIN($A8,AD$1))))*LOOKUP(AD$1,'Calculated rates'!$B$4:$B$103,'Calculated rates'!$F$4:$F$104),"") ->  | AE8: =IF(AND($A8<>"",AE$1<>""),EXP(-UFRC*($A8+AE$1))*(alpha*MIN($A8,AE$1)-0.5*EXP(-alpha*MAX($A8,AE$1))*(EXP(alpha*MIN($A8,AE$1))-EXP(-alpha*MIN($A8,AE$1))))*LOOKUP(AE$1,'Calculated rates'!$B$4:$B$103,'Calculated rates'!$F$4:$F$104),"") ->  | AF8: =IF(AND($A8<>"",AF$1<>""),EXP(-UFRC*($A8+AF$1))*(alpha*MIN($A8,AF$1)-0.5*EXP(-alpha*MAX($A8,AF$1))*(EXP(alpha*MIN($A8,AF$1))-EXP(-alpha*MIN($A8,AF$1))))*LOOKUP(AF$1,'Calculated rates'!$B$4:$B$103,'Calculated rates'!$F$4:$F$104),"") ->  | AG8: =IF(AND($A8<>"",AG$1<>""),EXP(-UFRC*($A8+AG$1))*(alpha*MIN($A8,AG$1)-0.5*EXP(-alpha*MAX($A8,AG$1))*(EXP(alpha*MIN($A8,AG$1))-EXP(-alpha*MIN($A8,AG$1))))*LOOKUP(AG$1,'Calculated rates'!$B$4:$B$103,'Calculated rates'!$F$4:$F$104),"") ->  | AH8: =IF(AND($A8<>"",AH$1<>""),EXP(-UFRC*($A8+AH$1))*(alpha*MIN($A8,AH$1)-0.5*EXP(-alpha*MAX($A8,AH$1))*(EXP(alpha*MIN($A8,AH$1))-EXP(-alpha*MIN($A8,AH$1))))*LOOKUP(AH$1,'Calculated rates'!$B$4:$B$103,'Calculated rates'!$F$4:$F$104),"") ->  | AI8: =IF(AND($A8<>"",AI$1<>""),EXP(-UFRC*($A8+AI$1))*(alpha*MIN($A8,AI$1)-0.5*EXP(-alpha*MAX($A8,AI$1))*(EXP(alpha*MIN($A8,AI$1))-EXP(-alpha*MIN($A8,AI$1))))*LOOKUP(AI$1,'Calculated rates'!$B$4:$B$103,'Calculated rates'!$F$4:$F$104),"") ->  | AJ8: =IF(AND($A8<>"",AJ$1<>""),EXP(-UFRC*($A8+AJ$1))*(alpha*MIN($A8,AJ$1)-0.5*EXP(-alpha*MAX($A8,AJ$1))*(EXP(alpha*MIN($A8,AJ$1))-EXP(-alpha*MIN($A8,AJ$1))))*LOOKUP(AJ$1,'Calculated rates'!$B$4:$B$103,'Calculated rates'!$F$4:$F$104),"") ->  | AK8: =IF(AND($A8<>"",AK$1<>""),EXP(-UFRC*($A8+AK$1))*(alpha*MIN($A8,AK$1)-0.5*EXP(-alpha*MAX($A8,AK$1))*(EXP(alpha*MIN($A8,AK$1))-EXP(-alpha*MIN($A8,AK$1))))*LOOKUP(AK$1,'Calculated rates'!$B$4:$B$103,'Calculated rates'!$F$4:$F$104),"") ->  | AL8: =IF(AND($A8<>"",AL$1<>""),EXP(-UFRC*($A8+AL$1))*(alpha*MIN($A8,AL$1)-0.5*EXP(-alpha*MAX($A8,AL$1))*(EXP(alpha*MIN($A8,AL$1))-EXP(-alpha*MIN($A8,AL$1))))*LOOKUP(AL$1,'Calculated rates'!$B$4:$B$103,'Calculated rates'!$F$4:$F$104),"") ->  | AM8: =IF(AND($A8<>"",AM$1<>""),EXP(-UFRC*($A8+AM$1))*(alpha*MIN($A8,AM$1)-0.5*EXP(-alpha*MAX($A8,AM$1))*(EXP(alpha*MIN($A8,AM$1))-EXP(-alpha*MIN($A8,AM$1))))*LOOKUP(AM$1,'Calculated rates'!$B$4:$B$103,'Calculated rates'!$F$4:$F$104),"") ->  | AN8: =IF(AND($A8<>"",AN$1<>""),EXP(-UFRC*($A8+AN$1))*(alpha*MIN($A8,AN$1)-0.5*EXP(-alpha*MAX($A8,AN$1))*(EXP(alpha*MIN($A8,AN$1))-EXP(-alpha*MIN($A8,AN$1))))*LOOKUP(AN$1,'Calculated rates'!$B$4:$B$103,'Calculated rates'!$F$4:$F$104),"") ->  | AO8: =IF(AND($A8<>"",AO$1<>""),EXP(-UFRC*($A8+AO$1))*(alpha*MIN($A8,AO$1)-0.5*EXP(-alpha*MAX($A8,AO$1))*(EXP(alpha*MIN($A8,AO$1))-EXP(-alpha*MIN($A8,AO$1))))*LOOKUP(AO$1,'Calculated rates'!$B$4:$B$103,'Calculated rates'!$F$4:$F$104),"") ->  | AP8: =IF(AND($A8<>"",AP$1<>""),EXP(-UFRC*($A8+AP$1))*(alpha*MIN($A8,AP$1)-0.5*EXP(-alpha*MAX($A8,AP$1))*(EXP(alpha*MIN($A8,AP$1))-EXP(-alpha*MIN($A8,AP$1))))*LOOKUP(AP$1,'Calculated rates'!$B$4:$B$103,'Calculated rates'!$F$4:$F$104),"") ->  | AQ8: =IF(AND($A8<>"",AQ$1<>""),EXP(-UFRC*($A8+AQ$1))*(alpha*MIN($A8,AQ$1)-0.5*EXP(-alpha*MAX($A8,AQ$1))*(EXP(alpha*MIN($A8,AQ$1))-EXP(-alpha*MIN($A8,AQ$1))))*LOOKUP(AQ$1,'Calculated rates'!$B$4:$B$103,'Calculated rates'!$F$4:$F$104),"") ->  | AR8: =IF(AND($A8<>"",AR$1<>""),EXP(-UFRC*($A8+AR$1))*(alpha*MIN($A8,AR$1)-0.5*EXP(-alpha*MAX($A8,AR$1))*(EXP(alpha*MIN($A8,AR$1))-EXP(-alpha*MIN($A8,AR$1))))*LOOKUP(AR$1,'Calculated rates'!$B$4:$B$103,'Calculated rates'!$F$4:$F$104),"") ->  | AS8: =IF(AND($A8<>"",AS$1<>""),EXP(-UFRC*($A8+AS$1))*(alpha*MIN($A8,AS$1)-0.5*EXP(-alpha*MAX($A8,AS$1))*(EXP(alpha*MIN($A8,AS$1))-EXP(-alpha*MIN($A8,AS$1))))*LOOKUP(AS$1,'Calculated rates'!$B$4:$B$103,'Calculated rates'!$F$4:$F$104),"") ->  | AT8: =IF(AND($A8<>"",AT$1<>""),EXP(-UFRC*($A8+AT$1))*(alpha*MIN($A8,AT$1)-0.5*EXP(-alpha*MAX($A8,AT$1))*(EXP(alpha*MIN($A8,AT$1))-EXP(-alpha*MIN($A8,AT$1))))*LOOKUP(AT$1,'Calculated rates'!$B$4:$B$103,'Calculated rates'!$F$4:$F$104),"") ->  | AU8: =IF(AND($A8<>"",AU$1<>""),EXP(-UFRC*($A8+AU$1))*(alpha*MIN($A8,AU$1)-0.5*EXP(-alpha*MAX($A8,AU$1))*(EXP(alpha*MIN($A8,AU$1))-EXP(-alpha*MIN($A8,AU$1))))*LOOKUP(AU$1,'Calculated rates'!$B$4:$B$103,'Calculated rates'!$F$4:$F$104),"") ->  | AV8: =IF(AND($A8<>"",AV$1<>""),EXP(-UFRC*($A8+AV$1))*(alpha*MIN($A8,AV$1)-0.5*EXP(-alpha*MAX($A8,AV$1))*(EXP(alpha*MIN($A8,AV$1))-EXP(-alpha*MIN($A8,AV$1))))*LOOKUP(AV$1,'Calculated rates'!$B$4:$B$103,'Calculated rates'!$F$4:$F$104),"") ->  | AW8: =IF(AND($A8<>"",AW$1<>""),EXP(-UFRC*($A8+AW$1))*(alpha*MIN($A8,AW$1)-0.5*EXP(-alpha*MAX($A8,AW$1))*(EXP(alpha*MIN($A8,AW$1))-EXP(-alpha*MIN($A8,AW$1))))*LOOKUP(AW$1,'Calculated rates'!$B$4:$B$103,'Calculated rates'!$F$4:$F$104),"") ->  | AX8: =IF(AND($A8<>"",AX$1<>""),EXP(-UFRC*($A8+AX$1))*(alpha*MIN($A8,AX$1)-0.5*EXP(-alpha*MAX($A8,AX$1))*(EXP(alpha*MIN($A8,AX$1))-EXP(-alpha*MIN($A8,AX$1))))*LOOKUP(AX$1,'Calculated rates'!$B$4:$B$103,'Calculated rates'!$F$4:$F$104),"") ->  | AY8: =IF(AND($A8<>"",AY$1<>""),EXP(-UFRC*($A8+AY$1))*(alpha*MIN($A8,AY$1)-0.5*EXP(-alpha*MAX($A8,AY$1))*(EXP(alpha*MIN($A8,AY$1))-EXP(-alpha*MIN($A8,AY$1))))*LOOKUP(AY$1,'Calculated rates'!$B$4:$B$103,'Calculated rates'!$F$4:$F$104),"") ->  | AZ8: =IF(AND($A8<>"",AZ$1<>""),EXP(-UFRC*($A8+AZ$1))*(alpha*MIN($A8,AZ$1)-0.5*EXP(-alpha*MAX($A8,AZ$1))*(EXP(alpha*MIN($A8,AZ$1))-EXP(-alpha*MIN($A8,AZ$1))))*LOOKUP(AZ$1,'Calculated rates'!$B$4:$B$103,'Calculated rates'!$F$4:$F$104),"") ->  | BA8: =IF(AND($A8<>"",BA$1<>""),EXP(-UFRC*($A8+BA$1))*(alpha*MIN($A8,BA$1)-0.5*EXP(-alpha*MAX($A8,BA$1))*(EXP(alpha*MIN($A8,BA$1))-EXP(-alpha*MIN($A8,BA$1))))*LOOKUP(BA$1,'Calculated rates'!$B$4:$B$103,'Calculated rates'!$F$4:$F$104),"") ->  | BB8: =IF(AND($A8<>"",BB$1<>""),EXP(-UFRC*($A8+BB$1))*(alpha*MIN($A8,BB$1)-0.5*EXP(-alpha*MAX($A8,BB$1))*(EXP(alpha*MIN($A8,BB$1))-EXP(-alpha*MIN($A8,BB$1))))*LOOKUP(BB$1,'Calculated rates'!$B$4:$B$103,'Calculated rates'!$F$4:$F$104),"") ->  | BC8: =IF(AND($A8<>"",BC$1<>""),EXP(-UFRC*($A8+BC$1))*(alpha*MIN($A8,BC$1)-0.5*EXP(-alpha*MAX($A8,BC$1))*(EXP(alpha*MIN($A8,BC$1))-EXP(-alpha*MIN($A8,BC$1))))*LOOKUP(BC$1,'Calculated rates'!$B$4:$B$103,'Calculated rates'!$F$4:$F$104),"") ->  | BD8: =IF(AND($A8<>"",BD$1<>""),EXP(-UFRC*($A8+BD$1))*(alpha*MIN($A8,BD$1)-0.5*EXP(-alpha*MAX($A8,BD$1))*(EXP(alpha*MIN($A8,BD$1))-EXP(-alpha*MIN($A8,BD$1))))*LOOKUP(BD$1,'Calculated rates'!$B$4:$B$103,'Calculated rates'!$F$4:$F$104),"") ->  | BE8: =IF(AND($A8<>"",BE$1<>""),EXP(-UFRC*($A8+BE$1))*(alpha*MIN($A8,BE$1)-0.5*EXP(-alpha*MAX($A8,BE$1))*(EXP(alpha*MIN($A8,BE$1))-EXP(-alpha*MIN($A8,BE$1))))*LOOKUP(BE$1,'Calculated rates'!$B$4:$B$103,'Calculated rates'!$F$4:$F$104),"") ->  | BF8: =IF(AND($A8<>"",BF$1<>""),EXP(-UFRC*($A8+BF$1))*(alpha*MIN($A8,BF$1)-0.5*EXP(-alpha*MAX($A8,BF$1))*(EXP(alpha*MIN($A8,BF$1))-EXP(-alpha*MIN($A8,BF$1))))*LOOKUP(BF$1,'Calculated rates'!$B$4:$B$103,'Calculated rates'!$F$4:$F$104),"") ->  | BG8: =IF(AND($A8<>"",BG$1<>""),EXP(-UFRC*($A8+BG$1))*(alpha*MIN($A8,BG$1)-0.5*EXP(-alpha*MAX($A8,BG$1))*(EXP(alpha*MIN($A8,BG$1))-EXP(-alpha*MIN($A8,BG$1))))*LOOKUP(BG$1,'Calculated rates'!$B$4:$B$103,'Calculated rates'!$F$4:$F$104),"") ->  | BH8: =IF(AND($A8<>"",BH$1<>""),EXP(-UFRC*($A8+BH$1))*(alpha*MIN($A8,BH$1)-0.5*EXP(-alpha*MAX($A8,BH$1))*(EXP(alpha*MIN($A8,BH$1))-EXP(-alpha*MIN($A8,BH$1))))*LOOKUP(BH$1,'Calculated rates'!$B$4:$B$103,'Calculated rates'!$F$4:$F$104),"") ->  | BI8: =IF(AND($A8<>"",BI$1<>""),EXP(-UFRC*($A8+BI$1))*(alpha*MIN($A8,BI$1)-0.5*EXP(-alpha*MAX($A8,BI$1))*(EXP(alpha*MIN($A8,BI$1))-EXP(-alpha*MIN($A8,BI$1))))*LOOKUP(BI$1,'Calculated rates'!$B$4:$B$103,'Calculated rates'!$F$4:$F$104),"") ->  | BJ8: =IF(AND($A8<>"",BJ$1<>""),EXP(-UFRC*($A8+BJ$1))*(alpha*MIN($A8,BJ$1)-0.5*EXP(-alpha*MAX($A8,BJ$1))*(EXP(alpha*MIN($A8,BJ$1))-EXP(-alpha*MIN($A8,BJ$1))))*LOOKUP(BJ$1,'Calculated rates'!$B$4:$B$103,'Calculated rates'!$F$4:$F$104),"") ->  | BK8: =IF(AND($A8<>"",BK$1<>""),EXP(-UFRC*($A8+BK$1))*(alpha*MIN($A8,BK$1)-0.5*EXP(-alpha*MAX($A8,BK$1))*(EXP(alpha*MIN($A8,BK$1))-EXP(-alpha*MIN($A8,BK$1))))*LOOKUP(BK$1,'Calculated rates'!$B$4:$B$103,'Calculated rates'!$F$4:$F$104),"") ->  | BL8: =IF(AND($A8<>"",BL$1<>""),EXP(-UFRC*($A8+BL$1))*(alpha*MIN($A8,BL$1)-0.5*EXP(-alpha*MAX($A8,BL$1))*(EXP(alpha*MIN($A8,BL$1))-EXP(-alpha*MIN($A8,BL$1))))*LOOKUP(BL$1,'Calculated rates'!$B$4:$B$103,'Calculated rates'!$F$4:$F$104),"") ->  | BM8: =IF(AND($A8<>"",BM$1<>""),EXP(-UFRC*($A8+BM$1))*(alpha*MIN($A8,BM$1)-0.5*EXP(-alpha*MAX($A8,BM$1))*(EXP(alpha*MIN($A8,BM$1))-EXP(-alpha*MIN($A8,BM$1))))*LOOKUP(BM$1,'Calculated rates'!$B$4:$B$103,'Calculated rates'!$F$4:$F$104),"") ->  | BN8: =IF(AND($A8<>"",BN$1<>""),EXP(-UFRC*($A8+BN$1))*(alpha*MIN($A8,BN$1)-0.5*EXP(-alpha*MAX($A8,BN$1))*(EXP(alpha*MIN($A8,BN$1))-EXP(-alpha*MIN($A8,BN$1))))*LOOKUP(BN$1,'Calculated rates'!$B$4:$B$103,'Calculated rates'!$F$4:$F$104),"") ->  | BO8: =IF(AND($A8<>"",BO$1<>""),EXP(-UFRC*($A8+BO$1))*(alpha*MIN($A8,BO$1)-0.5*EXP(-alpha*MAX($A8,BO$1))*(EXP(alpha*MIN($A8,BO$1))-EXP(-alpha*MIN($A8,BO$1))))*LOOKUP(BO$1,'Calculated rates'!$B$4:$B$103,'Calculated rates'!$F$4:$F$104),"") ->  | BP8: =IF(AND($A8<>"",BP$1<>""),EXP(-UFRC*($A8+BP$1))*(alpha*MIN($A8,BP$1)-0.5*EXP(-alpha*MAX($A8,BP$1))*(EXP(alpha*MIN($A8,BP$1))-EXP(-alpha*MIN($A8,BP$1))))*LOOKUP(BP$1,'Calculated rates'!$B$4:$B$103,'Calculated rates'!$F$4:$F$104),"") ->  | BQ8: =IF(AND($A8<>"",BQ$1<>""),EXP(-UFRC*($A8+BQ$1))*(alpha*MIN($A8,BQ$1)-0.5*EXP(-alpha*MAX($A8,BQ$1))*(EXP(alpha*MIN($A8,BQ$1))-EXP(-alpha*MIN($A8,BQ$1))))*LOOKUP(BQ$1,'Calculated rates'!$B$4:$B$103,'Calculated rates'!$F$4:$F$104),"") ->  | BR8: =IF(AND($A8<>"",BR$1<>""),EXP(-UFRC*($A8+BR$1))*(alpha*MIN($A8,BR$1)-0.5*EXP(-alpha*MAX($A8,BR$1))*(EXP(alpha*MIN($A8,BR$1))-EXP(-alpha*MIN($A8,BR$1))))*LOOKUP(BR$1,'Calculated rates'!$B$4:$B$103,'Calculated rates'!$F$4:$F$104),"") ->  | BS8: =IF(AND($A8<>"",BS$1<>""),EXP(-UFRC*($A8+BS$1))*(alpha*MIN($A8,BS$1)-0.5*EXP(-alpha*MAX($A8,BS$1))*(EXP(alpha*MIN($A8,BS$1))-EXP(-alpha*MIN($A8,BS$1))))*LOOKUP(BS$1,'Calculated rates'!$B$4:$B$103,'Calculated rates'!$F$4:$F$104),"") ->  | BT8: =IF(AND($A8<>"",BT$1<>""),EXP(-UFRC*($A8+BT$1))*(alpha*MIN($A8,BT$1)-0.5*EXP(-alpha*MAX($A8,BT$1))*(EXP(alpha*MIN($A8,BT$1))-EXP(-alpha*MIN($A8,BT$1))))*LOOKUP(BT$1,'Calculated rates'!$B$4:$B$103,'Calculated rates'!$F$4:$F$104),"") ->  | BU8: =IF(AND($A8<>"",BU$1<>""),EXP(-UFRC*($A8+BU$1))*(alpha*MIN($A8,BU$1)-0.5*EXP(-alpha*MAX($A8,BU$1))*(EXP(alpha*MIN($A8,BU$1))-EXP(-alpha*MIN($A8,BU$1))))*LOOKUP(BU$1,'Calculated rates'!$B$4:$B$103,'Calculated rates'!$F$4:$F$104),"") ->  | BV8: =IF(AND($A8<>"",BV$1<>""),EXP(-UFRC*($A8+BV$1))*(alpha*MIN($A8,BV$1)-0.5*EXP(-alpha*MAX($A8,BV$1))*(EXP(alpha*MIN($A8,BV$1))-EXP(-alpha*MIN($A8,BV$1))))*LOOKUP(BV$1,'Calculated rates'!$B$4:$B$103,'Calculated rates'!$F$4:$F$104),"") ->  | BW8: =IF(AND($A8<>"",BW$1<>""),EXP(-UFRC*($A8+BW$1))*(alpha*MIN($A8,BW$1)-0.5*EXP(-alpha*MAX($A8,BW$1))*(EXP(alpha*MIN($A8,BW$1))-EXP(-alpha*MIN($A8,BW$1))))*LOOKUP(BW$1,'Calculated rates'!$B$4:$B$103,'Calculated rates'!$F$4:$F$104),"") ->  | BX8: =IF(AND($A8<>"",BX$1<>""),EXP(-UFRC*($A8+BX$1))*(alpha*MIN($A8,BX$1)-0.5*EXP(-alpha*MAX($A8,BX$1))*(EXP(alpha*MIN($A8,BX$1))-EXP(-alpha*MIN($A8,BX$1))))*LOOKUP(BX$1,'Calculated rates'!$B$4:$B$103,'Calculated rates'!$F$4:$F$104),"") ->  | BY8: =IF(AND($A8<>"",BY$1<>""),EXP(-UFRC*($A8+BY$1))*(alpha*MIN($A8,BY$1)-0.5*EXP(-alpha*MAX($A8,BY$1))*(EXP(alpha*MIN($A8,BY$1))-EXP(-alpha*MIN($A8,BY$1))))*LOOKUP(BY$1,'Calculated rates'!$B$4:$B$103,'Calculated rates'!$F$4:$F$104),"") ->  | BZ8: =IF(AND($A8<>"",BZ$1<>""),EXP(-UFRC*($A8+BZ$1))*(alpha*MIN($A8,BZ$1)-0.5*EXP(-alpha*MAX($A8,BZ$1))*(EXP(alpha*MIN($A8,BZ$1))-EXP(-alpha*MIN($A8,BZ$1))))*LOOKUP(BZ$1,'Calculated rates'!$B$4:$B$103,'Calculated rates'!$F$4:$F$104),"") ->  | CA8: =IF(AND($A8<>"",CA$1<>""),EXP(-UFRC*($A8+CA$1))*(alpha*MIN($A8,CA$1)-0.5*EXP(-alpha*MAX($A8,CA$1))*(EXP(alpha*MIN($A8,CA$1))-EXP(-alpha*MIN($A8,CA$1))))*LOOKUP(CA$1,'Calculated rates'!$B$4:$B$103,'Calculated rates'!$F$4:$F$104),"") ->  | CB8: =IF(AND($A8<>"",CB$1<>""),EXP(-UFRC*($A8+CB$1))*(alpha*MIN($A8,CB$1)-0.5*EXP(-alpha*MAX($A8,CB$1))*(EXP(alpha*MIN($A8,CB$1))-EXP(-alpha*MIN($A8,CB$1))))*LOOKUP(CB$1,'Calculated rates'!$B$4:$B$103,'Calculated rates'!$F$4:$F$104),"") ->  | CC8: =IF(AND($A8<>"",CC$1<>""),EXP(-UFRC*($A8+CC$1))*(alpha*MIN($A8,CC$1)-0.5*EXP(-alpha*MAX($A8,CC$1))*(EXP(alpha*MIN($A8,CC$1))-EXP(-alpha*MIN($A8,CC$1))))*LOOKUP(CC$1,'Calculated rates'!$B$4:$B$103,'Calculated rates'!$F$4:$F$104),"") ->  | CD8: =IF(AND($A8<>"",CD$1<>""),EXP(-UFRC*($A8+CD$1))*(alpha*MIN($A8,CD$1)-0.5*EXP(-alpha*MAX($A8,CD$1))*(EXP(alpha*MIN($A8,CD$1))-EXP(-alpha*MIN($A8,CD$1))))*LOOKUP(CD$1,'Calculated rates'!$B$4:$B$103,'Calculated rates'!$F$4:$F$104),"") ->  | CE8: =IF(AND($A8<>"",CE$1<>""),EXP(-UFRC*($A8+CE$1))*(alpha*MIN($A8,CE$1)-0.5*EXP(-alpha*MAX($A8,CE$1))*(EXP(alpha*MIN($A8,CE$1))-EXP(-alpha*MIN($A8,CE$1))))*LOOKUP(CE$1,'Calculated rates'!$B$4:$B$103,'Calculated rates'!$F$4:$F$104),"") ->  | CF8: =IF(AND($A8<>"",CF$1<>""),EXP(-UFRC*($A8+CF$1))*(alpha*MIN($A8,CF$1)-0.5*EXP(-alpha*MAX($A8,CF$1))*(EXP(alpha*MIN($A8,CF$1))-EXP(-alpha*MIN($A8,CF$1))))*LOOKUP(CF$1,'Calculated rates'!$B$4:$B$103,'Calculated rates'!$F$4:$F$104),"") ->  | CG8: =IF(AND($A8<>"",CG$1<>""),EXP(-UFRC*($A8+CG$1))*(alpha*MIN($A8,CG$1)-0.5*EXP(-alpha*MAX($A8,CG$1))*(EXP(alpha*MIN($A8,CG$1))-EXP(-alpha*MIN($A8,CG$1))))*LOOKUP(CG$1,'Calculated rates'!$B$4:$B$103,'Calculated rates'!$F$4:$F$104),"") ->  | CH8: =IF(AND($A8<>"",CH$1<>""),EXP(-UFRC*($A8+CH$1))*(alpha*MIN($A8,CH$1)-0.5*EXP(-alpha*MAX($A8,CH$1))*(EXP(alpha*MIN($A8,CH$1))-EXP(-alpha*MIN($A8,CH$1))))*LOOKUP(CH$1,'Calculated rates'!$B$4:$B$103,'Calculated rates'!$F$4:$F$104),"") ->  | CI8: =IF(AND($A8<>"",CI$1<>""),EXP(-UFRC*($A8+CI$1))*(alpha*MIN($A8,CI$1)-0.5*EXP(-alpha*MAX($A8,CI$1))*(EXP(alpha*MIN($A8,CI$1))-EXP(-alpha*MIN($A8,CI$1))))*LOOKUP(CI$1,'Calculated rates'!$B$4:$B$103,'Calculated rates'!$F$4:$F$104),"") ->  | CJ8: =IF(AND($A8<>"",CJ$1<>""),EXP(-UFRC*($A8+CJ$1))*(alpha*MIN($A8,CJ$1)-0.5*EXP(-alpha*MAX($A8,CJ$1))*(EXP(alpha*MIN($A8,CJ$1))-EXP(-alpha*MIN($A8,CJ$1))))*LOOKUP(CJ$1,'Calculated rates'!$B$4:$B$103,'Calculated rates'!$F$4:$F$104),"") ->  | CK8: =IF(AND($A8<>"",CK$1<>""),EXP(-UFRC*($A8+CK$1))*(alpha*MIN($A8,CK$1)-0.5*EXP(-alpha*MAX($A8,CK$1))*(EXP(alpha*MIN($A8,CK$1))-EXP(-alpha*MIN($A8,CK$1))))*LOOKUP(CK$1,'Calculated rates'!$B$4:$B$103,'Calculated rates'!$F$4:$F$104),"") ->  | CL8: =IF(AND($A8<>"",CL$1<>""),EXP(-UFRC*($A8+CL$1))*(alpha*MIN($A8,CL$1)-0.5*EXP(-alpha*MAX($A8,CL$1))*(EXP(alpha*MIN($A8,CL$1))-EXP(-alpha*MIN($A8,CL$1))))*LOOKUP(CL$1,'Calculated rates'!$B$4:$B$103,'Calculated rates'!$F$4:$F$104),"") ->  | CM8: =IF(AND($A8<>"",CM$1<>""),EXP(-UFRC*($A8+CM$1))*(alpha*MIN($A8,CM$1)-0.5*EXP(-alpha*MAX($A8,CM$1))*(EXP(alpha*MIN($A8,CM$1))-EXP(-alpha*MIN($A8,CM$1))))*LOOKUP(CM$1,'Calculated rates'!$B$4:$B$103,'Calculated rates'!$F$4:$F$104),"") ->  | CN8: =IF(AND($A8<>"",CN$1<>""),EXP(-UFRC*($A8+CN$1))*(alpha*MIN($A8,CN$1)-0.5*EXP(-alpha*MAX($A8,CN$1))*(EXP(alpha*MIN($A8,CN$1))-EXP(-alpha*MIN($A8,CN$1))))*LOOKUP(CN$1,'Calculated rates'!$B$4:$B$103,'Calculated rates'!$F$4:$F$104),"") ->  | CO8: =IF(AND($A8<>"",CO$1<>""),EXP(-UFRC*($A8+CO$1))*(alpha*MIN($A8,CO$1)-0.5*EXP(-alpha*MAX($A8,CO$1))*(EXP(alpha*MIN($A8,CO$1))-EXP(-alpha*MIN($A8,CO$1))))*LOOKUP(CO$1,'Calculated rates'!$B$4:$B$103,'Calculated rates'!$F$4:$F$104),"") ->  | CP8: =IF(AND($A8<>"",CP$1<>""),EXP(-UFRC*($A8+CP$1))*(alpha*MIN($A8,CP$1)-0.5*EXP(-alpha*MAX($A8,CP$1))*(EXP(alpha*MIN($A8,CP$1))-EXP(-alpha*MIN($A8,CP$1))))*LOOKUP(CP$1,'Calculated rates'!$B$4:$B$103,'Calculated rates'!$F$4:$F$104),"") ->  | CQ8: =IF(AND($A8<>"",CQ$1<>""),EXP(-UFRC*($A8+CQ$1))*(alpha*MIN($A8,CQ$1)-0.5*EXP(-alpha*MAX($A8,CQ$1))*(EXP(alpha*MIN($A8,CQ$1))-EXP(-alpha*MIN($A8,CQ$1))))*LOOKUP(CQ$1,'Calculated rates'!$B$4:$B$103,'Calculated rates'!$F$4:$F$104),"") ->  | CR8: =IF(AND($A8<>"",CR$1<>""),EXP(-UFRC*($A8+CR$1))*(alpha*MIN($A8,CR$1)-0.5*EXP(-alpha*MAX($A8,CR$1))*(EXP(alpha*MIN($A8,CR$1))-EXP(-alpha*MIN($A8,CR$1))))*LOOKUP(CR$1,'Calculated rates'!$B$4:$B$103,'Calculated rates'!$F$4:$F$104),"") ->  | CS8: =IF(AND($A8<>"",CS$1<>""),EXP(-UFRC*($A8+CS$1))*(alpha*MIN($A8,CS$1)-0.5*EXP(-alpha*MAX($A8,CS$1))*(EXP(alpha*MIN($A8,CS$1))-EXP(-alpha*MIN($A8,CS$1))))*LOOKUP(CS$1,'Calculated rates'!$B$4:$B$103,'Calculated rates'!$F$4:$F$104),"") ->  | CT8: =IF(AND($A8<>"",CT$1<>""),EXP(-UFRC*($A8+CT$1))*(alpha*MIN($A8,CT$1)-0.5*EXP(-alpha*MAX($A8,CT$1))*(EXP(alpha*MIN($A8,CT$1))-EXP(-alpha*MIN($A8,CT$1))))*LOOKUP(CT$1,'Calculated rates'!$B$4:$B$103,'Calculated rates'!$F$4:$F$104),"") ->  | CU8: =IF(AND($A8<>"",CU$1<>""),EXP(-UFRC*($A8+CU$1))*(alpha*MIN($A8,CU$1)-0.5*EXP(-alpha*MAX($A8,CU$1))*(EXP(alpha*MIN($A8,CU$1))-EXP(-alpha*MIN($A8,CU$1))))*LOOKUP(CU$1,'Calculated rates'!$B$4:$B$103,'Calculated rates'!$F$4:$F$104),"") ->  | CV8: =IF(AND($A8<>"",CV$1<>""),EXP(-UFRC*($A8+CV$1))*(alpha*MIN($A8,CV$1)-0.5*EXP(-alpha*MAX($A8,CV$1))*(EXP(alpha*MIN($A8,CV$1))-EXP(-alpha*MIN($A8,CV$1))))*LOOKUP(CV$1,'Calculated rates'!$B$4:$B$103,'Calculated rates'!$F$4:$F$104),"") ->  | CW8: =IF(AND($A8<>"",CW$1<>""),EXP(-UFRC*($A8+CW$1))*(alpha*MIN($A8,CW$1)-0.5*EXP(-alpha*MAX($A8,CW$1))*(EXP(alpha*MIN($A8,CW$1))-EXP(-alpha*MIN($A8,CW$1))))*LOOKUP(CW$1,'Calculated rates'!$B$4:$B$103,'Calculated rates'!$F$4:$F$104),"") ->  | CX8: =IF(AND($A8<>"",CX$1<>""),EXP(-UFRC*($A8+CX$1))*(alpha*MIN($A8,CX$1)-0.5*EXP(-alpha*MAX($A8,CX$1))*(EXP(alpha*MIN($A8,CX$1))-EXP(-alpha*MIN($A8,CX$1))))*LOOKUP(CX$1,'Calculated rates'!$B$4:$B$103,'Calculated rates'!$F$4:$F$104),"") ->  | CY8: =IF(AND($A8<>"",CY$1<>""),EXP(-UFRC*($A8+CY$1))*(alpha*MIN($A8,CY$1)-0.5*EXP(-alpha*MAX($A8,CY$1))*(EXP(alpha*MIN($A8,CY$1))-EXP(-alpha*MIN($A8,CY$1))))*LOOKUP(CY$1,'Calculated rates'!$B$4:$B$103,'Calculated rates'!$F$4:$F$104),"") -> 
A9: ='Calculated rates'!J10 -> 7 | B9: 0.01848763824 | C9: 0.8786106133 | D9: =IF(AND($A9<>"",D$1<>""),EXP(-UFRC*($A9+D$1))*(alpha*MIN($A9,D$1)-0.5*EXP(-alpha*MAX($A9,D$1))*(EXP(alpha*MIN($A9,D$1))-EXP(-alpha*MIN($A9,D$1))))*LOOKUP(D$1,'Calculated rates'!$B$4:$B$103,'Calculated rates'!$F$4:$F$104),"") -> 0.02071985477 | E9: =IF(AND($A9<>"",E$1<>""),EXP(-UFRC*($A9+E$1))*(alpha*MIN($A9,E$1)-0.5*EXP(-alpha*MAX($A9,E$1))*(EXP(alpha*MIN($A9,E$1))-EXP(-alpha*MIN($A9,E$1))))*LOOKUP(E$1,'Calculated rates'!$B$4:$B$103,'Calculated rates'!$F$4:$F$104),"") -> 0.000574072875 | F9: =IF(AND($A9<>"",F$1<>""),EXP(-UFRC*($A9+F$1))*(alpha*MIN($A9,F$1)-0.5*EXP(-alpha*MAX($A9,F$1))*(EXP(alpha*MIN($A9,F$1))-EXP(-alpha*MIN($A9,F$1))))*LOOKUP(F$1,'Calculated rates'!$B$4:$B$103,'Calculated rates'!$F$4:$F$104),"") -> 0.005294106494 | G9: =IF(AND($A9<>"",G$1<>""),EXP(-UFRC*($A9+G$1))*(alpha*MIN($A9,G$1)-0.5*EXP(-alpha*MAX($A9,G$1))*(EXP(alpha*MIN($A9,G$1))-EXP(-alpha*MIN($A9,G$1))))*LOOKUP(G$1,'Calculated rates'!$B$4:$B$103,'Calculated rates'!$F$4:$F$104),"") -> 0.04420084442 | H9: =IF(AND($A9<>"",H$1<>""),EXP(-UFRC*($A9+H$1))*(alpha*MIN($A9,H$1)-0.5*EXP(-alpha*MAX($A9,H$1))*(EXP(alpha*MIN($A9,H$1))-EXP(-alpha*MIN($A9,H$1))))*LOOKUP(H$1,'Calculated rates'!$B$4:$B$103,'Calculated rates'!$F$4:$F$104),"") -> -0.1236946259 | I9: =IF(AND($A9<>"",I$1<>""),EXP(-UFRC*($A9+I$1))*(alpha*MIN($A9,I$1)-0.5*EXP(-alpha*MAX($A9,I$1))*(EXP(alpha*MIN($A9,I$1))-EXP(-alpha*MIN($A9,I$1))))*LOOKUP(I$1,'Calculated rates'!$B$4:$B$103,'Calculated rates'!$F$4:$F$104),"") -> 0.6439624748 | J9: =IF(AND($A9<>"",J$1<>""),EXP(-UFRC*($A9+J$1))*(alpha*MIN($A9,J$1)-0.5*EXP(-alpha*MAX($A9,J$1))*(EXP(alpha*MIN($A9,J$1))-EXP(-alpha*MIN($A9,J$1))))*LOOKUP(J$1,'Calculated rates'!$B$4:$B$103,'Calculated rates'!$F$4:$F$104),"") -> -0.9047993152 | K9: =IF(AND($A9<>"",K$1<>""),EXP(-UFRC*($A9+K$1))*(alpha*MIN($A9,K$1)-0.5*EXP(-alpha*MAX($A9,K$1))*(EXP(alpha*MIN($A9,K$1))-EXP(-alpha*MIN($A9,K$1))))*LOOKUP(K$1,'Calculated rates'!$B$4:$B$103,'Calculated rates'!$F$4:$F$104),"") -> 0.03842168152 | L9: =IF(AND($A9<>"",L$1<>""),EXP(-UFRC*($A9+L$1))*(alpha*MIN($A9,L$1)-0.5*EXP(-alpha*MAX($A9,L$1))*(EXP(alpha*MIN($A9,L$1))-EXP(-alpha*MIN($A9,L$1))))*LOOKUP(L$1,'Calculated rates'!$B$4:$B$103,'Calculated rates'!$F$4:$F$104),"") -> 1.192412398 | M9: =IF(AND($A9<>"",M$1<>""),EXP(-UFRC*($A9+M$1))*(alpha*MIN($A9,M$1)-0.5*EXP(-alpha*MAX($A9,M$1))*(EXP(alpha*MIN($A9,M$1))-EXP(-alpha*MIN($A9,M$1))))*LOOKUP(M$1,'Calculated rates'!$B$4:$B$103,'Calculated rates'!$F$4:$F$104),"") -> -1.507263638 | N9: =IF(AND($A9<>"",N$1<>""),EXP(-UFRC*($A9+N$1))*(alpha*MIN($A9,N$1)-0.5*EXP(-alpha*MAX($A9,N$1))*(EXP(alpha*MIN($A9,N$1))-EXP(-alpha*MIN($A9,N$1))))*LOOKUP(N$1,'Calculated rates'!$B$4:$B$103,'Calculated rates'!$F$4:$F$104),"") -> 0.7905521147 | O9: =IF(AND($A9<>"",O$1<>""),EXP(-UFRC*($A9+O$1))*(alpha*MIN($A9,O$1)-0.5*EXP(-alpha*MAX($A9,O$1))*(EXP(alpha*MIN($A9,O$1))-EXP(-alpha*MIN($A9,O$1))))*LOOKUP(O$1,'Calculated rates'!$B$4:$B$103,'Calculated rates'!$F$4:$F$104),"") -> -0.1446496439 | P9: =IF(AND($A9<>"",P$1<>""),EXP(-UFRC*($A9+P$1))*(alpha*MIN($A9,P$1)-0.5*EXP(-alpha*MAX($A9,P$1))*(EXP(alpha*MIN($A9,P$1))-EXP(-alpha*MIN($A9,P$1))))*LOOKUP(P$1,'Calculated rates'!$B$4:$B$103,'Calculated rates'!$F$4:$F$104),"") -> -0.1841097519 | Q9: =IF(AND($A9<>"",Q$1<>""),EXP(-UFRC*($A9+Q$1))*(alpha*MIN($A9,Q$1)-0.5*EXP(-alpha*MAX($A9,Q$1))*(EXP(alpha*MIN($A9,Q$1))-EXP(-alpha*MIN($A9,Q$1))))*LOOKUP(Q$1,'Calculated rates'!$B$4:$B$103,'Calculated rates'!$F$4:$F$104),"") -> 0.9271811514 | R9: =IF(AND($A9<>"",R$1<>""),EXP(-UFRC*($A9+R$1))*(alpha*MIN($A9,R$1)-0.5*EXP(-alpha*MAX($A9,R$1))*(EXP(alpha*MIN($A9,R$1))-EXP(-alpha*MIN($A9,R$1))))*LOOKUP(R$1,'Calculated rates'!$B$4:$B$103,'Calculated rates'!$F$4:$F$104),"") -> -1.471020629 | S9: =IF(AND($A9<>"",S$1<>""),EXP(-UFRC*($A9+S$1))*(alpha*MIN($A9,S$1)-0.5*EXP(-alpha*MAX($A9,S$1))*(EXP(alpha*MIN($A9,S$1))-EXP(-alpha*MIN($A9,S$1))))*LOOKUP(S$1,'Calculated rates'!$B$4:$B$103,'Calculated rates'!$F$4:$F$104),"") -> 0.8617515258 | T9: =IF(AND($A9<>"",T$1<>""),EXP(-UFRC*($A9+T$1))*(alpha*MIN($A9,T$1)-0.5*EXP(-alpha*MAX($A9,T$1))*(EXP(alpha*MIN($A9,T$1))-EXP(-alpha*MIN($A9,T$1))))*LOOKUP(T$1,'Calculated rates'!$B$4:$B$103,'Calculated rates'!$F$4:$F$104),"") -> -0.265655497 | U9: =IF(AND($A9<>"",U$1<>""),EXP(-UFRC*($A9+U$1))*(alpha*MIN($A9,U$1)-0.5*EXP(-alpha*MAX($A9,U$1))*(EXP(alpha*MIN($A9,U$1))-EXP(-alpha*MIN($A9,U$1))))*LOOKUP(U$1,'Calculated rates'!$B$4:$B$103,'Calculated rates'!$F$4:$F$104),"") -> 0.1888074701 | V9: =IF(AND($A9<>"",V$1<>""),EXP(-UFRC*($A9+V$1))*(alpha*MIN($A9,V$1)-0.5*EXP(-alpha*MAX($A9,V$1))*(EXP(alpha*MIN($A9,V$1))-EXP(-alpha*MIN($A9,V$1))))*LOOKUP(V$1,'Calculated rates'!$B$4:$B$103,'Calculated rates'!$F$4:$F$104),"") -> -0.5177319388 | W9: =IF(AND($A9<>"",W$1<>""),EXP(-UFRC*($A9+W$1))*(alpha*MIN($A9,W$1)-0.5*EXP(-alpha*MAX($A9,W$1))*(EXP(alpha*MIN($A9,W$1))-EXP(-alpha*MIN($A9,W$1))))*LOOKUP(W$1,'Calculated rates'!$B$4:$B$103,'Calculated rates'!$F$4:$F$104),"") -> 0.5338915704 | X9: =IF(AND($A9<>"",X$1<>""),EXP(-UFRC*($A9+X$1))*(alpha*MIN($A9,X$1)-0.5*EXP(-alpha*MAX($A9,X$1))*(EXP(alpha*MIN($A9,X$1))-EXP(-alpha*MIN($A9,X$1))))*LOOKUP(X$1,'Calculated rates'!$B$4:$B$103,'Calculated rates'!$F$4:$F$104),"") ->  | Y9: =IF(AND($A9<>"",Y$1<>""),EXP(-UFRC*($A9+Y$1))*(alpha*MIN($A9,Y$1)-0.5*EXP(-alpha*MAX($A9,Y$1))*(EXP(alpha*MIN($A9,Y$1))-EXP(-alpha*MIN($A9,Y$1))))*LOOKUP(Y$1,'Calculated rates'!$B$4:$B$103,'Calculated rates'!$F$4:$F$104),"") ->  | Z9: =IF(AND($A9<>"",Z$1<>""),EXP(-UFRC*($A9+Z$1))*(alpha*MIN($A9,Z$1)-0.5*EXP(-alpha*MAX($A9,Z$1))*(EXP(alpha*MIN($A9,Z$1))-EXP(-alpha*MIN($A9,Z$1))))*LOOKUP(Z$1,'Calculated rates'!$B$4:$B$103,'Calculated rates'!$F$4:$F$104),"") ->  | AA9: =IF(AND($A9<>"",AA$1<>""),EXP(-UFRC*($A9+AA$1))*(alpha*MIN($A9,AA$1)-0.5*EXP(-alpha*MAX($A9,AA$1))*(EXP(alpha*MIN($A9,AA$1))-EXP(-alpha*MIN($A9,AA$1))))*LOOKUP(AA$1,'Calculated rates'!$B$4:$B$103,'Calculated rates'!$F$4:$F$104),"") ->  | AB9: =IF(AND($A9<>"",AB$1<>""),EXP(-UFRC*($A9+AB$1))*(alpha*MIN($A9,AB$1)-0.5*EXP(-alpha*MAX($A9,AB$1))*(EXP(alpha*MIN($A9,AB$1))-EXP(-alpha*MIN($A9,AB$1))))*LOOKUP(AB$1,'Calculated rates'!$B$4:$B$103,'Calculated rates'!$F$4:$F$104),"") ->  | AC9: =IF(AND($A9<>"",AC$1<>""),EXP(-UFRC*($A9+AC$1))*(alpha*MIN($A9,AC$1)-0.5*EXP(-alpha*MAX($A9,AC$1))*(EXP(alpha*MIN($A9,AC$1))-EXP(-alpha*MIN($A9,AC$1))))*LOOKUP(AC$1,'Calculated rates'!$B$4:$B$103,'Calculated rates'!$F$4:$F$104),"") ->  | AD9: =IF(AND($A9<>"",AD$1<>""),EXP(-UFRC*($A9+AD$1))*(alpha*MIN($A9,AD$1)-0.5*EXP(-alpha*MAX($A9,AD$1))*(EXP(alpha*MIN($A9,AD$1))-EXP(-alpha*MIN($A9,AD$1))))*LOOKUP(AD$1,'Calculated rates'!$B$4:$B$103,'Calculated rates'!$F$4:$F$104),"") ->  | AE9: =IF(AND($A9<>"",AE$1<>""),EXP(-UFRC*($A9+AE$1))*(alpha*MIN($A9,AE$1)-0.5*EXP(-alpha*MAX($A9,AE$1))*(EXP(alpha*MIN($A9,AE$1))-EXP(-alpha*MIN($A9,AE$1))))*LOOKUP(AE$1,'Calculated rates'!$B$4:$B$103,'Calculated rates'!$F$4:$F$104),"") ->  | AF9: =IF(AND($A9<>"",AF$1<>""),EXP(-UFRC*($A9+AF$1))*(alpha*MIN($A9,AF$1)-0.5*EXP(-alpha*MAX($A9,AF$1))*(EXP(alpha*MIN($A9,AF$1))-EXP(-alpha*MIN($A9,AF$1))))*LOOKUP(AF$1,'Calculated rates'!$B$4:$B$103,'Calculated rates'!$F$4:$F$104),"") ->  | AG9: =IF(AND($A9<>"",AG$1<>""),EXP(-UFRC*($A9+AG$1))*(alpha*MIN($A9,AG$1)-0.5*EXP(-alpha*MAX($A9,AG$1))*(EXP(alpha*MIN($A9,AG$1))-EXP(-alpha*MIN($A9,AG$1))))*LOOKUP(AG$1,'Calculated rates'!$B$4:$B$103,'Calculated rates'!$F$4:$F$104),"") ->  | AH9: =IF(AND($A9<>"",AH$1<>""),EXP(-UFRC*($A9+AH$1))*(alpha*MIN($A9,AH$1)-0.5*EXP(-alpha*MAX($A9,AH$1))*(EXP(alpha*MIN($A9,AH$1))-EXP(-alpha*MIN($A9,AH$1))))*LOOKUP(AH$1,'Calculated rates'!$B$4:$B$103,'Calculated rates'!$F$4:$F$104),"") ->  | AI9: =IF(AND($A9<>"",AI$1<>""),EXP(-UFRC*($A9+AI$1))*(alpha*MIN($A9,AI$1)-0.5*EXP(-alpha*MAX($A9,AI$1))*(EXP(alpha*MIN($A9,AI$1))-EXP(-alpha*MIN($A9,AI$1))))*LOOKUP(AI$1,'Calculated rates'!$B$4:$B$103,'Calculated rates'!$F$4:$F$104),"") ->  | AJ9: =IF(AND($A9<>"",AJ$1<>""),EXP(-UFRC*($A9+AJ$1))*(alpha*MIN($A9,AJ$1)-0.5*EXP(-alpha*MAX($A9,AJ$1))*(EXP(alpha*MIN($A9,AJ$1))-EXP(-alpha*MIN($A9,AJ$1))))*LOOKUP(AJ$1,'Calculated rates'!$B$4:$B$103,'Calculated rates'!$F$4:$F$104),"") ->  | AK9: =IF(AND($A9<>"",AK$1<>""),EXP(-UFRC*($A9+AK$1))*(alpha*MIN($A9,AK$1)-0.5*EXP(-alpha*MAX($A9,AK$1))*(EXP(alpha*MIN($A9,AK$1))-EXP(-alpha*MIN($A9,AK$1))))*LOOKUP(AK$1,'Calculated rates'!$B$4:$B$103,'Calculated rates'!$F$4:$F$104),"") ->  | AL9: =IF(AND($A9<>"",AL$1<>""),EXP(-UFRC*($A9+AL$1))*(alpha*MIN($A9,AL$1)-0.5*EXP(-alpha*MAX($A9,AL$1))*(EXP(alpha*MIN($A9,AL$1))-EXP(-alpha*MIN($A9,AL$1))))*LOOKUP(AL$1,'Calculated rates'!$B$4:$B$103,'Calculated rates'!$F$4:$F$104),"") ->  | AM9: =IF(AND($A9<>"",AM$1<>""),EXP(-UFRC*($A9+AM$1))*(alpha*MIN($A9,AM$1)-0.5*EXP(-alpha*MAX($A9,AM$1))*(EXP(alpha*MIN($A9,AM$1))-EXP(-alpha*MIN($A9,AM$1))))*LOOKUP(AM$1,'Calculated rates'!$B$4:$B$103,'Calculated rates'!$F$4:$F$104),"") ->  | AN9: =IF(AND($A9<>"",AN$1<>""),EXP(-UFRC*($A9+AN$1))*(alpha*MIN($A9,AN$1)-0.5*EXP(-alpha*MAX($A9,AN$1))*(EXP(alpha*MIN($A9,AN$1))-EXP(-alpha*MIN($A9,AN$1))))*LOOKUP(AN$1,'Calculated rates'!$B$4:$B$103,'Calculated rates'!$F$4:$F$104),"") ->  | AO9: =IF(AND($A9<>"",AO$1<>""),EXP(-UFRC*($A9+AO$1))*(alpha*MIN($A9,AO$1)-0.5*EXP(-alpha*MAX($A9,AO$1))*(EXP(alpha*MIN($A9,AO$1))-EXP(-alpha*MIN($A9,AO$1))))*LOOKUP(AO$1,'Calculated rates'!$B$4:$B$103,'Calculated rates'!$F$4:$F$104),"") ->  | AP9: =IF(AND($A9<>"",AP$1<>""),EXP(-UFRC*($A9+AP$1))*(alpha*MIN($A9,AP$1)-0.5*EXP(-alpha*MAX($A9,AP$1))*(EXP(alpha*MIN($A9,AP$1))-EXP(-alpha*MIN($A9,AP$1))))*LOOKUP(AP$1,'Calculated rates'!$B$4:$B$103,'Calculated rates'!$F$4:$F$104),"") ->  | AQ9: =IF(AND($A9<>"",AQ$1<>""),EXP(-UFRC*($A9+AQ$1))*(alpha*MIN($A9,AQ$1)-0.5*EXP(-alpha*MAX($A9,AQ$1))*(EXP(alpha*MIN($A9,AQ$1))-EXP(-alpha*MIN($A9,AQ$1))))*LOOKUP(AQ$1,'Calculated rates'!$B$4:$B$103,'Calculated rates'!$F$4:$F$104),"") ->  | AR9: =IF(AND($A9<>"",AR$1<>""),EXP(-UFRC*($A9+AR$1))*(alpha*MIN($A9,AR$1)-0.5*EXP(-alpha*MAX($A9,AR$1))*(EXP(alpha*MIN($A9,AR$1))-EXP(-alpha*MIN($A9,AR$1))))*LOOKUP(AR$1,'Calculated rates'!$B$4:$B$103,'Calculated rates'!$F$4:$F$104),"") ->  | AS9: =IF(AND($A9<>"",AS$1<>""),EXP(-UFRC*($A9+AS$1))*(alpha*MIN($A9,AS$1)-0.5*EXP(-alpha*MAX($A9,AS$1))*(EXP(alpha*MIN($A9,AS$1))-EXP(-alpha*MIN($A9,AS$1))))*LOOKUP(AS$1,'Calculated rates'!$B$4:$B$103,'Calculated rates'!$F$4:$F$104),"") ->  | AT9: =IF(AND($A9<>"",AT$1<>""),EXP(-UFRC*($A9+AT$1))*(alpha*MIN($A9,AT$1)-0.5*EXP(-alpha*MAX($A9,AT$1))*(EXP(alpha*MIN($A9,AT$1))-EXP(-alpha*MIN($A9,AT$1))))*LOOKUP(AT$1,'Calculated rates'!$B$4:$B$103,'Calculated rates'!$F$4:$F$104),"") ->  | AU9: =IF(AND($A9<>"",AU$1<>""),EXP(-UFRC*($A9+AU$1))*(alpha*MIN($A9,AU$1)-0.5*EXP(-alpha*MAX($A9,AU$1))*(EXP(alpha*MIN($A9,AU$1))-EXP(-alpha*MIN($A9,AU$1))))*LOOKUP(AU$1,'Calculated rates'!$B$4:$B$103,'Calculated rates'!$F$4:$F$104),"") ->  | AV9: =IF(AND($A9<>"",AV$1<>""),EXP(-UFRC*($A9+AV$1))*(alpha*MIN($A9,AV$1)-0.5*EXP(-alpha*MAX($A9,AV$1))*(EXP(alpha*MIN($A9,AV$1))-EXP(-alpha*MIN($A9,AV$1))))*LOOKUP(AV$1,'Calculated rates'!$B$4:$B$103,'Calculated rates'!$F$4:$F$104),"") ->  | AW9: =IF(AND($A9<>"",AW$1<>""),EXP(-UFRC*($A9+AW$1))*(alpha*MIN($A9,AW$1)-0.5*EXP(-alpha*MAX($A9,AW$1))*(EXP(alpha*MIN($A9,AW$1))-EXP(-alpha*MIN($A9,AW$1))))*LOOKUP(AW$1,'Calculated rates'!$B$4:$B$103,'Calculated rates'!$F$4:$F$104),"") ->  | AX9: =IF(AND($A9<>"",AX$1<>""),EXP(-UFRC*($A9+AX$1))*(alpha*MIN($A9,AX$1)-0.5*EXP(-alpha*MAX($A9,AX$1))*(EXP(alpha*MIN($A9,AX$1))-EXP(-alpha*MIN($A9,AX$1))))*LOOKUP(AX$1,'Calculated rates'!$B$4:$B$103,'Calculated rates'!$F$4:$F$104),"") ->  | AY9: =IF(AND($A9<>"",AY$1<>""),EXP(-UFRC*($A9+AY$1))*(alpha*MIN($A9,AY$1)-0.5*EXP(-alpha*MAX($A9,AY$1))*(EXP(alpha*MIN($A9,AY$1))-EXP(-alpha*MIN($A9,AY$1))))*LOOKUP(AY$1,'Calculated rates'!$B$4:$B$103,'Calculated rates'!$F$4:$F$104),"") ->  | AZ9: =IF(AND($A9<>"",AZ$1<>""),EXP(-UFRC*($A9+AZ$1))*(alpha*MIN($A9,AZ$1)-0.5*EXP(-alpha*MAX($A9,AZ$1))*(EXP(alpha*MIN($A9,AZ$1))-EXP(-alpha*MIN($A9,AZ$1))))*LOOKUP(AZ$1,'Calculated rates'!$B$4:$B$103,'Calculated rates'!$F$4:$F$104),"") ->  | BA9: =IF(AND($A9<>"",BA$1<>""),EXP(-UFRC*($A9+BA$1))*(alpha*MIN($A9,BA$1)-0.5*EXP(-alpha*MAX($A9,BA$1))*(EXP(alpha*MIN($A9,BA$1))-EXP(-alpha*MIN($A9,BA$1))))*LOOKUP(BA$1,'Calculated rates'!$B$4:$B$103,'Calculated rates'!$F$4:$F$104),"") ->  | BB9: =IF(AND($A9<>"",BB$1<>""),EXP(-UFRC*($A9+BB$1))*(alpha*MIN($A9,BB$1)-0.5*EXP(-alpha*MAX($A9,BB$1))*(EXP(alpha*MIN($A9,BB$1))-EXP(-alpha*MIN($A9,BB$1))))*LOOKUP(BB$1,'Calculated rates'!$B$4:$B$103,'Calculated rates'!$F$4:$F$104),"") ->  | BC9: =IF(AND($A9<>"",BC$1<>""),EXP(-UFRC*($A9+BC$1))*(alpha*MIN($A9,BC$1)-0.5*EXP(-alpha*MAX($A9,BC$1))*(EXP(alpha*MIN($A9,BC$1))-EXP(-alpha*MIN($A9,BC$1))))*LOOKUP(BC$1,'Calculated rates'!$B$4:$B$103,'Calculated rates'!$F$4:$F$104),"") ->  | BD9: =IF(AND($A9<>"",BD$1<>""),EXP(-UFRC*($A9+BD$1))*(alpha*MIN($A9,BD$1)-0.5*EXP(-alpha*MAX($A9,BD$1))*(EXP(alpha*MIN($A9,BD$1))-EXP(-alpha*MIN($A9,BD$1))))*LOOKUP(BD$1,'Calculated rates'!$B$4:$B$103,'Calculated rates'!$F$4:$F$104),"") ->  | BE9: =IF(AND($A9<>"",BE$1<>""),EXP(-UFRC*($A9+BE$1))*(alpha*MIN($A9,BE$1)-0.5*EXP(-alpha*MAX($A9,BE$1))*(EXP(alpha*MIN($A9,BE$1))-EXP(-alpha*MIN($A9,BE$1))))*LOOKUP(BE$1,'Calculated rates'!$B$4:$B$103,'Calculated rates'!$F$4:$F$104),"") ->  | BF9: =IF(AND($A9<>"",BF$1<>""),EXP(-UFRC*($A9+BF$1))*(alpha*MIN($A9,BF$1)-0.5*EXP(-alpha*MAX($A9,BF$1))*(EXP(alpha*MIN($A9,BF$1))-EXP(-alpha*MIN($A9,BF$1))))*LOOKUP(BF$1,'Calculated rates'!$B$4:$B$103,'Calculated rates'!$F$4:$F$104),"") ->  | BG9: =IF(AND($A9<>"",BG$1<>""),EXP(-UFRC*($A9+BG$1))*(alpha*MIN($A9,BG$1)-0.5*EXP(-alpha*MAX($A9,BG$1))*(EXP(alpha*MIN($A9,BG$1))-EXP(-alpha*MIN($A9,BG$1))))*LOOKUP(BG$1,'Calculated rates'!$B$4:$B$103,'Calculated rates'!$F$4:$F$104),"") ->  | BH9: =IF(AND($A9<>"",BH$1<>""),EXP(-UFRC*($A9+BH$1))*(alpha*MIN($A9,BH$1)-0.5*EXP(-alpha*MAX($A9,BH$1))*(EXP(alpha*MIN($A9,BH$1))-EXP(-alpha*MIN($A9,BH$1))))*LOOKUP(BH$1,'Calculated rates'!$B$4:$B$103,'Calculated rates'!$F$4:$F$104),"") ->  | BI9: =IF(AND($A9<>"",BI$1<>""),EXP(-UFRC*($A9+BI$1))*(alpha*MIN($A9,BI$1)-0.5*EXP(-alpha*MAX($A9,BI$1))*(EXP(alpha*MIN($A9,BI$1))-EXP(-alpha*MIN($A9,BI$1))))*LOOKUP(BI$1,'Calculated rates'!$B$4:$B$103,'Calculated rates'!$F$4:$F$104),"") ->  | BJ9: =IF(AND($A9<>"",BJ$1<>""),EXP(-UFRC*($A9+BJ$1))*(alpha*MIN($A9,BJ$1)-0.5*EXP(-alpha*MAX($A9,BJ$1))*(EXP(alpha*MIN($A9,BJ$1))-EXP(-alpha*MIN($A9,BJ$1))))*LOOKUP(BJ$1,'Calculated rates'!$B$4:$B$103,'Calculated rates'!$F$4:$F$104),"") ->  | BK9: =IF(AND($A9<>"",BK$1<>""),EXP(-UFRC*($A9+BK$1))*(alpha*MIN($A9,BK$1)-0.5*EXP(-alpha*MAX($A9,BK$1))*(EXP(alpha*MIN($A9,BK$1))-EXP(-alpha*MIN($A9,BK$1))))*LOOKUP(BK$1,'Calculated rates'!$B$4:$B$103,'Calculated rates'!$F$4:$F$104),"") ->  | BL9: =IF(AND($A9<>"",BL$1<>""),EXP(-UFRC*($A9+BL$1))*(alpha*MIN($A9,BL$1)-0.5*EXP(-alpha*MAX($A9,BL$1))*(EXP(alpha*MIN($A9,BL$1))-EXP(-alpha*MIN($A9,BL$1))))*LOOKUP(BL$1,'Calculated rates'!$B$4:$B$103,'Calculated rates'!$F$4:$F$104),"") ->  | BM9: =IF(AND($A9<>"",BM$1<>""),EXP(-UFRC*($A9+BM$1))*(alpha*MIN($A9,BM$1)-0.5*EXP(-alpha*MAX($A9,BM$1))*(EXP(alpha*MIN($A9,BM$1))-EXP(-alpha*MIN($A9,BM$1))))*LOOKUP(BM$1,'Calculated rates'!$B$4:$B$103,'Calculated rates'!$F$4:$F$104),"") ->  | BN9: =IF(AND($A9<>"",BN$1<>""),EXP(-UFRC*($A9+BN$1))*(alpha*MIN($A9,BN$1)-0.5*EXP(-alpha*MAX($A9,BN$1))*(EXP(alpha*MIN($A9,BN$1))-EXP(-alpha*MIN($A9,BN$1))))*LOOKUP(BN$1,'Calculated rates'!$B$4:$B$103,'Calculated rates'!$F$4:$F$104),"") ->  | BO9: =IF(AND($A9<>"",BO$1<>""),EXP(-UFRC*($A9+BO$1))*(alpha*MIN($A9,BO$1)-0.5*EXP(-alpha*MAX($A9,BO$1))*(EXP(alpha*MIN($A9,BO$1))-EXP(-alpha*MIN($A9,BO$1))))*LOOKUP(BO$1,'Calculated rates'!$B$4:$B$103,'Calculated rates'!$F$4:$F$104),"") ->  | BP9: =IF(AND($A9<>"",BP$1<>""),EXP(-UFRC*($A9+BP$1))*(alpha*MIN($A9,BP$1)-0.5*EXP(-alpha*MAX($A9,BP$1))*(EXP(alpha*MIN($A9,BP$1))-EXP(-alpha*MIN($A9,BP$1))))*LOOKUP(BP$1,'Calculated rates'!$B$4:$B$103,'Calculated rates'!$F$4:$F$104),"") ->  | BQ9: =IF(AND($A9<>"",BQ$1<>""),EXP(-UFRC*($A9+BQ$1))*(alpha*MIN($A9,BQ$1)-0.5*EXP(-alpha*MAX($A9,BQ$1))*(EXP(alpha*MIN($A9,BQ$1))-EXP(-alpha*MIN($A9,BQ$1))))*LOOKUP(BQ$1,'Calculated rates'!$B$4:$B$103,'Calculated rates'!$F$4:$F$104),"") ->  | BR9: =IF(AND($A9<>"",BR$1<>""),EXP(-UFRC*($A9+BR$1))*(alpha*MIN($A9,BR$1)-0.5*EXP(-alpha*MAX($A9,BR$1))*(EXP(alpha*MIN($A9,BR$1))-EXP(-alpha*MIN($A9,BR$1))))*LOOKUP(BR$1,'Calculated rates'!$B$4:$B$103,'Calculated rates'!$F$4:$F$104),"") ->  | BS9: =IF(AND($A9<>"",BS$1<>""),EXP(-UFRC*($A9+BS$1))*(alpha*MIN($A9,BS$1)-0.5*EXP(-alpha*MAX($A9,BS$1))*(EXP(alpha*MIN($A9,BS$1))-EXP(-alpha*MIN($A9,BS$1))))*LOOKUP(BS$1,'Calculated rates'!$B$4:$B$103,'Calculated rates'!$F$4:$F$104),"") ->  | BT9: =IF(AND($A9<>"",BT$1<>""),EXP(-UFRC*($A9+BT$1))*(alpha*MIN($A9,BT$1)-0.5*EXP(-alpha*MAX($A9,BT$1))*(EXP(alpha*MIN($A9,BT$1))-EXP(-alpha*MIN($A9,BT$1))))*LOOKUP(BT$1,'Calculated rates'!$B$4:$B$103,'Calculated rates'!$F$4:$F$104),"") ->  | BU9: =IF(AND($A9<>"",BU$1<>""),EXP(-UFRC*($A9+BU$1))*(alpha*MIN($A9,BU$1)-0.5*EXP(-alpha*MAX($A9,BU$1))*(EXP(alpha*MIN($A9,BU$1))-EXP(-alpha*MIN($A9,BU$1))))*LOOKUP(BU$1,'Calculated rates'!$B$4:$B$103,'Calculated rates'!$F$4:$F$104),"") ->  | BV9: =IF(AND($A9<>"",BV$1<>""),EXP(-UFRC*($A9+BV$1))*(alpha*MIN($A9,BV$1)-0.5*EXP(-alpha*MAX($A9,BV$1))*(EXP(alpha*MIN($A9,BV$1))-EXP(-alpha*MIN($A9,BV$1))))*LOOKUP(BV$1,'Calculated rates'!$B$4:$B$103,'Calculated rates'!$F$4:$F$104),"") ->  | BW9: =IF(AND($A9<>"",BW$1<>""),EXP(-UFRC*($A9+BW$1))*(alpha*MIN($A9,BW$1)-0.5*EXP(-alpha*MAX($A9,BW$1))*(EXP(alpha*MIN($A9,BW$1))-EXP(-alpha*MIN($A9,BW$1))))*LOOKUP(BW$1,'Calculated rates'!$B$4:$B$103,'Calculated rates'!$F$4:$F$104),"") ->  | BX9: =IF(AND($A9<>"",BX$1<>""),EXP(-UFRC*($A9+BX$1))*(alpha*MIN($A9,BX$1)-0.5*EXP(-alpha*MAX($A9,BX$1))*(EXP(alpha*MIN($A9,BX$1))-EXP(-alpha*MIN($A9,BX$1))))*LOOKUP(BX$1,'Calculated rates'!$B$4:$B$103,'Calculated rates'!$F$4:$F$104),"") ->  | BY9: =IF(AND($A9<>"",BY$1<>""),EXP(-UFRC*($A9+BY$1))*(alpha*MIN($A9,BY$1)-0.5*EXP(-alpha*MAX($A9,BY$1))*(EXP(alpha*MIN($A9,BY$1))-EXP(-alpha*MIN($A9,BY$1))))*LOOKUP(BY$1,'Calculated rates'!$B$4:$B$103,'Calculated rates'!$F$4:$F$104),"") ->  | BZ9: =IF(AND($A9<>"",BZ$1<>""),EXP(-UFRC*($A9+BZ$1))*(alpha*MIN($A9,BZ$1)-0.5*EXP(-alpha*MAX($A9,BZ$1))*(EXP(alpha*MIN($A9,BZ$1))-EXP(-alpha*MIN($A9,BZ$1))))*LOOKUP(BZ$1,'Calculated rates'!$B$4:$B$103,'Calculated rates'!$F$4:$F$104),"") ->  | CA9: =IF(AND($A9<>"",CA$1<>""),EXP(-UFRC*($A9+CA$1))*(alpha*MIN($A9,CA$1)-0.5*EXP(-alpha*MAX($A9,CA$1))*(EXP(alpha*MIN($A9,CA$1))-EXP(-alpha*MIN($A9,CA$1))))*LOOKUP(CA$1,'Calculated rates'!$B$4:$B$103,'Calculated rates'!$F$4:$F$104),"") ->  | CB9: =IF(AND($A9<>"",CB$1<>""),EXP(-UFRC*($A9+CB$1))*(alpha*MIN($A9,CB$1)-0.5*EXP(-alpha*MAX($A9,CB$1))*(EXP(alpha*MIN($A9,CB$1))-EXP(-alpha*MIN($A9,CB$1))))*LOOKUP(CB$1,'Calculated rates'!$B$4:$B$103,'Calculated rates'!$F$4:$F$104),"") ->  | CC9: =IF(AND($A9<>"",CC$1<>""),EXP(-UFRC*($A9+CC$1))*(alpha*MIN($A9,CC$1)-0.5*EXP(-alpha*MAX($A9,CC$1))*(EXP(alpha*MIN($A9,CC$1))-EXP(-alpha*MIN($A9,CC$1))))*LOOKUP(CC$1,'Calculated rates'!$B$4:$B$103,'Calculated rates'!$F$4:$F$104),"") ->  | CD9: =IF(AND($A9<>"",CD$1<>""),EXP(-UFRC*($A9+CD$1))*(alpha*MIN($A9,CD$1)-0.5*EXP(-alpha*MAX($A9,CD$1))*(EXP(alpha*MIN($A9,CD$1))-EXP(-alpha*MIN($A9,CD$1))))*LOOKUP(CD$1,'Calculated rates'!$B$4:$B$103,'Calculated rates'!$F$4:$F$104),"") ->  | CE9: =IF(AND($A9<>"",CE$1<>""),EXP(-UFRC*($A9+CE$1))*(alpha*MIN($A9,CE$1)-0.5*EXP(-alpha*MAX($A9,CE$1))*(EXP(alpha*MIN($A9,CE$1))-EXP(-alpha*MIN($A9,CE$1))))*LOOKUP(CE$1,'Calculated rates'!$B$4:$B$103,'Calculated rates'!$F$4:$F$104),"") ->  | CF9: =IF(AND($A9<>"",CF$1<>""),EXP(-UFRC*($A9+CF$1))*(alpha*MIN($A9,CF$1)-0.5*EXP(-alpha*MAX($A9,CF$1))*(EXP(alpha*MIN($A9,CF$1))-EXP(-alpha*MIN($A9,CF$1))))*LOOKUP(CF$1,'Calculated rates'!$B$4:$B$103,'Calculated rates'!$F$4:$F$104),"") ->  | CG9: =IF(AND($A9<>"",CG$1<>""),EXP(-UFRC*($A9+CG$1))*(alpha*MIN($A9,CG$1)-0.5*EXP(-alpha*MAX($A9,CG$1))*(EXP(alpha*MIN($A9,CG$1))-EXP(-alpha*MIN($A9,CG$1))))*LOOKUP(CG$1,'Calculated rates'!$B$4:$B$103,'Calculated rates'!$F$4:$F$104),"") ->  | CH9: =IF(AND($A9<>"",CH$1<>""),EXP(-UFRC*($A9+CH$1))*(alpha*MIN($A9,CH$1)-0.5*EXP(-alpha*MAX($A9,CH$1))*(EXP(alpha*MIN($A9,CH$1))-EXP(-alpha*MIN($A9,CH$1))))*LOOKUP(CH$1,'Calculated rates'!$B$4:$B$103,'Calculated rates'!$F$4:$F$104),"") ->  | CI9: =IF(AND($A9<>"",CI$1<>""),EXP(-UFRC*($A9+CI$1))*(alpha*MIN($A9,CI$1)-0.5*EXP(-alpha*MAX($A9,CI$1))*(EXP(alpha*MIN($A9,CI$1))-EXP(-alpha*MIN($A9,CI$1))))*LOOKUP(CI$1,'Calculated rates'!$B$4:$B$103,'Calculated rates'!$F$4:$F$104),"") ->  | CJ9: =IF(AND($A9<>"",CJ$1<>""),EXP(-UFRC*($A9+CJ$1))*(alpha*MIN($A9,CJ$1)-0.5*EXP(-alpha*MAX($A9,CJ$1))*(EXP(alpha*MIN($A9,CJ$1))-EXP(-alpha*MIN($A9,CJ$1))))*LOOKUP(CJ$1,'Calculated rates'!$B$4:$B$103,'Calculated rates'!$F$4:$F$104),"") ->  | CK9: =IF(AND($A9<>"",CK$1<>""),EXP(-UFRC*($A9+CK$1))*(alpha*MIN($A9,CK$1)-0.5*EXP(-alpha*MAX($A9,CK$1))*(EXP(alpha*MIN($A9,CK$1))-EXP(-alpha*MIN($A9,CK$1))))*LOOKUP(CK$1,'Calculated rates'!$B$4:$B$103,'Calculated rates'!$F$4:$F$104),"") ->  | CL9: =IF(AND($A9<>"",CL$1<>""),EXP(-UFRC*($A9+CL$1))*(alpha*MIN($A9,CL$1)-0.5*EXP(-alpha*MAX($A9,CL$1))*(EXP(alpha*MIN($A9,CL$1))-EXP(-alpha*MIN($A9,CL$1))))*LOOKUP(CL$1,'Calculated rates'!$B$4:$B$103,'Calculated rates'!$F$4:$F$104),"") ->  | CM9: =IF(AND($A9<>"",CM$1<>""),EXP(-UFRC*($A9+CM$1))*(alpha*MIN($A9,CM$1)-0.5*EXP(-alpha*MAX($A9,CM$1))*(EXP(alpha*MIN($A9,CM$1))-EXP(-alpha*MIN($A9,CM$1))))*LOOKUP(CM$1,'Calculated rates'!$B$4:$B$103,'Calculated rates'!$F$4:$F$104),"") ->  | CN9: =IF(AND($A9<>"",CN$1<>""),EXP(-UFRC*($A9+CN$1))*(alpha*MIN($A9,CN$1)-0.5*EXP(-alpha*MAX($A9,CN$1))*(EXP(alpha*MIN($A9,CN$1))-EXP(-alpha*MIN($A9,CN$1))))*LOOKUP(CN$1,'Calculated rates'!$B$4:$B$103,'Calculated rates'!$F$4:$F$104),"") ->  | CO9: =IF(AND($A9<>"",CO$1<>""),EXP(-UFRC*($A9+CO$1))*(alpha*MIN($A9,CO$1)-0.5*EXP(-alpha*MAX($A9,CO$1))*(EXP(alpha*MIN($A9,CO$1))-EXP(-alpha*MIN($A9,CO$1))))*LOOKUP(CO$1,'Calculated rates'!$B$4:$B$103,'Calculated rates'!$F$4:$F$104),"") ->  | CP9: =IF(AND($A9<>"",CP$1<>""),EXP(-UFRC*($A9+CP$1))*(alpha*MIN($A9,CP$1)-0.5*EXP(-alpha*MAX($A9,CP$1))*(EXP(alpha*MIN($A9,CP$1))-EXP(-alpha*MIN($A9,CP$1))))*LOOKUP(CP$1,'Calculated rates'!$B$4:$B$103,'Calculated rates'!$F$4:$F$104),"") ->  | CQ9: =IF(AND($A9<>"",CQ$1<>""),EXP(-UFRC*($A9+CQ$1))*(alpha*MIN($A9,CQ$1)-0.5*EXP(-alpha*MAX($A9,CQ$1))*(EXP(alpha*MIN($A9,CQ$1))-EXP(-alpha*MIN($A9,CQ$1))))*LOOKUP(CQ$1,'Calculated rates'!$B$4:$B$103,'Calculated rates'!$F$4:$F$104),"") ->  | CR9: =IF(AND($A9<>"",CR$1<>""),EXP(-UFRC*($A9+CR$1))*(alpha*MIN($A9,CR$1)-0.5*EXP(-alpha*MAX($A9,CR$1))*(EXP(alpha*MIN($A9,CR$1))-EXP(-alpha*MIN($A9,CR$1))))*LOOKUP(CR$1,'Calculated rates'!$B$4:$B$103,'Calculated rates'!$F$4:$F$104),"") ->  | CS9: =IF(AND($A9<>"",CS$1<>""),EXP(-UFRC*($A9+CS$1))*(alpha*MIN($A9,CS$1)-0.5*EXP(-alpha*MAX($A9,CS$1))*(EXP(alpha*MIN($A9,CS$1))-EXP(-alpha*MIN($A9,CS$1))))*LOOKUP(CS$1,'Calculated rates'!$B$4:$B$103,'Calculated rates'!$F$4:$F$104),"") ->  | CT9: =IF(AND($A9<>"",CT$1<>""),EXP(-UFRC*($A9+CT$1))*(alpha*MIN($A9,CT$1)-0.5*EXP(-alpha*MAX($A9,CT$1))*(EXP(alpha*MIN($A9,CT$1))-EXP(-alpha*MIN($A9,CT$1))))*LOOKUP(CT$1,'Calculated rates'!$B$4:$B$103,'Calculated rates'!$F$4:$F$104),"") ->  | CU9: =IF(AND($A9<>"",CU$1<>""),EXP(-UFRC*($A9+CU$1))*(alpha*MIN($A9,CU$1)-0.5*EXP(-alpha*MAX($A9,CU$1))*(EXP(alpha*MIN($A9,CU$1))-EXP(-alpha*MIN($A9,CU$1))))*LOOKUP(CU$1,'Calculated rates'!$B$4:$B$103,'Calculated rates'!$F$4:$F$104),"") ->  | CV9: =IF(AND($A9<>"",CV$1<>""),EXP(-UFRC*($A9+CV$1))*(alpha*MIN($A9,CV$1)-0.5*EXP(-alpha*MAX($A9,CV$1))*(EXP(alpha*MIN($A9,CV$1))-EXP(-alpha*MIN($A9,CV$1))))*LOOKUP(CV$1,'Calculated rates'!$B$4:$B$103,'Calculated rates'!$F$4:$F$104),"") ->  | CW9: =IF(AND($A9<>"",CW$1<>""),EXP(-UFRC*($A9+CW$1))*(alpha*MIN($A9,CW$1)-0.5*EXP(-alpha*MAX($A9,CW$1))*(EXP(alpha*MIN($A9,CW$1))-EXP(-alpha*MIN($A9,CW$1))))*LOOKUP(CW$1,'Calculated rates'!$B$4:$B$103,'Calculated rates'!$F$4:$F$104),"") ->  | CX9: =IF(AND($A9<>"",CX$1<>""),EXP(-UFRC*($A9+CX$1))*(alpha*MIN($A9,CX$1)-0.5*EXP(-alpha*MAX($A9,CX$1))*(EXP(alpha*MIN($A9,CX$1))-EXP(-alpha*MIN($A9,CX$1))))*LOOKUP(CX$1,'Calculated rates'!$B$4:$B$103,'Calculated rates'!$F$4:$F$104),"") ->  | CY9: =IF(AND($A9<>"",CY$1<>""),EXP(-UFRC*($A9+CY$1))*(alpha*MIN($A9,CY$1)-0.5*EXP(-alpha*MAX($A9,CY$1))*(EXP(alpha*MIN($A9,CY$1))-EXP(-alpha*MIN($A9,CY$1))))*LOOKUP(CY$1,'Calculated rates'!$B$4:$B$103,'Calculated rates'!$F$4:$F$104),"") -> 
A10: ='Calculated rates'!J11 -> 8 | B10: 0.01955709978 | C10: 0.8551684617 | D10: =IF(AND($A10<>"",D$1<>""),EXP(-UFRC*($A10+D$1))*(alpha*MIN($A10,D$1)-0.5*EXP(-alpha*MAX($A10,D$1))*(EXP(alpha*MIN($A10,D$1))-EXP(-alpha*MIN($A10,D$1))))*LOOKUP(D$1,'Calculated rates'!$B$4:$B$103,'Calculated rates'!$F$4:$F$104),"") -> 0.0202689741 | E10: =IF(AND($A10<>"",E$1<>""),EXP(-UFRC*($A10+E$1))*(alpha*MIN($A10,E$1)-0.5*EXP(-alpha*MAX($A10,E$1))*(EXP(alpha*MIN($A10,E$1))-EXP(-alpha*MIN($A10,E$1))))*LOOKUP(E$1,'Calculated rates'!$B$4:$B$103,'Calculated rates'!$F$4:$F$104),"") -> 0.0005626116297 | F10: =IF(AND($A10<>"",F$1<>""),EXP(-UFRC*($A10+F$1))*(alpha*MIN($A10,F$1)-0.5*EXP(-alpha*MAX($A10,F$1))*(EXP(alpha*MIN($A10,F$1))-EXP(-alpha*MIN($A10,F$1))))*LOOKUP(F$1,'Calculated rates'!$B$4:$B$103,'Calculated rates'!$F$4:$F$104),"") -> 0.005205660042 | G10: =IF(AND($A10<>"",G$1<>""),EXP(-UFRC*($A10+G$1))*(alpha*MIN($A10,G$1)-0.5*EXP(-alpha*MAX($A10,G$1))*(EXP(alpha*MIN($A10,G$1))-EXP(-alpha*MIN($A10,G$1))))*LOOKUP(G$1,'Calculated rates'!$B$4:$B$103,'Calculated rates'!$F$4:$F$104),"") -> 0.04369129345 | H10: =IF(AND($A10<>"",H$1<>""),EXP(-UFRC*($A10+H$1))*(alpha*MIN($A10,H$1)-0.5*EXP(-alpha*MAX($A10,H$1))*(EXP(alpha*MIN($A10,H$1))-EXP(-alpha*MIN($A10,H$1))))*LOOKUP(H$1,'Calculated rates'!$B$4:$B$103,'Calculated rates'!$F$4:$F$104),"") -> -0.1232442786 | I10: =IF(AND($A10<>"",I$1<>""),EXP(-UFRC*($A10+I$1))*(alpha*MIN($A10,I$1)-0.5*EXP(-alpha*MAX($A10,I$1))*(EXP(alpha*MIN($A10,I$1))-EXP(-alpha*MIN($A10,I$1))))*LOOKUP(I$1,'Calculated rates'!$B$4:$B$103,'Calculated rates'!$F$4:$F$104),"") -> 0.6493072069 | J10: =IF(AND($A10<>"",J$1<>""),EXP(-UFRC*($A10+J$1))*(alpha*MIN($A10,J$1)-0.5*EXP(-alpha*MAX($A10,J$1))*(EXP(alpha*MIN($A10,J$1))-EXP(-alpha*MIN($A10,J$1))))*LOOKUP(J$1,'Calculated rates'!$B$4:$B$103,'Calculated rates'!$F$4:$F$104),"") -> -0.9289293193 | K10: =IF(AND($A10<>"",K$1<>""),EXP(-UFRC*($A10+K$1))*(alpha*MIN($A10,K$1)-0.5*EXP(-alpha*MAX($A10,K$1))*(EXP(alpha*MIN($A10,K$1))-EXP(-alpha*MIN($A10,K$1))))*LOOKUP(K$1,'Calculated rates'!$B$4:$B$103,'Calculated rates'!$F$4:$F$104),"") -> 0.04037533877 | L10: =IF(AND($A10<>"",L$1<>""),EXP(-UFRC*($A10+L$1))*(alpha*MIN($A10,L$1)-0.5*EXP(-alpha*MAX($A10,L$1))*(EXP(alpha*MIN($A10,L$1))-EXP(-alpha*MIN($A10,L$1))))*LOOKUP(L$1,'Calculated rates'!$B$4:$B$103,'Calculated rates'!$F$4:$F$104),"") -> 1.273444011 | M10: =IF(AND($A10<>"",M$1<>""),EXP(-UFRC*($A10+M$1))*(alpha*MIN($A10,M$1)-0.5*EXP(-alpha*MAX($A10,M$1))*(EXP(alpha*MIN($A10,M$1))-EXP(-alpha*MIN($A10,M$1))))*LOOKUP(M$1,'Calculated rates'!$B$4:$B$103,'Calculated rates'!$F$4:$F$104),"") -> -1.625453394 | N10: =IF(AND($A10<>"",N$1<>""),EXP(-UFRC*($A10+N$1))*(alpha*MIN($A10,N$1)-0.5*EXP(-alpha*MAX($A10,N$1))*(EXP(alpha*MIN($A10,N$1))-EXP(-alpha*MIN($A10,N$1))))*LOOKUP(N$1,'Calculated rates'!$B$4:$B$103,'Calculated rates'!$F$4:$F$104),"") -> 0.857722602 | O10: =IF(AND($A10<>"",O$1<>""),EXP(-UFRC*($A10+O$1))*(alpha*MIN($A10,O$1)-0.5*EXP(-alpha*MAX($A10,O$1))*(EXP(alpha*MIN($A10,O$1))-EXP(-alpha*MIN($A10,O$1))))*LOOKUP(O$1,'Calculated rates'!$B$4:$B$103,'Calculated rates'!$F$4:$F$104),"") -> -0.1575433105 | P10: =IF(AND($A10<>"",P$1<>""),EXP(-UFRC*($A10+P$1))*(alpha*MIN($A10,P$1)-0.5*EXP(-alpha*MAX($A10,P$1))*(EXP(alpha*MIN($A10,P$1))-EXP(-alpha*MIN($A10,P$1))))*LOOKUP(P$1,'Calculated rates'!$B$4:$B$103,'Calculated rates'!$F$4:$F$104),"") -> -0.2010143164 | Q10: =IF(AND($A10<>"",Q$1<>""),EXP(-UFRC*($A10+Q$1))*(alpha*MIN($A10,Q$1)-0.5*EXP(-alpha*MAX($A10,Q$1))*(EXP(alpha*MIN($A10,Q$1))-EXP(-alpha*MIN($A10,Q$1))))*LOOKUP(Q$1,'Calculated rates'!$B$4:$B$103,'Calculated rates'!$F$4:$F$104),"") -> 1.013920565 | R10: =IF(AND($A10<>"",R$1<>""),EXP(-UFRC*($A10+R$1))*(alpha*MIN($A10,R$1)-0.5*EXP(-alpha*MAX($A10,R$1))*(EXP(alpha*MIN($A10,R$1))-EXP(-alpha*MIN($A10,R$1))))*LOOKUP(R$1,'Calculated rates'!$B$4:$B$103,'Calculated rates'!$F$4:$F$104),"") -> -1.610293661 | S10: =IF(AND($A10<>"",S$1<>""),EXP(-UFRC*($A10+S$1))*(alpha*MIN($A10,S$1)-0.5*EXP(-alpha*MAX($A10,S$1))*(EXP(alpha*MIN($A10,S$1))-EXP(-alpha*MIN($A10,S$1))))*LOOKUP(S$1,'Calculated rates'!$B$4:$B$103,'Calculated rates'!$F$4:$F$104),"") -> 0.9439721909 | T10: =IF(AND($A10<>"",T$1<>""),EXP(-UFRC*($A10+T$1))*(alpha*MIN($A10,T$1)-0.5*EXP(-alpha*MAX($A10,T$1))*(EXP(alpha*MIN($A10,T$1))-EXP(-alpha*MIN($A10,T$1))))*LOOKUP(T$1,'Calculated rates'!$B$4:$B$103,'Calculated rates'!$F$4:$F$104),"") -> -0.2911290504 | U10: =IF(AND($A10<>"",U$1<>""),EXP(-UFRC*($A10+U$1))*(alpha*MIN($A10,U$1)-0.5*EXP(-alpha*MAX($A10,U$1))*(EXP(alpha*MIN($A10,U$1))-EXP(-alpha*MIN($A10,U$1))))*LOOKUP(U$1,'Calculated rates'!$B$4:$B$103,'Calculated rates'!$F$4:$F$104),"") -> 0.2069710866 | V10: =IF(AND($A10<>"",V$1<>""),EXP(-UFRC*($A10+V$1))*(alpha*MIN($A10,V$1)-0.5*EXP(-alpha*MAX($A10,V$1))*(EXP(alpha*MIN($A10,V$1))-EXP(-alpha*MIN($A10,V$1))))*LOOKUP(V$1,'Calculated rates'!$B$4:$B$103,'Calculated rates'!$F$4:$F$104),"") -> -0.5676443645 | W10: =IF(AND($A10<>"",W$1<>""),EXP(-UFRC*($A10+W$1))*(alpha*MIN($A10,W$1)-0.5*EXP(-alpha*MAX($A10,W$1))*(EXP(alpha*MIN($A10,W$1))-EXP(-alpha*MIN($A10,W$1))))*LOOKUP(W$1,'Calculated rates'!$B$4:$B$103,'Calculated rates'!$F$4:$F$104),"") -> 0.5854331384 | X10: =IF(AND($A10<>"",X$1<>""),EXP(-UFRC*($A10+X$1))*(alpha*MIN($A10,X$1)-0.5*EXP(-alpha*MAX($A10,X$1))*(EXP(alpha*MIN($A10,X$1))-EXP(-alpha*MIN($A10,X$1))))*LOOKUP(X$1,'Calculated rates'!$B$4:$B$103,'Calculated rates'!$F$4:$F$104),"") ->  | Y10: =IF(AND($A10<>"",Y$1<>""),EXP(-UFRC*($A10+Y$1))*(alpha*MIN($A10,Y$1)-0.5*EXP(-alpha*MAX($A10,Y$1))*(EXP(alpha*MIN($A10,Y$1))-EXP(-alpha*MIN($A10,Y$1))))*LOOKUP(Y$1,'Calculated rates'!$B$4:$B$103,'Calculated rates'!$F$4:$F$104),"") ->  | Z10: =IF(AND($A10<>"",Z$1<>""),EXP(-UFRC*($A10+Z$1))*(alpha*MIN($A10,Z$1)-0.5*EXP(-alpha*MAX($A10,Z$1))*(EXP(alpha*MIN($A10,Z$1))-EXP(-alpha*MIN($A10,Z$1))))*LOOKUP(Z$1,'Calculated rates'!$B$4:$B$103,'Calculated rates'!$F$4:$F$104),"") ->  | AA10: =IF(AND($A10<>"",AA$1<>""),EXP(-UFRC*($A10+AA$1))*(alpha*MIN($A10,AA$1)-0.5*EXP(-alpha*MAX($A10,AA$1))*(EXP(alpha*MIN($A10,AA$1))-EXP(-alpha*MIN($A10,AA$1))))*LOOKUP(AA$1,'Calculated rates'!$B$4:$B$103,'Calculated rates'!$F$4:$F$104),"") ->  | AB10: =IF(AND($A10<>"",AB$1<>""),EXP(-UFRC*($A10+AB$1))*(alpha*MIN($A10,AB$1)-0.5*EXP(-alpha*MAX($A10,AB$1))*(EXP(alpha*MIN($A10,AB$1))-EXP(-alpha*MIN($A10,AB$1))))*LOOKUP(AB$1,'Calculated rates'!$B$4:$B$103,'Calculated rates'!$F$4:$F$104),"") ->  | AC10: =IF(AND($A10<>"",AC$1<>""),EXP(-UFRC*($A10+AC$1))*(alpha*MIN($A10,AC$1)-0.5*EXP(-alpha*MAX($A10,AC$1))*(EXP(alpha*MIN($A10,AC$1))-EXP(-alpha*MIN($A10,AC$1))))*LOOKUP(AC$1,'Calculated rates'!$B$4:$B$103,'Calculated rates'!$F$4:$F$104),"") ->  | AD10: =IF(AND($A10<>"",AD$1<>""),EXP(-UFRC*($A10+AD$1))*(alpha*MIN($A10,AD$1)-0.5*EXP(-alpha*MAX($A10,AD$1))*(EXP(alpha*MIN($A10,AD$1))-EXP(-alpha*MIN($A10,AD$1))))*LOOKUP(AD$1,'Calculated rates'!$B$4:$B$103,'Calculated rates'!$F$4:$F$104),"") ->  | AE10: =IF(AND($A10<>"",AE$1<>""),EXP(-UFRC*($A10+AE$1))*(alpha*MIN($A10,AE$1)-0.5*EXP(-alpha*MAX($A10,AE$1))*(EXP(alpha*MIN($A10,AE$1))-EXP(-alpha*MIN($A10,AE$1))))*LOOKUP(AE$1,'Calculated rates'!$B$4:$B$103,'Calculated rates'!$F$4:$F$104),"") ->  | AF10: =IF(AND($A10<>"",AF$1<>""),EXP(-UFRC*($A10+AF$1))*(alpha*MIN($A10,AF$1)-0.5*EXP(-alpha*MAX($A10,AF$1))*(EXP(alpha*MIN($A10,AF$1))-EXP(-alpha*MIN($A10,AF$1))))*LOOKUP(AF$1,'Calculated rates'!$B$4:$B$103,'Calculated rates'!$F$4:$F$104),"") ->  | AG10: =IF(AND($A10<>"",AG$1<>""),EXP(-UFRC*($A10+AG$1))*(alpha*MIN($A10,AG$1)-0.5*EXP(-alpha*MAX($A10,AG$1))*(EXP(alpha*MIN($A10,AG$1))-EXP(-alpha*MIN($A10,AG$1))))*LOOKUP(AG$1,'Calculated rates'!$B$4:$B$103,'Calculated rates'!$F$4:$F$104),"") ->  | AH10: =IF(AND($A10<>"",AH$1<>""),EXP(-UFRC*($A10+AH$1))*(alpha*MIN($A10,AH$1)-0.5*EXP(-alpha*MAX($A10,AH$1))*(EXP(alpha*MIN($A10,AH$1))-EXP(-alpha*MIN($A10,AH$1))))*LOOKUP(AH$1,'Calculated rates'!$B$4:$B$103,'Calculated rates'!$F$4:$F$104),"") ->  | AI10: =IF(AND($A10<>"",AI$1<>""),EXP(-UFRC*($A10+AI$1))*(alpha*MIN($A10,AI$1)-0.5*EXP(-alpha*MAX($A10,AI$1))*(EXP(alpha*MIN($A10,AI$1))-EXP(-alpha*MIN($A10,AI$1))))*LOOKUP(AI$1,'Calculated rates'!$B$4:$B$103,'Calculated rates'!$F$4:$F$104),"") ->  | AJ10: =IF(AND($A10<>"",AJ$1<>""),EXP(-UFRC*($A10+AJ$1))*(alpha*MIN($A10,AJ$1)-0.5*EXP(-alpha*MAX($A10,AJ$1))*(EXP(alpha*MIN($A10,AJ$1))-EXP(-alpha*MIN($A10,AJ$1))))*LOOKUP(AJ$1,'Calculated rates'!$B$4:$B$103,'Calculated rates'!$F$4:$F$104),"") ->  | AK10: =IF(AND($A10<>"",AK$1<>""),EXP(-UFRC*($A10+AK$1))*(alpha*MIN($A10,AK$1)-0.5*EXP(-alpha*MAX($A10,AK$1))*(EXP(alpha*MIN($A10,AK$1))-EXP(-alpha*MIN($A10,AK$1))))*LOOKUP(AK$1,'Calculated rates'!$B$4:$B$103,'Calculated rates'!$F$4:$F$104),"") ->  | AL10: =IF(AND($A10<>"",AL$1<>""),EXP(-UFRC*($A10+AL$1))*(alpha*MIN($A10,AL$1)-0.5*EXP(-alpha*MAX($A10,AL$1))*(EXP(alpha*MIN($A10,AL$1))-EXP(-alpha*MIN($A10,AL$1))))*LOOKUP(AL$1,'Calculated rates'!$B$4:$B$103,'Calculated rates'!$F$4:$F$104),"") ->  | AM10: =IF(AND($A10<>"",AM$1<>""),EXP(-UFRC*($A10+AM$1))*(alpha*MIN($A10,AM$1)-0.5*EXP(-alpha*MAX($A10,AM$1))*(EXP(alpha*MIN($A10,AM$1))-EXP(-alpha*MIN($A10,AM$1))))*LOOKUP(AM$1,'Calculated rates'!$B$4:$B$103,'Calculated rates'!$F$4:$F$104),"") ->  | AN10: =IF(AND($A10<>"",AN$1<>""),EXP(-UFRC*($A10+AN$1))*(alpha*MIN($A10,AN$1)-0.5*EXP(-alpha*MAX($A10,AN$1))*(EXP(alpha*MIN($A10,AN$1))-EXP(-alpha*MIN($A10,AN$1))))*LOOKUP(AN$1,'Calculated rates'!$B$4:$B$103,'Calculated rates'!$F$4:$F$104),"") ->  | AO10: =IF(AND($A10<>"",AO$1<>""),EXP(-UFRC*($A10+AO$1))*(alpha*MIN($A10,AO$1)-0.5*EXP(-alpha*MAX($A10,AO$1))*(EXP(alpha*MIN($A10,AO$1))-EXP(-alpha*MIN($A10,AO$1))))*LOOKUP(AO$1,'Calculated rates'!$B$4:$B$103,'Calculated rates'!$F$4:$F$104),"") ->  | AP10: =IF(AND($A10<>"",AP$1<>""),EXP(-UFRC*($A10+AP$1))*(alpha*MIN($A10,AP$1)-0.5*EXP(-alpha*MAX($A10,AP$1))*(EXP(alpha*MIN($A10,AP$1))-EXP(-alpha*MIN($A10,AP$1))))*LOOKUP(AP$1,'Calculated rates'!$B$4:$B$103,'Calculated rates'!$F$4:$F$104),"") ->  | AQ10: =IF(AND($A10<>"",AQ$1<>""),EXP(-UFRC*($A10+AQ$1))*(alpha*MIN($A10,AQ$1)-0.5*EXP(-alpha*MAX($A10,AQ$1))*(EXP(alpha*MIN($A10,AQ$1))-EXP(-alpha*MIN($A10,AQ$1))))*LOOKUP(AQ$1,'Calculated rates'!$B$4:$B$103,'Calculated rates'!$F$4:$F$104),"") ->  | AR10: =IF(AND($A10<>"",AR$1<>""),EXP(-UFRC*($A10+AR$1))*(alpha*MIN($A10,AR$1)-0.5*EXP(-alpha*MAX($A10,AR$1))*(EXP(alpha*MIN($A10,AR$1))-EXP(-alpha*MIN($A10,AR$1))))*LOOKUP(AR$1,'Calculated rates'!$B$4:$B$103,'Calculated rates'!$F$4:$F$104),"") ->  | AS10: =IF(AND($A10<>"",AS$1<>""),EXP(-UFRC*($A10+AS$1))*(alpha*MIN($A10,AS$1)-0.5*EXP(-alpha*MAX($A10,AS$1))*(EXP(alpha*MIN($A10,AS$1))-EXP(-alpha*MIN($A10,AS$1))))*LOOKUP(AS$1,'Calculated rates'!$B$4:$B$103,'Calculated rates'!$F$4:$F$104),"") ->  | AT10: =IF(AND($A10<>"",AT$1<>""),EXP(-UFRC*($A10+AT$1))*(alpha*MIN($A10,AT$1)-0.5*EXP(-alpha*MAX($A10,AT$1))*(EXP(alpha*MIN($A10,AT$1))-EXP(-alpha*MIN($A10,AT$1))))*LOOKUP(AT$1,'Calculated rates'!$B$4:$B$103,'Calculated rates'!$F$4:$F$104),"") ->  | AU10: =IF(AND($A10<>"",AU$1<>""),EXP(-UFRC*($A10+AU$1))*(alpha*MIN($A10,AU$1)-0.5*EXP(-alpha*MAX($A10,AU$1))*(EXP(alpha*MIN($A10,AU$1))-EXP(-alpha*MIN($A10,AU$1))))*LOOKUP(AU$1,'Calculated rates'!$B$4:$B$103,'Calculated rates'!$F$4:$F$104),"") ->  | AV10: =IF(AND($A10<>"",AV$1<>""),EXP(-UFRC*($A10+AV$1))*(alpha*MIN($A10,AV$1)-0.5*EXP(-alpha*MAX($A10,AV$1))*(EXP(alpha*MIN($A10,AV$1))-EXP(-alpha*MIN($A10,AV$1))))*LOOKUP(AV$1,'Calculated rates'!$B$4:$B$103,'Calculated rates'!$F$4:$F$104),"") ->  | AW10: =IF(AND($A10<>"",AW$1<>""),EXP(-UFRC*($A10+AW$1))*(alpha*MIN($A10,AW$1)-0.5*EXP(-alpha*MAX($A10,AW$1))*(EXP(alpha*MIN($A10,AW$1))-EXP(-alpha*MIN($A10,AW$1))))*LOOKUP(AW$1,'Calculated rates'!$B$4:$B$103,'Calculated rates'!$F$4:$F$104),"") ->  | AX10: =IF(AND($A10<>"",AX$1<>""),EXP(-UFRC*($A10+AX$1))*(alpha*MIN($A10,AX$1)-0.5*EXP(-alpha*MAX($A10,AX$1))*(EXP(alpha*MIN($A10,AX$1))-EXP(-alpha*MIN($A10,AX$1))))*LOOKUP(AX$1,'Calculated rates'!$B$4:$B$103,'Calculated rates'!$F$4:$F$104),"") ->  | AY10: =IF(AND($A10<>"",AY$1<>""),EXP(-UFRC*($A10+AY$1))*(alpha*MIN($A10,AY$1)-0.5*EXP(-alpha*MAX($A10,AY$1))*(EXP(alpha*MIN($A10,AY$1))-EXP(-alpha*MIN($A10,AY$1))))*LOOKUP(AY$1,'Calculated rates'!$B$4:$B$103,'Calculated rates'!$F$4:$F$104),"") ->  | AZ10: =IF(AND($A10<>"",AZ$1<>""),EXP(-UFRC*($A10+AZ$1))*(alpha*MIN($A10,AZ$1)-0.5*EXP(-alpha*MAX($A10,AZ$1))*(EXP(alpha*MIN($A10,AZ$1))-EXP(-alpha*MIN($A10,AZ$1))))*LOOKUP(AZ$1,'Calculated rates'!$B$4:$B$103,'Calculated rates'!$F$4:$F$104),"") ->  | BA10: =IF(AND($A10<>"",BA$1<>""),EXP(-UFRC*($A10+BA$1))*(alpha*MIN($A10,BA$1)-0.5*EXP(-alpha*MAX($A10,BA$1))*(EXP(alpha*MIN($A10,BA$1))-EXP(-alpha*MIN($A10,BA$1))))*LOOKUP(BA$1,'Calculated rates'!$B$4:$B$103,'Calculated rates'!$F$4:$F$104),"") ->  | BB10: =IF(AND($A10<>"",BB$1<>""),EXP(-UFRC*($A10+BB$1))*(alpha*MIN($A10,BB$1)-0.5*EXP(-alpha*MAX($A10,BB$1))*(EXP(alpha*MIN($A10,BB$1))-EXP(-alpha*MIN($A10,BB$1))))*LOOKUP(BB$1,'Calculated rates'!$B$4:$B$103,'Calculated rates'!$F$4:$F$104),"") ->  | BC10: =IF(AND($A10<>"",BC$1<>""),EXP(-UFRC*($A10+BC$1))*(alpha*MIN($A10,BC$1)-0.5*EXP(-alpha*MAX($A10,BC$1))*(EXP(alpha*MIN($A10,BC$1))-EXP(-alpha*MIN($A10,BC$1))))*LOOKUP(BC$1,'Calculated rates'!$B$4:$B$103,'Calculated rates'!$F$4:$F$104),"") ->  | BD10: =IF(AND($A10<>"",BD$1<>""),EXP(-UFRC*($A10+BD$1))*(alpha*MIN($A10,BD$1)-0.5*EXP(-alpha*MAX($A10,BD$1))*(EXP(alpha*MIN($A10,BD$1))-EXP(-alpha*MIN($A10,BD$1))))*LOOKUP(BD$1,'Calculated rates'!$B$4:$B$103,'Calculated rates'!$F$4:$F$104),"") ->  | BE10: =IF(AND($A10<>"",BE$1<>""),EXP(-UFRC*($A10+BE$1))*(alpha*MIN($A10,BE$1)-0.5*EXP(-alpha*MAX($A10,BE$1))*(EXP(alpha*MIN($A10,BE$1))-EXP(-alpha*MIN($A10,BE$1))))*LOOKUP(BE$1,'Calculated rates'!$B$4:$B$103,'Calculated rates'!$F$4:$F$104),"") ->  | BF10: =IF(AND($A10<>"",BF$1<>""),EXP(-UFRC*($A10+BF$1))*(alpha*MIN($A10,BF$1)-0.5*EXP(-alpha*MAX($A10,BF$1))*(EXP(alpha*MIN($A10,BF$1))-EXP(-alpha*MIN($A10,BF$1))))*LOOKUP(BF$1,'Calculated rates'!$B$4:$B$103,'Calculated rates'!$F$4:$F$104),"") ->  | BG10: =IF(AND($A10<>"",BG$1<>""),EXP(-UFRC*($A10+BG$1))*(alpha*MIN($A10,BG$1)-0.5*EXP(-alpha*MAX($A10,BG$1))*(EXP(alpha*MIN($A10,BG$1))-EXP(-alpha*MIN($A10,BG$1))))*LOOKUP(BG$1,'Calculated rates'!$B$4:$B$103,'Calculated rates'!$F$4:$F$104),"") ->  | BH10: =IF(AND($A10<>"",BH$1<>""),EXP(-UFRC*($A10+BH$1))*(alpha*MIN($A10,BH$1)-0.5*EXP(-alpha*MAX($A10,BH$1))*(EXP(alpha*MIN($A10,BH$1))-EXP(-alpha*MIN($A10,BH$1))))*LOOKUP(BH$1,'Calculated rates'!$B$4:$B$103,'Calculated rates'!$F$4:$F$104),"") ->  | BI10: =IF(AND($A10<>"",BI$1<>""),EXP(-UFRC*($A10+BI$1))*(alpha*MIN($A10,BI$1)-0.5*EXP(-alpha*MAX($A10,BI$1))*(EXP(alpha*MIN($A10,BI$1))-EXP(-alpha*MIN($A10,BI$1))))*LOOKUP(BI$1,'Calculated rates'!$B$4:$B$103,'Calculated rates'!$F$4:$F$104),"") ->  | BJ10: =IF(AND($A10<>"",BJ$1<>""),EXP(-UFRC*($A10+BJ$1))*(alpha*MIN($A10,BJ$1)-0.5*EXP(-alpha*MAX($A10,BJ$1))*(EXP(alpha*MIN($A10,BJ$1))-EXP(-alpha*MIN($A10,BJ$1))))*LOOKUP(BJ$1,'Calculated rates'!$B$4:$B$103,'Calculated rates'!$F$4:$F$104),"") ->  | BK10: =IF(AND($A10<>"",BK$1<>""),EXP(-UFRC*($A10+BK$1))*(alpha*MIN($A10,BK$1)-0.5*EXP(-alpha*MAX($A10,BK$1))*(EXP(alpha*MIN($A10,BK$1))-EXP(-alpha*MIN($A10,BK$1))))*LOOKUP(BK$1,'Calculated rates'!$B$4:$B$103,'Calculated rates'!$F$4:$F$104),"") ->  | BL10: =IF(AND($A10<>"",BL$1<>""),EXP(-UFRC*($A10+BL$1))*(alpha*MIN($A10,BL$1)-0.5*EXP(-alpha*MAX($A10,BL$1))*(EXP(alpha*MIN($A10,BL$1))-EXP(-alpha*MIN($A10,BL$1))))*LOOKUP(BL$1,'Calculated rates'!$B$4:$B$103,'Calculated rates'!$F$4:$F$104),"") ->  | BM10: =IF(AND($A10<>"",BM$1<>""),EXP(-UFRC*($A10+BM$1))*(alpha*MIN($A10,BM$1)-0.5*EXP(-alpha*MAX($A10,BM$1))*(EXP(alpha*MIN($A10,BM$1))-EXP(-alpha*MIN($A10,BM$1))))*LOOKUP(BM$1,'Calculated rates'!$B$4:$B$103,'Calculated rates'!$F$4:$F$104),"") ->  | BN10: =IF(AND($A10<>"",BN$1<>""),EXP(-UFRC*($A10+BN$1))*(alpha*MIN($A10,BN$1)-0.5*EXP(-alpha*MAX($A10,BN$1))*(EXP(alpha*MIN($A10,BN$1))-EXP(-alpha*MIN($A10,BN$1))))*LOOKUP(BN$1,'Calculated rates'!$B$4:$B$103,'Calculated rates'!$F$4:$F$104),"") ->  | BO10: =IF(AND($A10<>"",BO$1<>""),EXP(-UFRC*($A10+BO$1))*(alpha*MIN($A10,BO$1)-0.5*EXP(-alpha*MAX($A10,BO$1))*(EXP(alpha*MIN($A10,BO$1))-EXP(-alpha*MIN($A10,BO$1))))*LOOKUP(BO$1,'Calculated rates'!$B$4:$B$103,'Calculated rates'!$F$4:$F$104),"") ->  | BP10: =IF(AND($A10<>"",BP$1<>""),EXP(-UFRC*($A10+BP$1))*(alpha*MIN($A10,BP$1)-0.5*EXP(-alpha*MAX($A10,BP$1))*(EXP(alpha*MIN($A10,BP$1))-EXP(-alpha*MIN($A10,BP$1))))*LOOKUP(BP$1,'Calculated rates'!$B$4:$B$103,'Calculated rates'!$F$4:$F$104),"") ->  | BQ10: =IF(AND($A10<>"",BQ$1<>""),EXP(-UFRC*($A10+BQ$1))*(alpha*MIN($A10,BQ$1)-0.5*EXP(-alpha*MAX($A10,BQ$1))*(EXP(alpha*MIN($A10,BQ$1))-EXP(-alpha*MIN($A10,BQ$1))))*LOOKUP(BQ$1,'Calculated rates'!$B$4:$B$103,'Calculated rates'!$F$4:$F$104),"") ->  | BR10: =IF(AND($A10<>"",BR$1<>""),EXP(-UFRC*($A10+BR$1))*(alpha*MIN($A10,BR$1)-0.5*EXP(-alpha*MAX($A10,BR$1))*(EXP(alpha*MIN($A10,BR$1))-EXP(-alpha*MIN($A10,BR$1))))*LOOKUP(BR$1,'Calculated rates'!$B$4:$B$103,'Calculated rates'!$F$4:$F$104),"") ->  | BS10: =IF(AND($A10<>"",BS$1<>""),EXP(-UFRC*($A10+BS$1))*(alpha*MIN($A10,BS$1)-0.5*EXP(-alpha*MAX($A10,BS$1))*(EXP(alpha*MIN($A10,BS$1))-EXP(-alpha*MIN($A10,BS$1))))*LOOKUP(BS$1,'Calculated rates'!$B$4:$B$103,'Calculated rates'!$F$4:$F$104),"") ->  | BT10: =IF(AND($A10<>"",BT$1<>""),EXP(-UFRC*($A10+BT$1))*(alpha*MIN($A10,BT$1)-0.5*EXP(-alpha*MAX($A10,BT$1))*(EXP(alpha*MIN($A10,BT$1))-EXP(-alpha*MIN($A10,BT$1))))*LOOKUP(BT$1,'Calculated rates'!$B$4:$B$103,'Calculated rates'!$F$4:$F$104),"") ->  | BU10: =IF(AND($A10<>"",BU$1<>""),EXP(-UFRC*($A10+BU$1))*(alpha*MIN($A10,BU$1)-0.5*EXP(-alpha*MAX($A10,BU$1))*(EXP(alpha*MIN($A10,BU$1))-EXP(-alpha*MIN($A10,BU$1))))*LOOKUP(BU$1,'Calculated rates'!$B$4:$B$103,'Calculated rates'!$F$4:$F$104),"") ->  | BV10: =IF(AND($A10<>"",BV$1<>""),EXP(-UFRC*($A10+BV$1))*(alpha*MIN($A10,BV$1)-0.5*EXP(-alpha*MAX($A10,BV$1))*(EXP(alpha*MIN($A10,BV$1))-EXP(-alpha*MIN($A10,BV$1))))*LOOKUP(BV$1,'Calculated rates'!$B$4:$B$103,'Calculated rates'!$F$4:$F$104),"") ->  | BW10: =IF(AND($A10<>"",BW$1<>""),EXP(-UFRC*($A10+BW$1))*(alpha*MIN($A10,BW$1)-0.5*EXP(-alpha*MAX($A10,BW$1))*(EXP(alpha*MIN($A10,BW$1))-EXP(-alpha*MIN($A10,BW$1))))*LOOKUP(BW$1,'Calculated rates'!$B$4:$B$103,'Calculated rates'!$F$4:$F$104),"") ->  | BX10: =IF(AND($A10<>"",BX$1<>""),EXP(-UFRC*($A10+BX$1))*(alpha*MIN($A10,BX$1)-0.5*EXP(-alpha*MAX($A10,BX$1))*(EXP(alpha*MIN($A10,BX$1))-EXP(-alpha*MIN($A10,BX$1))))*LOOKUP(BX$1,'Calculated rates'!$B$4:$B$103,'Calculated rates'!$F$4:$F$104),"") ->  | BY10: =IF(AND($A10<>"",BY$1<>""),EXP(-UFRC*($A10+BY$1))*(alpha*MIN($A10,BY$1)-0.5*EXP(-alpha*MAX($A10,BY$1))*(EXP(alpha*MIN($A10,BY$1))-EXP(-alpha*MIN($A10,BY$1))))*LOOKUP(BY$1,'Calculated rates'!$B$4:$B$103,'Calculated rates'!$F$4:$F$104),"") ->  | BZ10: =IF(AND($A10<>"",BZ$1<>""),EXP(-UFRC*($A10+BZ$1))*(alpha*MIN($A10,BZ$1)-0.5*EXP(-alpha*MAX($A10,BZ$1))*(EXP(alpha*MIN($A10,BZ$1))-EXP(-alpha*MIN($A10,BZ$1))))*LOOKUP(BZ$1,'Calculated rates'!$B$4:$B$103,'Calculated rates'!$F$4:$F$104),"") ->  | CA10: =IF(AND($A10<>"",CA$1<>""),EXP(-UFRC*($A10+CA$1))*(alpha*MIN($A10,CA$1)-0.5*EXP(-alpha*MAX($A10,CA$1))*(EXP(alpha*MIN($A10,CA$1))-EXP(-alpha*MIN($A10,CA$1))))*LOOKUP(CA$1,'Calculated rates'!$B$4:$B$103,'Calculated rates'!$F$4:$F$104),"") ->  | CB10: =IF(AND($A10<>"",CB$1<>""),EXP(-UFRC*($A10+CB$1))*(alpha*MIN($A10,CB$1)-0.5*EXP(-alpha*MAX($A10,CB$1))*(EXP(alpha*MIN($A10,CB$1))-EXP(-alpha*MIN($A10,CB$1))))*LOOKUP(CB$1,'Calculated rates'!$B$4:$B$103,'Calculated rates'!$F$4:$F$104),"") ->  | CC10: =IF(AND($A10<>"",CC$1<>""),EXP(-UFRC*($A10+CC$1))*(alpha*MIN($A10,CC$1)-0.5*EXP(-alpha*MAX($A10,CC$1))*(EXP(alpha*MIN($A10,CC$1))-EXP(-alpha*MIN($A10,CC$1))))*LOOKUP(CC$1,'Calculated rates'!$B$4:$B$103,'Calculated rates'!$F$4:$F$104),"") ->  | CD10: =IF(AND($A10<>"",CD$1<>""),EXP(-UFRC*($A10+CD$1))*(alpha*MIN($A10,CD$1)-0.5*EXP(-alpha*MAX($A10,CD$1))*(EXP(alpha*MIN($A10,CD$1))-EXP(-alpha*MIN($A10,CD$1))))*LOOKUP(CD$1,'Calculated rates'!$B$4:$B$103,'Calculated rates'!$F$4:$F$104),"") ->  | CE10: =IF(AND($A10<>"",CE$1<>""),EXP(-UFRC*($A10+CE$1))*(alpha*MIN($A10,CE$1)-0.5*EXP(-alpha*MAX($A10,CE$1))*(EXP(alpha*MIN($A10,CE$1))-EXP(-alpha*MIN($A10,CE$1))))*LOOKUP(CE$1,'Calculated rates'!$B$4:$B$103,'Calculated rates'!$F$4:$F$104),"") ->  | CF10: =IF(AND($A10<>"",CF$1<>""),EXP(-UFRC*($A10+CF$1))*(alpha*MIN($A10,CF$1)-0.5*EXP(-alpha*MAX($A10,CF$1))*(EXP(alpha*MIN($A10,CF$1))-EXP(-alpha*MIN($A10,CF$1))))*LOOKUP(CF$1,'Calculated rates'!$B$4:$B$103,'Calculated rates'!$F$4:$F$104),"") ->  | CG10: =IF(AND($A10<>"",CG$1<>""),EXP(-UFRC*($A10+CG$1))*(alpha*MIN($A10,CG$1)-0.5*EXP(-alpha*MAX($A10,CG$1))*(EXP(alpha*MIN($A10,CG$1))-EXP(-alpha*MIN($A10,CG$1))))*LOOKUP(CG$1,'Calculated rates'!$B$4:$B$103,'Calculated rates'!$F$4:$F$104),"") ->  | CH10: =IF(AND($A10<>"",CH$1<>""),EXP(-UFRC*($A10+CH$1))*(alpha*MIN($A10,CH$1)-0.5*EXP(-alpha*MAX($A10,CH$1))*(EXP(alpha*MIN($A10,CH$1))-EXP(-alpha*MIN($A10,CH$1))))*LOOKUP(CH$1,'Calculated rates'!$B$4:$B$103,'Calculated rates'!$F$4:$F$104),"") ->  | CI10: =IF(AND($A10<>"",CI$1<>""),EXP(-UFRC*($A10+CI$1))*(alpha*MIN($A10,CI$1)-0.5*EXP(-alpha*MAX($A10,CI$1))*(EXP(alpha*MIN($A10,CI$1))-EXP(-alpha*MIN($A10,CI$1))))*LOOKUP(CI$1,'Calculated rates'!$B$4:$B$103,'Calculated rates'!$F$4:$F$104),"") ->  | CJ10: =IF(AND($A10<>"",CJ$1<>""),EXP(-UFRC*($A10+CJ$1))*(alpha*MIN($A10,CJ$1)-0.5*EXP(-alpha*MAX($A10,CJ$1))*(EXP(alpha*MIN($A10,CJ$1))-EXP(-alpha*MIN($A10,CJ$1))))*LOOKUP(CJ$1,'Calculated rates'!$B$4:$B$103,'Calculated rates'!$F$4:$F$104),"") ->  | CK10: =IF(AND($A10<>"",CK$1<>""),EXP(-UFRC*($A10+CK$1))*(alpha*MIN($A10,CK$1)-0.5*EXP(-alpha*MAX($A10,CK$1))*(EXP(alpha*MIN($A10,CK$1))-EXP(-alpha*MIN($A10,CK$1))))*LOOKUP(CK$1,'Calculated rates'!$B$4:$B$103,'Calculated rates'!$F$4:$F$104),"") ->  | CL10: =IF(AND($A10<>"",CL$1<>""),EXP(-UFRC*($A10+CL$1))*(alpha*MIN($A10,CL$1)-0.5*EXP(-alpha*MAX($A10,CL$1))*(EXP(alpha*MIN($A10,CL$1))-EXP(-alpha*MIN($A10,CL$1))))*LOOKUP(CL$1,'Calculated rates'!$B$4:$B$103,'Calculated rates'!$F$4:$F$104),"") ->  | CM10: =IF(AND($A10<>"",CM$1<>""),EXP(-UFRC*($A10+CM$1))*(alpha*MIN($A10,CM$1)-0.5*EXP(-alpha*MAX($A10,CM$1))*(EXP(alpha*MIN($A10,CM$1))-EXP(-alpha*MIN($A10,CM$1))))*LOOKUP(CM$1,'Calculated rates'!$B$4:$B$103,'Calculated rates'!$F$4:$F$104),"") ->  | CN10: =IF(AND($A10<>"",CN$1<>""),EXP(-UFRC*($A10+CN$1))*(alpha*MIN($A10,CN$1)-0.5*EXP(-alpha*MAX($A10,CN$1))*(EXP(alpha*MIN($A10,CN$1))-EXP(-alpha*MIN($A10,CN$1))))*LOOKUP(CN$1,'Calculated rates'!$B$4:$B$103,'Calculated rates'!$F$4:$F$104),"") ->  | CO10: =IF(AND($A10<>"",CO$1<>""),EXP(-UFRC*($A10+CO$1))*(alpha*MIN($A10,CO$1)-0.5*EXP(-alpha*MAX($A10,CO$1))*(EXP(alpha*MIN($A10,CO$1))-EXP(-alpha*MIN($A10,CO$1))))*LOOKUP(CO$1,'Calculated rates'!$B$4:$B$103,'Calculated rates'!$F$4:$F$104),"") ->  | CP10: =IF(AND($A10<>"",CP$1<>""),EXP(-UFRC*($A10+CP$1))*(alpha*MIN($A10,CP$1)-0.5*EXP(-alpha*MAX($A10,CP$1))*(EXP(alpha*MIN($A10,CP$1))-EXP(-alpha*MIN($A10,CP$1))))*LOOKUP(CP$1,'Calculated rates'!$B$4:$B$103,'Calculated rates'!$F$4:$F$104),"") ->  | CQ10: =IF(AND($A10<>"",CQ$1<>""),EXP(-UFRC*($A10+CQ$1))*(alpha*MIN($A10,CQ$1)-0.5*EXP(-alpha*MAX($A10,CQ$1))*(EXP(alpha*MIN($A10,CQ$1))-EXP(-alpha*MIN($A10,CQ$1))))*LOOKUP(CQ$1,'Calculated rates'!$B$4:$B$103,'Calculated rates'!$F$4:$F$104),"") ->  | CR10: =IF(AND($A10<>"",CR$1<>""),EXP(-UFRC*($A10+CR$1))*(alpha*MIN($A10,CR$1)-0.5*EXP(-alpha*MAX($A10,CR$1))*(EXP(alpha*MIN($A10,CR$1))-EXP(-alpha*MIN($A10,CR$1))))*LOOKUP(CR$1,'Calculated rates'!$B$4:$B$103,'Calculated rates'!$F$4:$F$104),"") ->  | CS10: =IF(AND($A10<>"",CS$1<>""),EXP(-UFRC*($A10+CS$1))*(alpha*MIN($A10,CS$1)-0.5*EXP(-alpha*MAX($A10,CS$1))*(EXP(alpha*MIN($A10,CS$1))-EXP(-alpha*MIN($A10,CS$1))))*LOOKUP(CS$1,'Calculated rates'!$B$4:$B$103,'Calculated rates'!$F$4:$F$104),"") ->  | CT10: =IF(AND($A10<>"",CT$1<>""),EXP(-UFRC*($A10+CT$1))*(alpha*MIN($A10,CT$1)-0.5*EXP(-alpha*MAX($A10,CT$1))*(EXP(alpha*MIN($A10,CT$1))-EXP(-alpha*MIN($A10,CT$1))))*LOOKUP(CT$1,'Calculated rates'!$B$4:$B$103,'Calculated rates'!$F$4:$F$104),"") ->  | CU10: =IF(AND($A10<>"",CU$1<>""),EXP(-UFRC*($A10+CU$1))*(alpha*MIN($A10,CU$1)-0.5*EXP(-alpha*MAX($A10,CU$1))*(EXP(alpha*MIN($A10,CU$1))-EXP(-alpha*MIN($A10,CU$1))))*LOOKUP(CU$1,'Calculated rates'!$B$4:$B$103,'Calculated rates'!$F$4:$F$104),"") ->  | CV10: =IF(AND($A10<>"",CV$1<>""),EXP(-UFRC*($A10+CV$1))*(alpha*MIN($A10,CV$1)-0.5*EXP(-alpha*MAX($A10,CV$1))*(EXP(alpha*MIN($A10,CV$1))-EXP(-alpha*MIN($A10,CV$1))))*LOOKUP(CV$1,'Calculated rates'!$B$4:$B$103,'Calculated rates'!$F$4:$F$104),"") ->  | CW10: =IF(AND($A10<>"",CW$1<>""),EXP(-UFRC*($A10+CW$1))*(alpha*MIN($A10,CW$1)-0.5*EXP(-alpha*MAX($A10,CW$1))*(EXP(alpha*MIN($A10,CW$1))-EXP(-alpha*MIN($A10,CW$1))))*LOOKUP(CW$1,'Calculated rates'!$B$4:$B$103,'Calculated rates'!$F$4:$F$104),"") ->  | CX10: =IF(AND($A10<>"",CX$1<>""),EXP(-UFRC*($A10+CX$1))*(alpha*MIN($A10,CX$1)-0.5*EXP(-alpha*MAX($A10,CX$1))*(EXP(alpha*MIN($A10,CX$1))-EXP(-alpha*MIN($A10,CX$1))))*LOOKUP(CX$1,'Calculated rates'!$B$4:$B$103,'Calculated rates'!$F$4:$F$104),"") ->  | CY10: =IF(AND($A10<>"",CY$1<>""),EXP(-UFRC*($A10+CY$1))*(alpha*MIN($A10,CY$1)-0.5*EXP(-alpha*MAX($A10,CY$1))*(EXP(alpha*MIN($A10,CY$1))-EXP(-alpha*MIN($A10,CY$1))))*LOOKUP(CY$1,'Calculated rates'!$B$4:$B$103,'Calculated rates'!$F$4:$F$104),"") -> 
